Workbook

Sheet Datenblatt KSH (hidden)
A2: =Übersetzung!F86 -> Typ | B2: Kampmann KSH | I2: =TODAY() -> 2022-01-19
A3: =Übersetzung!F87 -> Projekt | B3: Bitte Projektnummer angeben
A4: =Übersetzung!F202 -> Kommentar | B4: Bitte Projektnummer angeben
A5: =Übersetzung!F88 -> Definition:
A6: =Übersetzung!F171 -> Breite Frontblende | B6: ='Auslegung KSH'!$D$9 -> 600 | C6: =Übersetzung!F151 -> Walzenfarbe | E6: ='Auslegung KSH'!$B$109 -> schwarz | G6: =Übersetzung!F143 -> BVR in Zuluft | I6: ='Auslegung KSH'!$D$24 -> nein
A7: =Übersetzung!F142 -> Schlitzanzahl | B7: ='Auslegung KSH'!$D$15 -> 3 | C7: =Übersetzung!F152 -> Lackierung Frontblende | E7: ='Auslegung KSH'!$B$112 -> weiß (RAL 9010) bepulvert | G7: =Übersetzung!F145 -> BVR in Abluft | I7: ='Auslegung KSH'!$D$43 -> nein
A8: Brutto-Listenpreis | B8: ='Auslegung KS'!$B$103 -> 309 | C8: =IF(AND(I6="nein",I7="nein"),"","*Preis ohneBVR") -> 
A10: =Übersetzung!F235 -> Beschreibung: Verstellbarer Luftdurchlass für Wandeinbau. Zuluft- und Abluftfunktion in einer gemeinsamen Frontblende. Ausgestattet mit im Anschlusskasten integrierten werkzeuglos entnehmbaren Schalldämmkulisssen nach VDI6022, zur Minderung der Telefonieschallübertragung. Variable Luftlenkung durch integrierte Luftleitelemente (Exzenterwalze). Optional: Konstantvolumenstromregler für Zu- bzw. Abluft.
A12: =Übersetzung!F90 -> technische Vorgaben | C12: =IF(AND(B6=500,'Auslegung KSH'!D18=Übersetzung!F162),Übersetzung!F239,IF(AND(B6=500,'Auslegung KSH'!D18=Übersetzung!F163),Übersetzung!F240,"")) ->  | F12: =Übersetzung!F20 -> Raumdaten
A13: =IF('Auslegung KSH'!D24=Übersetzung!F176,Übersetzung!F144,CONCATENATE(Übersetzung!F144,Übersetzung!F203," ",'Auslegung KSH'!D132," ",Einheiten!L8)) -> Luftvolumenstrom Zuluft | B13: V·SUP | C13: =IF(AND(B6=500,'Auslegung KSH'!D18=Übersetzung!F163),"",IF(I6="ja",'Auslegung KSH'!$D$28,'Auslegung KSH'!$D$27)) -> 120 | D13: =IF(AND(B6=500,'Auslegung KSH'!D18=Übersetzung!F163),"",Einheiten!L7) -> m³/h | F13: =Übersetzung!F25 -> Raumhöhe | G13: ='Auslegung KSH'!$D$77 -> 3 | H13: =Einheiten!$L$5 -> m
A14: =IF('Auslegung KSH'!D43=Übersetzung!F176,Übersetzung!F146,CONCATENATE(Übersetzung!F146,Übersetzung!F203," ",'Auslegung KSH'!E132," ",Einheiten!L8)) -> Luftvolumenstrom Abluft | B14: V·ETA | C14: =IF(AND(B6=500,'Auslegung KSH'!D18=Übersetzung!F162),"",IF(I7="ja",'Auslegung KSH'!$D$47,'Auslegung KSH'!$D$46)) -> 110 | D14: =IF(AND(B6=500,'Auslegung KSH'!D18=Übersetzung!F162),"",Einheiten!L7) -> m³/h | F14: =Übersetzung!F24 -> Raumbreite | G14: ='Auslegung KSH'!$D$80 -> 3 | H14: =Einheiten!$L$5 -> m
A15: =Übersetzung!F18 -> Temperatur Zuluft | B15: tZUL | C15: ='Auslegung KSH'!$D$73 -> 18 | D15: =Einheiten!L9 -> °C | F15: =Übersetzung!F23 -> Raumlänge | G15: ='Auslegung KSH'!$D$79 -> 6 | H15: =Einheiten!$L$5 -> m
A16: =Übersetzung!F19 -> Temperatur Raum | B16: tRAUM | C16: ='Auslegung KSH'!$D$74 -> 26 | D16: =Einheiten!L9 -> °C | F16: =Übersetzung!F148 -> Raumart nach VDI 2081 | G16: ='Auslegung KSH'!$D$81 -> Einzelbüro
A18: =Übersetzung!F204 -> Technische Daten | C18: =Übersetzung!F162 -> Zuluft | D18: =Übersetzung!F163 -> Abluft
A19: =IF(OR(AND(I6="nein",I7="ja"),AND(I6="ja",I7="nein"),AND(I6="nein",I7="nein")),Übersetzung!F27,"") -> Totaldruckverlust | B19: Dp | C19: =IF(I6="ja","",'Auslegung KSH'!$D$125) -> 38.67636138 | D19: =IF(I7="ja","",'Auslegung KSH'!$E$125) -> 28.88908115 | E19: =Einheiten!L8 -> Pa
A20: =Übersetzung!F91 -> Kritischer Strahlweg | B20: xkr. | C20: ='Auslegung KSH'!D126 -> 2.440261538 | E20: =Einheiten!$L$5 -> m
A21: =Übersetzung!F161 -> Strahllauflänge bis Aufenthaltsbereich | B21: x+y | C21: ='Auslegung KSH'!D127 -> 4.137317813 | E21: =Einheiten!$L$5 -> m
A22: =Übersetzung!F57 -> Geschwindigkeit nach Ablösen an Xkr. | B22: vx+y | C22: ='Auslegung KSH'!$D$128 -> 0.2558398708 | E22: =Einheiten!L6 -> m/s
A23: =Übersetzung!F58 -> Zugluftrisiko nach Ablösepunkt** | B23: ='Auslegung KS'!B111 -> DR | C23: ='Auslegung KSH'!D129 -> 26.93133203 | E23: %
A24: =Übersetzung!F164 -> Schallleistungspegel | B24: LWA_SUP/ETA | C24: =IF('Auslegung KSH'!D142="",'Auslegung KSH'!$D$141,'Auslegung KSH'!$D$142) -> 36 | D24: =IF('Auslegung KSH'!E142="",'Auslegung KSH'!E141,'Auslegung KSH'!E142) -> 33 | E24: dB(A)
A25: =Übersetzung!F168 -> Summen-Schallleistungspegel Zuluft + Abluft | B25: LWA_ges | C25: ='Auslegung KSH'!D146 -> 37.76434862 | E25: dB(A)
A26: =CONCATENATE(Übersetzung!$F$169," in ",'Auslegung KS'!$D$88," ",Einheiten!$L$5," ",Übersetzung!$F$205) -> Schalldruckpegel im Raum in 3 m Abstand | B26: LPA | C26: ='Auslegung KSH'!D147 -> 32.65032205 | E26: dB(A) | F26: =Übersetzung!F70 -> Abmessungen
F27: ='Auslegung KSH'!I75 -> Länge Anschlusskasten | H27: ='Auslegung KSH'!J75 -> 618 | I27: ='Auslegung KSH'!K73 -> mm
F28: ='Auslegung KSH'!I76 -> Höhe Anschlusskasten | H28: ='Auslegung KSH'!J76 -> 165 | I28: ='Auslegung KSH'!K74 -> mm
F29: ='Auslegung KSH'!I77 -> Tiefe Anschlusskasten | H29: ='Auslegung KSH'!J77 -> 225 | I29: ='Auslegung KSH'!K75 -> mm
F30: Stutzendurchmesser | H30: ='Auslegung KSH'!J81 -> 123 | I30: ='Auslegung KSH'!K76 -> mm
A31: =Übersetzung!$F$206 -> * Daten gelten für Walzenstellung D/E
A32: =Übersetzung!$F$92 -> ** Raumkategorie nach DIN EN ISO 7730: DR<10 % = A; DR<20 % = B; DR<30 % = C
A33: =Übersetzung!F133 -> Oktavspektrum | B33: f [Hz] | C33: 125 | D33: 250 | E33: 500 | F33: 1000 | G33: 2000 | H33: 4000 | I33: 8000
A34: =Übersetzung!F162 -> Zuluft | B34: LW_Okt | C34: ='Auslegung KSH'!$D150 -> 38.99778192 | D34: ='Auslegung KSH'!$D151 -> 39.06817828 | E34: ='Auslegung KSH'!$D152 -> 34.30897438 | F34: ='Auslegung KSH'!$D153 -> 28.8628684 | G34: ='Auslegung KSH'!$D154 -> 23.29518532 | H34: ='Auslegung KSH'!$D155 -> 20.87537435 | I34: ='Auslegung KSH'!$D156 -> 23.34300236
A35: =Übersetzung!F163 -> Abluft | B35: LW_Okt | C35: ='Auslegung KSH'!$E150 -> 36.30238825 | D35: ='Auslegung KSH'!$E151 -> 36.91087928 | E35: ='Auslegung KSH'!$E152 -> 32.22656844 | F35: ='Auslegung KSH'!$E153 -> 23.92291142 | G35: ='Auslegung KSH'!$E154 -> 19.04561285 | H35: ='Auslegung KSH'!$E155 -> 18.85930164 | I35: ='Auslegung KSH'!$E156 -> 22.72035333
A37: =Übersetzung!F170 -> Durchgangsdämpfungsmaß (Kanal -> Raum) | B37: f [Hz] | C37: 125 | D37: 250 | E37: 500 | F37: 1000 | G37: 2000 | H37: 4000 | I37: 8000
A38: =Übersetzung!F162 -> Zuluft | B38: Dt | C38: ='Auslegung KSH'!D160 -> 17.18697264 | D38: ='Auslegung KSH'!D161 -> 13.60439277 | E38: ='Auslegung KSH'!D162 -> 13.00624108 | F38: ='Auslegung KSH'!D163 -> 15.41958235 | G38: ='Auslegung KSH'!D164 -> 14.12530416 | H38: ='Auslegung KSH'!D165 -> 15.7703199 | I38: ='Auslegung KSH'!D166 -> 21.4958675
A39: =Übersetzung!F163 -> Abluft | B39: Dt | C39: ='Auslegung KSH'!E160 -> 17.18697264 | D39: ='Auslegung KSH'!E161 -> 13.60439277 | E39: ='Auslegung KSH'!E162 -> 13.00624108 | F39: ='Auslegung KSH'!E163 -> 15.41958235 | G39: ='Auslegung KSH'!E164 -> 14.12530416 | H39: ='Auslegung KSH'!E165 -> 15.7703199 | I39: ='Auslegung KSH'!E166 -> 21.4958675
A41: =Übersetzung!F44 -> Änderungen vorbehalten
A42: =Übersetzung!F45 -> Stand:
A43: ='Grunddaten KSH'!E52 -> 2020-04-21

Sheet xkr._vx KSH (hidden)
A1: Geschwindigkeit im Strahl | N1: kritischer Strahlweg | P1: Daten von KS, V°abs geht in Berechnung
C2: Auswahl | N2: Baulänge | P2: 600 | Q2: 800 | R2: 1000/500 | S2: 1200 | T2: Daten von KSW, V°spez pro m geht in Berechnung
A3: Konstanten | B3: K031 | C3: =U35 -> 0.008 | N3: Konstanten: | O3: K041 | P3: 0.07049404146 | Q3: 0.0130055595 | R3: 0.01850912364 | S3: =$R$3 -> 0.01850912364 | T3: 0.07304307144 | U3: 0.07304307144 | V3: 0.07304307144 | W3: 0.07304307144 | X3: 0.07304307144
B4: K033 | C4: =U36 -> 0.6 | O4: K042 | P4: 0.3 | Q4: 0.3 | R4: 0.3 | S4: 0.3 | T4: 0.5910751723 | U4: 0.5910751723 | V4: 0.5910751723 | W4: 0.5910751723 | X4: 0.5910751723
B5: K034 | C5: =U37 -> 0.5773502692 | O5: K043 | P5: 0.9220883516 | Q5: 1.213939663 | R5: 1.1225611 | S5: =$R$5 -> 1.1225611 | T5: 1.067829832 | U5: 1.067829832 | V5: 1.067829832 | W5: 1.067829832 | X5: 1.067829832
N6: mittlere Untertemperatur | O6: Dt0 | P6: =IF(('Auslegung KSH'!$D$74-'Auslegung KSH'!$D$73)>0,'Auslegung KSH'!D74-'Auslegung KSH'!D73,0.5) -> 8 | Q6: =$P$6 -> 8 | R6: =$P$6 -> 8 | S6: =$P$6 -> 8 | T6: =$P$6 -> 8 | U6: 8 | V6: 8 | W6: 8 | X6: 8
A7: Lauflänge | B7: Geschwindigkeit im Strahl ZUL | D7: Baulänge | E7: Schlitzanzahl | F7: Baulänge | G7: kritischer Strahlweg Anzeige | H7: kritischer Strahlweg | I7: vertikaler Strahlweg | J7: Geschwindigkeit im Strahl an x_kr. | K7: Geschwindigkeit im Strahl Anzeige | L7: Lauflänge bis Aufenthaltsbereich, ANZEIGE | M7: Zugluftrisiko | N7: Vorgegebener Volumenstrom | O7: =IF('Auslegung KSH'!$D$24="nein",'Auslegung KSH'!$D$27,'Auslegung KSH'!$D$28) -> 120
A8: L | B8: vx | F8: L | G8: xkr._Anzeige | H8: xkr. | I8: y | J8: v0 | K8: vx | L8: x+y | M8: DR
A9: m | B9: m/s | F9: mm | G9: m | H9: m | I9: m | J9: m/s | K9: m/s | L9: m | M9: % | O9: kritischer Strahlweg bei V° und DTo
A10: 0.5 | B10: =$C$3*'Auslegung KS'!$B$28*(1/A10)^($C$4)*$C$5*SQRT('Auslegung KS'!$D$15) -> 1.091315928 | D10: 500 | E10: 3 | F10: =CONCATENATE(D10,E10) -> 5003 | G10: =IF($P10<'Auslegung KSH'!$D$79,$P10,">Raumlänge") -> 2.440261538 | H10: =IF($P10<'Auslegung KSH'!$D$79,$P10,'Auslegung KSH'!$D$79) -> 2.440261538 | I10: =IF(G10=">Raumlänge",'Auslegung KSH'!$D$77,(('Auslegung KSH'!$D$77-'Auslegung KSH'!$D$78)/SIN(45/180*PI()))) -> 1.697056275 | J10: =$C$3*$O$7*(1/H10)^($C$4) -> 0.5620945936 | K10: =1/(I10+0.5)*J10 -> 0.2558398708 | L10: =IF(($H10+$I10)<'Auslegung KSH'!$D$79,($H10+$I10),">Raumlänge") -> 4.137317813 | M10: =IF(K10="<0,1",(34-$M$21)*(0.1-0.05)^0.62*(0.37*0.1*$M$22+3.14),(34-$M$21)*(K10-0.05)^0.62*(0.37*K10*$M$22+3.14)) -> 26.93133203 | O10: BL500-3 | P10: =$R$3*$O$7^'xkr._vx KSH'!$R$5*(1/'xkr._vx KSH'!$R$6^('xkr._vx KSH'!$R$4))+0.3 -> 2.440261538
A11: 0.6 | B11: =$C$3*'Auslegung KS'!$B$28*(1/A11)^($C$4)*$C$5*SQRT('Auslegung KS'!$D$15) -> 0.9782317315 | D11: 600 | E11: 3 | F11: =CONCATENATE(D11,E11) -> 6003 | G11: =IF($P11<'Auslegung KSH'!$D$79,$P11,">Raumlänge") -> 2.440261538 | H11: =IF($P11<'Auslegung KSH'!$D$79,$P11,'Auslegung KSH'!$D$79) -> 2.440261538 | I11: =IF(G11=">Raumlänge",'Auslegung KSH'!$D$77,(('Auslegung KSH'!$D$77-'Auslegung KSH'!$D$78)/SIN(45/180*PI()))) -> 1.697056275 | J11: =$C$3*$O$7*(1/H11)^($C$4) -> 0.5620945936 | K11: =1/(I11+0.5)*J11 -> 0.2558398708 | L11: =IF(($H11+$I11)<'Auslegung KSH'!$D$79,($H11+$I11),">Raumlänge") -> 4.137317813 | M11: =IF(K11="<0,1",(34-$M$21)*(0.1-0.05)^0.62*(0.37*0.1*$M$22+3.14),(34-$M$21)*(K11-0.05)^0.62*(0.37*K11*$M$22+3.14)) -> 26.93133203 | O11: BL600-3 | P11: =$R$3*$O$7^'xkr._vx KSH'!$R$5*(1/'xkr._vx KSH'!$R$6^('xkr._vx KSH'!$R$4))+0.3 -> 2.440261538
A12: 0.7 | B12: =$C$3*'Auslegung KS'!$B$28*(1/A12)^($C$4)*$C$5*SQRT('Auslegung KS'!$D$15) -> 0.8918127405 | D12: 800 | E12: 3 | F12: 8003 | G12: =IF($P12<'Auslegung KSH'!$D$79,$P12,">Raumlänge") -> 2.440261538 | H12: =IF($P12<'Auslegung KSH'!$D$79,$P12,'Auslegung KSH'!$D$79) -> 2.440261538 | I12: =IF(G12=">Raumlänge",'Auslegung KSH'!$D$77,(('Auslegung KSH'!$D$77-'Auslegung KSH'!$D$78)/SIN(45/180*PI()))) -> 1.697056275 | J12: 0.5620945936 | K12: =1/(I12+0.5)*J12 -> 0.2558398708 | L12: =IF(($H12+$I12)<'Auslegung KSH'!$D$79,($H12+$I12),">Raumlänge") -> 4.137317813 | M12: 26.93133203 | O12: BL800-3 | P12: =$R$3*$O$7^'xkr._vx KSH'!$R$5*(1/'xkr._vx KSH'!$R$6^('xkr._vx KSH'!$R$4))+0.3 -> 2.440261538
A13: 0.8 | B13: =$C$3*'Auslegung KS'!$B$28*(1/A13)^($C$4)*$C$5*SQRT('Auslegung KS'!$D$15) -> 0.8231490935 | D13: 1000 | E13: 3 | F13: 10003 | G13: =IF($P13<'Auslegung KSH'!$D$79,$P13,">Raumlänge") -> 2.440261538 | H13: =IF($P13<'Auslegung KSH'!$D$79,$P13,'Auslegung KSH'!$D$79) -> 2.440261538 | I13: =IF(G13=">Raumlänge",'Auslegung KSH'!$D$77,(('Auslegung KSH'!$D$77-'Auslegung KSH'!$D$78)/SIN(45/180*PI()))) -> 1.697056275 | J13: 0.5620945936 | K13: =1/(I13+0.5)*J13 -> 0.2558398708 | L13: =IF(($H13+$I13)<'Auslegung KSH'!$D$79,($H13+$I13),">Raumlänge") -> 4.137317813 | M13: 26.93133203 | O13: BL1000-3 | P13: =$R$3*$O$7^'xkr._vx KSH'!$R$5*(1/'xkr._vx KSH'!$R$6^('xkr._vx KSH'!$R$4))+0.3 -> 2.440261538
D14: 1200 | E14: 3 | F14: 12003 | G14: =IF($P14<'Auslegung KSH'!$D$79,$P14,">Raumlänge") -> 2.177820332 | H14: =IF($P14<'Auslegung KSH'!$D$79,$P14,'Auslegung KSH'!$D$79) -> 2.177820332 | I14: =IF(G14=">Raumlänge",'Auslegung KSH'!$D$77,(('Auslegung KSH'!$D$77-'Auslegung KSH'!$D$78)/SIN(45/180*PI()))) -> 1.697056275 | J14: 0.6018080659 | K14: =1/(I14+0.5)*J14 -> 0.2739156356 | L14: =IF(($H14+$I14)<'Auslegung KSH'!$D$79,($H14+$I14),">Raumlänge") -> 3.874876607 | M14: 29.32612197 | O14: BL1200-3 | P14: =$S$3*($O$7*0.89)^'xkr._vx KSH'!$S$5*(1/'xkr._vx KSH'!$S$6^('xkr._vx KSH'!$S$4))+0.3 -> 2.177820332 | Q14: händisch angepasst
D15: 500 | E15: 2 | F15: 5002 | G15: =IF($P15<'Auslegung KSH'!$D$79,$P15,">Raumlänge") -> 4.270616386 | H15: =IF($P15<'Auslegung KSH'!$D$79,$P15,'Auslegung KSH'!$D$79) -> 4.270616386 | I15: =IF(G15=">Raumlänge",'Auslegung KSH'!$D$77,(('Auslegung KSH'!$D$77-'Auslegung KSH'!$D$78)/SIN(45/180*PI()))) -> 1.697056275 | J15: 0.4017694364 | K15: =1/(I15+0.5)*J15 -> 0.1828671577 | L15: =IF(($H15+$I15)<'Auslegung KSH'!$D$79,($H15+$I15),">Raumlänge") -> 5.967672661 | M15: =IF(OR(K15<0.1,L15=">Raumlänge"),"",(34-$M$21)*(K15-0.05)^0.62*(0.37*K15*$M$22+3.14)) -> 17.74908896 | O15: BL500-2 | P15: =$T$3*('Grunddaten KSH'!$G$49*10)^'xkr._vx KSH'!$T$5*(1/'xkr._vx KSH'!$T$6^('xkr._vx KSH'!$T$4))+0.3 -> 4.270616386
D16: 600 | E16: 2 | F16: 6002 | G16: =IF($P16<'Auslegung KSH'!$D$79,$P16,">Raumlänge") -> 4.270616386 | H16: =IF($P16<'Auslegung KSH'!$D$79,$P16,'Auslegung KSH'!$D$79) -> 4.270616386 | I16: =IF(G16=">Raumlänge",'Auslegung KSH'!$D$77,(('Auslegung KSH'!$D$77-'Auslegung KSH'!$D$78)/SIN(45/180*PI()))) -> 1.697056275 | J16: 0.4017694364 | K16: 0.1828671577 | L16: =IF(($H16+$I16)<'Auslegung KSH'!$D$79,($H16+$I16),">Raumlänge") -> 5.967672661 | M16: =IF(OR(K16<0.1,L16=">Raumlänge"),"",(34-$M$21)*(K16-0.05)^0.62*(0.37*K16*$M$22+3.14)) -> 17.74908896 | O16: BL600-2 | P16: =$T$3*('Grunddaten KSH'!$G$49*10)^'xkr._vx KSH'!$T$5*(1/'xkr._vx KSH'!$T$6^('xkr._vx KSH'!$T$4))+0.3 -> 4.270616386
D17: 800 | E17: 2 | F17: 8002 | G17: =IF($P17<'Auslegung KSH'!$D$79,$P17,">Raumlänge") -> 4.270616386 | H17: =IF($P17<'Auslegung KSH'!$D$79,$P17,'Auslegung KSH'!$D$79) -> 4.270616386 | I17: =IF(G17=">Raumlänge",'Auslegung KSH'!$D$77,(('Auslegung KSH'!$D$77-'Auslegung KSH'!$D$78)/SIN(45/180*PI()))) -> 1.697056275 | J17: 0.4017694364 | K17: 0.1828671577 | L17: =IF(($H17+$I17)<'Auslegung KSH'!$D$79,($H17+$I17),">Raumlänge") -> 5.967672661 | M17: 17.74908896 | O17: BL800-2 | P17: =$T$3*('Grunddaten KSH'!$G$49*10)^'xkr._vx KSH'!$T$5*(1/'xkr._vx KSH'!$T$6^('xkr._vx KSH'!$T$4))+0.3 -> 4.270616386
D18: 1000 | E18: 2 | F18: 10002 | G18: =IF($P18<'Auslegung KSH'!$D$79,$P18,">Raumlänge") -> 4.270616386 | H18: =IF($P18<'Auslegung KSH'!$D$79,$P18,'Auslegung KSH'!$D$79) -> 4.270616386 | I18: =IF(G18=">Raumlänge",'Auslegung KSH'!$D$77,(('Auslegung KSH'!$D$77-'Auslegung KSH'!$D$78)/SIN(45/180*PI()))) -> 1.697056275 | J18: 0.4017694364 | K18: 0.1828671577 | L18: =IF(($H18+$I18)<'Auslegung KSH'!$D$79,($H18+$I18),">Raumlänge") -> 5.967672661 | M18: 17.74908896 | O18: BL1000-2 | P18: =$T$3*('Grunddaten KSH'!$G$49*10)^'xkr._vx KSH'!$T$5*(1/'xkr._vx KSH'!$T$6^('xkr._vx KSH'!$T$4))+0.3 -> 4.270616386
D19: 1200 | E19: 2 | F19: 12002 | G19: =IF($P19<'Auslegung KSH'!$D$79,$P19,">Raumlänge") -> 4.270616386 | H19: =IF($P19<'Auslegung KSH'!$D$79,$P19,'Auslegung KSH'!$D$79) -> 4.270616386 | I19: =IF(G19=">Raumlänge",'Auslegung KSH'!$D$77,(('Auslegung KSH'!$D$77-'Auslegung KSH'!$D$78)/SIN(45/180*PI()))) -> 1.697056275 | J19: 0.4017694364 | K19: 0.1828671577 | L19: =IF(($H19+$I19)<'Auslegung KSH'!$D$79,($H19+$I19),">Raumlänge") -> 5.967672661 | M19: 17.74908896 | O19: BL1200-2 | P19: =$T$3*('Grunddaten KSH'!$G$49*10)^'xkr._vx KSH'!$T$5*(1/'xkr._vx KSH'!$T$6^('xkr._vx KSH'!$T$4))+0.3 -> 4.270616386
A21: 0.9 | B21: =$C$3*'Auslegung KS'!$B$28*(1/A21)^($C$4)*$C$5*SQRT('Auslegung KS'!$D$15) -> 0.7669852124 | G21: *rote Werte sind noch zu bearbeiten. | M21: =('Auslegung KSH'!D74+'Auslegung KSH'!D73)/2 -> 22 | P21: *+0,3 m
A22: 1 | B22: =$C$3*'Auslegung KS'!$B$28*(1/A22)^($C$4)*$C$5*SQRT('Auslegung KS'!$D$15) -> 0.72 | M22: 30
A23: 1.1 | B23: =$C$3*'Auslegung KS'!$B$28*(1/A23)^($C$4)*$C$5*SQRT('Auslegung KS'!$D$15) -> 0.6799811683 | M23: TU = 30 = Mittelwert Messreihen
A24: 1.2 | B24: =$C$3*'Auslegung KS'!$B$28*(1/A24)^($C$4)*$C$5*SQRT('Auslegung KS'!$D$15) -> 0.6453922542
A25: 1.3 | B25: =$C$3*'Auslegung KS'!$B$28*(1/A25)^($C$4)*$C$5*SQRT('Auslegung KS'!$D$15) -> 0.6151294007
A26: 1.4 | B26: =$C$3*'Auslegung KS'!$B$28*(1/A26)^($C$4)*$C$5*SQRT('Auslegung KS'!$D$15) -> 0.588376983
A27: 1.5 | B27: =$C$3*'Auslegung KS'!$B$28*(1/A27)^($C$4)*$C$5*SQRT('Auslegung KS'!$D$15) -> 0.5645179308
A28: 1.6 | B28: =$C$3*'Auslegung KS'!$B$28*(1/A28)^($C$4)*$C$5*SQRT('Auslegung KS'!$D$15) -> 0.5430758703
A29: 1.7 | B29: =$C$3*'Auslegung KS'!$B$28*(1/A29)^($C$4)*$C$5*SQRT('Auslegung KS'!$D$15) -> 0.5236765702
A30: 1.8 | B30: =$C$3*'Auslegung KS'!$B$28*(1/A30)^($C$4)*$C$5*SQRT('Auslegung KS'!$D$15) -> 0.5060215276
A31: 1.9 | B31: =$C$3*'Auslegung KS'!$B$28*(1/A31)^($C$4)*$C$5*SQRT('Auslegung KS'!$D$15) -> 0.4898694271
A32: 2 | B32: =$C$3*'Auslegung KS'!$B$28*(1/A32)^($C$4)*$C$5*SQRT('Auslegung KS'!$D$15) -> 0.4750228479
A33: 2.1 | B33: =$C$3*'Auslegung KS'!$B$28*(1/A33)^($C$4)*$C$5*SQRT('Auslegung KS'!$D$15) -> 0.4613185514
A34: 2.2 | B34: =$C$3*'Auslegung KS'!$B$28*(1/A34)^($C$4)*$C$5*SQRT('Auslegung KS'!$D$15) -> 0.4486202654 | J34: KSHZUL5003 | K34: KSHZUL6003 | L34: KSHZUL8003 | M34: KSHZUL10003 | N34: KSHZUL12003 | O34: KSHZUL5002 | P34: KSHZUL6002 | Q34: KSHZUL8002 | R34: KSHZUL10002 | S34: KSHZUL12002
A35: 2.3 | B35: =$C$3*'Auslegung KS'!$B$28*(1/A35)^($C$4)*$C$5*SQRT('Auslegung KS'!$D$15) -> 0.4368132413 | G35: Auswahl: | H35: ='Grunddaten KSH'!$C$49 -> KSHZUL6003 | I35: K031 | J35: 0.006 | K35: 0.008 | L35: 0.0068 | M35: 0.006 | N35: 0.005417689112 | O35: 0.006151917569 | P35: 0.006151917569 | Q35: 0.006151917569 | R35: 0.006151917569 | S35: 0.006151917569 | T35: 2 | U35: =HLOOKUP($H$35,$J$34:$S$36,T35,FALSE) -> 0.008
A36: 2.4 | B36: =$C$3*'Auslegung KS'!$B$28*(1/A36)^($C$4)*$C$5*SQRT('Auslegung KS'!$D$15) -> 0.4258000925 | I36: K033 | J36: 0.6 | K36: 0.6 | L36: 0.6 | M36: 0.6 | N36: 0.6 | O36: 0.5922122357 | P36: 0.5922122357 | Q36: 0.5922122357 | R36: 0.5922122357 | S36: 0.5922122357 | T36: 3 | U36: =HLOOKUP($H$35,$J$34:$S$37,T36,FALSE) -> 0.6
A37: 2.5 | B37: =$C$3*'Auslegung KS'!$B$28*(1/A37)^($C$4)*$C$5*SQRT('Auslegung KS'!$D$15) -> 0.4154975729 | I37: K034 | J37: =1/SQRT(3) -> 0.5773502692 | K37: =1/SQRT(3) -> 0.5773502692 | L37: 0.5773502692 | M37: 0.5773502692 | N37: 0.5773502692 | T37: 4 | U37: =HLOOKUP($H$35,$J$34:$S$37,T37,FALSE) -> 0.5773502692
A38: 2.6 | B38: =$C$3*'Auslegung KS'!$B$28*(1/A38)^($C$4)*$C$5*SQRT('Auslegung KS'!$D$15) -> 0.4058340552
A39: 2.7 | B39: =$C$3*'Auslegung KS'!$B$28*(1/A39)^($C$4)*$C$5*SQRT('Auslegung KS'!$D$15) -> 0.3967475357
A40: 2.8 | B40: =$C$3*'Auslegung KS'!$B$28*(1/A40)^($C$4)*$C$5*SQRT('Auslegung KS'!$D$15) -> 0.3881840418
A41: 2.9 | B41: =$C$3*'Auslegung KS'!$B$28*(1/A41)^($C$4)*$C$5*SQRT('Auslegung KS'!$D$15) -> 0.3800963487
A42: 3 | B42: =$C$3*'Auslegung KS'!$B$28*(1/A42)^($C$4)*$C$5*SQRT('Auslegung KS'!$D$15) -> 0.3724429377
A43: 3.1 | B43: =$C$3*'Auslegung KS'!$B$28*(1/A43)^($C$4)*$C$5*SQRT('Auslegung KS'!$D$15) -> 0.3651871439
A44: 3.2 | B44: =$C$3*'Auslegung KS'!$B$28*(1/A44)^($C$4)*$C$5*SQRT('Auslegung KS'!$D$15) -> 0.3582964535
A45: 3.3 | B45: =$C$3*'Auslegung KS'!$B$28*(1/A45)^($C$4)*$C$5*SQRT('Auslegung KS'!$D$15) -> 0.3517419221
A46: 3.4 | B46: =$C$3*'Auslegung KS'!$B$28*(1/A46)^($C$4)*$C$5*SQRT('Auslegung KS'!$D$15) -> 0.3454976886
A47: 3.5 | B47: =$C$3*'Auslegung KS'!$B$28*(1/A47)^($C$4)*$C$5*SQRT('Auslegung KS'!$D$15) -> 0.3395405672
A48: 3.6 | B48: =$C$3*'Auslegung KS'!$B$28*(1/A48)^($C$4)*$C$5*SQRT('Auslegung KS'!$D$15) -> 0.3338497044
A49: 3.7 | B49: =$C$3*'Auslegung KS'!$B$28*(1/A49)^($C$4)*$C$5*SQRT('Auslegung KS'!$D$15) -> 0.3284062865
A50: 3.8 | B50: =$C$3*'Auslegung KS'!$B$28*(1/A50)^($C$4)*$C$5*SQRT('Auslegung KS'!$D$15) -> 0.3231932922
A51: 3.9 | B51: =$C$3*'Auslegung KS'!$B$28*(1/A51)^($C$4)*$C$5*SQRT('Auslegung KS'!$D$15) -> 0.3181952793
A52: 4 | B52: =$C$3*'Auslegung KS'!$B$28*(1/A52)^($C$4)*$C$5*SQRT('Auslegung KS'!$D$15) -> 0.3133982028
A53: 4.1 | B53: =$C$3*'Auslegung KS'!$B$28*(1/A53)^($C$4)*$C$5*SQRT('Auslegung KS'!$D$15) -> 0.3087892569
A54: 4.2 | B54: =$C$3*'Auslegung KS'!$B$28*(1/A54)^($C$4)*$C$5*SQRT('Auslegung KS'!$D$15) -> 0.304356739
A55: 4.3 | B55: =$C$3*'Auslegung KS'!$B$28*(1/A55)^($C$4)*$C$5*SQRT('Auslegung KS'!$D$15) -> 0.3000899306
A56: 4.4 | B56: =$C$3*'Auslegung KS'!$B$28*(1/A56)^($C$4)*$C$5*SQRT('Auslegung KS'!$D$15) -> 0.2959789946
A57: 4.5 | B57: =$C$3*'Auslegung KS'!$B$28*(1/A57)^($C$4)*$C$5*SQRT('Auslegung KS'!$D$15) -> 0.2920148841
A58: 4.6 | B58: =$C$3*'Auslegung KS'!$B$28*(1/A58)^($C$4)*$C$5*SQRT('Auslegung KS'!$D$15) -> 0.2881892637
A59: 4.7 | B59: =$C$3*'Auslegung KS'!$B$28*(1/A59)^($C$4)*$C$5*SQRT('Auslegung KS'!$D$15) -> 0.284494439
A60: 4.8 | B60: =$C$3*'Auslegung KS'!$B$28*(1/A60)^($C$4)*$C$5*SQRT('Auslegung KS'!$D$15) -> 0.2809232952
A61: 4.9 | B61: =$C$3*'Auslegung KS'!$B$28*(1/A61)^($C$4)*$C$5*SQRT('Auslegung KS'!$D$15) -> 0.2774692424
A62: 5 | B62: =$C$3*'Auslegung KS'!$B$28*(1/A62)^($C$4)*$C$5*SQRT('Auslegung KS'!$D$15) -> 0.2741261672
A63: 5.1 | B63: =$C$3*'Auslegung KS'!$B$28*(1/A63)^($C$4)*$C$5*SQRT('Auslegung KS'!$D$15) -> 0.2708883892
A64: 5.2 | B64: =$C$3*'Auslegung KS'!$B$28*(1/A64)^($C$4)*$C$5*SQRT('Auslegung KS'!$D$15) -> 0.2677506231
A65: 5.3 | B65: =$C$3*'Auslegung KS'!$B$28*(1/A65)^($C$4)*$C$5*SQRT('Auslegung KS'!$D$15) -> 0.2647079439
A66: 5.4 | B66: =$C$3*'Auslegung KS'!$B$28*(1/A66)^($C$4)*$C$5*SQRT('Auslegung KS'!$D$15) -> 0.261755756
A67: 5.5 | B67: =$C$3*'Auslegung KS'!$B$28*(1/A67)^($C$4)*$C$5*SQRT('Auslegung KS'!$D$15) -> 0.2588897659
A68: 5.6 | B68: =$C$3*'Auslegung KS'!$B$28*(1/A68)^($C$4)*$C$5*SQRT('Auslegung KS'!$D$15) -> 0.256105957
A69: 5.7 | B69: =$C$3*'Auslegung KS'!$B$28*(1/A69)^($C$4)*$C$5*SQRT('Auslegung KS'!$D$15) -> 0.2534005674
A70: 5.8 | B70: =$C$3*'Auslegung KS'!$B$28*(1/A70)^($C$4)*$C$5*SQRT('Auslegung KS'!$D$15) -> 0.2507700695
A71: 5.9 | B71: =$C$3*'Auslegung KS'!$B$28*(1/A71)^($C$4)*$C$5*SQRT('Auslegung KS'!$D$15) -> 0.2482111516
A72: 6 | B72: =$C$3*'Auslegung KS'!$B$28*(1/A72)^($C$4)*$C$5*SQRT('Auslegung KS'!$D$15) -> 0.2457207013

Sheet Maße KSH (hidden)

Sheet Funktion KSH (hidden)

Sheet Lw KSH (hidden)
A2: Sammlung Konstanten K1-K4 | C2: Terzfrequenzband fm [Hz]
A3: Konstante | B3: Verkettung | C3: 100 | D3: 125 | E3: 160 | F3: 200 | G3: 250 | H3: 315 | I3: 400 | J3: 500 | K3: 630 | L3: 800 | M3: 1000 | N3: 1250 | O3: 1600 | P3: 2000 | Q3: 2500 | R3: 3150 | S3: 4000 | T3: 5000 | U3: 6300 | V3: 8000 | W3: 10000
A4: K1 | B4: =CONCATENATE('Grunddaten KS'!$E$5,A4) -> 550K1 | C4: -36.54243722 | D4: -40.97473323 | E4: -44.70409336 | F4: -43.93155351 | G4: -48.42270845 | H4: -45.28188389 | I4: -42.40736742 | J4: -55.24946114 | K4: -64.28360087 | L4: -60.6123752 | M4: -66.28714149 | N4: -58.86449046 | O4: -60.27154771 | P4: -46.1333264 | Q4: -24.99362296 | R4: -25.70916474 | S4: -17.89108266 | T4: -7.626048728 | U4: 3.170453744 | V4: 8.890175282 | W4: 9.459037818
A5: K2 | B5: =CONCATENATE('Grunddaten KS'!$E$5,A5) -> 550K2 | C5: 11.8081354 | D5: 15.998772 | E5: 17.58948425 | F5: 18.03161522 | G5: 20.70416863 | H5: 19.03428377 | I5: 19.38574311 | J5: 20.86766657 | K5: 24.74998975 | L5: 20.71944553 | M5: 21.74617614 | N5: 14.5051369 | O5: 13.6468182 | P5: 7.329827371 | Q5: 0.5878392529 | R5: 2.073383148 | S5: 1.015204288 | T5: -1.578136621 | U5: -2.231740482 | V5: -1.727792087 | W5: 1.689987457
A6: K3 | B6: =CONCATENATE('Grunddaten KS'!$E$5,A6) -> 550K3 | C6: 15.57471527 | D6: 17.15150306 | E6: 17.63266577 | F6: 18.02615423 | G6: 18.47927395 | H6: 20.02328922 | I6: 20.13097874 | J6: 22.48941967 | K6: 21.08748599 | L6: 21.02685457 | M6: 22.44359797 | N6: 24.21121437 | O6: 25.60758446 | P6: 23.20078016 | Q6: 18.60921861 | R6: 17.82420756 | S6: 14.84592102 | T6: 11.89540492 | U6: 7.242775415 | V6: 4.163184438 | W6: 1.383732331
A7: K4 | B7: =CONCATENATE('Grunddaten KS'!$E$5,A7) -> 550K4 | C7: 1 | D7: 1 | E7: 1 | F7: 1 | G7: 1 | H7: 1 | I7: 1 | J7: 1 | K7: 1 | L7: 1 | M7: 1 | N7: 1 | O7: 1 | P7: 1 | Q7: 1 | R7: 1 | S7: 1 | T7: 1 | U7: 1 | V7: 1 | W7: 1
A8: K1 | B8: =CONCATENATE('Grunddaten KS'!$E$6,A8) -> 750K1 | C8: -36.93916815 | D8: -38.90433439 | E8: -62.01489204 | F8: -39.31086174 | G8: -44.12979471 | H8: -41.56213039 | I8: -33.26088871 | J8: -48.00026589 | K8: -61.57070639 | L8: -65.16055576 | M8: -64.23964924 | N8: -55.00852746 | O8: -50.26929423 | P8: -60.05208444 | Q8: -30.87046097 | R8: -25.42261191 | S8: -19.62631389 | T8: -11.3136495 | U8: -1.651439771 | V8: 7.547802412 | W8: 19.93069519
A9: K2 | B9: =CONCATENATE('Grunddaten KS'!$E$6,A9) -> 750K2 | C9: 11.13698171 | D9: 16.98749521 | E9: 25.50286847 | F9: 14.39988941 | G9: 16.23901386 | H9: 16.95943705 | I9: 12.28953555 | J9: 15.92322304 | K9: 18.07696002 | L9: 17.63193932 | M9: 16.78667362 | N9: 10.8987775 | O9: 9.777802923 | P9: 18.69826888 | Q9: 9.024887821 | R9: 6.349799362 | S9: 4.860438434 | T9: 3.878878297 | U9: 3.118102794 | V9: 1.368815854 | W9: -2.54657718
A10: K3 | B10: =CONCATENATE('Grunddaten KS'!$E$6,A10) -> 750K3 | C10: 15.44099187 | D10: 16.45602235 | E10: 17.66508495 | F10: 18.49920795 | G10: 19.53687502 | H10: 19.6051694 | I10: 20.30574058 | J10: 20.81257026 | K10: 22.55911421 | L10: 24.77024789 | M10: 24.34823181 | N10: 24.00101954 | O10: 22.80750165 | P10: 18.39669123 | Q10: 12.61506064 | R10: 12.93823826 | S10: 11.5542756 | T10: 8.189020651 | U10: 4.378151735 | V10: 1.703816234 | W10: 0.1173280668
A11: K4 | B11: =CONCATENATE('Grunddaten KS'!$E$6,A11) -> 750K4 | C11: 1 | D11: 1 | E11: 1 | F11: 1 | G11: 1 | H11: 1 | I11: 1 | J11: 1 | K11: 1 | L11: 1 | M11: 1 | N11: 1 | O11: 1 | P11: 1 | Q11: 1 | R11: 1 | S11: 1 | T11: 1 | U11: 1 | V11: 1 | W11: 1
A12: K1 | B12: =CONCATENATE('Grunddaten KS'!$E$7,A12) -> 950K1 | C12: -38.76108851 | D12: -73.37534378 | E12: -86.15704038 | F12: -107.484456 | G12: -116.795804 | H12: -104.2171125 | I12: -114.0942414 | J12: -120.2021403 | K12: -109.074394 | L12: -112.5334276 | M12: -93.53220782 | N12: -20.09964616 | O12: -11.01039166 | P12: -10.67861629 | Q12: -5.926983197 | R12: -14.35390489 | S12: -22.134257 | T12: -20.9368191 | U12: 0.6217412335 | V12: 8.706438032 | W12: 5.151117808
A13: K2 | B13: =CONCATENATE('Grunddaten KS'!$E$7,A13) -> 950K2 | C13: 18.70840612 | D13: 32.96885414 | E13: 38.55906699 | F13: 47.82142156 | G13: 51.03346792 | H13: 46.48012601 | I13: 49.42573241 | J13: 49.7509146 | K13: 39.20825256 | L13: 38.88696216 | M13: 28.96457534 | N13: -6.224824308 | O13: -13.45646453 | P13: -14.03541272 | Q13: -12.69034078 | R13: -6.217206801 | S13: 0.5932707179 | T13: 3.593996671 | U13: -0.09646573734 | V13: 0.4277042268 | W13: 4.863256102
A14: K3 | B14: =CONCATENATE('Grunddaten KS'!$E$7,A14) -> 950K3 | C14: 8.092120997 | D14: 14.86514863 | E14: 18.23016205 | F14: 20.86414217 | G14: 22.36661352 | H14: 22.68309292 | I14: 23.04514644 | J14: 23.43310133 | K14: 27.41588067 | L14: 29.08636472 | M14: 28.76714979 | N14: 25.22482503 | O14: 27.73986463 | P14: 27.08760576 | Q14: 22.79338838 | R14: 20.76771052 | S14: 17.62532971 | T14: 13.83827546 | U14: 6.496547656 | V14: 2.140699851 | W14: 0.1649913741
A15: K4 | B15: =CONCATENATE('Grunddaten KS'!$E$7,A15) -> 950K4 | C15: 1 | D15: 1 | E15: 1 | F15: 1 | G15: 1 | H15: 1 | I15: 1 | J15: 1 | K15: 1 | L15: 1 | M15: 1 | N15: 1 | O15: 1 | P15: 1 | Q15: 1 | R15: 1 | S15: 1 | T15: 1 | U15: 1 | V15: 1 | W15: 1
A16: K1 | B16: =CONCATENATE('Grunddaten KS'!$E$8,A16) -> 1150K1 | C16: -52.3434354 | D16: -86.20553842 | E16: -101.7608134 | F16: -111.9663101 | G16: -125.0670297 | H16: -124.1697064 | I16: -147.0726944 | J16: -145.2809609 | K16: -148.8922214 | L16: -137.0090783 | M16: -142.8042362 | N16: -123.0738168 | O16: -105.3852814 | P16: -79.75551825 | Q16: -51.35632038 | R16: -34.1946505 | S16: -38.87602498 | T16: -35.70975849 | U16: -3.972289646 | V16: 7.615646683 | W16: 25.40598835
A17: K2 | B17: =CONCATENATE('Grunddaten KS'!$E$8,A17) -> 1150K2 | C17: 23.52738982 | D17: 36.12741899 | E17: 42.94778997 | F17: 46.00873788 | G17: 51.28318818 | H17: 53.03658969 | I17: 62.31326353 | J17: 58.85097689 | K17: 59.45747515 | L17: 51.41985357 | M17: 51.94023441 | N17: 41.02725259 | O17: 31.95153195 | P17: 20.41997186 | Q17: 9.062957891 | R17: 2.291653707 | S17: 5.312907904 | T17: 5.837923685 | U17: -1.125840172 | V17: -1.510442535 | W17: -6.392395352
A18: K3 | B18: =CONCATENATE('Grunddaten KS'!$E$8,A18) -> 1150K3 | C18: 10.7005935 | D18: 18.23722801 | E18: 20.77960166 | F18: 23.27278205 | G18: 24.98664881 | H18: 24.86633763 | I18: 24.62369888 | J18: 24.3934329 | K18: 25.95343198 | L18: 26.48777388 | M18: 28.95747326 | N18: 27.82440778 | O18: 27.79217283 | P18: 26.51542613 | Q18: 23.59759116 | R18: 22.25443057 | S18: 21.49226746 | T18: 19.05656097 | U18: 9.948971499 | V18: 4.620788773 | W18: 1.528519984
A19: K4 | B19: =CONCATENATE('Grunddaten KS'!$E$8,A19) -> 1150K4 | C19: 1 | D19: 1 | E19: 1 | F19: 1 | G19: 1 | H19: 1 | I19: 1 | J19: 1 | K19: 1 | L19: 1 | M19: 1 | N19: 1 | O19: 1 | P19: 1 | Q19: 1 | R19: 1 | S19: 1 | T19: 1 | U19: 1 | V19: 1 | W19: 1
C20: 2 | D20: 3 | E20: 4 | F20: 5 | G20: 6 | H20: 7 | I20: 8 | J20: 9 | K20: 10 | L20: 11 | M20: 12 | N20: 13 | O20: 14 | P20: 15 | Q20: 16 | R20: 17 | S20: 18 | T20: 19 | U20: 20 | V20: 21 | W20: 22
A22: Auswahl Konstanten K1-K4 | C22: Terzfrequenzband fm [Hz]
A23: Konstante | B23: Verkettung | C23: 100 | D23: 125 | E23: 160 | F23: 200 | G23: 250 | H23: 315 | I23: 400 | J23: 500 | K23: 630 | L23: 800 | M23: 1000 | N23: 1250 | O23: 1600 | P23: 2000 | Q23: 2500 | R23: 3150 | S23: 4000 | T23: 5000 | U23: 6300 | V23: 8000 | W23: 10000
A24: K1 | B24: =CONCATENATE('Auslegung KS'!$D$9,A24) -> 750K1 | C24: =VLOOKUP($B24,$B$4:$W$19,C$20,FALSE) -> -36.93916815 | D24: =VLOOKUP($B24,$B$4:$W$19,D$20,FALSE) -> -38.90433439 | E24: =VLOOKUP($B24,$B$4:$W$19,E$20,FALSE) -> -62.01489204 | F24: -39.31086174 | G24: -44.12979471 | H24: -41.56213039 | I24: -33.26088871 | J24: -48.00026589 | K24: -61.57070639 | L24: -65.16055576 | M24: -64.23964924 | N24: -55.00852746 | O24: -50.26929423 | P24: -60.05208444 | Q24: -30.87046097 | R24: -25.42261191 | S24: -19.62631389 | T24: -11.3136495 | U24: -1.651439771 | V24: 7.547802412 | W24: 19.93069519
A25: K2 | B25: =CONCATENATE('Auslegung KS'!$D$9,A25) -> 750K2 | C25: =VLOOKUP($B25,$B$4:$W$19,C$20,FALSE) -> 11.13698171 | D25: =VLOOKUP($B25,$B$4:$W$19,D$20,FALSE) -> 16.98749521 | E25: 25.50286847 | F25: 14.39988941 | G25: 16.23901386 | H25: 16.95943705 | I25: 12.28953555 | J25: 15.92322304 | K25: 18.07696002 | L25: 17.63193932 | M25: 16.78667362 | N25: 10.8987775 | O25: 9.777802923 | P25: 18.69826888 | Q25: 9.024887821 | R25: 6.349799362 | S25: 4.860438434 | T25: 3.878878297 | U25: 3.118102794 | V25: 1.368815854 | W25: -2.54657718
A26: K3 | B26: =CONCATENATE('Auslegung KS'!$D$9,A26) -> 750K3 | C26: 15.44099187 | D26: 16.45602235 | E26: 17.66508495 | F26: 18.49920795 | G26: 19.53687502 | H26: 19.6051694 | I26: 20.30574058 | J26: 20.81257026 | K26: 22.55911421 | L26: 24.77024789 | M26: 24.34823181 | N26: 24.00101954 | O26: 22.80750165 | P26: 18.39669123 | Q26: 12.61506064 | R26: 12.93823826 | S26: 11.5542756 | T26: 8.189020651 | U26: 4.378151735 | V26: 1.703816234 | W26: 0.1173280668
A27: K4 | B27: =CONCATENATE('Auslegung KS'!$D$9,A27) -> 750K4 | C27: 1 | D27: 1 | E27: 1 | F27: 1 | G27: 1 | H27: 1 | I27: 1 | J27: 1 | K27: 1 | L27: 1 | M27: 1 | N27: 1 | O27: 1 | P27: 1 | Q27: 1 | R27: 1 | S27: 1 | T27: 1 | U27: 1 | V27: 1 | W27: 1
A29: Berechnung LWA | C29: Terzfrequenzband fm [Hz] | X29: SLWA
B30: Dp | C30: 100 | D30: 125 | E30: 160 | F30: 200 | G30: 250 | H30: 315 | I30: 400 | J30: 500 | K30: 630 | L30: 800 | M30: 1000 | N30: 1250 | O30: 1600 | P30: 2000 | Q30: 2500 | R30: 3150 | S30: 4000 | T30: 5000 | U30: 6300 | V30: 8000 | W30: 10000 | X30: [dB(A)]
B31: 50 | C31: =C$24+C$25*LOG('Auslegung KS'!$D$21)+'Lw KSH'!C$26*LOG($B31) -> 8.216011737 | D31: =D$24+D$25*LOG('Auslegung KS'!$D$21)+'Lw KSH'!D$26*LOG($B31) -> 17.91519879 | E31: =E$24+E$25*LOG('Auslegung KS'!$D$21)+'Lw KSH'!E$26*LOG($B31) -> 11.32616596 | F31: =F$24+F$25*LOG('Auslegung KS'!$D$21)+'Lw KSH'!F$26*LOG($B31) -> 16.58371785 | G31: =G$24+G$25*LOG('Auslegung KS'!$D$21)+'Lw KSH'!G$26*LOG($B31) -> 16.65236739 | H31: =H$24+H$25*LOG('Auslegung KS'!$D$21)+'Lw KSH'!H$26*LOG($B31) -> 20.56003919 | I31: =I$24+I$25*LOG('Auslegung KS'!$D$21)+'Lw KSH'!I$26*LOG($B31) -> 22.11750773 | J31: =J$24+J$25*LOG('Auslegung KS'!$D$21)+'Lw KSH'!J$26*LOG($B31) -> 14.412745 | K31: =K$24+K$25*LOG('Auslegung KS'!$D$21)+'Lw KSH'!K$26*LOG($B31) -> 7.468764811 | L31: =L$24+L$25*LOG('Auslegung KS'!$D$21)+'Lw KSH'!L$26*LOG($B31) -> 6.879488442 | M31: =M$24+M$25*LOG('Auslegung KS'!$D$21)+'Lw KSH'!M$26*LOG($B31) -> 5.647321223 | N31: =N$24+N$25*LOG('Auslegung KS'!$D$21)+'Lw KSH'!N$26*LOG($B31) -> 4.285180884 | O31: =O$24+O$25*LOG('Auslegung KS'!$D$21)+'Lw KSH'!O$26*LOG($B31) -> 5.092160818 | P31: =P$24+P$25*LOG('Auslegung KS'!$D$21)+'Lw KSH'!P$26*LOG($B31) -> 2.971140103 | Q31: =Q$24+Q$25*LOG('Auslegung KS'!$D$21)+'Lw KSH'!Q$26*LOG($B31) -> 5.89516235 | R31: =R$24+R$25*LOG('Auslegung KS'!$D$21)+'Lw KSH'!R$26*LOG($B31) -> 7.347185462 | S31: =S$24+S$25*LOG('Auslegung KS'!$D$21)+'Lw KSH'!S$26*LOG($B31) -> 8.261792888 | T31: =T$24+T$25*LOG('Auslegung KS'!$D$21)+'Lw KSH'!T$26*LOG($B31) -> 9.189348828 | U31: =U$24+U$25*LOG('Auslegung KS'!$D$21)+'Lw KSH'!U$26*LOG($B31) -> 11.08447182 | V31: =V$24+V$25*LOG('Auslegung KS'!$D$21)+'Lw KSH'!V$26*LOG($B31) -> 12.76811216 | W31: =W$24+W$25*LOG('Auslegung KS'!$D$21)+'Lw KSH'!W$26*LOG($B31) -> 15.80347381 | X31: =10*LOG(10^(0.1*C31)+10^(0.1*D31)+10^(0.1*E31)+10^(0.1*F31)+10^(0.1*G31)+10^(0.1*H31)+10^(0.1*I31)+10^(0.1*J31)+10^(0.1*K31)+10^(0.1*L31)+10^(0.1*M31)+10^(0.1*N31)+10^(0.1*O31)+10^(0.1*P31)+10^(0.1*Q31)+10^(0.1*R31)+10^(0.1*S31)+10^(0.1*T31)+10^(0.1*U31)+10^(0.1*V31)+10^(0.1*W31)) -> 27.73962119
B32: 75 | C32: =C$24+C$25*LOG('Auslegung KS'!$D$21)+'Lw KSH'!C$26*LOG($B32) -> 10.93503544 | D32: =D$24+D$25*LOG('Auslegung KS'!$D$21)+'Lw KSH'!D$26*LOG($B32) -> 20.81296048 | E32: =E$24+E$25*LOG('Auslegung KS'!$D$21)+'Lw KSH'!E$26*LOG($B32) -> 14.43683302 | F32: =F$24+F$25*LOG('Auslegung KS'!$D$21)+'Lw KSH'!F$26*LOG($B32) -> 19.84126667 | G32: =G$24+G$25*LOG('Auslegung KS'!$D$21)+'Lw KSH'!G$26*LOG($B32) -> 20.09264031 | H32: =H$24+H$25*LOG('Auslegung KS'!$D$21)+'Lw KSH'!H$26*LOG($B32) -> 24.01233815 | I32: =I$24+I$25*LOG('Auslegung KS'!$D$21)+'Lw KSH'!I$26*LOG($B32) -> 25.69317115 | J32: =J$24+J$25*LOG('Auslegung KS'!$D$21)+'Lw KSH'!J$26*LOG($B32) -> 18.0776567 | K32: =K$24+K$25*LOG('Auslegung KS'!$D$21)+'Lw KSH'!K$26*LOG($B32) -> 11.44122764 | L32: =L$24+L$25*LOG('Auslegung KS'!$D$21)+'Lw KSH'!L$26*LOG($B32) -> 11.24131258 | M32: =M$24+M$25*LOG('Auslegung KS'!$D$21)+'Lw KSH'!M$26*LOG($B32) -> 9.934832019 | N32: =N$24+N$25*LOG('Auslegung KS'!$D$21)+'Lw KSH'!N$26*LOG($B32) -> 8.511550634 | O32: =O$24+O$25*LOG('Auslegung KS'!$D$21)+'Lw KSH'!O$26*LOG($B32) -> 9.108362499 | P32: =P$24+P$25*LOG('Auslegung KS'!$D$21)+'Lw KSH'!P$26*LOG($B32) -> 6.210636624 | Q32: =Q$24+Q$25*LOG('Auslegung KS'!$D$21)+'Lw KSH'!Q$26*LOG($B32) -> 8.11656426 | R32: =R$24+R$25*LOG('Auslegung KS'!$D$21)+'Lw KSH'!R$26*LOG($B32) -> 9.625496128 | S32: =S$24+S$25*LOG('Auslegung KS'!$D$21)+'Lw KSH'!S$26*LOG($B32) -> 10.29639983 | T32: =T$24+T$25*LOG('Auslegung KS'!$D$21)+'Lw KSH'!T$26*LOG($B32) -> 10.63136378 | U32: =U$24+U$25*LOG('Auslegung KS'!$D$21)+'Lw KSH'!U$26*LOG($B32) -> 11.85542607 | V32: =V$24+V$25*LOG('Auslegung KS'!$D$21)+'Lw KSH'!V$26*LOG($B32) -> 13.06813931 | W32: =W$24+W$25*LOG('Auslegung KS'!$D$21)+'Lw KSH'!W$26*LOG($B32) -> 15.82413426 | X32: =10*LOG(10^(0.1*C32)+10^(0.1*D32)+10^(0.1*E32)+10^(0.1*F32)+10^(0.1*G32)+10^(0.1*H32)+10^(0.1*I32)+10^(0.1*J32)+10^(0.1*K32)+10^(0.1*L32)+10^(0.1*M32)+10^(0.1*N32)+10^(0.1*O32)+10^(0.1*P32)+10^(0.1*Q32)+10^(0.1*R32)+10^(0.1*S32)+10^(0.1*T32)+10^(0.1*U32)+10^(0.1*V32)+10^(0.1*W32)) -> 30.84466272
B33: 100 | C33: =C$24+C$25*LOG('Auslegung KS'!$D$21)+'Lw KSH'!C$26*LOG($B33) -> 12.86421345 | D33: =D$24+D$25*LOG('Auslegung KS'!$D$21)+'Lw KSH'!D$26*LOG($B33) -> 22.86895512 | E33: =E$24+E$25*LOG('Auslegung KS'!$D$21)+'Lw KSH'!E$26*LOG($B33) -> 16.64388641 | F33: =F$24+F$25*LOG('Auslegung KS'!$D$21)+'Lw KSH'!F$26*LOG($B33) -> 22.15253434 | G33: =G$24+G$25*LOG('Auslegung KS'!$D$21)+'Lw KSH'!G$26*LOG($B33) -> 22.53355279 | H33: =H$24+H$25*LOG('Auslegung KS'!$D$21)+'Lw KSH'!H$26*LOG($B33) -> 26.46178325 | I33: =I$24+I$25*LOG('Auslegung KS'!$D$21)+'Lw KSH'!I$26*LOG($B33) -> 28.23014472 | J33: =J$24+J$25*LOG('Auslegung KS'!$D$21)+'Lw KSH'!J$26*LOG($B33) -> 20.67795293 | K33: =K$24+K$25*LOG('Auslegung KS'!$D$21)+'Lw KSH'!K$26*LOG($B33) -> 14.25973486 | L33: =L$24+L$25*LOG('Auslegung KS'!$D$21)+'Lw KSH'!L$26*LOG($B33) -> 14.33607606 | M33: =M$24+M$25*LOG('Auslegung KS'!$D$21)+'Lw KSH'!M$26*LOG($B33) -> 12.97686934 | N33: =N$24+N$25*LOG('Auslegung KS'!$D$21)+'Lw KSH'!N$26*LOG($B33) -> 11.51020769 | O33: =O$24+O$25*LOG('Auslegung KS'!$D$21)+'Lw KSH'!O$26*LOG($B33) -> 11.95790294 | P33: =P$24+P$25*LOG('Auslegung KS'!$D$21)+'Lw KSH'!P$26*LOG($B33) -> 8.509095984 | Q33: =Q$24+Q$25*LOG('Auslegung KS'!$D$21)+'Lw KSH'!Q$26*LOG($B33) -> 9.692673998 | R33: =R$24+R$25*LOG('Auslegung KS'!$D$21)+'Lw KSH'!R$26*LOG($B33) -> 11.24198327 | S33: =S$24+S$25*LOG('Auslegung KS'!$D$21)+'Lw KSH'!S$26*LOG($B33) -> 11.73997642 | T33: =T$24+T$25*LOG('Auslegung KS'!$D$21)+'Lw KSH'!T$26*LOG($B33) -> 11.65448968 | U33: =U$24+U$25*LOG('Auslegung KS'!$D$21)+'Lw KSH'!U$26*LOG($B33) -> 12.40242682 | V33: =V$24+V$25*LOG('Auslegung KS'!$D$21)+'Lw KSH'!V$26*LOG($B33) -> 13.28101196 | W33: =W$24+W$25*LOG('Auslegung KS'!$D$21)+'Lw KSH'!W$26*LOG($B33) -> 15.83879308 | X33: 33.15394685
B34: 125 | C34: =C$24+C$25*LOG('Auslegung KS'!$D$21)+'Lw KSH'!C$26*LOG($B34) -> 14.36060018 | D34: =D$24+D$25*LOG('Auslegung KS'!$D$21)+'Lw KSH'!D$26*LOG($B34) -> 24.46370846 | E34: =E$24+E$25*LOG('Auslegung KS'!$D$21)+'Lw KSH'!E$26*LOG($B34) -> 18.35581002 | F34: =F$24+F$25*LOG('Auslegung KS'!$D$21)+'Lw KSH'!F$26*LOG($B34) -> 23.94529283 | G34: =G$24+G$25*LOG('Auslegung KS'!$D$21)+'Lw KSH'!G$26*LOG($B34) -> 24.4268716 | H34: =H$24+H$25*LOG('Auslegung KS'!$D$21)+'Lw KSH'!H$26*LOG($B34) -> 28.36172047 | I34: =I$24+I$25*LOG('Auslegung KS'!$D$21)+'Lw KSH'!I$26*LOG($B34) -> 30.19797431 | J34: =J$24+J$25*LOG('Auslegung KS'!$D$21)+'Lw KSH'!J$26*LOG($B34) -> 22.69489939 | K34: =K$24+K$25*LOG('Auslegung KS'!$D$21)+'Lw KSH'!K$26*LOG($B34) -> 16.44593891 | L34: =L$24+L$25*LOG('Auslegung KS'!$D$21)+'Lw KSH'!L$26*LOG($B34) -> 16.7365611 | M34: =M$24+M$25*LOG('Auslegung KS'!$D$21)+'Lw KSH'!M$26*LOG($B34) -> 15.3364568 | N34: =N$24+N$25*LOG('Auslegung KS'!$D$21)+'Lw KSH'!N$26*LOG($B34) -> 13.83614681 | O34: =O$24+O$25*LOG('Auslegung KS'!$D$21)+'Lw KSH'!O$26*LOG($B34) -> 14.16817822 | P34: =P$24+P$25*LOG('Auslegung KS'!$D$21)+'Lw KSH'!P$26*LOG($B34) -> 10.29191957 | Q34: =Q$24+Q$25*LOG('Auslegung KS'!$D$21)+'Lw KSH'!Q$26*LOG($B34) -> 10.91519969 | R34: =R$24+R$25*LOG('Auslegung KS'!$D$21)+'Lw KSH'!R$26*LOG($B34) -> 12.49582811 | S34: =S$24+S$25*LOG('Auslegung KS'!$D$21)+'Lw KSH'!S$26*LOG($B34) -> 12.85970142 | T34: =T$24+T$25*LOG('Auslegung KS'!$D$21)+'Lw KSH'!T$26*LOG($B34) -> 12.44808778 | U34: =U$24+U$25*LOG('Auslegung KS'!$D$21)+'Lw KSH'!U$26*LOG($B34) -> 12.82671356 | V34: =V$24+V$25*LOG('Auslegung KS'!$D$21)+'Lw KSH'!V$26*LOG($B34) -> 13.44612881 | W34: =W$24+W$25*LOG('Auslegung KS'!$D$21)+'Lw KSH'!W$26*LOG($B34) -> 15.85016334 | X34: 34.98590482
B35: 150 | C35: =C$24+C$25*LOG('Auslegung KS'!$D$21)+'Lw KSH'!C$26*LOG($B35) -> 15.58323715 | D35: =D$24+D$25*LOG('Auslegung KS'!$D$21)+'Lw KSH'!D$26*LOG($B35) -> 25.76671682 | E35: =E$24+E$25*LOG('Auslegung KS'!$D$21)+'Lw KSH'!E$26*LOG($B35) -> 19.75455346 | F35: =F$24+F$25*LOG('Auslegung KS'!$D$21)+'Lw KSH'!F$26*LOG($B35) -> 25.41008316 | G35: =G$24+G$25*LOG('Auslegung KS'!$D$21)+'Lw KSH'!G$26*LOG($B35) -> 25.97382571 | H35: =H$24+H$25*LOG('Auslegung KS'!$D$21)+'Lw KSH'!H$26*LOG($B35) -> 29.91408221 | I35: =I$24+I$25*LOG('Auslegung KS'!$D$21)+'Lw KSH'!I$26*LOG($B35) -> 31.80580815 | J35: =J$24+J$25*LOG('Auslegung KS'!$D$21)+'Lw KSH'!J$26*LOG($B35) -> 24.34286463 | K35: =K$24+K$25*LOG('Auslegung KS'!$D$21)+'Lw KSH'!K$26*LOG($B35) -> 18.23219769 | L35: =L$24+L$25*LOG('Auslegung KS'!$D$21)+'Lw KSH'!L$26*LOG($B35) -> 18.6979002 | M35: =M$24+M$25*LOG('Auslegung KS'!$D$21)+'Lw KSH'!M$26*LOG($B35) -> 17.26438014 | N35: =N$24+N$25*LOG('Auslegung KS'!$D$21)+'Lw KSH'!N$26*LOG($B35) -> 15.73657744 | O35: =O$24+O$25*LOG('Auslegung KS'!$D$21)+'Lw KSH'!O$26*LOG($B35) -> 15.97410462 | P35: =P$24+P$25*LOG('Auslegung KS'!$D$21)+'Lw KSH'!P$26*LOG($B35) -> 11.7485925 | Q35: =Q$24+Q$25*LOG('Auslegung KS'!$D$21)+'Lw KSH'!Q$26*LOG($B35) -> 11.91407591 | R35: =R$24+R$25*LOG('Auslegung KS'!$D$21)+'Lw KSH'!R$26*LOG($B35) -> 13.52029394 | S35: =S$24+S$25*LOG('Auslegung KS'!$D$21)+'Lw KSH'!S$26*LOG($B35) -> 13.77458336 | T35: =T$24+T$25*LOG('Auslegung KS'!$D$21)+'Lw KSH'!T$26*LOG($B35) -> 13.09650464 | U35: =U$24+U$25*LOG('Auslegung KS'!$D$21)+'Lw KSH'!U$26*LOG($B35) -> 13.17338107 | V35: =V$24+V$25*LOG('Auslegung KS'!$D$21)+'Lw KSH'!V$26*LOG($B35) -> 13.5810391 | W35: =W$24+W$25*LOG('Auslegung KS'!$D$21)+'Lw KSH'!W$26*LOG($B35) -> 15.85945352 | X35: 36.50244935
B36: 175 | C36: =C$24+C$25*LOG('Auslegung KS'!$D$21)+'Lw KSH'!C$26*LOG($B36) -> 16.61696199 | D36: =D$24+D$25*LOG('Auslegung KS'!$D$21)+'Lw KSH'!D$26*LOG($B36) -> 26.86839469 | E36: =E$24+E$25*LOG('Auslegung KS'!$D$21)+'Lw KSH'!E$26*LOG($B36) -> 20.93717419 | F36: =F$24+F$25*LOG('Auslegung KS'!$D$21)+'Lw KSH'!F$26*LOG($B36) -> 26.64854575 | G36: =G$24+G$25*LOG('Auslegung KS'!$D$21)+'Lw KSH'!G$26*LOG($B36) -> 27.28175677 | H36: =H$24+H$25*LOG('Auslegung KS'!$D$21)+'Lw KSH'!H$26*LOG($B36) -> 31.22658537 | I36: =I$24+I$25*LOG('Auslegung KS'!$D$21)+'Lw KSH'!I$26*LOG($B36) -> 33.16521229 | J36: =J$24+J$25*LOG('Auslegung KS'!$D$21)+'Lw KSH'!J$26*LOG($B36) -> 25.73619939 | K36: =K$24+K$25*LOG('Auslegung KS'!$D$21)+'Lw KSH'!K$26*LOG($B36) -> 19.74245796 | L36: =L$24+L$25*LOG('Auslegung KS'!$D$21)+'Lw KSH'!L$26*LOG($B36) -> 20.35618877 | M36: =M$24+M$25*LOG('Auslegung KS'!$D$21)+'Lw KSH'!M$26*LOG($B36) -> 18.89441609 | N36: =N$24+N$25*LOG('Auslegung KS'!$D$21)+'Lw KSH'!N$26*LOG($B36) -> 17.34336865 | O36: =O$24+O$25*LOG('Auslegung KS'!$D$21)+'Lw KSH'!O$26*LOG($B36) -> 17.50099364 | P36: =P$24+P$25*LOG('Auslegung KS'!$D$21)+'Lw KSH'!P$26*LOG($B36) -> 12.98019192 | Q36: =Q$24+Q$25*LOG('Auslegung KS'!$D$21)+'Lw KSH'!Q$26*LOG($B36) -> 12.75861372 | R36: =R$24+R$25*LOG('Auslegung KS'!$D$21)+'Lw KSH'!R$26*LOG($B36) -> 14.38646745 | S36: =S$24+S$25*LOG('Auslegung KS'!$D$21)+'Lw KSH'!S$26*LOG($B36) -> 14.54810502 | T36: =T$24+T$25*LOG('Auslegung KS'!$D$21)+'Lw KSH'!T$26*LOG($B36) -> 13.64473328 | U36: =U$24+U$25*LOG('Auslegung KS'!$D$21)+'Lw KSH'!U$26*LOG($B36) -> 13.46648427 | V36: =V$24+V$25*LOG('Auslegung KS'!$D$21)+'Lw KSH'!V$26*LOG($B36) -> 13.69510413 | W36: =W$24+W$25*LOG('Auslegung KS'!$D$21)+'Lw KSH'!W$26*LOG($B36) -> 15.86730826 | X36: 37.79575812
B37: 200 | C37: =C$24+C$25*LOG('Auslegung KS'!$D$21)+'Lw KSH'!C$26*LOG($B37) -> 17.51241517 | D37: =D$24+D$25*LOG('Auslegung KS'!$D$21)+'Lw KSH'!D$26*LOG($B37) -> 27.82271146 | E37: =E$24+E$25*LOG('Auslegung KS'!$D$21)+'Lw KSH'!E$26*LOG($B37) -> 21.96160686 | F37: =F$24+F$25*LOG('Auslegung KS'!$D$21)+'Lw KSH'!F$26*LOG($B37) -> 27.72135083 | G37: =G$24+G$25*LOG('Auslegung KS'!$D$21)+'Lw KSH'!G$26*LOG($B37) -> 28.41473819 | H37: =H$24+H$25*LOG('Auslegung KS'!$D$21)+'Lw KSH'!H$26*LOG($B37) -> 32.36352731 | I37: =I$24+I$25*LOG('Auslegung KS'!$D$21)+'Lw KSH'!I$26*LOG($B37) -> 34.34278172 | J37: =J$24+J$25*LOG('Auslegung KS'!$D$21)+'Lw KSH'!J$26*LOG($B37) -> 26.94316087 | K37: =K$24+K$25*LOG('Auslegung KS'!$D$21)+'Lw KSH'!K$26*LOG($B37) -> 21.05070491 | L37: =L$24+L$25*LOG('Auslegung KS'!$D$21)+'Lw KSH'!L$26*LOG($B37) -> 21.79266367 | M37: =M$24+M$25*LOG('Auslegung KS'!$D$21)+'Lw KSH'!M$26*LOG($B37) -> 20.30641746 | N37: =N$24+N$25*LOG('Auslegung KS'!$D$21)+'Lw KSH'!N$26*LOG($B37) -> 18.7352345 | O37: =O$24+O$25*LOG('Auslegung KS'!$D$21)+'Lw KSH'!O$26*LOG($B37) -> 18.82364506 | P37: =P$24+P$25*LOG('Auslegung KS'!$D$21)+'Lw KSH'!P$26*LOG($B37) -> 14.04705186 | Q37: =Q$24+Q$25*LOG('Auslegung KS'!$D$21)+'Lw KSH'!Q$26*LOG($B37) -> 13.49018565 | R37: =R$24+R$25*LOG('Auslegung KS'!$D$21)+'Lw KSH'!R$26*LOG($B37) -> 15.13678108 | S37: =S$24+S$25*LOG('Auslegung KS'!$D$21)+'Lw KSH'!S$26*LOG($B37) -> 15.21815996 | T37: =T$24+T$25*LOG('Auslegung KS'!$D$21)+'Lw KSH'!T$26*LOG($B37) -> 14.11963053 | U37: =U$24+U$25*LOG('Auslegung KS'!$D$21)+'Lw KSH'!U$26*LOG($B37) -> 13.72038181 | V37: =V$24+V$25*LOG('Auslegung KS'!$D$21)+'Lw KSH'!V$26*LOG($B37) -> 13.79391175 | W37: =W$24+W$25*LOG('Auslegung KS'!$D$21)+'Lw KSH'!W$26*LOG($B37) -> 15.87411234 | X37: 38.92298353
B38: 1 | C38: 2 | D38: 3 | E38: 4 | F38: 5 | G38: 6 | H38: 7 | I38: 8 | J38: 9 | K38: 10 | L38: 11 | M38: 12 | N38: 13 | O38: 14 | P38: 15 | Q38: 16 | R38: 17 | S38: 18 | T38: 19 | U38: 20 | V38: 21 | W38: 22 | X38: 23
W39: ='Auslegung KS'!$D$114 ->  | X39: =IF(W39>0,VLOOKUP($W$39,$B$31:$X$37,$X$38,FALSE),"") -> 
W40: ='Auslegung KS'!$E$114 ->  | X40: =IF(W40>0,VLOOKUP($W$40,$B$31:$X$37,$X$38,FALSE),"") -> 
A41: Baugröße | B41: V°nenn | C41: Verkettung | D41: Frequenz f [Hz]
B42: m³/h | D42: 125 | E42: 250 | F42: 500 | G42: 1000 | H42: 2000 | I42: 4000 | J42: 8000
A43: 550 | B43: 15 | C43: =CONCATENATE(A43,B43) -> 55015 | D43: =D$46 -> 10.67847423 | E43: =E$46 -> 5.736760348 | F43: =F$46 -> 3.543305498 | G43: 15.22163892 | H43: 14.59881473 | I43: 12.86723978 | J43: 11.35450795
A44: 550 | B44: 20 | C44: =CONCATENATE(A44,B44) -> 55020 | D44: =D$46 -> 10.67847423 | E44: 5.736760348 | F44: 3.543305498 | G44: 15.22163892 | H44: 14.59881473 | I44: 12.86723978 | J44: 11.35450795
A45: 550 | B45: 25 | C45: =CONCATENATE(A45,B45) -> 55025 | D45: 10.67847423 | E45: 5.736760348 | F45: 3.543305498 | G45: 15.22163892 | H45: 14.59881473 | I45: 12.86723978 | J45: 11.35450795
A46: 550 | B46: 30 | C46: =CONCATENATE(A46,B46) -> 55030 | D46: 10.67847423 | E46: 5.736760348 | F46: 3.543305498 | G46: 15.22163892 | H46: 14.59881473 | I46: 12.86723978 | J46: 11.35450795
A47: 550 | B47: 35 | C47: =CONCATENATE(A47,B47) -> 55035 | D47: 10.70716833 | E47: 5.554091443 | F47: 3.312442785 | G47: 15.04106628 | H47: 15.28512784 | I47: 13.94593993 | J47: 12.50236984
A48: 550 | B48: 40 | C48: 55040 | D48: 10.7649999 | E48: 5.431010435 | F48: 3.147007336 | G48: 14.9128207 | H48: 15.8905845 | I48: 14.91421452 | J48: 13.52995388
A49: 550 | B49: 45 | C49: 55045 | D49: 10.8370207 | E49: 5.345049915 | F49: 3.023173209 | G49: 14.81714652 | H49: 16.42841079 | I49: 15.78991713 | J49: 14.45747259
A50: 550 | B50: 50 | C50: 55050 | D50: 10.9154217 | E50: 5.283341172 | F50: 2.927142689 | G50: 14.74281176 | H50: 16.90973052 | I50: 16.58767744 | J50: 15.30116394
A51: 550 | B51: 55 | C51: 55055 | D51: 10.99598866 | E51: 5.238106376 | F51: 2.850474074 | G51: 14.68307184 | H51: 17.34360969 | I51: 17.31931064 | J51: 16.07398809
A52: 550 | B52: 60 | C52: 55060 | D52: 11.07640839 | E52: 5.204430111 | F52: 2.787760698 | G52: 14.63368647 | H52: 17.73737401 | I52: 17.99435461 | J52: 16.78632647
A53: 550 | B53: 65 | C53: 55065 | D53: 11.15541237 | E53: 5.179087065 | F53: 2.735403304 | G53: 14.59188347 | H53: 18.09694887 | I53: 18.6205508 | J53: 17.44655961
A54: 550 | B54: 70 | C54: 55070 | D54: 11.23232316 | E54: 5.159892143 | F54: 2.690925391 | G54: 14.55578816 | H54: 18.42715227 | I54: 19.20423221 | J54: 18.06151604
A55: 550 | B55: 75 | C55: 55075 | D55: 11.30680474 | E55: 5.1453237 | F55: 2.652573696 | G55: 14.52409491 | H55: 18.73192978 | I55: 19.75062504 | J55: 18.63681374
A56: 550 | B56: 80 | C56: =CONCATENATE(A56,B56) -> 55080 | D56: 11.37872074 | E56: 5.134296504 | F56: 2.619075761 | G56: 14.4958705 | H56: 19.01453787 | I56: 20.2640803 | J56: 19.17711871
A57: 550 | B57: 85 | C57: =CONCATENATE(A57,B57) -> 55085 | D57: =D56 -> 11.37872074 | E57: =E56 -> 5.134296504 | F57: 2.619075761 | G57: 14.4958705 | H57: 19.01453787 | I57: 20.2640803 | J57: 19.17711871
A58: 550 | B58: 90 | C58: 55090 | D58: 11.51484633 | E58: 5.11990868 | F58: 2.563095743 | G58: 14.44727061 | H58: 19.52364448 | I58: 21.20623142 | J58: 20.16778695
A59: 750 | B59: 15 | C59: 75015 | D59: =D$62 -> 9.962245009 | E59: =E$62 -> 4.89914298 | F59: 4.079087544 | G59: 16.00539891 | H59: 17.5824178 | I59: 14.75546317 | J59: 10.75224672
A60: 750 | B60: 20 | C60: 75020 | D60: =D$62 -> 9.962245009 | E60: 4.89914298 | F60: 4.079087544 | G60: 16.00539891 | H60: 17.5824178 | I60: 14.75546317 | J60: 10.75224672
A61: 750 | B61: 25 | C61: 75025 | D61: 9.962245009 | E61: 4.89914298 | F61: 4.079087544 | G61: 16.00539891 | H61: 17.5824178 | I61: 14.75546317 | J61: 10.75224672
A62: 750 | B62: 30 | C62: 75030 | D62: 9.962245009 | E62: 4.89914298 | F62: 4.079087544 | G62: 16.00539891 | H62: 17.5824178 | I62: 14.75546317 | J62: 10.75224672
A63: 750 | B63: 35 | C63: 75035 | D63: 9.662791121 | E63: 4.684381967 | F63: 4.08604954 | G63: 15.84168091 | H63: 17.72118886 | I63: 15.29597738 | J63: 11.65377032
A64: 750 | B64: 40 | C64: 75040 | D64: 9.41465798 | E64: 4.519294326 | F64: 4.112044158 | G64: 15.71481114 | H64: 17.85327393 | I64: 15.78518924 | J64: 12.45174543
A65: 750 | B65: 45 | C65: 75045 | D65: 9.202621613 | E65: 4.388348333 | F65: 4.148815511 | G65: 15.61314288 | H65: 17.97682001 | I65: 16.23140194 | J65: 13.16722132
A66: 750 | B66: 50 | C66: 75050 | D66: 9.01717557 | E66: 4.28194552 | F66: 4.191731117 | G66: 15.52954502 | H66: 18.09154815 | I66: 16.64129641 | J66: 13.81550849
A67: 750 | B67: 55 | C67: 75055 | D67: 8.852050503 | E67: 4.193826122 | F67: 4.238071192 | G67: 15.45940224 | H67: 18.19782788 | I67: 17.02022726 | J67: 14.4080689
A68: 750 | B68: 60 | C68: 75060 | D68: 8.702925785 | E68: 4.119727187 | F68: 4.286184694 | G68: 15.39959043 | H68: 18.2962755 | I68: 17.37250901 | J68: 14.95369396
A69: 750 | B69: 65 | C69: 75065 | D69: 8.566713811 | E69: 4.056640478 | F69: 4.335045282 | G69: 15.34791512 | H69: 18.38757489 | I69: 17.70164842 | J69: 15.45926731
A70: 750 | B70: 70 | C70: 75070 | D70: 8.44114005 | E70: 4.00237908 | F70: 4.384005218 | G70: 15.30278615 | H70: 18.47239768 | I70: 18.01052356 | J70: 15.93027527
A71: 750 | B71: 75 | C71: 75075 | D71: 8.324485124 | E71: 3.955312517 | F71: 4.432653035 | G71: 15.26302041 | H71: 18.5513698 | I71: 18.30151969 | J71: 16.37115835
A72: 750 | B72: 80 | C72: 75080 | D72: 8.215420154 | E72: 3.914198552 | F72: 4.480728229 | G72: 15.22771738 | H72: 18.62505966 | I72: 18.57663222 | J72: 16.78555946
A73: 750 | B73: 85 | C73: 75085 | D73: 8.112898107 | E73: 3.878072776 | F73: 4.528068569 | G73: 15.19617795 | H73: 18.69397669 | I73: 18.83754522 | J73: 17.17650287
A74: 750 | B74: 90 | C74: 75090 | D74: 8.016079995 | E74: 3.846174059 | F74: 4.574576731 | G74: 15.16784991 | H74: 18.75857442 | I74: 19.08569166 | J74: 17.54652606
A75: 950 | B75: 60 | C75: 95060 | D75: 10.03978802 | E75: 5.050340335 | F75: 8.919632204 | G75: 9.411438893 | H75: 7.441906551 | I75: 11.47552899 | J75: 11.88186559
A76: 950 | B76: 75 | C76: 95075 | D76: 9.538459331 | E76: 3.355572336 | F76: 7.23575284 | G76: 10.84234043 | H76: 11.66842607 | I76: 14.55347489 | J76: 14.61469522
A77: 950 | B77: 80 | C77: 95080 | D77: 9.578656775 | E77: 3.061677245 | F77: 6.939879064 | G77: 11.29443725 | H77: 13.08824957 | I77: 15.63413806 | J77: 15.60050111
A78: 950 | B78: 85 | C78: 95085 | D78: 9.66856893 | E78: 2.841614055 | F78: 6.716067581 | G78: 11.71689432 | H78: 14.47845538 | I78: 16.70292224 | J78: 16.58218053
A79: 950 | B79: 90 | C79: 95090 | D79: 9.790076428 | E79: 2.674009335 | F79: 6.543346015 | G79: 12.10811713 | H79: 15.82948235 | I79: 17.74840695 | J79: 17.54729862
A80: 950 | B80: 95 | C80: 95095 | D80: 9.931023067 | E80: 2.544062509 | F80: 6.407222714 | G80: 12.46918732 | H80: 17.13642652 | I80: 18.76411441 | J80: 18.48854018
A81: 950 | B81: 100 | C81: 950100 | D81: 10.08332343 | E81: 2.441512188 | F81: 6.297676596 | G81: 12.80247015 | H81: 18.39740063 | I81: 19.74681258 | J81: 19.40197482
A82: 950 | B82: 110 | C82: 950110 | D82: 10.40239207 | E82: 2.292053595 | F82: 6.132483076 | G82: 13.39697468 | H82: 20.78248942 | I82: 21.60974908 | J82: 21.13972948
A83: 950 | B83: 120 | C83: 950120 | D83: 10.72285943 | E83: 2.189856279 | F83: 6.01307416 | G83: 13.91318798 | H83: 22.99522155 | I83: 23.3400996 | J83: 22.7597159
A84: 950 | B84: 130 | C84: 950130 | D84: 11.0343613 | E84: 2.116271765 | F84: 5.921494184 | G84: 14.36864391 | H84: 25.05208268 | I84: 24.94848753 | J84: 24.26979994
A85: 950 | B85: 140 | C85: 950140 | D85: 11.33284574 | E85: 2.061023529 | F85: 5.847916233 | G85: 14.77643035 | H85: 26.97011486 | I85: 26.44732628 | J85: 25.68030623
A86: 950 | B86: 150 | C86: 950150 | D86: =AVERAGE(D85,D87) -> 11.61007567 | E86: =AVERAGE(E85,E87) -> 2.022476859 | F86: 5.791077592 | G86: 15.13057578 | H86: 28.71032856 | I86: 27.80516149 | J86: 26.96170763
A87: 950 | B87: 160 | C87: 950160 | D87: 11.88730561 | E87: 1.983930189 | F87: 5.73423895 | G87: 15.48472122 | H87: 30.45054226 | I87: 29.1629967 | J87: 28.24310902
A88: 950 | B88: 170 | C88: =CONCATENATE(A88,B88) -> 950170 | D88: =D87 -> 11.88730561 | E88: 1.983930189 | F88: 5.73423895 | G88: 15.48472122 | H88: 30.45054226 | I88: 29.1629967 | J88: 28.24310902
A89: 950 | B89: 180 | C89: =CONCATENATE(A89,B89) -> 950180 | D89: =D88+1 -> 12.88730561 | E89: 2.983930189 | F89: 6.73423895 | G89: 16.48472122 | H89: 31.45054226 | I89: 30.1629967 | J89: 29.24310902
A90: 950 | B90: 190 | C90: =CONCATENATE(A90,B90) -> 950190 | D90: =D89 -> 12.88730561 | E90: 2.983930189 | F90: 6.73423895 | G90: 16.48472122 | H90: 31.45054226 | I90: 30.1629967 | J90: 29.24310902
A91: 1150 | B91: 60 | C91: 115060 | D91: 8.144068129 | E91: 4.920150351 | F91: 12.21856261 | G91: 15.94353862 | H91: 12.77451167 | I91: 8.999346274 | J91: 6.762980913
A92: 1150 | B92: 75 | C92: 115075 | D92: 7.78637607 | E92: 3.292467108 | F92: 9.620507297 | G92: 14.48250862 | H92: 14.43038288 | I92: 11.90055253 | J92: 10.45290033
A93: 1150 | B93: 80 | C93: 115080 | D93: 7.854229737 | E93: 3.006243106 | F93: 9.055823962 | G93: 14.23999269 | H93: 15.06470754 | I93: 12.92632823 | J93: 11.70525696
A94: 1150 | B94: 85 | C94: 115085 | D94: 7.971684525 | E94: 2.795925708 | F94: 8.584787321 | G94: 14.06907053 | H94: 15.70656923 | I94: 13.94927361 | J94: 12.94041375
A95: 1150 | B95: 90 | C95: 115090 | D95: 8.122369092 | E95: 2.641609867 | F95: 8.185395066 | G95: 13.95050238 | H95: 16.34436565 | I95: 14.95842335 | J95: 14.14908378
A96: 1150 | B96: 95 | C96: 115095 | D96: 8.294630454 | E96: 2.528758067 | F96: 7.841361099 | G96: 13.87028491 | H96: 16.97051929 | I96: 15.94673651 | J96: 15.32562867
A97: 1150 | B97: 100 | C97: 1150100 | D97: 8.480292996 | E97: 2.446812913 | F97: 7.540655203 | G97: 13.81829458 | H97: 17.58035929 | I97: 16.91000421 | J97: 16.46702341
A98: 1150 | B98: 110 | C98: 1150110 | D98: 8.87086965 | E98: 2.347055959 | F98: 7.035812328 | G98: 13.7717714 | H98: 18.74187366 | I98: 18.75375829 | J98: 18.64060779
A99: 1150 | B99: 120 | C99: 1150120 | D99: 9.266815316 | E99: 2.302567805 | F99: 6.623040172 | G99: 13.77334815 | H99: 19.82147906 | I99: 20.4850372 | J99: 20.67169083
A100: 1150 | B100: 130 | C100: 1150130 | D100: 9.655526224 | E100: 2.29161787 | F100: 6.274533835 | G100: 13.80283978 | H100: 20.82182497 | I100: 22.1088249 | J100: 22.57017459
A101: 1150 | B101: 140 | C101: 1150140 | D101: 10.03151657 | E101: 2.301861544 | F101: 5.973256686 | G101: 13.84902534 | H101: 21.74932799 | I101: 23.63357148 | J101: 24.34831769
A102: 1150 | B102: 150 | C102: 1150150 | D102: =AVERAGE(D101,D103) -> 10.38517985 | E102: =AVERAGE(E101,E103) -> 2.33066214 | F102: 5.722559165 | G102: 13.90859169 | H102: 22.58221252 | I102: 25.0279413 | J102: 25.96985602
A103: 1150 | B103: 160 | C103: 1150160 | D103: 10.73884312 | E103: 2.359462737 | F103: 5.471861644 | G103: 13.96815805 | H103: 23.41509704 | I103: 26.42231111 | J103: 27.59139435
A104: 1150 | B104: 170 | C104: 1150170 | D104: =D103 -> 10.73884312 | E104: =E103 -> 2.359462737 | F104: 5.471861644 | G104: 13.96815805 | H104: 23.41509704 | I104: 26.42231111 | J104: 27.59139435
A105: 1150 | B105: 180 | C105: 1150180 | D105: =D104+1 -> 11.73884312 | E105: =E104+1 -> 3.359462737 | F105: 6.471861644 | G105: 14.96815805 | H105: 24.41509704 | I105: 27.42231111 | J105: 28.59139435
A106: 1150 | B106: 190 | C106: 1150190 | D106: =D105 -> 11.73884312 | E106: =E105 -> 3.359462737 | F106: 6.471861644 | G106: 14.96815805 | H106: 24.41509704 | I106: 27.42231111 | J106: 28.59139435
D108: 2 | E108: 3 | F108: 4 | G108: 5 | H108: 6 | I108: 7 | J108: 8
A109: Auswahl Relativspektrum | C109: =CONCATENATE('Auslegung KS'!$D$9,'Auslegung KS'!$D$21) -> 75050 | D109: =VLOOKUP($C$109,$C$46:$J$106,D108,FALSE)*-1 -> -9.01717557 | E109: =VLOOKUP($C$109,$C$46:$J$106,E108,FALSE)*-1 -> -4.28194552 | F109: -4.191731117 | G109: -15.52954502 | H109: -18.09154815 | I109: -16.64129641 | J109: -13.81550849
A110: Oktavpektrum Zuluft | D110: =$X$39+D109-D112 ->  | E110: =$X$39+E109-E112 ->  | K110: =10*LOG(10^(0.1*D110)+10^(0.1*E110)+10^(0.1*F110)+10^(0.1*G110)+10^(0.1*H110)+10^(0.1*I110)+10^(0.1*J110)) -> 
A111: Oktavspektrum Abluft | D111: =$X$40+D109-D112 ->  | E111: =$X$40+E109-E112 -> 
A112: A-Bewertung | D112: -16.1 | E112: -8.6 | F112: -3.2 | G112: 0 | H112: 1.2 | I112: 1 | J112: -1.1
B114: T[s] nach VDI 2081 | F114: Nachhallzeit | G114: Richtungsfaktor | H114: Raumvolumen | I114: äqu. Absorptionsfläche
B115: Raumart | D115: s | F115: t | G115: Q | H115: V | I115: A
B116: Einzelbüro | D116: 0.5 | F116: s | H116: m³ | I116: m²Sabine
B117: Großraumbüro | D117: 0.5 | E117: ='Auslegung KS'!$D$63 -> Einzelbüro | F117: =VLOOKUP(E117,'Lw KSH'!$B$116:$D$139,3,1) -> 0.5 | G117: 4 | H117: ='Auslegung KS'!$D$59*'Auslegung KS'!$D$61*'Auslegung KS'!$D$62 -> 45 | I117: =0.163*H117/F117 -> 14.67
B118: Werkstätten | D118: 1.5
B119: Ruheraum, Pausenraum | D119: 1
B120: Untersuchungsraum Krankenhaus | D120: 2
B121: Rundfunk-, Fernsehstudio | D121: 0.5
B122: Chemielabor | D122: 2
B123: Wasch- und WC-Raum, Umkleide | D123: 2
B124: Schwimmbad | D124: 2
B125: EDV-Raum | D125: 1.5
B126: Konzertsaal | D126: 1.5
B127: Lesesaal | D127: 1
B128: Museum | D128: 1.5
B129: Küche | D129: 1.5
B130: Theater, Kino | D130: 1
B131: Klassen- Seminarraum | D131: 1
B132: Gaststätte | D132: 1
B133: kein Typ | D133: x
B134: Konferenzraum | D134: 1
B135: Hotelzimmer | D135: 0.5
B136: Hörsaal | D136: 1
B137: Bettenzimmer Krankenhaus | D137: 1
B138: Verkaufsraum | D138: 1
B139: Sporthalle | D139: 2
B143: Terzfrequenzband fm [Hz]
B144: 100 | C144: 125 | D144: 160 | E144: 200 | F144: 250 | G144: 315 | H144: 400 | I144: 500 | J144: 630 | K144: 800 | L144: 1000 | M144: 1250 | N144: 1600 | O144: 2000 | P144: 2500 | Q144: 3150 | R144: 4000 | S144: 5000 | T144: 6300 | U144: 8000 | V144: 10000
A145: KSH 2-Schlitz | B145: -170.2019352 | C145: -481.4312306 | D145: -339.2425686 | E145: -88.88787689 | F145: -173.3800897 | G145: -168.975076 | H145: -229.557266 | I145: -115.9916775 | J145: -150.3347475 | K145: -201.5781185 | L145: -341.6424862 | M145: -399.4058251 | N145: -503.4656358 | O145: -463.8303793 | P145: -407.6676702 | Q145: -439.6137008 | R145: -398.1380502 | S145: -324.7219847 | T145: -225.3439909 | U145: -68.15485079 | V145: -9.174388662
A146: Zuluft, Nullserie | B146: 33.88788978 | C146: 56.91253288 | D146: 60.48025444 | E146: 56.41051609 | F146: 56.17908717 | G146: 58.09711425 | H146: 60.0048766 | I146: 59.80281746 | J146: 60.11400203 | K146: 66.6852796 | L146: 71.48873332 | M146: 78.09683718 | N146: 84.32255623 | O146: 83.49610962 | P146: 81.11097223 | Q146: 72.91377307 | R146: 59.56220077 | S146: 44.90690524 | T146: 26.61840659 | U146: 6.757160126 | V146: 1.80620529
B147: 45.16278025 | C147: 126.4635512 | D147: 88.31094473 | E147: 19.53955852 | F147: 42.13353747 | G147: 41.39209592 | H147: 57.61295095 | I147: 25.94499746 | J147: 36.43095414 | K147: 48.17652628 | L147: 85.46207584 | M147: 98.95788095 | N147: 125.727457 | O147: 115.0187997 | P147: 99.8287234 | Q147: 110.1846832 | R147: 101.8051755 | S147: 84.57697162 | T147: 61.19591546 | U147: 22.13064222 | V147: 7.278518553
B148: 23.79306169 | C148: 97.13060504 | D148: 56.84988706 | E148: -12.94613194 | F148: 20.24671737 | G148: 15.59002486 | H148: 32.37364139 | I148: -0.8812905788 | J148: 3.467130022 | K148: 15.0615825 | L148: 53.55432161 | M148: 68.46851747 | N148: 95.583521 | O148: 80.9355319 | P148: 66.48723652 | Q148: 82.57397917 | R148: 78.36266496 | S148: 68.10218224 | T148: 52.45872627 | U148: 20.24002536 | V148: 6.087495658
A149: KSH 2-Schlitz | B149: -232.2903734 | C149: -210.826684 | D149: -95.51738391 | E149: -148.5568415 | F149: -155.6849655 | G149: -148.4812068 | H149: -60.88872843 | I149: -40.68228291 | J149: -124.6902779 | K149: -174.7189884 | L149: -179.389532 | M149: -165.9676396 | N149: -173.7489863 | O149: -159.8069638 | P149: -158.0173076 | Q149: -124.3767378 | R149: -95.31469477 | S149: -63.76513604 | T149: -28.69954618 | U149: -1.217864364 | V149: -13.38070474
A150: Abluft, Düsenwalze | B150: 47.31466427 | C150: 48.02230603 | D150: 46.77823855 | E150: 51.74696751 | F150: 51.9332267 | G150: 56.678287 | H150: 60.14654361 | I150: 62.09187155 | J150: 65.80562265 | K150: 70.90141977 | L150: 76.77333549 | M150: 80.74881261 | N150: 83.48662044 | O150: 82.63615756 | P150: 77.88817751 | Q150: 65.10542753 | R150: 46.24196189 | S150: 30.6014564 | T150: 15.41075083 | U150: 6.368667257 | V150: 1.24080969
B151: 62.54615654 | C151: 54.37990236 | D151: 21.41401986 | E151: 36.23690772 | F151: 38.73736724 | G151: 36.05345958 | H151: 8.75111955 | I151: 0.3407488407 | J151: 23.31545825 | K151: 36.61715202 | L151: 35.39477872 | M151: 29.51994153 | N151: 30.73615315 | O151: 26.35004005 | P151: 27.12695825 | Q151: 20.9863604 | R151: 18.19371929 | S151: 13.96296072 | T151: 8.637832737 | U151: 3.773030169 | V151: 9.340414234
B152: 20.34511496 | C152: 19.62749076 | D152: 0.67507833 | E152: 7.51194254 | F152: 12.96198147 | G152: 6.602664197 | H152: -17.9551747 | I152: -16.47803039 | J152: 4.366698362 | K152: 11.14424888 | L152: 10.20708416 | M152: 4.693951141 | N152: 4.734704318 | O152: 2.32843044 | P152: 5.653564888 | Q152: 3.368254713 | R152: 5.4071926 | S152: 4.794039163 | T152: 3.774248091 | U152: -0.2762808822 | V152: 5.896814542
A153: KSH 2-Schlitz | B153: -278.2002304 | C153: -374.1800603 | D153: -383.2177148 | E153: -83.28960452 | F153: -198.9271718 | G153: -303.819696 | H153: -373.8596054 | I153: -326.5092526 | J153: -340.9405235 | K153: -369.2096307 | L153: -478.2184924 | M153: -406.0332367 | N153: -363.352904 | O153: -428.4110343 | P153: -435.4964365 | Q153: -345.1859943 | R153: -305.9961472 | S153: -190.7571828 | T153: -90.8909216 | U153: -18.45533375 | V153: 25.12193022
A154: Abluft, Exzenterwalze | B154: 43.61801942 | C154: 38.78855562 | D154: 37.81879564 | E154: 45.93836624 | F154: 53.83759692 | G154: 57.30399211 | H154: 60.43397389 | I154: 61.78292329 | J154: 66.09331679 | K154: 73.80654388 | L154: 82.59008244 | M154: 88.59967347 | N154: 91.32334401 | O154: 87.62453959 | P154: 80.79875615 | Q154: 70.18134237 | R154: 60.62771345 | S154: 43.44072855 | T154: 22.26709318 | U154: 6.717697047 | V154: 1.659294566
B155: 76.20457628 | C155: 105.3957399 | D155: 109.0708178 | E155: 19.37939637 | F155: 51.15772561 | G155: 81.72629115 | H155: 101.6494557 | I155: 86.29378256 | J155: 88.2133832 | K155: 94.7718972 | L155: 123.9092561 | M155: 100.3358734 | N155: 86.86546396 | O155: 106.0966821 | P155: 110.0010667 | Q155: 86.38425748 | R155: 77.58258939 | S155: 48.53281064 | T155: 25.19393058 | U155: 8.360638725 | V155: -2.67225103
B156: 33.29539994 | C156: 59.68013325 | D156: 73.00764387 | E156: -3.179114615 | F156: 26.91917217 | G156: 48.53904564 | H156: 61.85869524 | I156: 53.98311738 | J156: 56.5989403 | K156: 53.72124219 | L156: 76.11161682 | M156: 57.75255851 | N156: 45.35848878 | O156: 64.15485806 | P156: 69.34574948 | Q156: 52.52997695 | R156: 47.21271965 | S156: 28.10235489 | T156: 15.21474792 | U156: 5.72781622 | V156: -2.41353706
A157: KSH 3-Schlitz | B157: -120.1208591 | C157: -671.1480255 | D157: -358.9639587 | E157: -351.1107136 | F157: -357.803908 | G157: -226.1607803 | H157: -85.6096335 | I157: -163.8602514 | J157: -170.7268816 | K157: -262.9352369 | L157: -231.4854001 | M157: -210.7684568 | N157: -342.6768266 | O157: -194.0368486 | P157: -306.6833372 | Q157: -315.7367456 | R157: -296.861497 | S157: -215.2474278 | T157: -119.8875659 | U157: 7.439239417 | V157: 33.64636528
A158: Zuluft, Nullserie | B158: 49.29913163 | C158: 55.78146802 | D158: 59.36640758 | E158: 55.95044739 | F158: 56.14128942 | G158: 57.63564309 | H158: 60.25579925 | I158: 61.56963544 | J158: 65.13242341 | K158: 69.09192754 | L158: 75.86105019 | M158: 82.7233903 | N158: 87.57969714 | O158: 88.52518447 | P158: 82.68011799 | Q158: 70.97334007 | R158: 57.77516897 | S158: 42.5153328 | T158: 23.74452814 | U158: 4.966719061 | V158: 1.261882561
B159: 25.26752874 | C159: 170.4556404 | D159: 90.13002413 | E159: 88.63001602 | F159: 90.30186611 | G159: 55.35952945 | H159: 18.08396701 | I159: 37.37724612 | J159: 38.67822434 | K159: 61.50068162 | L159: 51.48965422 | M159: 44.2566316 | N159: 76.60154168 | O159: 37.66048091 | P159: 67.94320918 | Q159: 72.98099057 | R159: 70.36268425 | S159: 52.03731164 | T159: 30.83391506 | U159: 1.283175992 | V159: -4.50163621
B160: 8.910132484 | C160: 130.2411192 | D160: 50.46418834 | E160: 52.03988298 | F160: 59.72975563 | G160: 27.27508676 | H160: -9.76060457 | I160: 12.0216715 | J160: 9.395962761 | K160: 31.97504053 | L160: 19.6203816 | M160: 9.710379171 | N160: 42.83606807 | O160: 2.020805828 | P160: 34.66601535 | Q160: 41.19886718 | R160: 44.92678032 | S160: 33.5276617 | T160: 21.2458951 | U160: 0.3781156178 | V160: -4.235496045
A161: KSH 3-Schlitz | B161: -82.91655762 | C161: -118.9885852 | D161: -180.1290287 | E161: -197.0359587 | F161: -148.2733522 | G161: -189.1389519 | H161: -136.5967283 | I161: -135.7761512 | J161: -143.6908077 | K161: -183.9955905 | L161: -176.4530095 | M161: -174.2937848 | N161: -166.6841508 | O161: -169.4872061 | P161: -141.8047624 | Q161: -107.6127173 | R161: -62.44624719 | S161: -20.08995618 | T161: 13.53978872 | U161: 13.86019941 | V161: 14.89142005
A162: Abluft, Düsenwalze | B162: 43.15618279 | C162: 48.25199686 | D162: 49.23525218 | E162: 53.4394255 | F162: 53.74666073 | G162: 59.45033098 | H162: 61.32630497 | I162: 64.1953984 | J162: 67.09705774 | K162: 71.48706333 | L162: 77.0730397 | M162: 80.8827228 | N162: 81.08385885 | O162: 75.03830285 | P162: 66.83168389 | Q162: 51.412685 | R162: 33.77369768 | S162: 18.14721384 | T162: 6.265873272 | U162: 0.9417729503 | V162: 0.2474344289
B163: 18.04088937 | C163: 26.01266375 | D163: 44.64834795 | E163: 49.94362599 | F163: 35.4865546 | G163: 46.9249522 | H163: 30.22321955 | I163: 27.44545887 | J163: 28.01971835 | K163: 38.19009053 | L163: 33.17918751 | M163: 30.68972881 | N163: 27.82769386 | O163: 30.25123201 | P163: 24.63680495 | Q163: 19.368711 | R163: 11.74819287 | S163: 4.34588038 | T163: -1.232153799 | U163: 0.6442308053 | V163: 0.8887378876
B164: -2.803899413 | C164: 0.7955344619 | D164: 13.08552159 | E164: 8.2256464 | F164: 4.639508721 | G164: 6.443876331 | H164: -0.5242624957 | I164: 4.633532403 | J164: 5.739775826 | K164: 9.032274779 | L164: 7.967872427 | M164: 6.638498051 | N164: 6.041677416 | O164: 8.031415238 | P164: 6.894183913 | Q164: 6.300279474 | R164: 3.557230968 | S164: 1.773956053 | T164: -0.8781775998 | U164: 0.3808427537 | V164: 0.4952701683
A165: KSH 3-Schlitz | B165: 86.2602913 | C165: 76.24889494 | D165: -310.1426428 | E165: -515.4844464 | F165: -354.0255235 | G165: -341.9214658 | H165: 43.54031753 | I165: 31.80680375 | J165: -171.329498 | K165: -81.4478385 | L165: -173.2850951 | M165: -320.1660512 | N165: -275.0269341 | O165: -346.9993886 | P165: -248.0854762 | Q165: -217.3543763 | R165: -188.3038488 | S165: -172.2817957 | T165: -81.35919321 | U165: -7.174431273 | V165: -5.655018864
A166: Abluft, Exzenterwalze | B166: 42.6579231 | C166: 44.11669713 | D166: 40.20456422 | E166: 48.14996015 | F166: 56.3591995 | G166: 57.34803444 | H166: 60.18552682 | I166: 61.97384383 | J166: 68.01730104 | K166: 78.90604617 | L166: 87.14559445 | M166: 90.45247099 | N166: 89.5759029 | O166: 83.49425822 | P166: 74.9524254 | Q166: 63.39876082 | R166: 51.63654274 | S166: 35.49085235 | T166: 15.99578647 | U166: 3.376754107 | V166: 0.8457883157
B167: -27.30059961 | C167: -25.29365524 | D167: 82.16583488 | E167: 137.7509249 | F167: 90.89818287 | G167: 87.64919682 | H167: -18.24292378 | I167: -16.7248449 | J167: 36.16727949 | K167: 9.126449628 | L167: 31.53086825 | M167: 69.69028191 | N167: 57.29072603 | O167: 77.80354719 | P167: 52.94503068 | Q167: 47.40371395 | R167: 42.50278183 | S167: 42.0789329 | T167: 22.35432681 | U167: 5.56413384 | V167: 6.082159949
B168: -43.58501202 | C168: -44.68501822 | D168: 48.48919836 | E168: 87.7320632 | F168: 55.91395027 | G168: 53.28263145 | H168: -34.99673272 | I168: -28.98958701 | J168: 15.44252742 | K168: -12.71478861 | L168: 5.047035826 | M168: 39.13212506 | N168: 28.5962286 | O168: 48.02219114 | P168: 29.22861764 | Q168: 27.1133818 | R168: 24.94789858 | S168: 28.69645521 | T168: 16.34205869 | U168: 4.256237476 | V168: 5.118733625
B169: 2 | C169: 3 | D169: 4 | E169: 5 | F169: 6 | G169: 7 | H169: 8 | I169: 9 | J169: 10 | K169: 11 | L169: 12 | M169: 13 | N169: 14 | O169: 15 | P169: 16 | Q169: 17 | R169: 18 | S169: 19 | T169: 20 | U169: 21 | V169: 22
B171: Terzfrequenzband fm [Hz]
B172: 100 | C172: 125 | D172: 160 | E172: 200 | F172: 250 | G172: 315 | H172: 400 | I172: 500 | J172: 630 | K172: 800 | L172: 1000 | M172: 1250 | N172: 1600 | O172: 2000 | P172: 2500 | Q172: 3150 | R172: 4000 | S172: 5000 | T172: 6300 | U172: 8000 | V172: 10000
A173: KSHZUL5002 | B173: =B$145+B$146*LOG('Grunddaten KSH'!$G$49)+B$147*LOG('Grunddaten KSH'!$F$49)+'Lw KSH'!B$148*LOG('Grunddaten KSH'!$L$49) -> 23.07275535 | C173: =C$145+C$146*LOG('Grunddaten KSH'!$G$49)+C$147*LOG('Grunddaten KSH'!$F$49)+'Lw KSH'!C$148*LOG('Grunddaten KSH'!$L$49) -> 44.90886399 | D173: =D$145+D$146*LOG('Grunddaten KSH'!$G$49)+D$147*LOG('Grunddaten KSH'!$F$49)+'Lw KSH'!D$148*LOG('Grunddaten KSH'!$L$49) -> 41.60906911 | E173: =E$145+E$146*LOG('Grunddaten KSH'!$G$49)+E$147*LOG('Grunddaten KSH'!$F$49)+'Lw KSH'!E$148*LOG('Grunddaten KSH'!$L$49) -> 20.47090991 | F173: =F$145+F$146*LOG('Grunddaten KSH'!$G$49)+F$147*LOG('Grunddaten KSH'!$F$49)+'Lw KSH'!F$148*LOG('Grunddaten KSH'!$L$49) -> 32.78270673 | G173: =G$145+G$146*LOG('Grunddaten KSH'!$G$49)+G$147*LOG('Grunddaten KSH'!$F$49)+'Lw KSH'!G$148*LOG('Grunddaten KSH'!$L$49) -> 32.90185533 | H173: =H$145+H$146*LOG('Grunddaten KSH'!$G$49)+H$147*LOG('Grunddaten KSH'!$F$49)+'Lw KSH'!H$148*LOG('Grunddaten KSH'!$L$49) -> 37.71521985 | I173: =I$145+I$146*LOG('Grunddaten KSH'!$G$49)+I$147*LOG('Grunddaten KSH'!$F$49)+'Lw KSH'!I$148*LOG('Grunddaten KSH'!$L$49) -> 27.12572744 | J173: =J$145+J$146*LOG('Grunddaten KSH'!$G$49)+J$147*LOG('Grunddaten KSH'!$F$49)+'Lw KSH'!J$148*LOG('Grunddaten KSH'!$L$49) -> 28.08235382 | K173: =K$145+K$146*LOG('Grunddaten KSH'!$G$49)+K$147*LOG('Grunddaten KSH'!$F$49)+'Lw KSH'!K$148*LOG('Grunddaten KSH'!$L$49) -> 29.52017931 | L173: =L$145+L$146*LOG('Grunddaten KSH'!$G$49)+L$147*LOG('Grunddaten KSH'!$F$49)+'Lw KSH'!L$148*LOG('Grunddaten KSH'!$L$49) -> 40.16680413 | M173: =M$145+M$146*LOG('Grunddaten KSH'!$G$49)+M$147*LOG('Grunddaten KSH'!$F$49)+'Lw KSH'!M$148*LOG('Grunddaten KSH'!$L$49) -> 43.32874642 | N173: =N$145+N$146*LOG('Grunddaten KSH'!$G$49)+N$147*LOG('Grunddaten KSH'!$F$49)+'Lw KSH'!N$148*LOG('Grunddaten KSH'!$L$49) -> 50.1214459 | O173: =O$145+O$146*LOG('Grunddaten KSH'!$G$49)+O$147*LOG('Grunddaten KSH'!$F$49)+'Lw KSH'!O$148*LOG('Grunddaten KSH'!$L$49) -> 43.81247827 | P173: =P$145+P$146*LOG('Grunddaten KSH'!$G$49)+P$147*LOG('Grunddaten KSH'!$F$49)+'Lw KSH'!P$148*LOG('Grunddaten KSH'!$L$49) -> 39.22072102 | Q173: =Q$145+Q$146*LOG('Grunddaten KSH'!$G$49)+Q$147*LOG('Grunddaten KSH'!$F$49)+'Lw KSH'!Q$148*LOG('Grunddaten KSH'!$L$49) -> 43.33997866 | R173: =R$145+R$146*LOG('Grunddaten KSH'!$G$49)+R$147*LOG('Grunddaten KSH'!$F$49)+'Lw KSH'!R$148*LOG('Grunddaten KSH'!$L$49) -> 41.19448125 | S173: =S$145+S$146*LOG('Grunddaten KSH'!$G$49)+S$147*LOG('Grunddaten KSH'!$F$49)+'Lw KSH'!S$148*LOG('Grunddaten KSH'!$L$49) -> 37.85666547 | T173: =T$145+T$146*LOG('Grunddaten KSH'!$G$49)+T$147*LOG('Grunddaten KSH'!$F$49)+'Lw KSH'!T$148*LOG('Grunddaten KSH'!$L$49) -> 33.30016038 | U173: =U$145+U$146*LOG('Grunddaten KSH'!$G$49)+U$147*LOG('Grunddaten KSH'!$F$49)+'Lw KSH'!U$148*LOG('Grunddaten KSH'!$L$49) -> 23.31178999 | V173: =V$145+V$146*LOG('Grunddaten KSH'!$G$49)+V$147*LOG('Grunddaten KSH'!$F$49)+'Lw KSH'!V$148*LOG('Grunddaten KSH'!$L$49) -> 19.91992604 | W173: =10*LOG(10^(0.1*B173)+10^(0.1*C173)+10^(0.1*D173)+10^(0.1*E173)+10^(0.1*F173)+10^(0.1*G173)+10^(0.1*H173)+10^(0.1*I173)+10^(0.1*J173)+10^(0.1*K173)+10^(0.1*L173)+10^(0.1*M173)+10^(0.1*N173)+10^(0.1*O173)+10^(0.1*P173)+10^(0.1*Q173)+10^(0.1*R173)+10^(0.1*S173)+10^(0.1*T173)+10^(0.1*U173)+10^(0.1*V173)) -> 54.28198558
A174: KSHZUL6002 | B174: =B$145+B$146*LOG('Grunddaten KSH'!$G$49)+B$147*LOG('Grunddaten KSH'!$F$49)+'Lw KSH'!B$148*LOG('Grunddaten KSH'!$L$49) -> 23.07275535 | C174: =C$145+C$146*LOG('Grunddaten KSH'!$G$49)+C$147*LOG('Grunddaten KSH'!$F$49)+'Lw KSH'!C$148*LOG('Grunddaten KSH'!$L$49) -> 44.90886399 | D174: =D$145+D$146*LOG('Grunddaten KSH'!$G$49)+D$147*LOG('Grunddaten KSH'!$F$49)+'Lw KSH'!D$148*LOG('Grunddaten KSH'!$L$49) -> 41.60906911 | E174: =E$145+E$146*LOG('Grunddaten KSH'!$G$49)+E$147*LOG('Grunddaten KSH'!$F$49)+'Lw KSH'!E$148*LOG('Grunddaten KSH'!$L$49) -> 20.47090991 | F174: =F$145+F$146*LOG('Grunddaten KSH'!$G$49)+F$147*LOG('Grunddaten KSH'!$F$49)+'Lw KSH'!F$148*LOG('Grunddaten KSH'!$L$49) -> 32.78270673 | G174: =G$145+G$146*LOG('Grunddaten KSH'!$G$49)+G$147*LOG('Grunddaten KSH'!$F$49)+'Lw KSH'!G$148*LOG('Grunddaten KSH'!$L$49) -> 32.90185533 | H174: =H$145+H$146*LOG('Grunddaten KSH'!$G$49)+H$147*LOG('Grunddaten KSH'!$F$49)+'Lw KSH'!H$148*LOG('Grunddaten KSH'!$L$49) -> 37.71521985 | I174: =I$145+I$146*LOG('Grunddaten KSH'!$G$49)+I$147*LOG('Grunddaten KSH'!$F$49)+'Lw KSH'!I$148*LOG('Grunddaten KSH'!$L$49) -> 27.12572744 | J174: =J$145+J$146*LOG('Grunddaten KSH'!$G$49)+J$147*LOG('Grunddaten KSH'!$F$49)+'Lw KSH'!J$148*LOG('Grunddaten KSH'!$L$49) -> 28.08235382 | K174: =K$145+K$146*LOG('Grunddaten KSH'!$G$49)+K$147*LOG('Grunddaten KSH'!$F$49)+'Lw KSH'!K$148*LOG('Grunddaten KSH'!$L$49) -> 29.52017931 | L174: =L$145+L$146*LOG('Grunddaten KSH'!$G$49)+L$147*LOG('Grunddaten KSH'!$F$49)+'Lw KSH'!L$148*LOG('Grunddaten KSH'!$L$49) -> 40.16680413 | M174: =M$145+M$146*LOG('Grunddaten KSH'!$G$49)+M$147*LOG('Grunddaten KSH'!$F$49)+'Lw KSH'!M$148*LOG('Grunddaten KSH'!$L$49) -> 43.32874642 | N174: =N$145+N$146*LOG('Grunddaten KSH'!$G$49)+N$147*LOG('Grunddaten KSH'!$F$49)+'Lw KSH'!N$148*LOG('Grunddaten KSH'!$L$49) -> 50.1214459 | O174: =O$145+O$146*LOG('Grunddaten KSH'!$G$49)+O$147*LOG('Grunddaten KSH'!$F$49)+'Lw KSH'!O$148*LOG('Grunddaten KSH'!$L$49) -> 43.81247827 | P174: =P$145+P$146*LOG('Grunddaten KSH'!$G$49)+P$147*LOG('Grunddaten KSH'!$F$49)+'Lw KSH'!P$148*LOG('Grunddaten KSH'!$L$49) -> 39.22072102 | Q174: =Q$145+Q$146*LOG('Grunddaten KSH'!$G$49)+Q$147*LOG('Grunddaten KSH'!$F$49)+'Lw KSH'!Q$148*LOG('Grunddaten KSH'!$L$49) -> 43.33997866 | R174: =R$145+R$146*LOG('Grunddaten KSH'!$G$49)+R$147*LOG('Grunddaten KSH'!$F$49)+'Lw KSH'!R$148*LOG('Grunddaten KSH'!$L$49) -> 41.19448125 | S174: =S$145+S$146*LOG('Grunddaten KSH'!$G$49)+S$147*LOG('Grunddaten KSH'!$F$49)+'Lw KSH'!S$148*LOG('Grunddaten KSH'!$L$49) -> 37.85666547 | T174: =T$145+T$146*LOG('Grunddaten KSH'!$G$49)+T$147*LOG('Grunddaten KSH'!$F$49)+'Lw KSH'!T$148*LOG('Grunddaten KSH'!$L$49) -> 33.30016038 | U174: =U$145+U$146*LOG('Grunddaten KSH'!$G$49)+U$147*LOG('Grunddaten KSH'!$F$49)+'Lw KSH'!U$148*LOG('Grunddaten KSH'!$L$49) -> 23.31178999 | V174: =V$145+V$146*LOG('Grunddaten KSH'!$G$49)+V$147*LOG('Grunddaten KSH'!$F$49)+'Lw KSH'!V$148*LOG('Grunddaten KSH'!$L$49) -> 19.91992604 | W174: 54.28198558
A175: KSHZUL8002 | B175: =B$145+B$146*LOG('Grunddaten KSH'!$G$49)+B$147*LOG('Grunddaten KSH'!$F$49)+'Lw KSH'!B$148*LOG('Grunddaten KSH'!$L$49) -> 23.07275535 | C175: =C$145+C$146*LOG('Grunddaten KSH'!$G$49)+C$147*LOG('Grunddaten KSH'!$F$49)+'Lw KSH'!C$148*LOG('Grunddaten KSH'!$L$49) -> 44.90886399 | D175: =D$145+D$146*LOG('Grunddaten KSH'!$G$49)+D$147*LOG('Grunddaten KSH'!$F$49)+'Lw KSH'!D$148*LOG('Grunddaten KSH'!$L$49) -> 41.60906911 | E175: =E$145+E$146*LOG('Grunddaten KSH'!$G$49)+E$147*LOG('Grunddaten KSH'!$F$49)+'Lw KSH'!E$148*LOG('Grunddaten KSH'!$L$49) -> 20.47090991 | F175: =F$145+F$146*LOG('Grunddaten KSH'!$G$49)+F$147*LOG('Grunddaten KSH'!$F$49)+'Lw KSH'!F$148*LOG('Grunddaten KSH'!$L$49) -> 32.78270673 | G175: =G$145+G$146*LOG('Grunddaten KSH'!$G$49)+G$147*LOG('Grunddaten KSH'!$F$49)+'Lw KSH'!G$148*LOG('Grunddaten KSH'!$L$49) -> 32.90185533 | H175: =H$145+H$146*LOG('Grunddaten KSH'!$G$49)+H$147*LOG('Grunddaten KSH'!$F$49)+'Lw KSH'!H$148*LOG('Grunddaten KSH'!$L$49) -> 37.71521985 | I175: =I$145+I$146*LOG('Grunddaten KSH'!$G$49)+I$147*LOG('Grunddaten KSH'!$F$49)+'Lw KSH'!I$148*LOG('Grunddaten KSH'!$L$49) -> 27.12572744 | J175: =J$145+J$146*LOG('Grunddaten KSH'!$G$49)+J$147*LOG('Grunddaten KSH'!$F$49)+'Lw KSH'!J$148*LOG('Grunddaten KSH'!$L$49) -> 28.08235382 | K175: =K$145+K$146*LOG('Grunddaten KSH'!$G$49)+K$147*LOG('Grunddaten KSH'!$F$49)+'Lw KSH'!K$148*LOG('Grunddaten KSH'!$L$49) -> 29.52017931 | L175: =L$145+L$146*LOG('Grunddaten KSH'!$G$49)+L$147*LOG('Grunddaten KSH'!$F$49)+'Lw KSH'!L$148*LOG('Grunddaten KSH'!$L$49) -> 40.16680413 | M175: =M$145+M$146*LOG('Grunddaten KSH'!$G$49)+M$147*LOG('Grunddaten KSH'!$F$49)+'Lw KSH'!M$148*LOG('Grunddaten KSH'!$L$49) -> 43.32874642 | N175: =N$145+N$146*LOG('Grunddaten KSH'!$G$49)+N$147*LOG('Grunddaten KSH'!$F$49)+'Lw KSH'!N$148*LOG('Grunddaten KSH'!$L$49) -> 50.1214459 | O175: =O$145+O$146*LOG('Grunddaten KSH'!$G$49)+O$147*LOG('Grunddaten KSH'!$F$49)+'Lw KSH'!O$148*LOG('Grunddaten KSH'!$L$49) -> 43.81247827 | P175: =P$145+P$146*LOG('Grunddaten KSH'!$G$49)+P$147*LOG('Grunddaten KSH'!$F$49)+'Lw KSH'!P$148*LOG('Grunddaten KSH'!$L$49) -> 39.22072102 | Q175: =Q$145+Q$146*LOG('Grunddaten KSH'!$G$49)+Q$147*LOG('Grunddaten KSH'!$F$49)+'Lw KSH'!Q$148*LOG('Grunddaten KSH'!$L$49) -> 43.33997866 | R175: =R$145+R$146*LOG('Grunddaten KSH'!$G$49)+R$147*LOG('Grunddaten KSH'!$F$49)+'Lw KSH'!R$148*LOG('Grunddaten KSH'!$L$49) -> 41.19448125 | S175: =S$145+S$146*LOG('Grunddaten KSH'!$G$49)+S$147*LOG('Grunddaten KSH'!$F$49)+'Lw KSH'!S$148*LOG('Grunddaten KSH'!$L$49) -> 37.85666547 | T175: =T$145+T$146*LOG('Grunddaten KSH'!$G$49)+T$147*LOG('Grunddaten KSH'!$F$49)+'Lw KSH'!T$148*LOG('Grunddaten KSH'!$L$49) -> 33.30016038 | U175: =U$145+U$146*LOG('Grunddaten KSH'!$G$49)+U$147*LOG('Grunddaten KSH'!$F$49)+'Lw KSH'!U$148*LOG('Grunddaten KSH'!$L$49) -> 23.31178999 | V175: =V$145+V$146*LOG('Grunddaten KSH'!$G$49)+V$147*LOG('Grunddaten KSH'!$F$49)+'Lw KSH'!V$148*LOG('Grunddaten KSH'!$L$49) -> 19.91992604 | W175: 54.28198558
A176: KSHZUL10002 | B176: =B$145+B$146*LOG('Grunddaten KSH'!$G$49)+B$147*LOG('Grunddaten KSH'!$F$49)+'Lw KSH'!B$148*LOG('Grunddaten KSH'!$L$49) -> 23.07275535 | C176: =C$145+C$146*LOG('Grunddaten KSH'!$G$49)+C$147*LOG('Grunddaten KSH'!$F$49)+'Lw KSH'!C$148*LOG('Grunddaten KSH'!$L$49) -> 44.90886399 | D176: =D$145+D$146*LOG('Grunddaten KSH'!$G$49)+D$147*LOG('Grunddaten KSH'!$F$49)+'Lw KSH'!D$148*LOG('Grunddaten KSH'!$L$49) -> 41.60906911 | E176: =E$145+E$146*LOG('Grunddaten KSH'!$G$49)+E$147*LOG('Grunddaten KSH'!$F$49)+'Lw KSH'!E$148*LOG('Grunddaten KSH'!$L$49) -> 20.47090991 | F176: =F$145+F$146*LOG('Grunddaten KSH'!$G$49)+F$147*LOG('Grunddaten KSH'!$F$49)+'Lw KSH'!F$148*LOG('Grunddaten KSH'!$L$49) -> 32.78270673 | G176: =G$145+G$146*LOG('Grunddaten KSH'!$G$49)+G$147*LOG('Grunddaten KSH'!$F$49)+'Lw KSH'!G$148*LOG('Grunddaten KSH'!$L$49) -> 32.90185533 | H176: =H$145+H$146*LOG('Grunddaten KSH'!$G$49)+H$147*LOG('Grunddaten KSH'!$F$49)+'Lw KSH'!H$148*LOG('Grunddaten KSH'!$L$49) -> 37.71521985 | I176: =I$145+I$146*LOG('Grunddaten KSH'!$G$49)+I$147*LOG('Grunddaten KSH'!$F$49)+'Lw KSH'!I$148*LOG('Grunddaten KSH'!$L$49) -> 27.12572744 | J176: =J$145+J$146*LOG('Grunddaten KSH'!$G$49)+J$147*LOG('Grunddaten KSH'!$F$49)+'Lw KSH'!J$148*LOG('Grunddaten KSH'!$L$49) -> 28.08235382 | K176: =K$145+K$146*LOG('Grunddaten KSH'!$G$49)+K$147*LOG('Grunddaten KSH'!$F$49)+'Lw KSH'!K$148*LOG('Grunddaten KSH'!$L$49) -> 29.52017931 | L176: =L$145+L$146*LOG('Grunddaten KSH'!$G$49)+L$147*LOG('Grunddaten KSH'!$F$49)+'Lw KSH'!L$148*LOG('Grunddaten KSH'!$L$49) -> 40.16680413 | M176: =M$145+M$146*LOG('Grunddaten KSH'!$G$49)+M$147*LOG('Grunddaten KSH'!$F$49)+'Lw KSH'!M$148*LOG('Grunddaten KSH'!$L$49) -> 43.32874642 | N176: =N$145+N$146*LOG('Grunddaten KSH'!$G$49)+N$147*LOG('Grunddaten KSH'!$F$49)+'Lw KSH'!N$148*LOG('Grunddaten KSH'!$L$49) -> 50.1214459 | O176: =O$145+O$146*LOG('Grunddaten KSH'!$G$49)+O$147*LOG('Grunddaten KSH'!$F$49)+'Lw KSH'!O$148*LOG('Grunddaten KSH'!$L$49) -> 43.81247827 | P176: =P$145+P$146*LOG('Grunddaten KSH'!$G$49)+P$147*LOG('Grunddaten KSH'!$F$49)+'Lw KSH'!P$148*LOG('Grunddaten KSH'!$L$49) -> 39.22072102 | Q176: =Q$145+Q$146*LOG('Grunddaten KSH'!$G$49)+Q$147*LOG('Grunddaten KSH'!$F$49)+'Lw KSH'!Q$148*LOG('Grunddaten KSH'!$L$49) -> 43.33997866 | R176: =R$145+R$146*LOG('Grunddaten KSH'!$G$49)+R$147*LOG('Grunddaten KSH'!$F$49)+'Lw KSH'!R$148*LOG('Grunddaten KSH'!$L$49) -> 41.19448125 | S176: =S$145+S$146*LOG('Grunddaten KSH'!$G$49)+S$147*LOG('Grunddaten KSH'!$F$49)+'Lw KSH'!S$148*LOG('Grunddaten KSH'!$L$49) -> 37.85666547 | T176: =T$145+T$146*LOG('Grunddaten KSH'!$G$49)+T$147*LOG('Grunddaten KSH'!$F$49)+'Lw KSH'!T$148*LOG('Grunddaten KSH'!$L$49) -> 33.30016038 | U176: =U$145+U$146*LOG('Grunddaten KSH'!$G$49)+U$147*LOG('Grunddaten KSH'!$F$49)+'Lw KSH'!U$148*LOG('Grunddaten KSH'!$L$49) -> 23.31178999 | V176: =V$145+V$146*LOG('Grunddaten KSH'!$G$49)+V$147*LOG('Grunddaten KSH'!$F$49)+'Lw KSH'!V$148*LOG('Grunddaten KSH'!$L$49) -> 19.91992604 | W176: 54.28198558
A177: KSHZUL12002 | B177: =B$145+B$146*LOG('Grunddaten KSH'!$G$49)+B$147*LOG('Grunddaten KSH'!$F$49)+'Lw KSH'!B$148*LOG('Grunddaten KSH'!$L$49) -> 23.07275535 | C177: =C$145+C$146*LOG('Grunddaten KSH'!$G$49)+C$147*LOG('Grunddaten KSH'!$F$49)+'Lw KSH'!C$148*LOG('Grunddaten KSH'!$L$49) -> 44.90886399 | D177: =D$145+D$146*LOG('Grunddaten KSH'!$G$49)+D$147*LOG('Grunddaten KSH'!$F$49)+'Lw KSH'!D$148*LOG('Grunddaten KSH'!$L$49) -> 41.60906911 | E177: =E$145+E$146*LOG('Grunddaten KSH'!$G$49)+E$147*LOG('Grunddaten KSH'!$F$49)+'Lw KSH'!E$148*LOG('Grunddaten KSH'!$L$49) -> 20.47090991 | F177: =F$145+F$146*LOG('Grunddaten KSH'!$G$49)+F$147*LOG('Grunddaten KSH'!$F$49)+'Lw KSH'!F$148*LOG('Grunddaten KSH'!$L$49) -> 32.78270673 | G177: =G$145+G$146*LOG('Grunddaten KSH'!$G$49)+G$147*LOG('Grunddaten KSH'!$F$49)+'Lw KSH'!G$148*LOG('Grunddaten KSH'!$L$49) -> 32.90185533 | H177: =H$145+H$146*LOG('Grunddaten KSH'!$G$49)+H$147*LOG('Grunddaten KSH'!$F$49)+'Lw KSH'!H$148*LOG('Grunddaten KSH'!$L$49) -> 37.71521985 | I177: =I$145+I$146*LOG('Grunddaten KSH'!$G$49)+I$147*LOG('Grunddaten KSH'!$F$49)+'Lw KSH'!I$148*LOG('Grunddaten KSH'!$L$49) -> 27.12572744 | J177: =J$145+J$146*LOG('Grunddaten KSH'!$G$49)+J$147*LOG('Grunddaten KSH'!$F$49)+'Lw KSH'!J$148*LOG('Grunddaten KSH'!$L$49) -> 28.08235382 | K177: =K$145+K$146*LOG('Grunddaten KSH'!$G$49)+K$147*LOG('Grunddaten KSH'!$F$49)+'Lw KSH'!K$148*LOG('Grunddaten KSH'!$L$49) -> 29.52017931 | L177: =L$145+L$146*LOG('Grunddaten KSH'!$G$49)+L$147*LOG('Grunddaten KSH'!$F$49)+'Lw KSH'!L$148*LOG('Grunddaten KSH'!$L$49) -> 40.16680413 | M177: =M$145+M$146*LOG('Grunddaten KSH'!$G$49)+M$147*LOG('Grunddaten KSH'!$F$49)+'Lw KSH'!M$148*LOG('Grunddaten KSH'!$L$49) -> 43.32874642 | N177: =N$145+N$146*LOG('Grunddaten KSH'!$G$49)+N$147*LOG('Grunddaten KSH'!$F$49)+'Lw KSH'!N$148*LOG('Grunddaten KSH'!$L$49) -> 50.1214459 | O177: =O$145+O$146*LOG('Grunddaten KSH'!$G$49)+O$147*LOG('Grunddaten KSH'!$F$49)+'Lw KSH'!O$148*LOG('Grunddaten KSH'!$L$49) -> 43.81247827 | P177: =P$145+P$146*LOG('Grunddaten KSH'!$G$49)+P$147*LOG('Grunddaten KSH'!$F$49)+'Lw KSH'!P$148*LOG('Grunddaten KSH'!$L$49) -> 39.22072102 | Q177: =Q$145+Q$146*LOG('Grunddaten KSH'!$G$49)+Q$147*LOG('Grunddaten KSH'!$F$49)+'Lw KSH'!Q$148*LOG('Grunddaten KSH'!$L$49) -> 43.33997866 | R177: =R$145+R$146*LOG('Grunddaten KSH'!$G$49)+R$147*LOG('Grunddaten KSH'!$F$49)+'Lw KSH'!R$148*LOG('Grunddaten KSH'!$L$49) -> 41.19448125 | S177: =S$145+S$146*LOG('Grunddaten KSH'!$G$49)+S$147*LOG('Grunddaten KSH'!$F$49)+'Lw KSH'!S$148*LOG('Grunddaten KSH'!$L$49) -> 37.85666547 | T177: =T$145+T$146*LOG('Grunddaten KSH'!$G$49)+T$147*LOG('Grunddaten KSH'!$F$49)+'Lw KSH'!T$148*LOG('Grunddaten KSH'!$L$49) -> 33.30016038 | U177: =U$145+U$146*LOG('Grunddaten KSH'!$G$49)+U$147*LOG('Grunddaten KSH'!$F$49)+'Lw KSH'!U$148*LOG('Grunddaten KSH'!$L$49) -> 23.31178999 | V177: =V$145+V$146*LOG('Grunddaten KSH'!$G$49)+V$147*LOG('Grunddaten KSH'!$F$49)+'Lw KSH'!V$148*LOG('Grunddaten KSH'!$L$49) -> 19.91992604 | W177: 54.28198558
A178: KSHABLD5002 | B178: =B$149+B$150*LOG('Grunddaten KSH'!$H$50)+B$151*LOG('Grunddaten KSH'!$F$49)+'Lw KSH'!B$152*LOG('Grunddaten KSH'!$M$50) -> 21.46589194 | C178: =C$149+C$150*LOG('Grunddaten KSH'!$H$50)+C$151*LOG('Grunddaten KSH'!$F$49)+'Lw KSH'!C$152*LOG('Grunddaten KSH'!$M$50) -> 18.95506173 | D178: =D$149+D$150*LOG('Grunddaten KSH'!$H$50)+D$151*LOG('Grunddaten KSH'!$F$49)+'Lw KSH'!D$152*LOG('Grunddaten KSH'!$M$50) -> 19.18184821 | E178: =E$149+E$150*LOG('Grunddaten KSH'!$H$50)+E$151*LOG('Grunddaten KSH'!$F$49)+'Lw KSH'!E$152*LOG('Grunddaten KSH'!$M$50) -> 21.22931075 | F178: =F$149+F$150*LOG('Grunddaten KSH'!$H$50)+F$151*LOG('Grunddaten KSH'!$F$49)+'Lw KSH'!F$152*LOG('Grunddaten KSH'!$M$50) -> 26.38967848 | G178: =G$149+G$150*LOG('Grunddaten KSH'!$H$50)+G$151*LOG('Grunddaten KSH'!$F$49)+'Lw KSH'!G$152*LOG('Grunddaten KSH'!$M$50) -> 25.34009813 | H178: =H$149+H$150*LOG('Grunddaten KSH'!$H$50)+H$151*LOG('Grunddaten KSH'!$F$49)+'Lw KSH'!H$152*LOG('Grunddaten KSH'!$M$50) -> 14.87153315 | I178: =I$149+I$150*LOG('Grunddaten KSH'!$H$50)+I$151*LOG('Grunddaten KSH'!$F$49)+'Lw KSH'!I$152*LOG('Grunddaten KSH'!$M$50) -> 13.62016486 | J178: =J$149+J$150*LOG('Grunddaten KSH'!$H$50)+J$151*LOG('Grunddaten KSH'!$F$49)+'Lw KSH'!J$152*LOG('Grunddaten KSH'!$M$50) -> 19.49481168 | K178: =K$149+K$150*LOG('Grunddaten KSH'!$H$50)+K$151*LOG('Grunddaten KSH'!$F$49)+'Lw KSH'!K$152*LOG('Grunddaten KSH'!$M$50) -> 20.14604688 | L178: =L$149+L$150*LOG('Grunddaten KSH'!$H$50)+L$151*LOG('Grunddaten KSH'!$F$49)+'Lw KSH'!L$152*LOG('Grunddaten KSH'!$M$50) -> 17.43994472 | M178: =M$149+M$150*LOG('Grunddaten KSH'!$H$50)+M$151*LOG('Grunddaten KSH'!$F$49)+'Lw KSH'!M$152*LOG('Grunddaten KSH'!$M$50) -> 13.07464791 | N178: =N$149+N$150*LOG('Grunddaten KSH'!$H$50)+N$151*LOG('Grunddaten KSH'!$F$49)+'Lw KSH'!N$152*LOG('Grunddaten KSH'!$M$50) -> 11.89783098 | O178: =O$149+O$150*LOG('Grunddaten KSH'!$H$50)+O$151*LOG('Grunddaten KSH'!$F$49)+'Lw KSH'!O$152*LOG('Grunddaten KSH'!$M$50) -> 9.882936009 | P178: =P$149+P$150*LOG('Grunddaten KSH'!$H$50)+P$151*LOG('Grunddaten KSH'!$F$49)+'Lw KSH'!P$152*LOG('Grunddaten KSH'!$M$50) -> 11.67296823 | Q178: =Q$149+Q$150*LOG('Grunddaten KSH'!$H$50)+Q$151*LOG('Grunddaten KSH'!$F$49)+'Lw KSH'!Q$152*LOG('Grunddaten KSH'!$M$50) -> 11.30555417 | R178: =R$149+R$150*LOG('Grunddaten KSH'!$H$50)+R$151*LOG('Grunddaten KSH'!$F$49)+'Lw KSH'!R$152*LOG('Grunddaten KSH'!$M$50) -> 13.36801514 | S178: =S$149+S$150*LOG('Grunddaten KSH'!$H$50)+S$151*LOG('Grunddaten KSH'!$F$49)+'Lw KSH'!S$152*LOG('Grunddaten KSH'!$M$50) -> 14.88664647 | T178: =T$149+T$150*LOG('Grunddaten KSH'!$H$50)+T$151*LOG('Grunddaten KSH'!$F$49)+'Lw KSH'!T$152*LOG('Grunddaten KSH'!$M$50) -> 16.8266724 | U178: =U$149+U$150*LOG('Grunddaten KSH'!$H$50)+U$151*LOG('Grunddaten KSH'!$F$49)+'Lw KSH'!U$152*LOG('Grunddaten KSH'!$M$50) -> 16.61406946 | V178: =V$149+V$150*LOG('Grunddaten KSH'!$H$50)+V$151*LOG('Grunddaten KSH'!$F$49)+'Lw KSH'!V$152*LOG('Grunddaten KSH'!$M$50) -> 20.64633768 | W178: 32.6710172
A179: KSHABLD6002 | B179: =B$149+B$150*LOG('Grunddaten KSH'!$H$50)+B$151*LOG('Grunddaten KSH'!$F$49)+'Lw KSH'!B$152*LOG('Grunddaten KSH'!$M$50) -> 21.46589194 | C179: =C$149+C$150*LOG('Grunddaten KSH'!$H$50)+C$151*LOG('Grunddaten KSH'!$F$49)+'Lw KSH'!C$152*LOG('Grunddaten KSH'!$M$50) -> 18.95506173 | D179: =D$149+D$150*LOG('Grunddaten KSH'!$H$50)+D$151*LOG('Grunddaten KSH'!$F$49)+'Lw KSH'!D$152*LOG('Grunddaten KSH'!$M$50) -> 19.18184821 | E179: =E$149+E$150*LOG('Grunddaten KSH'!$H$50)+E$151*LOG('Grunddaten KSH'!$F$49)+'Lw KSH'!E$152*LOG('Grunddaten KSH'!$M$50) -> 21.22931075 | F179: =F$149+F$150*LOG('Grunddaten KSH'!$H$50)+F$151*LOG('Grunddaten KSH'!$F$49)+'Lw KSH'!F$152*LOG('Grunddaten KSH'!$M$50) -> 26.38967848 | G179: =G$149+G$150*LOG('Grunddaten KSH'!$H$50)+G$151*LOG('Grunddaten KSH'!$F$49)+'Lw KSH'!G$152*LOG('Grunddaten KSH'!$M$50) -> 25.34009813 | H179: =H$149+H$150*LOG('Grunddaten KSH'!$H$50)+H$151*LOG('Grunddaten KSH'!$F$49)+'Lw KSH'!H$152*LOG('Grunddaten KSH'!$M$50) -> 14.87153315 | I179: =I$149+I$150*LOG('Grunddaten KSH'!$H$50)+I$151*LOG('Grunddaten KSH'!$F$49)+'Lw KSH'!I$152*LOG('Grunddaten KSH'!$M$50) -> 13.62016486 | J179: =J$149+J$150*LOG('Grunddaten KSH'!$H$50)+J$151*LOG('Grunddaten KSH'!$F$49)+'Lw KSH'!J$152*LOG('Grunddaten KSH'!$M$50) -> 19.49481168 | K179: =K$149+K$150*LOG('Grunddaten KSH'!$H$50)+K$151*LOG('Grunddaten KSH'!$F$49)+'Lw KSH'!K$152*LOG('Grunddaten KSH'!$M$50) -> 20.14604688 | L179: =L$149+L$150*LOG('Grunddaten KSH'!$H$50)+L$151*LOG('Grunddaten KSH'!$F$49)+'Lw KSH'!L$152*LOG('Grunddaten KSH'!$M$50) -> 17.43994472 | M179: =M$149+M$150*LOG('Grunddaten KSH'!$H$50)+M$151*LOG('Grunddaten KSH'!$F$49)+'Lw KSH'!M$152*LOG('Grunddaten KSH'!$M$50) -> 13.07464791 | N179: =N$149+N$150*LOG('Grunddaten KSH'!$H$50)+N$151*LOG('Grunddaten KSH'!$F$49)+'Lw KSH'!N$152*LOG('Grunddaten KSH'!$M$50) -> 11.89783098 | O179: =O$149+O$150*LOG('Grunddaten KSH'!$H$50)+O$151*LOG('Grunddaten KSH'!$F$49)+'Lw KSH'!O$152*LOG('Grunddaten KSH'!$M$50) -> 9.882936009 | P179: =P$149+P$150*LOG('Grunddaten KSH'!$H$50)+P$151*LOG('Grunddaten KSH'!$F$49)+'Lw KSH'!P$152*LOG('Grunddaten KSH'!$M$50) -> 11.67296823 | Q179: =Q$149+Q$150*LOG('Grunddaten KSH'!$H$50)+Q$151*LOG('Grunddaten KSH'!$F$49)+'Lw KSH'!Q$152*LOG('Grunddaten KSH'!$M$50) -> 11.30555417 | R179: =R$149+R$150*LOG('Grunddaten KSH'!$H$50)+R$151*LOG('Grunddaten KSH'!$F$49)+'Lw KSH'!R$152*LOG('Grunddaten KSH'!$M$50) -> 13.36801514 | S179: =S$149+S$150*LOG('Grunddaten KSH'!$H$50)+S$151*LOG('Grunddaten KSH'!$F$49)+'Lw KSH'!S$152*LOG('Grunddaten KSH'!$M$50) -> 14.88664647 | T179: =T$149+T$150*LOG('Grunddaten KSH'!$H$50)+T$151*LOG('Grunddaten KSH'!$F$49)+'Lw KSH'!T$152*LOG('Grunddaten KSH'!$M$50) -> 16.8266724 | U179: =U$149+U$150*LOG('Grunddaten KSH'!$H$50)+U$151*LOG('Grunddaten KSH'!$F$49)+'Lw KSH'!U$152*LOG('Grunddaten KSH'!$M$50) -> 16.61406946 | V179: =V$149+V$150*LOG('Grunddaten KSH'!$H$50)+V$151*LOG('Grunddaten KSH'!$F$49)+'Lw KSH'!V$152*LOG('Grunddaten KSH'!$M$50) -> 20.64633768 | W179: 32.6710172
A180: KSHABLD8002 | B180: =B$149+B$150*LOG('Grunddaten KSH'!$H$50)+B$151*LOG('Grunddaten KSH'!$F$49)+'Lw KSH'!B$152*LOG('Grunddaten KSH'!$M$50) -> 21.46589194 | C180: =C$149+C$150*LOG('Grunddaten KSH'!$H$50)+C$151*LOG('Grunddaten KSH'!$F$49)+'Lw KSH'!C$152*LOG('Grunddaten KSH'!$M$50) -> 18.95506173 | D180: =D$149+D$150*LOG('Grunddaten KSH'!$H$50)+D$151*LOG('Grunddaten KSH'!$F$49)+'Lw KSH'!D$152*LOG('Grunddaten KSH'!$M$50) -> 19.18184821 | E180: =E$149+E$150*LOG('Grunddaten KSH'!$H$50)+E$151*LOG('Grunddaten KSH'!$F$49)+'Lw KSH'!E$152*LOG('Grunddaten KSH'!$M$50) -> 21.22931075 | F180: =F$149+F$150*LOG('Grunddaten KSH'!$H$50)+F$151*LOG('Grunddaten KSH'!$F$49)+'Lw KSH'!F$152*LOG('Grunddaten KSH'!$M$50) -> 26.38967848 | G180: =G$149+G$150*LOG('Grunddaten KSH'!$H$50)+G$151*LOG('Grunddaten KSH'!$F$49)+'Lw KSH'!G$152*LOG('Grunddaten KSH'!$M$50) -> 25.34009813 | H180: =H$149+H$150*LOG('Grunddaten KSH'!$H$50)+H$151*LOG('Grunddaten KSH'!$F$49)+'Lw KSH'!H$152*LOG('Grunddaten KSH'!$M$50) -> 14.87153315 | I180: =I$149+I$150*LOG('Grunddaten KSH'!$H$50)+I$151*LOG('Grunddaten KSH'!$F$49)+'Lw KSH'!I$152*LOG('Grunddaten KSH'!$M$50) -> 13.62016486 | J180: =J$149+J$150*LOG('Grunddaten KSH'!$H$50)+J$151*LOG('Grunddaten KSH'!$F$49)+'Lw KSH'!J$152*LOG('Grunddaten KSH'!$M$50) -> 19.49481168 | K180: =K$149+K$150*LOG('Grunddaten KSH'!$H$50)+K$151*LOG('Grunddaten KSH'!$F$49)+'Lw KSH'!K$152*LOG('Grunddaten KSH'!$M$50) -> 20.14604688 | L180: =L$149+L$150*LOG('Grunddaten KSH'!$H$50)+L$151*LOG('Grunddaten KSH'!$F$49)+'Lw KSH'!L$152*LOG('Grunddaten KSH'!$M$50) -> 17.43994472 | M180: =M$149+M$150*LOG('Grunddaten KSH'!$H$50)+M$151*LOG('Grunddaten KSH'!$F$49)+'Lw KSH'!M$152*LOG('Grunddaten KSH'!$M$50) -> 13.07464791 | N180: =N$149+N$150*LOG('Grunddaten KSH'!$H$50)+N$151*LOG('Grunddaten KSH'!$F$49)+'Lw KSH'!N$152*LOG('Grunddaten KSH'!$M$50) -> 11.89783098 | O180: =O$149+O$150*LOG('Grunddaten KSH'!$H$50)+O$151*LOG('Grunddaten KSH'!$F$49)+'Lw KSH'!O$152*LOG('Grunddaten KSH'!$M$50) -> 9.882936009 | P180: =P$149+P$150*LOG('Grunddaten KSH'!$H$50)+P$151*LOG('Grunddaten KSH'!$F$49)+'Lw KSH'!P$152*LOG('Grunddaten KSH'!$M$50) -> 11.67296823 | Q180: =Q$149+Q$150*LOG('Grunddaten KSH'!$H$50)+Q$151*LOG('Grunddaten KSH'!$F$49)+'Lw KSH'!Q$152*LOG('Grunddaten KSH'!$M$50) -> 11.30555417 | R180: =R$149+R$150*LOG('Grunddaten KSH'!$H$50)+R$151*LOG('Grunddaten KSH'!$F$49)+'Lw KSH'!R$152*LOG('Grunddaten KSH'!$M$50) -> 13.36801514 | S180: =S$149+S$150*LOG('Grunddaten KSH'!$H$50)+S$151*LOG('Grunddaten KSH'!$F$49)+'Lw KSH'!S$152*LOG('Grunddaten KSH'!$M$50) -> 14.88664647 | T180: =T$149+T$150*LOG('Grunddaten KSH'!$H$50)+T$151*LOG('Grunddaten KSH'!$F$49)+'Lw KSH'!T$152*LOG('Grunddaten KSH'!$M$50) -> 16.8266724 | U180: =U$149+U$150*LOG('Grunddaten KSH'!$H$50)+U$151*LOG('Grunddaten KSH'!$F$49)+'Lw KSH'!U$152*LOG('Grunddaten KSH'!$M$50) -> 16.61406946 | V180: =V$149+V$150*LOG('Grunddaten KSH'!$H$50)+V$151*LOG('Grunddaten KSH'!$F$49)+'Lw KSH'!V$152*LOG('Grunddaten KSH'!$M$50) -> 20.64633768 | W180: 32.6710172
A181: KSHABLD10002 | B181: =B$149+B$150*LOG('Grunddaten KSH'!$H$50)+B$151*LOG('Grunddaten KSH'!$F$49)+'Lw KSH'!B$152*LOG('Grunddaten KSH'!$M$50) -> 21.46589194 | C181: =C$149+C$150*LOG('Grunddaten KSH'!$H$50)+C$151*LOG('Grunddaten KSH'!$F$49)+'Lw KSH'!C$152*LOG('Grunddaten KSH'!$M$50) -> 18.95506173 | D181: =D$149+D$150*LOG('Grunddaten KSH'!$H$50)+D$151*LOG('Grunddaten KSH'!$F$49)+'Lw KSH'!D$152*LOG('Grunddaten KSH'!$M$50) -> 19.18184821 | E181: =E$149+E$150*LOG('Grunddaten KSH'!$H$50)+E$151*LOG('Grunddaten KSH'!$F$49)+'Lw KSH'!E$152*LOG('Grunddaten KSH'!$M$50) -> 21.22931075 | F181: =F$149+F$150*LOG('Grunddaten KSH'!$H$50)+F$151*LOG('Grunddaten KSH'!$F$49)+'Lw KSH'!F$152*LOG('Grunddaten KSH'!$M$50) -> 26.38967848 | G181: =G$149+G$150*LOG('Grunddaten KSH'!$H$50)+G$151*LOG('Grunddaten KSH'!$F$49)+'Lw KSH'!G$152*LOG('Grunddaten KSH'!$M$50) -> 25.34009813 | H181: =H$149+H$150*LOG('Grunddaten KSH'!$H$50)+H$151*LOG('Grunddaten KSH'!$F$49)+'Lw KSH'!H$152*LOG('Grunddaten KSH'!$M$50) -> 14.87153315 | I181: =I$149+I$150*LOG('Grunddaten KSH'!$H$50)+I$151*LOG('Grunddaten KSH'!$F$49)+'Lw KSH'!I$152*LOG('Grunddaten KSH'!$M$50) -> 13.62016486 | J181: =J$149+J$150*LOG('Grunddaten KSH'!$H$50)+J$151*LOG('Grunddaten KSH'!$F$49)+'Lw KSH'!J$152*LOG('Grunddaten KSH'!$M$50) -> 19.49481168 | K181: =K$149+K$150*LOG('Grunddaten KSH'!$H$50)+K$151*LOG('Grunddaten KSH'!$F$49)+'Lw KSH'!K$152*LOG('Grunddaten KSH'!$M$50) -> 20.14604688 | L181: =L$149+L$150*LOG('Grunddaten KSH'!$H$50)+L$151*LOG('Grunddaten KSH'!$F$49)+'Lw KSH'!L$152*LOG('Grunddaten KSH'!$M$50) -> 17.43994472 | M181: =M$149+M$150*LOG('Grunddaten KSH'!$H$50)+M$151*LOG('Grunddaten KSH'!$F$49)+'Lw KSH'!M$152*LOG('Grunddaten KSH'!$M$50) -> 13.07464791 | N181: =N$149+N$150*LOG('Grunddaten KSH'!$H$50)+N$151*LOG('Grunddaten KSH'!$F$49)+'Lw KSH'!N$152*LOG('Grunddaten KSH'!$M$50) -> 11.89783098 | O181: =O$149+O$150*LOG('Grunddaten KSH'!$H$50)+O$151*LOG('Grunddaten KSH'!$F$49)+'Lw KSH'!O$152*LOG('Grunddaten KSH'!$M$50) -> 9.882936009 | P181: =P$149+P$150*LOG('Grunddaten KSH'!$H$50)+P$151*LOG('Grunddaten KSH'!$F$49)+'Lw KSH'!P$152*LOG('Grunddaten KSH'!$M$50) -> 11.67296823 | Q181: =Q$149+Q$150*LOG('Grunddaten KSH'!$H$50)+Q$151*LOG('Grunddaten KSH'!$F$49)+'Lw KSH'!Q$152*LOG('Grunddaten KSH'!$M$50) -> 11.30555417 | R181: =R$149+R$150*LOG('Grunddaten KSH'!$H$50)+R$151*LOG('Grunddaten KSH'!$F$49)+'Lw KSH'!R$152*LOG('Grunddaten KSH'!$M$50) -> 13.36801514 | S181: =S$149+S$150*LOG('Grunddaten KSH'!$H$50)+S$151*LOG('Grunddaten KSH'!$F$49)+'Lw KSH'!S$152*LOG('Grunddaten KSH'!$M$50) -> 14.88664647 | T181: =T$149+T$150*LOG('Grunddaten KSH'!$H$50)+T$151*LOG('Grunddaten KSH'!$F$49)+'Lw KSH'!T$152*LOG('Grunddaten KSH'!$M$50) -> 16.8266724 | U181: =U$149+U$150*LOG('Grunddaten KSH'!$H$50)+U$151*LOG('Grunddaten KSH'!$F$49)+'Lw KSH'!U$152*LOG('Grunddaten KSH'!$M$50) -> 16.61406946 | V181: =V$149+V$150*LOG('Grunddaten KSH'!$H$50)+V$151*LOG('Grunddaten KSH'!$F$49)+'Lw KSH'!V$152*LOG('Grunddaten KSH'!$M$50) -> 20.64633768 | W181: 32.6710172
A182: KSHABLD12002 | B182: =B$149+B$150*LOG('Grunddaten KSH'!$H$50)+B$151*LOG('Grunddaten KSH'!$F$49)+'Lw KSH'!B$152*LOG('Grunddaten KSH'!$M$50) -> 21.46589194 | C182: =C$149+C$150*LOG('Grunddaten KSH'!$H$50)+C$151*LOG('Grunddaten KSH'!$F$49)+'Lw KSH'!C$152*LOG('Grunddaten KSH'!$M$50) -> 18.95506173 | D182: =D$149+D$150*LOG('Grunddaten KSH'!$H$50)+D$151*LOG('Grunddaten KSH'!$F$49)+'Lw KSH'!D$152*LOG('Grunddaten KSH'!$M$50) -> 19.18184821 | E182: =E$149+E$150*LOG('Grunddaten KSH'!$H$50)+E$151*LOG('Grunddaten KSH'!$F$49)+'Lw KSH'!E$152*LOG('Grunddaten KSH'!$M$50) -> 21.22931075 | F182: =F$149+F$150*LOG('Grunddaten KSH'!$H$50)+F$151*LOG('Grunddaten KSH'!$F$49)+'Lw KSH'!F$152*LOG('Grunddaten KSH'!$M$50) -> 26.38967848 | G182: =G$149+G$150*LOG('Grunddaten KSH'!$H$50)+G$151*LOG('Grunddaten KSH'!$F$49)+'Lw KSH'!G$152*LOG('Grunddaten KSH'!$M$50) -> 25.34009813 | H182: =H$149+H$150*LOG('Grunddaten KSH'!$H$50)+H$151*LOG('Grunddaten KSH'!$F$49)+'Lw KSH'!H$152*LOG('Grunddaten KSH'!$M$50) -> 14.87153315 | I182: =I$149+I$150*LOG('Grunddaten KSH'!$H$50)+I$151*LOG('Grunddaten KSH'!$F$49)+'Lw KSH'!I$152*LOG('Grunddaten KSH'!$M$50) -> 13.62016486 | J182: =J$149+J$150*LOG('Grunddaten KSH'!$H$50)+J$151*LOG('Grunddaten KSH'!$F$49)+'Lw KSH'!J$152*LOG('Grunddaten KSH'!$M$50) -> 19.49481168 | K182: =K$149+K$150*LOG('Grunddaten KSH'!$H$50)+K$151*LOG('Grunddaten KSH'!$F$49)+'Lw KSH'!K$152*LOG('Grunddaten KSH'!$M$50) -> 20.14604688 | L182: =L$149+L$150*LOG('Grunddaten KSH'!$H$50)+L$151*LOG('Grunddaten KSH'!$F$49)+'Lw KSH'!L$152*LOG('Grunddaten KSH'!$M$50) -> 17.43994472 | M182: =M$149+M$150*LOG('Grunddaten KSH'!$H$50)+M$151*LOG('Grunddaten KSH'!$F$49)+'Lw KSH'!M$152*LOG('Grunddaten KSH'!$M$50) -> 13.07464791 | N182: =N$149+N$150*LOG('Grunddaten KSH'!$H$50)+N$151*LOG('Grunddaten KSH'!$F$49)+'Lw KSH'!N$152*LOG('Grunddaten KSH'!$M$50) -> 11.89783098 | O182: =O$149+O$150*LOG('Grunddaten KSH'!$H$50)+O$151*LOG('Grunddaten KSH'!$F$49)+'Lw KSH'!O$152*LOG('Grunddaten KSH'!$M$50) -> 9.882936009 | P182: =P$149+P$150*LOG('Grunddaten KSH'!$H$50)+P$151*LOG('Grunddaten KSH'!$F$49)+'Lw KSH'!P$152*LOG('Grunddaten KSH'!$M$50) -> 11.67296823 | Q182: =Q$149+Q$150*LOG('Grunddaten KSH'!$H$50)+Q$151*LOG('Grunddaten KSH'!$F$49)+'Lw KSH'!Q$152*LOG('Grunddaten KSH'!$M$50) -> 11.30555417 | R182: =R$149+R$150*LOG('Grunddaten KSH'!$H$50)+R$151*LOG('Grunddaten KSH'!$F$49)+'Lw KSH'!R$152*LOG('Grunddaten KSH'!$M$50) -> 13.36801514 | S182: =S$149+S$150*LOG('Grunddaten KSH'!$H$50)+S$151*LOG('Grunddaten KSH'!$F$49)+'Lw KSH'!S$152*LOG('Grunddaten KSH'!$M$50) -> 14.88664647 | T182: =T$149+T$150*LOG('Grunddaten KSH'!$H$50)+T$151*LOG('Grunddaten KSH'!$F$49)+'Lw KSH'!T$152*LOG('Grunddaten KSH'!$M$50) -> 16.8266724 | U182: =U$149+U$150*LOG('Grunddaten KSH'!$H$50)+U$151*LOG('Grunddaten KSH'!$F$49)+'Lw KSH'!U$152*LOG('Grunddaten KSH'!$M$50) -> 16.61406946 | V182: =V$149+V$150*LOG('Grunddaten KSH'!$H$50)+V$151*LOG('Grunddaten KSH'!$F$49)+'Lw KSH'!V$152*LOG('Grunddaten KSH'!$M$50) -> 20.64633768 | W182: 32.6710172
A183: KSHABLE5002 | B183: =B$153+B$154*LOG('Grunddaten KSH'!$H$50)+B$155*LOG('Grunddaten KSH'!$F$49)+'Lw KSH'!B$156*LOG('Grunddaten KSH'!$M$50) -> 23.05327678 | C183: =C$153+C$154*LOG('Grunddaten KSH'!$H$50)+C$155*LOG('Grunddaten KSH'!$F$49)+'Lw KSH'!C$156*LOG('Grunddaten KSH'!$M$50) -> 30.80984911 | D183: =D$153+D$154*LOG('Grunddaten KSH'!$H$50)+D$155*LOG('Grunddaten KSH'!$F$49)+'Lw KSH'!D$156*LOG('Grunddaten KSH'!$M$50) -> 43.06600198 | E183: =E$153+E$154*LOG('Grunddaten KSH'!$H$50)+E$155*LOG('Grunddaten KSH'!$F$49)+'Lw KSH'!E$156*LOG('Grunddaten KSH'!$M$50) -> 21.16269498 | F183: =F$153+F$154*LOG('Grunddaten KSH'!$H$50)+F$155*LOG('Grunddaten KSH'!$F$49)+'Lw KSH'!F$156*LOG('Grunddaten KSH'!$M$50) -> 33.94448148 | G183: =G$153+G$154*LOG('Grunddaten KSH'!$H$50)+G$155*LOG('Grunddaten KSH'!$F$49)+'Lw KSH'!G$156*LOG('Grunddaten KSH'!$M$50) -> 41.76811021 | H183: =H$153+H$154*LOG('Grunddaten KSH'!$H$50)+H$155*LOG('Grunddaten KSH'!$F$49)+'Lw KSH'!H$156*LOG('Grunddaten KSH'!$M$50) -> 45.47305342 | I183: =I$153+I$154*LOG('Grunddaten KSH'!$H$50)+I$155*LOG('Grunddaten KSH'!$F$49)+'Lw KSH'!I$156*LOG('Grunddaten KSH'!$M$50) -> 42.13519298 | J183: =J$153+J$154*LOG('Grunddaten KSH'!$H$50)+J$155*LOG('Grunddaten KSH'!$F$49)+'Lw KSH'!J$156*LOG('Grunddaten KSH'!$M$50) -> 40.31630157 | K183: =K$153+K$154*LOG('Grunddaten KSH'!$H$50)+K$155*LOG('Grunddaten KSH'!$F$49)+'Lw KSH'!K$156*LOG('Grunddaten KSH'!$M$50) -> 37.32691344 | L183: =L$153+L$154*LOG('Grunddaten KSH'!$H$50)+L$155*LOG('Grunddaten KSH'!$F$49)+'Lw KSH'!L$156*LOG('Grunddaten KSH'!$M$50) -> 43.25093423 | M183: =M$153+M$154*LOG('Grunddaten KSH'!$H$50)+M$155*LOG('Grunddaten KSH'!$F$49)+'Lw KSH'!M$156*LOG('Grunddaten KSH'!$M$50) -> 36.49880603 | N183: =N$153+N$154*LOG('Grunddaten KSH'!$H$50)+N$155*LOG('Grunddaten KSH'!$F$49)+'Lw KSH'!N$156*LOG('Grunddaten KSH'!$M$50) -> 31.6591259 | O183: =O$153+O$154*LOG('Grunddaten KSH'!$H$50)+O$155*LOG('Grunddaten KSH'!$F$49)+'Lw KSH'!O$156*LOG('Grunddaten KSH'!$M$50) -> 35.59979509 | P183: =P$153+P$154*LOG('Grunddaten KSH'!$H$50)+P$155*LOG('Grunddaten KSH'!$F$49)+'Lw KSH'!P$156*LOG('Grunddaten KSH'!$M$50) -> 37.10383886 | Q183: =Q$153+Q$154*LOG('Grunddaten KSH'!$H$50)+Q$155*LOG('Grunddaten KSH'!$F$49)+'Lw KSH'!Q$156*LOG('Grunddaten KSH'!$M$50) -> 31.60317784 | R183: =R$153+R$154*LOG('Grunddaten KSH'!$H$50)+R$155*LOG('Grunddaten KSH'!$F$49)+'Lw KSH'!R$156*LOG('Grunddaten KSH'!$M$50) -> 29.81998199 | S183: =S$153+S$154*LOG('Grunddaten KSH'!$H$50)+S$155*LOG('Grunddaten KSH'!$F$49)+'Lw KSH'!S$156*LOG('Grunddaten KSH'!$M$50) -> 24.07702073 | T183: =T$153+T$154*LOG('Grunddaten KSH'!$H$50)+T$155*LOG('Grunddaten KSH'!$F$49)+'Lw KSH'!T$156*LOG('Grunddaten KSH'!$M$50) -> 20.86392429 | U183: =U$153+U$154*LOG('Grunddaten KSH'!$H$50)+U$155*LOG('Grunddaten KSH'!$F$49)+'Lw KSH'!U$156*LOG('Grunddaten KSH'!$M$50) -> 18.48570252 | V183: =V$153+V$154*LOG('Grunddaten KSH'!$H$50)+V$155*LOG('Grunddaten KSH'!$F$49)+'Lw KSH'!V$156*LOG('Grunddaten KSH'!$M$50) -> 16.95039776 | W183: 51.63786071
A184: KSHABLE6002 | B184: =B$153+B$154*LOG('Grunddaten KSH'!$H$50)+B$155*LOG('Grunddaten KSH'!$F$49)+'Lw KSH'!B$156*LOG('Grunddaten KSH'!$M$50) -> 23.05327678 | C184: =C$153+C$154*LOG('Grunddaten KSH'!$H$50)+C$155*LOG('Grunddaten KSH'!$F$49)+'Lw KSH'!C$156*LOG('Grunddaten KSH'!$M$50) -> 30.80984911 | D184: =D$153+D$154*LOG('Grunddaten KSH'!$H$50)+D$155*LOG('Grunddaten KSH'!$F$49)+'Lw KSH'!D$156*LOG('Grunddaten KSH'!$M$50) -> 43.06600198 | E184: =E$153+E$154*LOG('Grunddaten KSH'!$H$50)+E$155*LOG('Grunddaten KSH'!$F$49)+'Lw KSH'!E$156*LOG('Grunddaten KSH'!$M$50) -> 21.16269498 | F184: =F$153+F$154*LOG('Grunddaten KSH'!$H$50)+F$155*LOG('Grunddaten KSH'!$F$49)+'Lw KSH'!F$156*LOG('Grunddaten KSH'!$M$50) -> 33.94448148 | G184: =G$153+G$154*LOG('Grunddaten KSH'!$H$50)+G$155*LOG('Grunddaten KSH'!$F$49)+'Lw KSH'!G$156*LOG('Grunddaten KSH'!$M$50) -> 41.76811021 | H184: =H$153+H$154*LOG('Grunddaten KSH'!$H$50)+H$155*LOG('Grunddaten KSH'!$F$49)+'Lw KSH'!H$156*LOG('Grunddaten KSH'!$M$50) -> 45.47305342 | I184: =I$153+I$154*LOG('Grunddaten KSH'!$H$50)+I$155*LOG('Grunddaten KSH'!$F$49)+'Lw KSH'!I$156*LOG('Grunddaten KSH'!$M$50) -> 42.13519298 | J184: =J$153+J$154*LOG('Grunddaten KSH'!$H$50)+J$155*LOG('Grunddaten KSH'!$F$49)+'Lw KSH'!J$156*LOG('Grunddaten KSH'!$M$50) -> 40.31630157 | K184: =K$153+K$154*LOG('Grunddaten KSH'!$H$50)+K$155*LOG('Grunddaten KSH'!$F$49)+'Lw KSH'!K$156*LOG('Grunddaten KSH'!$M$50) -> 37.32691344 | L184: =L$153+L$154*LOG('Grunddaten KSH'!$H$50)+L$155*LOG('Grunddaten KSH'!$F$49)+'Lw KSH'!L$156*LOG('Grunddaten KSH'!$M$50) -> 43.25093423 | M184: =M$153+M$154*LOG('Grunddaten KSH'!$H$50)+M$155*LOG('Grunddaten KSH'!$F$49)+'Lw KSH'!M$156*LOG('Grunddaten KSH'!$M$50) -> 36.49880603 | N184: =N$153+N$154*LOG('Grunddaten KSH'!$H$50)+N$155*LOG('Grunddaten KSH'!$F$49)+'Lw KSH'!N$156*LOG('Grunddaten KSH'!$M$50) -> 31.6591259 | O184: =O$153+O$154*LOG('Grunddaten KSH'!$H$50)+O$155*LOG('Grunddaten KSH'!$F$49)+'Lw KSH'!O$156*LOG('Grunddaten KSH'!$M$50) -> 35.59979509 | P184: =P$153+P$154*LOG('Grunddaten KSH'!$H$50)+P$155*LOG('Grunddaten KSH'!$F$49)+'Lw KSH'!P$156*LOG('Grunddaten KSH'!$M$50) -> 37.10383886 | Q184: =Q$153+Q$154*LOG('Grunddaten KSH'!$H$50)+Q$155*LOG('Grunddaten KSH'!$F$49)+'Lw KSH'!Q$156*LOG('Grunddaten KSH'!$M$50) -> 31.60317784 | R184: =R$153+R$154*LOG('Grunddaten KSH'!$H$50)+R$155*LOG('Grunddaten KSH'!$F$49)+'Lw KSH'!R$156*LOG('Grunddaten KSH'!$M$50) -> 29.81998199 | S184: =S$153+S$154*LOG('Grunddaten KSH'!$H$50)+S$155*LOG('Grunddaten KSH'!$F$49)+'Lw KSH'!S$156*LOG('Grunddaten KSH'!$M$50) -> 24.07702073 | T184: =T$153+T$154*LOG('Grunddaten KSH'!$H$50)+T$155*LOG('Grunddaten KSH'!$F$49)+'Lw KSH'!T$156*LOG('Grunddaten KSH'!$M$50) -> 20.86392429 | U184: =U$153+U$154*LOG('Grunddaten KSH'!$H$50)+U$155*LOG('Grunddaten KSH'!$F$49)+'Lw KSH'!U$156*LOG('Grunddaten KSH'!$M$50) -> 18.48570252 | V184: =V$153+V$154*LOG('Grunddaten KSH'!$H$50)+V$155*LOG('Grunddaten KSH'!$F$49)+'Lw KSH'!V$156*LOG('Grunddaten KSH'!$M$50) -> 16.95039776 | W184: 51.63786071
A185: KSHABLE8002 | B185: =B$153+B$154*LOG('Grunddaten KSH'!$H$50)+B$155*LOG('Grunddaten KSH'!$F$49)+'Lw KSH'!B$156*LOG('Grunddaten KSH'!$M$50) -> 23.05327678 | C185: =C$153+C$154*LOG('Grunddaten KSH'!$H$50)+C$155*LOG('Grunddaten KSH'!$F$49)+'Lw KSH'!C$156*LOG('Grunddaten KSH'!$M$50) -> 30.80984911 | D185: =D$153+D$154*LOG('Grunddaten KSH'!$H$50)+D$155*LOG('Grunddaten KSH'!$F$49)+'Lw KSH'!D$156*LOG('Grunddaten KSH'!$M$50) -> 43.06600198 | E185: =E$153+E$154*LOG('Grunddaten KSH'!$H$50)+E$155*LOG('Grunddaten KSH'!$F$49)+'Lw KSH'!E$156*LOG('Grunddaten KSH'!$M$50) -> 21.16269498 | F185: =F$153+F$154*LOG('Grunddaten KSH'!$H$50)+F$155*LOG('Grunddaten KSH'!$F$49)+'Lw KSH'!F$156*LOG('Grunddaten KSH'!$M$50) -> 33.94448148 | G185: =G$153+G$154*LOG('Grunddaten KSH'!$H$50)+G$155*LOG('Grunddaten KSH'!$F$49)+'Lw KSH'!G$156*LOG('Grunddaten KSH'!$M$50) -> 41.76811021 | H185: =H$153+H$154*LOG('Grunddaten KSH'!$H$50)+H$155*LOG('Grunddaten KSH'!$F$49)+'Lw KSH'!H$156*LOG('Grunddaten KSH'!$M$50) -> 45.47305342 | I185: =I$153+I$154*LOG('Grunddaten KSH'!$H$50)+I$155*LOG('Grunddaten KSH'!$F$49)+'Lw KSH'!I$156*LOG('Grunddaten KSH'!$M$50) -> 42.13519298 | J185: =J$153+J$154*LOG('Grunddaten KSH'!$H$50)+J$155*LOG('Grunddaten KSH'!$F$49)+'Lw KSH'!J$156*LOG('Grunddaten KSH'!$M$50) -> 40.31630157 | K185: =K$153+K$154*LOG('Grunddaten KSH'!$H$50)+K$155*LOG('Grunddaten KSH'!$F$49)+'Lw KSH'!K$156*LOG('Grunddaten KSH'!$M$50) -> 37.32691344 | L185: =L$153+L$154*LOG('Grunddaten KSH'!$H$50)+L$155*LOG('Grunddaten KSH'!$F$49)+'Lw KSH'!L$156*LOG('Grunddaten KSH'!$M$50) -> 43.25093423 | M185: =M$153+M$154*LOG('Grunddaten KSH'!$H$50)+M$155*LOG('Grunddaten KSH'!$F$49)+'Lw KSH'!M$156*LOG('Grunddaten KSH'!$M$50) -> 36.49880603 | N185: =N$153+N$154*LOG('Grunddaten KSH'!$H$50)+N$155*LOG('Grunddaten KSH'!$F$49)+'Lw KSH'!N$156*LOG('Grunddaten KSH'!$M$50) -> 31.6591259 | O185: =O$153+O$154*LOG('Grunddaten KSH'!$H$50)+O$155*LOG('Grunddaten KSH'!$F$49)+'Lw KSH'!O$156*LOG('Grunddaten KSH'!$M$50) -> 35.59979509 | P185: =P$153+P$154*LOG('Grunddaten KSH'!$H$50)+P$155*LOG('Grunddaten KSH'!$F$49)+'Lw KSH'!P$156*LOG('Grunddaten KSH'!$M$50) -> 37.10383886 | Q185: =Q$153+Q$154*LOG('Grunddaten KSH'!$H$50)+Q$155*LOG('Grunddaten KSH'!$F$49)+'Lw KSH'!Q$156*LOG('Grunddaten KSH'!$M$50) -> 31.60317784 | R185: =R$153+R$154*LOG('Grunddaten KSH'!$H$50)+R$155*LOG('Grunddaten KSH'!$F$49)+'Lw KSH'!R$156*LOG('Grunddaten KSH'!$M$50) -> 29.81998199 | S185: =S$153+S$154*LOG('Grunddaten KSH'!$H$50)+S$155*LOG('Grunddaten KSH'!$F$49)+'Lw KSH'!S$156*LOG('Grunddaten KSH'!$M$50) -> 24.07702073 | T185: =T$153+T$154*LOG('Grunddaten KSH'!$H$50)+T$155*LOG('Grunddaten KSH'!$F$49)+'Lw KSH'!T$156*LOG('Grunddaten KSH'!$M$50) -> 20.86392429 | U185: =U$153+U$154*LOG('Grunddaten KSH'!$H$50)+U$155*LOG('Grunddaten KSH'!$F$49)+'Lw KSH'!U$156*LOG('Grunddaten KSH'!$M$50) -> 18.48570252 | V185: =V$153+V$154*LOG('Grunddaten KSH'!$H$50)+V$155*LOG('Grunddaten KSH'!$F$49)+'Lw KSH'!V$156*LOG('Grunddaten KSH'!$M$50) -> 16.95039776 | W185: 51.63786071
A186: KSHABLE10002 | B186: =B$153+B$154*LOG('Grunddaten KSH'!$H$50)+B$155*LOG('Grunddaten KSH'!$F$49)+'Lw KSH'!B$156*LOG('Grunddaten KSH'!$M$50) -> 23.05327678 | C186: =C$153+C$154*LOG('Grunddaten KSH'!$H$50)+C$155*LOG('Grunddaten KSH'!$F$49)+'Lw KSH'!C$156*LOG('Grunddaten KSH'!$M$50) -> 30.80984911 | D186: =D$153+D$154*LOG('Grunddaten KSH'!$H$50)+D$155*LOG('Grunddaten KSH'!$F$49)+'Lw KSH'!D$156*LOG('Grunddaten KSH'!$M$50) -> 43.06600198 | E186: =E$153+E$154*LOG('Grunddaten KSH'!$H$50)+E$155*LOG('Grunddaten KSH'!$F$49)+'Lw KSH'!E$156*LOG('Grunddaten KSH'!$M$50) -> 21.16269498 | F186: =F$153+F$154*LOG('Grunddaten KSH'!$H$50)+F$155*LOG('Grunddaten KSH'!$F$49)+'Lw KSH'!F$156*LOG('Grunddaten KSH'!$M$50) -> 33.94448148 | G186: =G$153+G$154*LOG('Grunddaten KSH'!$H$50)+G$155*LOG('Grunddaten KSH'!$F$49)+'Lw KSH'!G$156*LOG('Grunddaten KSH'!$M$50) -> 41.76811021 | H186: =H$153+H$154*LOG('Grunddaten KSH'!$H$50)+H$155*LOG('Grunddaten KSH'!$F$49)+'Lw KSH'!H$156*LOG('Grunddaten KSH'!$M$50) -> 45.47305342 | I186: =I$153+I$154*LOG('Grunddaten KSH'!$H$50)+I$155*LOG('Grunddaten KSH'!$F$49)+'Lw KSH'!I$156*LOG('Grunddaten KSH'!$M$50) -> 42.13519298 | J186: =J$153+J$154*LOG('Grunddaten KSH'!$H$50)+J$155*LOG('Grunddaten KSH'!$F$49)+'Lw KSH'!J$156*LOG('Grunddaten KSH'!$M$50) -> 40.31630157 | K186: =K$153+K$154*LOG('Grunddaten KSH'!$H$50)+K$155*LOG('Grunddaten KSH'!$F$49)+'Lw KSH'!K$156*LOG('Grunddaten KSH'!$M$50) -> 37.32691344 | L186: =L$153+L$154*LOG('Grunddaten KSH'!$H$50)+L$155*LOG('Grunddaten KSH'!$F$49)+'Lw KSH'!L$156*LOG('Grunddaten KSH'!$M$50) -> 43.25093423 | M186: =M$153+M$154*LOG('Grunddaten KSH'!$H$50)+M$155*LOG('Grunddaten KSH'!$F$49)+'Lw KSH'!M$156*LOG('Grunddaten KSH'!$M$50) -> 36.49880603 | N186: =N$153+N$154*LOG('Grunddaten KSH'!$H$50)+N$155*LOG('Grunddaten KSH'!$F$49)+'Lw KSH'!N$156*LOG('Grunddaten KSH'!$M$50) -> 31.6591259 | O186: =O$153+O$154*LOG('Grunddaten KSH'!$H$50)+O$155*LOG('Grunddaten KSH'!$F$49)+'Lw KSH'!O$156*LOG('Grunddaten KSH'!$M$50) -> 35.59979509 | P186: =P$153+P$154*LOG('Grunddaten KSH'!$H$50)+P$155*LOG('Grunddaten KSH'!$F$49)+'Lw KSH'!P$156*LOG('Grunddaten KSH'!$M$50) -> 37.10383886 | Q186: =Q$153+Q$154*LOG('Grunddaten KSH'!$H$50)+Q$155*LOG('Grunddaten KSH'!$F$49)+'Lw KSH'!Q$156*LOG('Grunddaten KSH'!$M$50) -> 31.60317784 | R186: =R$153+R$154*LOG('Grunddaten KSH'!$H$50)+R$155*LOG('Grunddaten KSH'!$F$49)+'Lw KSH'!R$156*LOG('Grunddaten KSH'!$M$50) -> 29.81998199 | S186: =S$153+S$154*LOG('Grunddaten KSH'!$H$50)+S$155*LOG('Grunddaten KSH'!$F$49)+'Lw KSH'!S$156*LOG('Grunddaten KSH'!$M$50) -> 24.07702073 | T186: =T$153+T$154*LOG('Grunddaten KSH'!$H$50)+T$155*LOG('Grunddaten KSH'!$F$49)+'Lw KSH'!T$156*LOG('Grunddaten KSH'!$M$50) -> 20.86392429 | U186: =U$153+U$154*LOG('Grunddaten KSH'!$H$50)+U$155*LOG('Grunddaten KSH'!$F$49)+'Lw KSH'!U$156*LOG('Grunddaten KSH'!$M$50) -> 18.48570252 | V186: =V$153+V$154*LOG('Grunddaten KSH'!$H$50)+V$155*LOG('Grunddaten KSH'!$F$49)+'Lw KSH'!V$156*LOG('Grunddaten KSH'!$M$50) -> 16.95039776 | W186: 51.63786071
A187: KSHABLE12002 | B187: =B$153+B$154*LOG('Grunddaten KSH'!$H$50)+B$155*LOG('Grunddaten KSH'!$F$49)+'Lw KSH'!B$156*LOG('Grunddaten KSH'!$M$50) -> 23.05327678 | C187: =C$153+C$154*LOG('Grunddaten KSH'!$H$50)+C$155*LOG('Grunddaten KSH'!$F$49)+'Lw KSH'!C$156*LOG('Grunddaten KSH'!$M$50) -> 30.80984911 | D187: =D$153+D$154*LOG('Grunddaten KSH'!$H$50)+D$155*LOG('Grunddaten KSH'!$F$49)+'Lw KSH'!D$156*LOG('Grunddaten KSH'!$M$50) -> 43.06600198 | E187: =E$153+E$154*LOG('Grunddaten KSH'!$H$50)+E$155*LOG('Grunddaten KSH'!$F$49)+'Lw KSH'!E$156*LOG('Grunddaten KSH'!$M$50) -> 21.16269498 | F187: =F$153+F$154*LOG('Grunddaten KSH'!$H$50)+F$155*LOG('Grunddaten KSH'!$F$49)+'Lw KSH'!F$156*LOG('Grunddaten KSH'!$M$50) -> 33.94448148 | G187: =G$153+G$154*LOG('Grunddaten KSH'!$H$50)+G$155*LOG('Grunddaten KSH'!$F$49)+'Lw KSH'!G$156*LOG('Grunddaten KSH'!$M$50) -> 41.76811021 | H187: =H$153+H$154*LOG('Grunddaten KSH'!$H$50)+H$155*LOG('Grunddaten KSH'!$F$49)+'Lw KSH'!H$156*LOG('Grunddaten KSH'!$M$50) -> 45.47305342 | I187: =I$153+I$154*LOG('Grunddaten KSH'!$H$50)+I$155*LOG('Grunddaten KSH'!$F$49)+'Lw KSH'!I$156*LOG('Grunddaten KSH'!$M$50) -> 42.13519298 | J187: =J$153+J$154*LOG('Grunddaten KSH'!$H$50)+J$155*LOG('Grunddaten KSH'!$F$49)+'Lw KSH'!J$156*LOG('Grunddaten KSH'!$M$50) -> 40.31630157 | K187: =K$153+K$154*LOG('Grunddaten KSH'!$H$50)+K$155*LOG('Grunddaten KSH'!$F$49)+'Lw KSH'!K$156*LOG('Grunddaten KSH'!$M$50) -> 37.32691344 | L187: =L$153+L$154*LOG('Grunddaten KSH'!$H$50)+L$155*LOG('Grunddaten KSH'!$F$49)+'Lw KSH'!L$156*LOG('Grunddaten KSH'!$M$50) -> 43.25093423 | M187: =M$153+M$154*LOG('Grunddaten KSH'!$H$50)+M$155*LOG('Grunddaten KSH'!$F$49)+'Lw KSH'!M$156*LOG('Grunddaten KSH'!$M$50) -> 36.49880603 | N187: =N$153+N$154*LOG('Grunddaten KSH'!$H$50)+N$155*LOG('Grunddaten KSH'!$F$49)+'Lw KSH'!N$156*LOG('Grunddaten KSH'!$M$50) -> 31.6591259 | O187: =O$153+O$154*LOG('Grunddaten KSH'!$H$50)+O$155*LOG('Grunddaten KSH'!$F$49)+'Lw KSH'!O$156*LOG('Grunddaten KSH'!$M$50) -> 35.59979509 | P187: =P$153+P$154*LOG('Grunddaten KSH'!$H$50)+P$155*LOG('Grunddaten KSH'!$F$49)+'Lw KSH'!P$156*LOG('Grunddaten KSH'!$M$50) -> 37.10383886 | Q187: =Q$153+Q$154*LOG('Grunddaten KSH'!$H$50)+Q$155*LOG('Grunddaten KSH'!$F$49)+'Lw KSH'!Q$156*LOG('Grunddaten KSH'!$M$50) -> 31.60317784 | R187: =R$153+R$154*LOG('Grunddaten KSH'!$H$50)+R$155*LOG('Grunddaten KSH'!$F$49)+'Lw KSH'!R$156*LOG('Grunddaten KSH'!$M$50) -> 29.81998199 | S187: =S$153+S$154*LOG('Grunddaten KSH'!$H$50)+S$155*LOG('Grunddaten KSH'!$F$49)+'Lw KSH'!S$156*LOG('Grunddaten KSH'!$M$50) -> 24.07702073 | T187: =T$153+T$154*LOG('Grunddaten KSH'!$H$50)+T$155*LOG('Grunddaten KSH'!$F$49)+'Lw KSH'!T$156*LOG('Grunddaten KSH'!$M$50) -> 20.86392429 | U187: =U$153+U$154*LOG('Grunddaten KSH'!$H$50)+U$155*LOG('Grunddaten KSH'!$F$49)+'Lw KSH'!U$156*LOG('Grunddaten KSH'!$M$50) -> 18.48570252 | V187: =V$153+V$154*LOG('Grunddaten KSH'!$H$50)+V$155*LOG('Grunddaten KSH'!$F$49)+'Lw KSH'!V$156*LOG('Grunddaten KSH'!$M$50) -> 16.95039776 | W187: 51.63786071
A188: KSHZUL5003 | B188: =B$157+B$158*LOG('Grunddaten KSH'!$G$49)+B$159*LOG('Grunddaten KSH'!$F$49)+'Lw KSH'!B$160*LOG('Grunddaten KSH'!$L$49) -> 18.12200567 | C188: =C$157+C$158*LOG('Grunddaten KSH'!$G$49)+C$159*LOG('Grunddaten KSH'!$F$49)+'Lw KSH'!C$160*LOG('Grunddaten KSH'!$L$49) -> 14.12405055 | D188: =D$157+D$158*LOG('Grunddaten KSH'!$G$49)+D$159*LOG('Grunddaten KSH'!$F$49)+'Lw KSH'!D$160*LOG('Grunddaten KSH'!$L$49) -> 20.17637581 | E188: =E$157+E$158*LOG('Grunddaten KSH'!$G$49)+E$159*LOG('Grunddaten KSH'!$F$49)+'Lw KSH'!E$160*LOG('Grunddaten KSH'!$L$49) -> 21.19462753 | F188: =F$157+F$158*LOG('Grunddaten KSH'!$G$49)+F$159*LOG('Grunddaten KSH'!$F$49)+'Lw KSH'!F$160*LOG('Grunddaten KSH'!$L$49) -> 26.67861512 | G188: =G$157+G$158*LOG('Grunddaten KSH'!$G$49)+G$159*LOG('Grunddaten KSH'!$F$49)+'Lw KSH'!G$160*LOG('Grunddaten KSH'!$L$49) -> 27.13261048 | H188: =H$157+H$158*LOG('Grunddaten KSH'!$G$49)+H$159*LOG('Grunddaten KSH'!$F$49)+'Lw KSH'!H$160*LOG('Grunddaten KSH'!$L$49) -> 26.6841512 | I188: =I$157+I$158*LOG('Grunddaten KSH'!$G$49)+I$159*LOG('Grunddaten KSH'!$F$49)+'Lw KSH'!I$160*LOG('Grunddaten KSH'!$L$49) -> 26.80310419 | J188: =J$157+J$158*LOG('Grunddaten KSH'!$G$49)+J$159*LOG('Grunddaten KSH'!$F$49)+'Lw KSH'!J$160*LOG('Grunddaten KSH'!$L$49) -> 25.38964017 | K188: =K$157+K$158*LOG('Grunddaten KSH'!$G$49)+K$159*LOG('Grunddaten KSH'!$F$49)+'Lw KSH'!K$160*LOG('Grunddaten KSH'!$L$49) -> 25.68086684 | L188: =L$157+L$158*LOG('Grunddaten KSH'!$G$49)+L$159*LOG('Grunddaten KSH'!$F$49)+'Lw KSH'!L$160*LOG('Grunddaten KSH'!$L$49) -> 23.88658113 | M188: =M$157+M$158*LOG('Grunddaten KSH'!$G$49)+M$159*LOG('Grunddaten KSH'!$F$49)+'Lw KSH'!M$160*LOG('Grunddaten KSH'!$L$49) -> 21.9039611 | N188: =N$157+N$158*LOG('Grunddaten KSH'!$G$49)+N$159*LOG('Grunddaten KSH'!$F$49)+'Lw KSH'!N$160*LOG('Grunddaten KSH'!$L$49) -> 21.26826721 | O188: =O$157+O$158*LOG('Grunddaten KSH'!$G$49)+O$159*LOG('Grunddaten KSH'!$F$49)+'Lw KSH'!O$160*LOG('Grunddaten KSH'!$L$49) -> 18.65243107 | P188: =P$157+P$158*LOG('Grunddaten KSH'!$G$49)+P$159*LOG('Grunddaten KSH'!$F$49)+'Lw KSH'!P$160*LOG('Grunddaten KSH'!$L$49) -> 18.70920422 | Q188: =Q$157+Q$158*LOG('Grunddaten KSH'!$G$49)+Q$159*LOG('Grunddaten KSH'!$F$49)+'Lw KSH'!Q$160*LOG('Grunddaten KSH'!$L$49) -> 17.33591161 | R188: =R$157+R$158*LOG('Grunddaten KSH'!$G$49)+R$159*LOG('Grunddaten KSH'!$F$49)+'Lw KSH'!R$160*LOG('Grunddaten KSH'!$L$49) -> 17.03375567 | S188: =S$157+S$158*LOG('Grunddaten KSH'!$G$49)+S$159*LOG('Grunddaten KSH'!$F$49)+'Lw KSH'!S$160*LOG('Grunddaten KSH'!$L$49) -> 16.93261167 | T188: =T$157+T$158*LOG('Grunddaten KSH'!$G$49)+T$159*LOG('Grunddaten KSH'!$F$49)+'Lw KSH'!T$160*LOG('Grunddaten KSH'!$L$49) -> 17.3190999 | U188: =U$157+U$158*LOG('Grunddaten KSH'!$G$49)+U$159*LOG('Grunddaten KSH'!$F$49)+'Lw KSH'!U$160*LOG('Grunddaten KSH'!$L$49) -> 17.16265416 | V188: =V$157+V$158*LOG('Grunddaten KSH'!$G$49)+V$159*LOG('Grunddaten KSH'!$F$49)+'Lw KSH'!V$160*LOG('Grunddaten KSH'!$L$49) -> 17.89854522 | W188: 35.99053756
A189: KSHZUL6003 | B189: =B$157+B$158*LOG('Grunddaten KSH'!$G$49)+B$159*LOG('Grunddaten KSH'!$F$49)+'Lw KSH'!B$160*LOG('Grunddaten KSH'!$L$49) -> 18.12200567 | C189: =C$157+C$158*LOG('Grunddaten KSH'!$G$49)+C$159*LOG('Grunddaten KSH'!$F$49)+'Lw KSH'!C$160*LOG('Grunddaten KSH'!$L$49) -> 14.12405055 | D189: =D$157+D$158*LOG('Grunddaten KSH'!$G$49)+D$159*LOG('Grunddaten KSH'!$F$49)+'Lw KSH'!D$160*LOG('Grunddaten KSH'!$L$49) -> 20.17637581 | E189: =E$157+E$158*LOG('Grunddaten KSH'!$G$49)+E$159*LOG('Grunddaten KSH'!$F$49)+'Lw KSH'!E$160*LOG('Grunddaten KSH'!$L$49) -> 21.19462753 | F189: =F$157+F$158*LOG('Grunddaten KSH'!$G$49)+F$159*LOG('Grunddaten KSH'!$F$49)+'Lw KSH'!F$160*LOG('Grunddaten KSH'!$L$49) -> 26.67861512 | G189: =G$157+G$158*LOG('Grunddaten KSH'!$G$49)+G$159*LOG('Grunddaten KSH'!$F$49)+'Lw KSH'!G$160*LOG('Grunddaten KSH'!$L$49) -> 27.13261048 | H189: =H$157+H$158*LOG('Grunddaten KSH'!$G$49)+H$159*LOG('Grunddaten KSH'!$F$49)+'Lw KSH'!H$160*LOG('Grunddaten KSH'!$L$49) -> 26.6841512 | I189: =I$157+I$158*LOG('Grunddaten KSH'!$G$49)+I$159*LOG('Grunddaten KSH'!$F$49)+'Lw KSH'!I$160*LOG('Grunddaten KSH'!$L$49) -> 26.80310419 | J189: =J$157+J$158*LOG('Grunddaten KSH'!$G$49)+J$159*LOG('Grunddaten KSH'!$F$49)+'Lw KSH'!J$160*LOG('Grunddaten KSH'!$L$49) -> 25.38964017 | K189: =K$157+K$158*LOG('Grunddaten KSH'!$G$49)+K$159*LOG('Grunddaten KSH'!$F$49)+'Lw KSH'!K$160*LOG('Grunddaten KSH'!$L$49) -> 25.68086684 | L189: =L$157+L$158*LOG('Grunddaten KSH'!$G$49)+L$159*LOG('Grunddaten KSH'!$F$49)+'Lw KSH'!L$160*LOG('Grunddaten KSH'!$L$49) -> 23.88658113 | M189: =M$157+M$158*LOG('Grunddaten KSH'!$G$49)+M$159*LOG('Grunddaten KSH'!$F$49)+'Lw KSH'!M$160*LOG('Grunddaten KSH'!$L$49) -> 21.9039611 | N189: =N$157+N$158*LOG('Grunddaten KSH'!$G$49)+N$159*LOG('Grunddaten KSH'!$F$49)+'Lw KSH'!N$160*LOG('Grunddaten KSH'!$L$49) -> 21.26826721 | O189: =O$157+O$158*LOG('Grunddaten KSH'!$G$49)+O$159*LOG('Grunddaten KSH'!$F$49)+'Lw KSH'!O$160*LOG('Grunddaten KSH'!$L$49) -> 18.65243107 | P189: =P$157+P$158*LOG('Grunddaten KSH'!$G$49)+P$159*LOG('Grunddaten KSH'!$F$49)+'Lw KSH'!P$160*LOG('Grunddaten KSH'!$L$49) -> 18.70920422 | Q189: =Q$157+Q$158*LOG('Grunddaten KSH'!$G$49)+Q$159*LOG('Grunddaten KSH'!$F$49)+'Lw KSH'!Q$160*LOG('Grunddaten KSH'!$L$49) -> 17.33591161 | R189: =R$157+R$158*LOG('Grunddaten KSH'!$G$49)+R$159*LOG('Grunddaten KSH'!$F$49)+'Lw KSH'!R$160*LOG('Grunddaten KSH'!$L$49) -> 17.03375567 | S189: =S$157+S$158*LOG('Grunddaten KSH'!$G$49)+S$159*LOG('Grunddaten KSH'!$F$49)+'Lw KSH'!S$160*LOG('Grunddaten KSH'!$L$49) -> 16.93261167 | T189: =T$157+T$158*LOG('Grunddaten KSH'!$G$49)+T$159*LOG('Grunddaten KSH'!$F$49)+'Lw KSH'!T$160*LOG('Grunddaten KSH'!$L$49) -> 17.3190999 | U189: =U$157+U$158*LOG('Grunddaten KSH'!$G$49)+U$159*LOG('Grunddaten KSH'!$F$49)+'Lw KSH'!U$160*LOG('Grunddaten KSH'!$L$49) -> 17.16265416 | V189: =V$157+V$158*LOG('Grunddaten KSH'!$G$49)+V$159*LOG('Grunddaten KSH'!$F$49)+'Lw KSH'!V$160*LOG('Grunddaten KSH'!$L$49) -> 17.89854522 | W189: 35.99053756
A190: KSHZUL8003 | B190: =B$157+B$158*LOG('Grunddaten KSH'!$G$49)+B$159*LOG('Grunddaten KSH'!$F$49)+'Lw KSH'!B$160*LOG('Grunddaten KSH'!$L$49) -> 18.12200567 | C190: =C$157+C$158*LOG('Grunddaten KSH'!$G$49)+C$159*LOG('Grunddaten KSH'!$F$49)+'Lw KSH'!C$160*LOG('Grunddaten KSH'!$L$49) -> 14.12405055 | D190: =D$157+D$158*LOG('Grunddaten KSH'!$G$49)+D$159*LOG('Grunddaten KSH'!$F$49)+'Lw KSH'!D$160*LOG('Grunddaten KSH'!$L$49) -> 20.17637581 | E190: =E$157+E$158*LOG('Grunddaten KSH'!$G$49)+E$159*LOG('Grunddaten KSH'!$F$49)+'Lw KSH'!E$160*LOG('Grunddaten KSH'!$L$49) -> 21.19462753 | F190: =F$157+F$158*LOG('Grunddaten KSH'!$G$49)+F$159*LOG('Grunddaten KSH'!$F$49)+'Lw KSH'!F$160*LOG('Grunddaten KSH'!$L$49) -> 26.67861512 | G190: =G$157+G$158*LOG('Grunddaten KSH'!$G$49)+G$159*LOG('Grunddaten KSH'!$F$49)+'Lw KSH'!G$160*LOG('Grunddaten KSH'!$L$49) -> 27.13261048 | H190: =H$157+H$158*LOG('Grunddaten KSH'!$G$49)+H$159*LOG('Grunddaten KSH'!$F$49)+'Lw KSH'!H$160*LOG('Grunddaten KSH'!$L$49) -> 26.6841512 | I190: =I$157+I$158*LOG('Grunddaten KSH'!$G$49)+I$159*LOG('Grunddaten KSH'!$F$49)+'Lw KSH'!I$160*LOG('Grunddaten KSH'!$L$49) -> 26.80310419 | J190: =J$157+J$158*LOG('Grunddaten KSH'!$G$49)+J$159*LOG('Grunddaten KSH'!$F$49)+'Lw KSH'!J$160*LOG('Grunddaten KSH'!$L$49) -> 25.38964017 | K190: =K$157+K$158*LOG('Grunddaten KSH'!$G$49)+K$159*LOG('Grunddaten KSH'!$F$49)+'Lw KSH'!K$160*LOG('Grunddaten KSH'!$L$49) -> 25.68086684 | L190: =L$157+L$158*LOG('Grunddaten KSH'!$G$49)+L$159*LOG('Grunddaten KSH'!$F$49)+'Lw KSH'!L$160*LOG('Grunddaten KSH'!$L$49) -> 23.88658113 | M190: =M$157+M$158*LOG('Grunddaten KSH'!$G$49)+M$159*LOG('Grunddaten KSH'!$F$49)+'Lw KSH'!M$160*LOG('Grunddaten KSH'!$L$49) -> 21.9039611 | N190: =N$157+N$158*LOG('Grunddaten KSH'!$G$49)+N$159*LOG('Grunddaten KSH'!$F$49)+'Lw KSH'!N$160*LOG('Grunddaten KSH'!$L$49) -> 21.26826721 | O190: =O$157+O$158*LOG('Grunddaten KSH'!$G$49)+O$159*LOG('Grunddaten KSH'!$F$49)+'Lw KSH'!O$160*LOG('Grunddaten KSH'!$L$49) -> 18.65243107 | P190: =P$157+P$158*LOG('Grunddaten KSH'!$G$49)+P$159*LOG('Grunddaten KSH'!$F$49)+'Lw KSH'!P$160*LOG('Grunddaten KSH'!$L$49) -> 18.70920422 | Q190: =Q$157+Q$158*LOG('Grunddaten KSH'!$G$49)+Q$159*LOG('Grunddaten KSH'!$F$49)+'Lw KSH'!Q$160*LOG('Grunddaten KSH'!$L$49) -> 17.33591161 | R190: =R$157+R$158*LOG('Grunddaten KSH'!$G$49)+R$159*LOG('Grunddaten KSH'!$F$49)+'Lw KSH'!R$160*LOG('Grunddaten KSH'!$L$49) -> 17.03375567 | S190: =S$157+S$158*LOG('Grunddaten KSH'!$G$49)+S$159*LOG('Grunddaten KSH'!$F$49)+'Lw KSH'!S$160*LOG('Grunddaten KSH'!$L$49) -> 16.93261167 | T190: =T$157+T$158*LOG('Grunddaten KSH'!$G$49)+T$159*LOG('Grunddaten KSH'!$F$49)+'Lw KSH'!T$160*LOG('Grunddaten KSH'!$L$49) -> 17.3190999 | U190: =U$157+U$158*LOG('Grunddaten KSH'!$G$49)+U$159*LOG('Grunddaten KSH'!$F$49)+'Lw KSH'!U$160*LOG('Grunddaten KSH'!$L$49) -> 17.16265416 | V190: =V$157+V$158*LOG('Grunddaten KSH'!$G$49)+V$159*LOG('Grunddaten KSH'!$F$49)+'Lw KSH'!V$160*LOG('Grunddaten KSH'!$L$49) -> 17.89854522 | W190: 35.99053756
A191: KSHZUL10003 | B191: =B$157+B$158*LOG('Grunddaten KSH'!$G$49)+B$159*LOG('Grunddaten KSH'!$F$49)+'Lw KSH'!B$160*LOG('Grunddaten KSH'!$L$49) -> 18.12200567 | C191: =C$157+C$158*LOG('Grunddaten KSH'!$G$49)+C$159*LOG('Grunddaten KSH'!$F$49)+'Lw KSH'!C$160*LOG('Grunddaten KSH'!$L$49) -> 14.12405055 | D191: =D$157+D$158*LOG('Grunddaten KSH'!$G$49)+D$159*LOG('Grunddaten KSH'!$F$49)+'Lw KSH'!D$160*LOG('Grunddaten KSH'!$L$49) -> 20.17637581 | E191: =E$157+E$158*LOG('Grunddaten KSH'!$G$49)+E$159*LOG('Grunddaten KSH'!$F$49)+'Lw KSH'!E$160*LOG('Grunddaten KSH'!$L$49) -> 21.19462753 | F191: =F$157+F$158*LOG('Grunddaten KSH'!$G$49)+F$159*LOG('Grunddaten KSH'!$F$49)+'Lw KSH'!F$160*LOG('Grunddaten KSH'!$L$49) -> 26.67861512 | G191: =G$157+G$158*LOG('Grunddaten KSH'!$G$49)+G$159*LOG('Grunddaten KSH'!$F$49)+'Lw KSH'!G$160*LOG('Grunddaten KSH'!$L$49) -> 27.13261048 | H191: =H$157+H$158*LOG('Grunddaten KSH'!$G$49)+H$159*LOG('Grunddaten KSH'!$F$49)+'Lw KSH'!H$160*LOG('Grunddaten KSH'!$L$49) -> 26.6841512 | I191: =I$157+I$158*LOG('Grunddaten KSH'!$G$49)+I$159*LOG('Grunddaten KSH'!$F$49)+'Lw KSH'!I$160*LOG('Grunddaten KSH'!$L$49) -> 26.80310419 | J191: =J$157+J$158*LOG('Grunddaten KSH'!$G$49)+J$159*LOG('Grunddaten KSH'!$F$49)+'Lw KSH'!J$160*LOG('Grunddaten KSH'!$L$49) -> 25.38964017 | K191: =K$157+K$158*LOG('Grunddaten KSH'!$G$49)+K$159*LOG('Grunddaten KSH'!$F$49)+'Lw KSH'!K$160*LOG('Grunddaten KSH'!$L$49) -> 25.68086684 | L191: =L$157+L$158*LOG('Grunddaten KSH'!$G$49)+L$159*LOG('Grunddaten KSH'!$F$49)+'Lw KSH'!L$160*LOG('Grunddaten KSH'!$L$49) -> 23.88658113 | M191: =M$157+M$158*LOG('Grunddaten KSH'!$G$49)+M$159*LOG('Grunddaten KSH'!$F$49)+'Lw KSH'!M$160*LOG('Grunddaten KSH'!$L$49) -> 21.9039611 | N191: =N$157+N$158*LOG('Grunddaten KSH'!$G$49)+N$159*LOG('Grunddaten KSH'!$F$49)+'Lw KSH'!N$160*LOG('Grunddaten KSH'!$L$49) -> 21.26826721 | O191: =O$157+O$158*LOG('Grunddaten KSH'!$G$49)+O$159*LOG('Grunddaten KSH'!$F$49)+'Lw KSH'!O$160*LOG('Grunddaten KSH'!$L$49) -> 18.65243107 | P191: =P$157+P$158*LOG('Grunddaten KSH'!$G$49)+P$159*LOG('Grunddaten KSH'!$F$49)+'Lw KSH'!P$160*LOG('Grunddaten KSH'!$L$49) -> 18.70920422 | Q191: =Q$157+Q$158*LOG('Grunddaten KSH'!$G$49)+Q$159*LOG('Grunddaten KSH'!$F$49)+'Lw KSH'!Q$160*LOG('Grunddaten KSH'!$L$49) -> 17.33591161 | R191: =R$157+R$158*LOG('Grunddaten KSH'!$G$49)+R$159*LOG('Grunddaten KSH'!$F$49)+'Lw KSH'!R$160*LOG('Grunddaten KSH'!$L$49) -> 17.03375567 | S191: =S$157+S$158*LOG('Grunddaten KSH'!$G$49)+S$159*LOG('Grunddaten KSH'!$F$49)+'Lw KSH'!S$160*LOG('Grunddaten KSH'!$L$49) -> 16.93261167 | T191: =T$157+T$158*LOG('Grunddaten KSH'!$G$49)+T$159*LOG('Grunddaten KSH'!$F$49)+'Lw KSH'!T$160*LOG('Grunddaten KSH'!$L$49) -> 17.3190999 | U191: =U$157+U$158*LOG('Grunddaten KSH'!$G$49)+U$159*LOG('Grunddaten KSH'!$F$49)+'Lw KSH'!U$160*LOG('Grunddaten KSH'!$L$49) -> 17.16265416 | V191: =V$157+V$158*LOG('Grunddaten KSH'!$G$49)+V$159*LOG('Grunddaten KSH'!$F$49)+'Lw KSH'!V$160*LOG('Grunddaten KSH'!$L$49) -> 17.89854522 | W191: 35.99053756
A192: KSHZUL12003 | B192: =B$157+B$158*LOG('Grunddaten KSH'!$G$49)+B$159*LOG('Grunddaten KSH'!$F$49)+'Lw KSH'!B$160*LOG('Grunddaten KSH'!$L$49) -> 18.12200567 | C192: =C$157+C$158*LOG('Grunddaten KSH'!$G$49)+C$159*LOG('Grunddaten KSH'!$F$49)+'Lw KSH'!C$160*LOG('Grunddaten KSH'!$L$49) -> 14.12405055 | D192: =D$157+D$158*LOG('Grunddaten KSH'!$G$49)+D$159*LOG('Grunddaten KSH'!$F$49)+'Lw KSH'!D$160*LOG('Grunddaten KSH'!$L$49) -> 20.17637581 | E192: =E$157+E$158*LOG('Grunddaten KSH'!$G$49)+E$159*LOG('Grunddaten KSH'!$F$49)+'Lw KSH'!E$160*LOG('Grunddaten KSH'!$L$49) -> 21.19462753 | F192: =F$157+F$158*LOG('Grunddaten KSH'!$G$49)+F$159*LOG('Grunddaten KSH'!$F$49)+'Lw KSH'!F$160*LOG('Grunddaten KSH'!$L$49) -> 26.67861512 | G192: =G$157+G$158*LOG('Grunddaten KSH'!$G$49)+G$159*LOG('Grunddaten KSH'!$F$49)+'Lw KSH'!G$160*LOG('Grunddaten KSH'!$L$49) -> 27.13261048 | H192: =H$157+H$158*LOG('Grunddaten KSH'!$G$49)+H$159*LOG('Grunddaten KSH'!$F$49)+'Lw KSH'!H$160*LOG('Grunddaten KSH'!$L$49) -> 26.6841512 | I192: =I$157+I$158*LOG('Grunddaten KSH'!$G$49)+I$159*LOG('Grunddaten KSH'!$F$49)+'Lw KSH'!I$160*LOG('Grunddaten KSH'!$L$49) -> 26.80310419 | J192: =J$157+J$158*LOG('Grunddaten KSH'!$G$49)+J$159*LOG('Grunddaten KSH'!$F$49)+'Lw KSH'!J$160*LOG('Grunddaten KSH'!$L$49) -> 25.38964017 | K192: =K$157+K$158*LOG('Grunddaten KSH'!$G$49)+K$159*LOG('Grunddaten KSH'!$F$49)+'Lw KSH'!K$160*LOG('Grunddaten KSH'!$L$49) -> 25.68086684 | L192: =L$157+L$158*LOG('Grunddaten KSH'!$G$49)+L$159*LOG('Grunddaten KSH'!$F$49)+'Lw KSH'!L$160*LOG('Grunddaten KSH'!$L$49) -> 23.88658113 | M192: =M$157+M$158*LOG('Grunddaten KSH'!$G$49)+M$159*LOG('Grunddaten KSH'!$F$49)+'Lw KSH'!M$160*LOG('Grunddaten KSH'!$L$49) -> 21.9039611 | N192: =N$157+N$158*LOG('Grunddaten KSH'!$G$49)+N$159*LOG('Grunddaten KSH'!$F$49)+'Lw KSH'!N$160*LOG('Grunddaten KSH'!$L$49) -> 21.26826721 | O192: =O$157+O$158*LOG('Grunddaten KSH'!$G$49)+O$159*LOG('Grunddaten KSH'!$F$49)+'Lw KSH'!O$160*LOG('Grunddaten KSH'!$L$49) -> 18.65243107 | P192: =P$157+P$158*LOG('Grunddaten KSH'!$G$49)+P$159*LOG('Grunddaten KSH'!$F$49)+'Lw KSH'!P$160*LOG('Grunddaten KSH'!$L$49) -> 18.70920422 | Q192: =Q$157+Q$158*LOG('Grunddaten KSH'!$G$49)+Q$159*LOG('Grunddaten KSH'!$F$49)+'Lw KSH'!Q$160*LOG('Grunddaten KSH'!$L$49) -> 17.33591161 | R192: =R$157+R$158*LOG('Grunddaten KSH'!$G$49)+R$159*LOG('Grunddaten KSH'!$F$49)+'Lw KSH'!R$160*LOG('Grunddaten KSH'!$L$49) -> 17.03375567 | S192: =S$157+S$158*LOG('Grunddaten KSH'!$G$49)+S$159*LOG('Grunddaten KSH'!$F$49)+'Lw KSH'!S$160*LOG('Grunddaten KSH'!$L$49) -> 16.93261167 | T192: =T$157+T$158*LOG('Grunddaten KSH'!$G$49)+T$159*LOG('Grunddaten KSH'!$F$49)+'Lw KSH'!T$160*LOG('Grunddaten KSH'!$L$49) -> 17.3190999 | U192: =U$157+U$158*LOG('Grunddaten KSH'!$G$49)+U$159*LOG('Grunddaten KSH'!$F$49)+'Lw KSH'!U$160*LOG('Grunddaten KSH'!$L$49) -> 17.16265416 | V192: =V$157+V$158*LOG('Grunddaten KSH'!$G$49)+V$159*LOG('Grunddaten KSH'!$F$49)+'Lw KSH'!V$160*LOG('Grunddaten KSH'!$L$49) -> 17.89854522 | W192: 35.99053756
A193: KSHABLD5003 | B193: =B$161+B$162*LOG('Grunddaten KSH'!$H$50)+B$163*LOG('Grunddaten KSH'!$F$49)+'Lw KSH'!B$164*LOG('Grunddaten KSH'!$M$50) -> 14.88032779 | C193: =C$161+C$162*LOG('Grunddaten KSH'!$H$50)+C$163*LOG('Grunddaten KSH'!$F$49)+'Lw KSH'!C$164*LOG('Grunddaten KSH'!$M$50) -> 11.00221032 | D193: =D$161+D$162*LOG('Grunddaten KSH'!$H$50)+D$163*LOG('Grunddaten KSH'!$F$49)+'Lw KSH'!D$164*LOG('Grunddaten KSH'!$M$50) -> 16.58149891 | E193: =E$161+E$162*LOG('Grunddaten KSH'!$H$50)+E$163*LOG('Grunddaten KSH'!$F$49)+'Lw KSH'!E$164*LOG('Grunddaten KSH'!$M$50) -> 15.69847649 | F193: =F$161+F$162*LOG('Grunddaten KSH'!$H$50)+F$163*LOG('Grunddaten KSH'!$F$49)+'Lw KSH'!F$164*LOG('Grunddaten KSH'!$M$50) -> 18.99342279 | G193: =G$161+G$162*LOG('Grunddaten KSH'!$H$50)+G$163*LOG('Grunddaten KSH'!$F$49)+'Lw KSH'!G$164*LOG('Grunddaten KSH'!$M$50) -> 19.67609953 | H193: =H$161+H$162*LOG('Grunddaten KSH'!$H$50)+H$163*LOG('Grunddaten KSH'!$F$49)+'Lw KSH'!H$164*LOG('Grunddaten KSH'!$M$50) -> 18.90887452 | I193: =I$161+I$162*LOG('Grunddaten KSH'!$H$50)+I$163*LOG('Grunddaten KSH'!$F$49)+'Lw KSH'!I$164*LOG('Grunddaten KSH'!$M$50) -> 19.08947106 | J193: =J$161+J$162*LOG('Grunddaten KSH'!$H$50)+J$163*LOG('Grunddaten KSH'!$F$49)+'Lw KSH'!J$164*LOG('Grunddaten KSH'!$M$50) -> 16.97966145 | K193: =K$161+K$162*LOG('Grunddaten KSH'!$H$50)+K$163*LOG('Grunddaten KSH'!$F$49)+'Lw KSH'!K$164*LOG('Grunddaten KSH'!$M$50) -> 14.33202012 | L193: =L$161+L$162*LOG('Grunddaten KSH'!$H$50)+L$163*LOG('Grunddaten KSH'!$F$49)+'Lw KSH'!L$164*LOG('Grunddaten KSH'!$M$50) -> 12.22624335 | M193: =M$161+M$162*LOG('Grunddaten KSH'!$H$50)+M$163*LOG('Grunddaten KSH'!$F$49)+'Lw KSH'!M$164*LOG('Grunddaten KSH'!$M$50) -> 10.02651136 | N193: =N$161+N$162*LOG('Grunddaten KSH'!$H$50)+N$163*LOG('Grunddaten KSH'!$F$49)+'Lw KSH'!N$164*LOG('Grunddaten KSH'!$M$50) -> 8.885085021 | O193: =O$161+O$162*LOG('Grunddaten KSH'!$H$50)+O$163*LOG('Grunddaten KSH'!$F$49)+'Lw KSH'!O$164*LOG('Grunddaten KSH'!$M$50) -> 8.384878422 | P193: =P$161+P$162*LOG('Grunddaten KSH'!$H$50)+P$163*LOG('Grunddaten KSH'!$F$49)+'Lw KSH'!P$164*LOG('Grunddaten KSH'!$M$50) -> 9.578592266 | Q193: =Q$161+Q$162*LOG('Grunddaten KSH'!$H$50)+Q$163*LOG('Grunddaten KSH'!$F$49)+'Lw KSH'!Q$164*LOG('Grunddaten KSH'!$M$50) -> 10.93257715 | R193: =R$161+R$162*LOG('Grunddaten KSH'!$H$50)+R$163*LOG('Grunddaten KSH'!$F$49)+'Lw KSH'!R$164*LOG('Grunddaten KSH'!$M$50) -> 12.04489773 | S193: =S$161+S$162*LOG('Grunddaten KSH'!$H$50)+S$163*LOG('Grunddaten KSH'!$F$49)+'Lw KSH'!S$164*LOG('Grunddaten KSH'!$M$50) -> 14.00708411 | T193: =T$161+T$162*LOG('Grunddaten KSH'!$H$50)+T$163*LOG('Grunddaten KSH'!$F$49)+'Lw KSH'!T$164*LOG('Grunddaten KSH'!$M$50) -> 15.95448605 | U193: =U$161+U$162*LOG('Grunddaten KSH'!$H$50)+U$163*LOG('Grunddaten KSH'!$F$49)+'Lw KSH'!U$164*LOG('Grunddaten KSH'!$M$50) -> 17.11562557 | V193: =V$161+V$162*LOG('Grunddaten KSH'!$H$50)+V$163*LOG('Grunddaten KSH'!$F$49)+'Lw KSH'!V$164*LOG('Grunddaten KSH'!$M$50) -> 18.21298877 | W193: 29.00462409
A194: KSHABLD6003 | B194: =B$161+B$162*LOG('Grunddaten KSH'!$H$50)+B$163*LOG('Grunddaten KSH'!$F$49)+'Lw KSH'!B$164*LOG('Grunddaten KSH'!$M$50) -> 14.88032779 | C194: =C$161+C$162*LOG('Grunddaten KSH'!$H$50)+C$163*LOG('Grunddaten KSH'!$F$49)+'Lw KSH'!C$164*LOG('Grunddaten KSH'!$M$50) -> 11.00221032 | D194: =D$161+D$162*LOG('Grunddaten KSH'!$H$50)+D$163*LOG('Grunddaten KSH'!$F$49)+'Lw KSH'!D$164*LOG('Grunddaten KSH'!$M$50) -> 16.58149891 | E194: =E$161+E$162*LOG('Grunddaten KSH'!$H$50)+E$163*LOG('Grunddaten KSH'!$F$49)+'Lw KSH'!E$164*LOG('Grunddaten KSH'!$M$50) -> 15.69847649 | F194: =F$161+F$162*LOG('Grunddaten KSH'!$H$50)+F$163*LOG('Grunddaten KSH'!$F$49)+'Lw KSH'!F$164*LOG('Grunddaten KSH'!$M$50) -> 18.99342279 | G194: =G$161+G$162*LOG('Grunddaten KSH'!$H$50)+G$163*LOG('Grunddaten KSH'!$F$49)+'Lw KSH'!G$164*LOG('Grunddaten KSH'!$M$50) -> 19.67609953 | H194: =H$161+H$162*LOG('Grunddaten KSH'!$H$50)+H$163*LOG('Grunddaten KSH'!$F$49)+'Lw KSH'!H$164*LOG('Grunddaten KSH'!$M$50) -> 18.90887452 | I194: =I$161+I$162*LOG('Grunddaten KSH'!$H$50)+I$163*LOG('Grunddaten KSH'!$F$49)+'Lw KSH'!I$164*LOG('Grunddaten KSH'!$M$50) -> 19.08947106 | J194: =J$161+J$162*LOG('Grunddaten KSH'!$H$50)+J$163*LOG('Grunddaten KSH'!$F$49)+'Lw KSH'!J$164*LOG('Grunddaten KSH'!$M$50) -> 16.97966145 | K194: =K$161+K$162*LOG('Grunddaten KSH'!$H$50)+K$163*LOG('Grunddaten KSH'!$F$49)+'Lw KSH'!K$164*LOG('Grunddaten KSH'!$M$50) -> 14.33202012 | L194: =L$161+L$162*LOG('Grunddaten KSH'!$H$50)+L$163*LOG('Grunddaten KSH'!$F$49)+'Lw KSH'!L$164*LOG('Grunddaten KSH'!$M$50) -> 12.22624335 | M194: =M$161+M$162*LOG('Grunddaten KSH'!$H$50)+M$163*LOG('Grunddaten KSH'!$F$49)+'Lw KSH'!M$164*LOG('Grunddaten KSH'!$M$50) -> 10.02651136 | N194: =N$161+N$162*LOG('Grunddaten KSH'!$H$50)+N$163*LOG('Grunddaten KSH'!$F$49)+'Lw KSH'!N$164*LOG('Grunddaten KSH'!$M$50) -> 8.885085021 | O194: =O$161+O$162*LOG('Grunddaten KSH'!$H$50)+O$163*LOG('Grunddaten KSH'!$F$49)+'Lw KSH'!O$164*LOG('Grunddaten KSH'!$M$50) -> 8.384878422 | P194: =P$161+P$162*LOG('Grunddaten KSH'!$H$50)+P$163*LOG('Grunddaten KSH'!$F$49)+'Lw KSH'!P$164*LOG('Grunddaten KSH'!$M$50) -> 9.578592266 | Q194: =Q$161+Q$162*LOG('Grunddaten KSH'!$H$50)+Q$163*LOG('Grunddaten KSH'!$F$49)+'Lw KSH'!Q$164*LOG('Grunddaten KSH'!$M$50) -> 10.93257715 | R194: =R$161+R$162*LOG('Grunddaten KSH'!$H$50)+R$163*LOG('Grunddaten KSH'!$F$49)+'Lw KSH'!R$164*LOG('Grunddaten KSH'!$M$50) -> 12.04489773 | S194: =S$161+S$162*LOG('Grunddaten KSH'!$H$50)+S$163*LOG('Grunddaten KSH'!$F$49)+'Lw KSH'!S$164*LOG('Grunddaten KSH'!$M$50) -> 14.00708411 | T194: =T$161+T$162*LOG('Grunddaten KSH'!$H$50)+T$163*LOG('Grunddaten KSH'!$F$49)+'Lw KSH'!T$164*LOG('Grunddaten KSH'!$M$50) -> 15.95448605 | U194: =U$161+U$162*LOG('Grunddaten KSH'!$H$50)+U$163*LOG('Grunddaten KSH'!$F$49)+'Lw KSH'!U$164*LOG('Grunddaten KSH'!$M$50) -> 17.11562557 | V194: =V$161+V$162*LOG('Grunddaten KSH'!$H$50)+V$163*LOG('Grunddaten KSH'!$F$49)+'Lw KSH'!V$164*LOG('Grunddaten KSH'!$M$50) -> 18.21298877 | W194: 29.00462409
A195: KSHABLD8003 | B195: =B$161+B$162*LOG('Grunddaten KSH'!$H$50)+B$163*LOG('Grunddaten KSH'!$F$49)+'Lw KSH'!B$164*LOG('Grunddaten KSH'!$M$50) -> 14.88032779 | C195: =C$161+C$162*LOG('Grunddaten KSH'!$H$50)+C$163*LOG('Grunddaten KSH'!$F$49)+'Lw KSH'!C$164*LOG('Grunddaten KSH'!$M$50) -> 11.00221032 | D195: =D$161+D$162*LOG('Grunddaten KSH'!$H$50)+D$163*LOG('Grunddaten KSH'!$F$49)+'Lw KSH'!D$164*LOG('Grunddaten KSH'!$M$50) -> 16.58149891 | E195: =E$161+E$162*LOG('Grunddaten KSH'!$H$50)+E$163*LOG('Grunddaten KSH'!$F$49)+'Lw KSH'!E$164*LOG('Grunddaten KSH'!$M$50) -> 15.69847649 | F195: =F$161+F$162*LOG('Grunddaten KSH'!$H$50)+F$163*LOG('Grunddaten KSH'!$F$49)+'Lw KSH'!F$164*LOG('Grunddaten KSH'!$M$50) -> 18.99342279 | G195: =G$161+G$162*LOG('Grunddaten KSH'!$H$50)+G$163*LOG('Grunddaten KSH'!$F$49)+'Lw KSH'!G$164*LOG('Grunddaten KSH'!$M$50) -> 19.67609953 | H195: =H$161+H$162*LOG('Grunddaten KSH'!$H$50)+H$163*LOG('Grunddaten KSH'!$F$49)+'Lw KSH'!H$164*LOG('Grunddaten KSH'!$M$50) -> 18.90887452 | I195: =I$161+I$162*LOG('Grunddaten KSH'!$H$50)+I$163*LOG('Grunddaten KSH'!$F$49)+'Lw KSH'!I$164*LOG('Grunddaten KSH'!$M$50) -> 19.08947106 | J195: =J$161+J$162*LOG('Grunddaten KSH'!$H$50)+J$163*LOG('Grunddaten KSH'!$F$49)+'Lw KSH'!J$164*LOG('Grunddaten KSH'!$M$50) -> 16.97966145 | K195: =K$161+K$162*LOG('Grunddaten KSH'!$H$50)+K$163*LOG('Grunddaten KSH'!$F$49)+'Lw KSH'!K$164*LOG('Grunddaten KSH'!$M$50) -> 14.33202012 | L195: =L$161+L$162*LOG('Grunddaten KSH'!$H$50)+L$163*LOG('Grunddaten KSH'!$F$49)+'Lw KSH'!L$164*LOG('Grunddaten KSH'!$M$50) -> 12.22624335 | M195: =M$161+M$162*LOG('Grunddaten KSH'!$H$50)+M$163*LOG('Grunddaten KSH'!$F$49)+'Lw KSH'!M$164*LOG('Grunddaten KSH'!$M$50) -> 10.02651136 | N195: =N$161+N$162*LOG('Grunddaten KSH'!$H$50)+N$163*LOG('Grunddaten KSH'!$F$49)+'Lw KSH'!N$164*LOG('Grunddaten KSH'!$M$50) -> 8.885085021 | O195: =O$161+O$162*LOG('Grunddaten KSH'!$H$50)+O$163*LOG('Grunddaten KSH'!$F$49)+'Lw KSH'!O$164*LOG('Grunddaten KSH'!$M$50) -> 8.384878422 | P195: =P$161+P$162*LOG('Grunddaten KSH'!$H$50)+P$163*LOG('Grunddaten KSH'!$F$49)+'Lw KSH'!P$164*LOG('Grunddaten KSH'!$M$50) -> 9.578592266 | Q195: =Q$161+Q$162*LOG('Grunddaten KSH'!$H$50)+Q$163*LOG('Grunddaten KSH'!$F$49)+'Lw KSH'!Q$164*LOG('Grunddaten KSH'!$M$50) -> 10.93257715 | R195: =R$161+R$162*LOG('Grunddaten KSH'!$H$50)+R$163*LOG('Grunddaten KSH'!$F$49)+'Lw KSH'!R$164*LOG('Grunddaten KSH'!$M$50) -> 12.04489773 | S195: =S$161+S$162*LOG('Grunddaten KSH'!$H$50)+S$163*LOG('Grunddaten KSH'!$F$49)+'Lw KSH'!S$164*LOG('Grunddaten KSH'!$M$50) -> 14.00708411 | T195: =T$161+T$162*LOG('Grunddaten KSH'!$H$50)+T$163*LOG('Grunddaten KSH'!$F$49)+'Lw KSH'!T$164*LOG('Grunddaten KSH'!$M$50) -> 15.95448605 | U195: =U$161+U$162*LOG('Grunddaten KSH'!$H$50)+U$163*LOG('Grunddaten KSH'!$F$49)+'Lw KSH'!U$164*LOG('Grunddaten KSH'!$M$50) -> 17.11562557 | V195: =V$161+V$162*LOG('Grunddaten KSH'!$H$50)+V$163*LOG('Grunddaten KSH'!$F$49)+'Lw KSH'!V$164*LOG('Grunddaten KSH'!$M$50) -> 18.21298877 | W195: 29.00462409
A196: KSHABLD10003 | B196: =B$161+B$162*LOG('Grunddaten KSH'!$H$50)+B$163*LOG('Grunddaten KSH'!$F$49)+'Lw KSH'!B$164*LOG('Grunddaten KSH'!$M$50) -> 14.88032779 | C196: =C$161+C$162*LOG('Grunddaten KSH'!$H$50)+C$163*LOG('Grunddaten KSH'!$F$49)+'Lw KSH'!C$164*LOG('Grunddaten KSH'!$M$50) -> 11.00221032 | D196: =D$161+D$162*LOG('Grunddaten KSH'!$H$50)+D$163*LOG('Grunddaten KSH'!$F$49)+'Lw KSH'!D$164*LOG('Grunddaten KSH'!$M$50) -> 16.58149891 | E196: =E$161+E$162*LOG('Grunddaten KSH'!$H$50)+E$163*LOG('Grunddaten KSH'!$F$49)+'Lw KSH'!E$164*LOG('Grunddaten KSH'!$M$50) -> 15.69847649 | F196: =F$161+F$162*LOG('Grunddaten KSH'!$H$50)+F$163*LOG('Grunddaten KSH'!$F$49)+'Lw KSH'!F$164*LOG('Grunddaten KSH'!$M$50) -> 18.99342279 | G196: =G$161+G$162*LOG('Grunddaten KSH'!$H$50)+G$163*LOG('Grunddaten KSH'!$F$49)+'Lw KSH'!G$164*LOG('Grunddaten KSH'!$M$50) -> 19.67609953 | H196: =H$161+H$162*LOG('Grunddaten KSH'!$H$50)+H$163*LOG('Grunddaten KSH'!$F$49)+'Lw KSH'!H$164*LOG('Grunddaten KSH'!$M$50) -> 18.90887452 | I196: =I$161+I$162*LOG('Grunddaten KSH'!$H$50)+I$163*LOG('Grunddaten KSH'!$F$49)+'Lw KSH'!I$164*LOG('Grunddaten KSH'!$M$50) -> 19.08947106 | J196: =J$161+J$162*LOG('Grunddaten KSH'!$H$50)+J$163*LOG('Grunddaten KSH'!$F$49)+'Lw KSH'!J$164*LOG('Grunddaten KSH'!$M$50) -> 16.97966145 | K196: =K$161+K$162*LOG('Grunddaten KSH'!$H$50)+K$163*LOG('Grunddaten KSH'!$F$49)+'Lw KSH'!K$164*LOG('Grunddaten KSH'!$M$50) -> 14.33202012 | L196: =L$161+L$162*LOG('Grunddaten KSH'!$H$50)+L$163*LOG('Grunddaten KSH'!$F$49)+'Lw KSH'!L$164*LOG('Grunddaten KSH'!$M$50) -> 12.22624335 | M196: =M$161+M$162*LOG('Grunddaten KSH'!$H$50)+M$163*LOG('Grunddaten KSH'!$F$49)+'Lw KSH'!M$164*LOG('Grunddaten KSH'!$M$50) -> 10.02651136 | N196: =N$161+N$162*LOG('Grunddaten KSH'!$H$50)+N$163*LOG('Grunddaten KSH'!$F$49)+'Lw KSH'!N$164*LOG('Grunddaten KSH'!$M$50) -> 8.885085021 | O196: =O$161+O$162*LOG('Grunddaten KSH'!$H$50)+O$163*LOG('Grunddaten KSH'!$F$49)+'Lw KSH'!O$164*LOG('Grunddaten KSH'!$M$50) -> 8.384878422 | P196: =P$161+P$162*LOG('Grunddaten KSH'!$H$50)+P$163*LOG('Grunddaten KSH'!$F$49)+'Lw KSH'!P$164*LOG('Grunddaten KSH'!$M$50) -> 9.578592266 | Q196: =Q$161+Q$162*LOG('Grunddaten KSH'!$H$50)+Q$163*LOG('Grunddaten KSH'!$F$49)+'Lw KSH'!Q$164*LOG('Grunddaten KSH'!$M$50) -> 10.93257715 | R196: =R$161+R$162*LOG('Grunddaten KSH'!$H$50)+R$163*LOG('Grunddaten KSH'!$F$49)+'Lw KSH'!R$164*LOG('Grunddaten KSH'!$M$50) -> 12.04489773 | S196: =S$161+S$162*LOG('Grunddaten KSH'!$H$50)+S$163*LOG('Grunddaten KSH'!$F$49)+'Lw KSH'!S$164*LOG('Grunddaten KSH'!$M$50) -> 14.00708411 | T196: =T$161+T$162*LOG('Grunddaten KSH'!$H$50)+T$163*LOG('Grunddaten KSH'!$F$49)+'Lw KSH'!T$164*LOG('Grunddaten KSH'!$M$50) -> 15.95448605 | U196: =U$161+U$162*LOG('Grunddaten KSH'!$H$50)+U$163*LOG('Grunddaten KSH'!$F$49)+'Lw KSH'!U$164*LOG('Grunddaten KSH'!$M$50) -> 17.11562557 | V196: =V$161+V$162*LOG('Grunddaten KSH'!$H$50)+V$163*LOG('Grunddaten KSH'!$F$49)+'Lw KSH'!V$164*LOG('Grunddaten KSH'!$M$50) -> 18.21298877 | W196: 29.00462409
A197: KSHABLD12003 | B197: =B$161+B$162*LOG('Grunddaten KSH'!$H$50)+B$163*LOG('Grunddaten KSH'!$F$49)+'Lw KSH'!B$164*LOG('Grunddaten KSH'!$M$50) -> 14.88032779 | C197: =C$161+C$162*LOG('Grunddaten KSH'!$H$50)+C$163*LOG('Grunddaten KSH'!$F$49)+'Lw KSH'!C$164*LOG('Grunddaten KSH'!$M$50) -> 11.00221032 | D197: =D$161+D$162*LOG('Grunddaten KSH'!$H$50)+D$163*LOG('Grunddaten KSH'!$F$49)+'Lw KSH'!D$164*LOG('Grunddaten KSH'!$M$50) -> 16.58149891 | E197: =E$161+E$162*LOG('Grunddaten KSH'!$H$50)+E$163*LOG('Grunddaten KSH'!$F$49)+'Lw KSH'!E$164*LOG('Grunddaten KSH'!$M$50) -> 15.69847649 | F197: =F$161+F$162*LOG('Grunddaten KSH'!$H$50)+F$163*LOG('Grunddaten KSH'!$F$49)+'Lw KSH'!F$164*LOG('Grunddaten KSH'!$M$50) -> 18.99342279 | G197: =G$161+G$162*LOG('Grunddaten KSH'!$H$50)+G$163*LOG('Grunddaten KSH'!$F$49)+'Lw KSH'!G$164*LOG('Grunddaten KSH'!$M$50) -> 19.67609953 | H197: =H$161+H$162*LOG('Grunddaten KSH'!$H$50)+H$163*LOG('Grunddaten KSH'!$F$49)+'Lw KSH'!H$164*LOG('Grunddaten KSH'!$M$50) -> 18.90887452 | I197: =I$161+I$162*LOG('Grunddaten KSH'!$H$50)+I$163*LOG('Grunddaten KSH'!$F$49)+'Lw KSH'!I$164*LOG('Grunddaten KSH'!$M$50) -> 19.08947106 | J197: =J$161+J$162*LOG('Grunddaten KSH'!$H$50)+J$163*LOG('Grunddaten KSH'!$F$49)+'Lw KSH'!J$164*LOG('Grunddaten KSH'!$M$50) -> 16.97966145 | K197: =K$161+K$162*LOG('Grunddaten KSH'!$H$50)+K$163*LOG('Grunddaten KSH'!$F$49)+'Lw KSH'!K$164*LOG('Grunddaten KSH'!$M$50) -> 14.33202012 | L197: =L$161+L$162*LOG('Grunddaten KSH'!$H$50)+L$163*LOG('Grunddaten KSH'!$F$49)+'Lw KSH'!L$164*LOG('Grunddaten KSH'!$M$50) -> 12.22624335 | M197: =M$161+M$162*LOG('Grunddaten KSH'!$H$50)+M$163*LOG('Grunddaten KSH'!$F$49)+'Lw KSH'!M$164*LOG('Grunddaten KSH'!$M$50) -> 10.02651136 | N197: =N$161+N$162*LOG('Grunddaten KSH'!$H$50)+N$163*LOG('Grunddaten KSH'!$F$49)+'Lw KSH'!N$164*LOG('Grunddaten KSH'!$M$50) -> 8.885085021 | O197: =O$161+O$162*LOG('Grunddaten KSH'!$H$50)+O$163*LOG('Grunddaten KSH'!$F$49)+'Lw KSH'!O$164*LOG('Grunddaten KSH'!$M$50) -> 8.384878422 | P197: =P$161+P$162*LOG('Grunddaten KSH'!$H$50)+P$163*LOG('Grunddaten KSH'!$F$49)+'Lw KSH'!P$164*LOG('Grunddaten KSH'!$M$50) -> 9.578592266 | Q197: =Q$161+Q$162*LOG('Grunddaten KSH'!$H$50)+Q$163*LOG('Grunddaten KSH'!$F$49)+'Lw KSH'!Q$164*LOG('Grunddaten KSH'!$M$50) -> 10.93257715 | R197: =R$161+R$162*LOG('Grunddaten KSH'!$H$50)+R$163*LOG('Grunddaten KSH'!$F$49)+'Lw KSH'!R$164*LOG('Grunddaten KSH'!$M$50) -> 12.04489773 | S197: =S$161+S$162*LOG('Grunddaten KSH'!$H$50)+S$163*LOG('Grunddaten KSH'!$F$49)+'Lw KSH'!S$164*LOG('Grunddaten KSH'!$M$50) -> 14.00708411 | T197: =T$161+T$162*LOG('Grunddaten KSH'!$H$50)+T$163*LOG('Grunddaten KSH'!$F$49)+'Lw KSH'!T$164*LOG('Grunddaten KSH'!$M$50) -> 15.95448605 | U197: =U$161+U$162*LOG('Grunddaten KSH'!$H$50)+U$163*LOG('Grunddaten KSH'!$F$49)+'Lw KSH'!U$164*LOG('Grunddaten KSH'!$M$50) -> 17.11562557 | V197: =V$161+V$162*LOG('Grunddaten KSH'!$H$50)+V$163*LOG('Grunddaten KSH'!$F$49)+'Lw KSH'!V$164*LOG('Grunddaten KSH'!$M$50) -> 18.21298877 | W197: 29.00462409
A198: KSHABLE5003 | B198: =B$165+B$166*LOG('Grunddaten KSH'!$H$50)+B$167*LOG('Grunddaten KSH'!$F$49)+'Lw KSH'!B$168*LOG('Grunddaten KSH'!$M$50) -> 14.40416958 | C198: =C$165+C$166*LOG('Grunddaten KSH'!$H$50)+C$167*LOG('Grunddaten KSH'!$F$49)+'Lw KSH'!C$168*LOG('Grunddaten KSH'!$M$50) -> 10.95925216 | D198: =D$165+D$166*LOG('Grunddaten KSH'!$H$50)+D$167*LOG('Grunddaten KSH'!$F$49)+'Lw KSH'!D$168*LOG('Grunddaten KSH'!$M$50) -> 18.11105767 | E198: =E$165+E$166*LOG('Grunddaten KSH'!$H$50)+E$167*LOG('Grunddaten KSH'!$F$49)+'Lw KSH'!E$168*LOG('Grunddaten KSH'!$M$50) -> 19.45421763 | F198: =F$165+F$166*LOG('Grunddaten KSH'!$H$50)+F$167*LOG('Grunddaten KSH'!$F$49)+'Lw KSH'!F$168*LOG('Grunddaten KSH'!$M$50) -> 23.98980353 | G198: =G$165+G$166*LOG('Grunddaten KSH'!$H$50)+G$167*LOG('Grunddaten KSH'!$F$49)+'Lw KSH'!G$168*LOG('Grunddaten KSH'!$M$50) -> 25.30185143 | H198: =H$165+H$166*LOG('Grunddaten KSH'!$H$50)+H$167*LOG('Grunddaten KSH'!$F$49)+'Lw KSH'!H$168*LOG('Grunddaten KSH'!$M$50) -> 24.90273857 | I198: =I$165+I$166*LOG('Grunddaten KSH'!$H$50)+I$167*LOG('Grunddaten KSH'!$F$49)+'Lw KSH'!I$168*LOG('Grunddaten KSH'!$M$50) -> 24.77754207 | J198: =J$165+J$166*LOG('Grunddaten KSH'!$H$50)+J$167*LOG('Grunddaten KSH'!$F$49)+'Lw KSH'!J$168*LOG('Grunddaten KSH'!$M$50) -> 22.77702023 | K198: =K$165+K$166*LOG('Grunddaten KSH'!$H$50)+K$167*LOG('Grunddaten KSH'!$F$49)+'Lw KSH'!K$168*LOG('Grunddaten KSH'!$M$50) -> 20.3339087 | L198: =L$165+L$166*LOG('Grunddaten KSH'!$H$50)+L$167*LOG('Grunddaten KSH'!$F$49)+'Lw KSH'!L$168*LOG('Grunddaten KSH'!$M$50) -> 18.95665055 | M198: =M$165+M$166*LOG('Grunddaten KSH'!$H$50)+M$167*LOG('Grunddaten KSH'!$F$49)+'Lw KSH'!M$168*LOG('Grunddaten KSH'!$M$50) -> 17.79117079 | N198: =N$165+N$166*LOG('Grunddaten KSH'!$H$50)+N$167*LOG('Grunddaten KSH'!$F$49)+'Lw KSH'!N$168*LOG('Grunddaten KSH'!$M$50) -> 16.2619573 | O198: =O$165+O$166*LOG('Grunddaten KSH'!$H$50)+O$167*LOG('Grunddaten KSH'!$F$49)+'Lw KSH'!O$168*LOG('Grunddaten KSH'!$M$50) -> 15.02679991 | P198: =P$165+P$166*LOG('Grunddaten KSH'!$H$50)+P$167*LOG('Grunddaten KSH'!$F$49)+'Lw KSH'!P$168*LOG('Grunddaten KSH'!$M$50) -> 15.01250845 | Q198: =Q$165+Q$166*LOG('Grunddaten KSH'!$H$50)+Q$167*LOG('Grunddaten KSH'!$F$49)+'Lw KSH'!Q$168*LOG('Grunddaten KSH'!$M$50) -> 14.98888515 | R198: =R$165+R$166*LOG('Grunddaten KSH'!$H$50)+R$167*LOG('Grunddaten KSH'!$F$49)+'Lw KSH'!R$168*LOG('Grunddaten KSH'!$M$50) -> 14.90648851 | S198: =S$165+S$166*LOG('Grunddaten KSH'!$H$50)+S$167*LOG('Grunddaten KSH'!$F$49)+'Lw KSH'!S$168*LOG('Grunddaten KSH'!$M$50) -> 15.3556132 | T198: =T$165+T$166*LOG('Grunddaten KSH'!$H$50)+T$167*LOG('Grunddaten KSH'!$F$49)+'Lw KSH'!T$168*LOG('Grunddaten KSH'!$M$50) -> 16.1608923 | U198: =U$165+U$166*LOG('Grunddaten KSH'!$H$50)+U$167*LOG('Grunddaten KSH'!$F$49)+'Lw KSH'!U$168*LOG('Grunddaten KSH'!$M$50) -> 16.60414608 | V198: =V$165+V$166*LOG('Grunddaten KSH'!$H$50)+V$167*LOG('Grunddaten KSH'!$F$49)+'Lw KSH'!V$168*LOG('Grunddaten KSH'!$M$50) -> 17.64603952 | W198: 33.37733652
A199: KSHABLE6003 | B199: =B$165+B$166*LOG('Grunddaten KSH'!$H$50)+B$167*LOG('Grunddaten KSH'!$F$49)+'Lw KSH'!B$168*LOG('Grunddaten KSH'!$M$50) -> 14.40416958 | C199: =C$165+C$166*LOG('Grunddaten KSH'!$H$50)+C$167*LOG('Grunddaten KSH'!$F$49)+'Lw KSH'!C$168*LOG('Grunddaten KSH'!$M$50) -> 10.95925216 | D199: =D$165+D$166*LOG('Grunddaten KSH'!$H$50)+D$167*LOG('Grunddaten KSH'!$F$49)+'Lw KSH'!D$168*LOG('Grunddaten KSH'!$M$50) -> 18.11105767 | E199: =E$165+E$166*LOG('Grunddaten KSH'!$H$50)+E$167*LOG('Grunddaten KSH'!$F$49)+'Lw KSH'!E$168*LOG('Grunddaten KSH'!$M$50) -> 19.45421763 | F199: =F$165+F$166*LOG('Grunddaten KSH'!$H$50)+F$167*LOG('Grunddaten KSH'!$F$49)+'Lw KSH'!F$168*LOG('Grunddaten KSH'!$M$50) -> 23.98980353 | G199: =G$165+G$166*LOG('Grunddaten KSH'!$H$50)+G$167*LOG('Grunddaten KSH'!$F$49)+'Lw KSH'!G$168*LOG('Grunddaten KSH'!$M$50) -> 25.30185143 | H199: =H$165+H$166*LOG('Grunddaten KSH'!$H$50)+H$167*LOG('Grunddaten KSH'!$F$49)+'Lw KSH'!H$168*LOG('Grunddaten KSH'!$M$50) -> 24.90273857 | I199: =I$165+I$166*LOG('Grunddaten KSH'!$H$50)+I$167*LOG('Grunddaten KSH'!$F$49)+'Lw KSH'!I$168*LOG('Grunddaten KSH'!$M$50) -> 24.77754207 | J199: =J$165+J$166*LOG('Grunddaten KSH'!$H$50)+J$167*LOG('Grunddaten KSH'!$F$49)+'Lw KSH'!J$168*LOG('Grunddaten KSH'!$M$50) -> 22.77702023 | K199: =K$165+K$166*LOG('Grunddaten KSH'!$H$50)+K$167*LOG('Grunddaten KSH'!$F$49)+'Lw KSH'!K$168*LOG('Grunddaten KSH'!$M$50) -> 20.3339087 | L199: =L$165+L$166*LOG('Grunddaten KSH'!$H$50)+L$167*LOG('Grunddaten KSH'!$F$49)+'Lw KSH'!L$168*LOG('Grunddaten KSH'!$M$50) -> 18.95665055 | M199: =M$165+M$166*LOG('Grunddaten KSH'!$H$50)+M$167*LOG('Grunddaten KSH'!$F$49)+'Lw KSH'!M$168*LOG('Grunddaten KSH'!$M$50) -> 17.79117079 | N199: =N$165+N$166*LOG('Grunddaten KSH'!$H$50)+N$167*LOG('Grunddaten KSH'!$F$49)+'Lw KSH'!N$168*LOG('Grunddaten KSH'!$M$50) -> 16.2619573 | O199: =O$165+O$166*LOG('Grunddaten KSH'!$H$50)+O$167*LOG('Grunddaten KSH'!$F$49)+'Lw KSH'!O$168*LOG('Grunddaten KSH'!$M$50) -> 15.02679991 | P199: =P$165+P$166*LOG('Grunddaten KSH'!$H$50)+P$167*LOG('Grunddaten KSH'!$F$49)+'Lw KSH'!P$168*LOG('Grunddaten KSH'!$M$50) -> 15.01250845 | Q199: =Q$165+Q$166*LOG('Grunddaten KSH'!$H$50)+Q$167*LOG('Grunddaten KSH'!$F$49)+'Lw KSH'!Q$168*LOG('Grunddaten KSH'!$M$50) -> 14.98888515 | R199: =R$165+R$166*LOG('Grunddaten KSH'!$H$50)+R$167*LOG('Grunddaten KSH'!$F$49)+'Lw KSH'!R$168*LOG('Grunddaten KSH'!$M$50) -> 14.90648851 | S199: =S$165+S$166*LOG('Grunddaten KSH'!$H$50)+S$167*LOG('Grunddaten KSH'!$F$49)+'Lw KSH'!S$168*LOG('Grunddaten KSH'!$M$50) -> 15.3556132 | T199: =T$165+T$166*LOG('Grunddaten KSH'!$H$50)+T$167*LOG('Grunddaten KSH'!$F$49)+'Lw KSH'!T$168*LOG('Grunddaten KSH'!$M$50) -> 16.1608923 | U199: =U$165+U$166*LOG('Grunddaten KSH'!$H$50)+U$167*LOG('Grunddaten KSH'!$F$49)+'Lw KSH'!U$168*LOG('Grunddaten KSH'!$M$50) -> 16.60414608 | V199: =V$165+V$166*LOG('Grunddaten KSH'!$H$50)+V$167*LOG('Grunddaten KSH'!$F$49)+'Lw KSH'!V$168*LOG('Grunddaten KSH'!$M$50) -> 17.64603952 | W199: 33.37733652
A200: KSHABLE8003 | B200: =B$165+B$166*LOG('Grunddaten KSH'!$H$50)+B$167*LOG('Grunddaten KSH'!$F$49)+'Lw KSH'!B$168*LOG('Grunddaten KSH'!$M$50) -> 14.40416958 | C200: =C$165+C$166*LOG('Grunddaten KSH'!$H$50)+C$167*LOG('Grunddaten KSH'!$F$49)+'Lw KSH'!C$168*LOG('Grunddaten KSH'!$M$50) -> 10.95925216 | D200: =D$165+D$166*LOG('Grunddaten KSH'!$H$50)+D$167*LOG('Grunddaten KSH'!$F$49)+'Lw KSH'!D$168*LOG('Grunddaten KSH'!$M$50) -> 18.11105767 | E200: =E$165+E$166*LOG('Grunddaten KSH'!$H$50)+E$167*LOG('Grunddaten KSH'!$F$49)+'Lw KSH'!E$168*LOG('Grunddaten KSH'!$M$50) -> 19.45421763 | F200: =F$165+F$166*LOG('Grunddaten KSH'!$H$50)+F$167*LOG('Grunddaten KSH'!$F$49)+'Lw KSH'!F$168*LOG('Grunddaten KSH'!$M$50) -> 23.98980353 | G200: =G$165+G$166*LOG('Grunddaten KSH'!$H$50)+G$167*LOG('Grunddaten KSH'!$F$49)+'Lw KSH'!G$168*LOG('Grunddaten KSH'!$M$50) -> 25.30185143 | H200: =H$165+H$166*LOG('Grunddaten KSH'!$H$50)+H$167*LOG('Grunddaten KSH'!$F$49)+'Lw KSH'!H$168*LOG('Grunddaten KSH'!$M$50) -> 24.90273857 | I200: =I$165+I$166*LOG('Grunddaten KSH'!$H$50)+I$167*LOG('Grunddaten KSH'!$F$49)+'Lw KSH'!I$168*LOG('Grunddaten KSH'!$M$50) -> 24.77754207 | J200: =J$165+J$166*LOG('Grunddaten KSH'!$H$50)+J$167*LOG('Grunddaten KSH'!$F$49)+'Lw KSH'!J$168*LOG('Grunddaten KSH'!$M$50) -> 22.77702023 | K200: =K$165+K$166*LOG('Grunddaten KSH'!$H$50)+K$167*LOG('Grunddaten KSH'!$F$49)+'Lw KSH'!K$168*LOG('Grunddaten KSH'!$M$50) -> 20.3339087 | L200: =L$165+L$166*LOG('Grunddaten KSH'!$H$50)+L$167*LOG('Grunddaten KSH'!$F$49)+'Lw KSH'!L$168*LOG('Grunddaten KSH'!$M$50) -> 18.95665055 | M200: =M$165+M$166*LOG('Grunddaten KSH'!$H$50)+M$167*LOG('Grunddaten KSH'!$F$49)+'Lw KSH'!M$168*LOG('Grunddaten KSH'!$M$50) -> 17.79117079 | N200: =N$165+N$166*LOG('Grunddaten KSH'!$H$50)+N$167*LOG('Grunddaten KSH'!$F$49)+'Lw KSH'!N$168*LOG('Grunddaten KSH'!$M$50) -> 16.2619573 | O200: =O$165+O$166*LOG('Grunddaten KSH'!$H$50)+O$167*LOG('Grunddaten KSH'!$F$49)+'Lw KSH'!O$168*LOG('Grunddaten KSH'!$M$50) -> 15.02679991 | P200: =P$165+P$166*LOG('Grunddaten KSH'!$H$50)+P$167*LOG('Grunddaten KSH'!$F$49)+'Lw KSH'!P$168*LOG('Grunddaten KSH'!$M$50) -> 15.01250845 | Q200: =Q$165+Q$166*LOG('Grunddaten KSH'!$H$50)+Q$167*LOG('Grunddaten KSH'!$F$49)+'Lw KSH'!Q$168*LOG('Grunddaten KSH'!$M$50) -> 14.98888515 | R200: =R$165+R$166*LOG('Grunddaten KSH'!$H$50)+R$167*LOG('Grunddaten KSH'!$F$49)+'Lw KSH'!R$168*LOG('Grunddaten KSH'!$M$50) -> 14.90648851 | S200: =S$165+S$166*LOG('Grunddaten KSH'!$H$50)+S$167*LOG('Grunddaten KSH'!$F$49)+'Lw KSH'!S$168*LOG('Grunddaten KSH'!$M$50) -> 15.3556132 | T200: =T$165+T$166*LOG('Grunddaten KSH'!$H$50)+T$167*LOG('Grunddaten KSH'!$F$49)+'Lw KSH'!T$168*LOG('Grunddaten KSH'!$M$50) -> 16.1608923 | U200: =U$165+U$166*LOG('Grunddaten KSH'!$H$50)+U$167*LOG('Grunddaten KSH'!$F$49)+'Lw KSH'!U$168*LOG('Grunddaten KSH'!$M$50) -> 16.60414608 | V200: =V$165+V$166*LOG('Grunddaten KSH'!$H$50)+V$167*LOG('Grunddaten KSH'!$F$49)+'Lw KSH'!V$168*LOG('Grunddaten KSH'!$M$50) -> 17.64603952 | W200: 33.37733652
A201: KSHABLE10003 | B201: =B$165+B$166*LOG('Grunddaten KSH'!$H$50)+B$167*LOG('Grunddaten KSH'!$F$49)+'Lw KSH'!B$168*LOG('Grunddaten KSH'!$M$50) -> 14.40416958 | C201: =C$165+C$166*LOG('Grunddaten KSH'!$H$50)+C$167*LOG('Grunddaten KSH'!$F$49)+'Lw KSH'!C$168*LOG('Grunddaten KSH'!$M$50) -> 10.95925216 | D201: =D$165+D$166*LOG('Grunddaten KSH'!$H$50)+D$167*LOG('Grunddaten KSH'!$F$49)+'Lw KSH'!D$168*LOG('Grunddaten KSH'!$M$50) -> 18.11105767 | E201: =E$165+E$166*LOG('Grunddaten KSH'!$H$50)+E$167*LOG('Grunddaten KSH'!$F$49)+'Lw KSH'!E$168*LOG('Grunddaten KSH'!$M$50) -> 19.45421763 | F201: =F$165+F$166*LOG('Grunddaten KSH'!$H$50)+F$167*LOG('Grunddaten KSH'!$F$49)+'Lw KSH'!F$168*LOG('Grunddaten KSH'!$M$50) -> 23.98980353 | G201: =G$165+G$166*LOG('Grunddaten KSH'!$H$50)+G$167*LOG('Grunddaten KSH'!$F$49)+'Lw KSH'!G$168*LOG('Grunddaten KSH'!$M$50) -> 25.30185143 | H201: =H$165+H$166*LOG('Grunddaten KSH'!$H$50)+H$167*LOG('Grunddaten KSH'!$F$49)+'Lw KSH'!H$168*LOG('Grunddaten KSH'!$M$50) -> 24.90273857 | I201: =I$165+I$166*LOG('Grunddaten KSH'!$H$50)+I$167*LOG('Grunddaten KSH'!$F$49)+'Lw KSH'!I$168*LOG('Grunddaten KSH'!$M$50) -> 24.77754207 | J201: =J$165+J$166*LOG('Grunddaten KSH'!$H$50)+J$167*LOG('Grunddaten KSH'!$F$49)+'Lw KSH'!J$168*LOG('Grunddaten KSH'!$M$50) -> 22.77702023 | K201: =K$165+K$166*LOG('Grunddaten KSH'!$H$50)+K$167*LOG('Grunddaten KSH'!$F$49)+'Lw KSH'!K$168*LOG('Grunddaten KSH'!$M$50) -> 20.3339087 | L201: =L$165+L$166*LOG('Grunddaten KSH'!$H$50)+L$167*LOG('Grunddaten KSH'!$F$49)+'Lw KSH'!L$168*LOG('Grunddaten KSH'!$M$50) -> 18.95665055 | M201: =M$165+M$166*LOG('Grunddaten KSH'!$H$50)+M$167*LOG('Grunddaten KSH'!$F$49)+'Lw KSH'!M$168*LOG('Grunddaten KSH'!$M$50) -> 17.79117079 | N201: =N$165+N$166*LOG('Grunddaten KSH'!$H$50)+N$167*LOG('Grunddaten KSH'!$F$49)+'Lw KSH'!N$168*LOG('Grunddaten KSH'!$M$50) -> 16.2619573 | O201: =O$165+O$166*LOG('Grunddaten KSH'!$H$50)+O$167*LOG('Grunddaten KSH'!$F$49)+'Lw KSH'!O$168*LOG('Grunddaten KSH'!$M$50) -> 15.02679991 | P201: =P$165+P$166*LOG('Grunddaten KSH'!$H$50)+P$167*LOG('Grunddaten KSH'!$F$49)+'Lw KSH'!P$168*LOG('Grunddaten KSH'!$M$50) -> 15.01250845 | Q201: =Q$165+Q$166*LOG('Grunddaten KSH'!$H$50)+Q$167*LOG('Grunddaten KSH'!$F$49)+'Lw KSH'!Q$168*LOG('Grunddaten KSH'!$M$50) -> 14.98888515 | R201: =R$165+R$166*LOG('Grunddaten KSH'!$H$50)+R$167*LOG('Grunddaten KSH'!$F$49)+'Lw KSH'!R$168*LOG('Grunddaten KSH'!$M$50) -> 14.90648851 | S201: =S$165+S$166*LOG('Grunddaten KSH'!$H$50)+S$167*LOG('Grunddaten KSH'!$F$49)+'Lw KSH'!S$168*LOG('Grunddaten KSH'!$M$50) -> 15.3556132 | T201: =T$165+T$166*LOG('Grunddaten KSH'!$H$50)+T$167*LOG('Grunddaten KSH'!$F$49)+'Lw KSH'!T$168*LOG('Grunddaten KSH'!$M$50) -> 16.1608923 | U201: =U$165+U$166*LOG('Grunddaten KSH'!$H$50)+U$167*LOG('Grunddaten KSH'!$F$49)+'Lw KSH'!U$168*LOG('Grunddaten KSH'!$M$50) -> 16.60414608 | V201: =V$165+V$166*LOG('Grunddaten KSH'!$H$50)+V$167*LOG('Grunddaten KSH'!$F$49)+'Lw KSH'!V$168*LOG('Grunddaten KSH'!$M$50) -> 17.64603952 | W201: 33.37733652
A202: KSHABLE12003 | B202: =B$165+B$166*LOG('Grunddaten KSH'!$H$50)+B$167*LOG('Grunddaten KSH'!$F$49)+'Lw KSH'!B$168*LOG('Grunddaten KSH'!$M$50) -> 14.40416958 | C202: =C$165+C$166*LOG('Grunddaten KSH'!$H$50)+C$167*LOG('Grunddaten KSH'!$F$49)+'Lw KSH'!C$168*LOG('Grunddaten KSH'!$M$50) -> 10.95925216 | D202: =D$165+D$166*LOG('Grunddaten KSH'!$H$50)+D$167*LOG('Grunddaten KSH'!$F$49)+'Lw KSH'!D$168*LOG('Grunddaten KSH'!$M$50) -> 18.11105767 | E202: =E$165+E$166*LOG('Grunddaten KSH'!$H$50)+E$167*LOG('Grunddaten KSH'!$F$49)+'Lw KSH'!E$168*LOG('Grunddaten KSH'!$M$50) -> 19.45421763 | F202: =F$165+F$166*LOG('Grunddaten KSH'!$H$50)+F$167*LOG('Grunddaten KSH'!$F$49)+'Lw KSH'!F$168*LOG('Grunddaten KSH'!$M$50) -> 23.98980353 | G202: =G$165+G$166*LOG('Grunddaten KSH'!$H$50)+G$167*LOG('Grunddaten KSH'!$F$49)+'Lw KSH'!G$168*LOG('Grunddaten KSH'!$M$50) -> 25.30185143 | H202: =H$165+H$166*LOG('Grunddaten KSH'!$H$50)+H$167*LOG('Grunddaten KSH'!$F$49)+'Lw KSH'!H$168*LOG('Grunddaten KSH'!$M$50) -> 24.90273857 | I202: =I$165+I$166*LOG('Grunddaten KSH'!$H$50)+I$167*LOG('Grunddaten KSH'!$F$49)+'Lw KSH'!I$168*LOG('Grunddaten KSH'!$M$50) -> 24.77754207 | J202: =J$165+J$166*LOG('Grunddaten KSH'!$H$50)+J$167*LOG('Grunddaten KSH'!$F$49)+'Lw KSH'!J$168*LOG('Grunddaten KSH'!$M$50) -> 22.77702023 | K202: =K$165+K$166*LOG('Grunddaten KSH'!$H$50)+K$167*LOG('Grunddaten KSH'!$F$49)+'Lw KSH'!K$168*LOG('Grunddaten KSH'!$M$50) -> 20.3339087 | L202: =L$165+L$166*LOG('Grunddaten KSH'!$H$50)+L$167*LOG('Grunddaten KSH'!$F$49)+'Lw KSH'!L$168*LOG('Grunddaten KSH'!$M$50) -> 18.95665055 | M202: =M$165+M$166*LOG('Grunddaten KSH'!$H$50)+M$167*LOG('Grunddaten KSH'!$F$49)+'Lw KSH'!M$168*LOG('Grunddaten KSH'!$M$50) -> 17.79117079 | N202: =N$165+N$166*LOG('Grunddaten KSH'!$H$50)+N$167*LOG('Grunddaten KSH'!$F$49)+'Lw KSH'!N$168*LOG('Grunddaten KSH'!$M$50) -> 16.2619573 | O202: =O$165+O$166*LOG('Grunddaten KSH'!$H$50)+O$167*LOG('Grunddaten KSH'!$F$49)+'Lw KSH'!O$168*LOG('Grunddaten KSH'!$M$50) -> 15.02679991 | P202: =P$165+P$166*LOG('Grunddaten KSH'!$H$50)+P$167*LOG('Grunddaten KSH'!$F$49)+'Lw KSH'!P$168*LOG('Grunddaten KSH'!$M$50) -> 15.01250845 | Q202: =Q$165+Q$166*LOG('Grunddaten KSH'!$H$50)+Q$167*LOG('Grunddaten KSH'!$F$49)+'Lw KSH'!Q$168*LOG('Grunddaten KSH'!$M$50) -> 14.98888515 | R202: =R$165+R$166*LOG('Grunddaten KSH'!$H$50)+R$167*LOG('Grunddaten KSH'!$F$49)+'Lw KSH'!R$168*LOG('Grunddaten KSH'!$M$50) -> 14.90648851 | S202: =S$165+S$166*LOG('Grunddaten KSH'!$H$50)+S$167*LOG('Grunddaten KSH'!$F$49)+'Lw KSH'!S$168*LOG('Grunddaten KSH'!$M$50) -> 15.3556132 | T202: =T$165+T$166*LOG('Grunddaten KSH'!$H$50)+T$167*LOG('Grunddaten KSH'!$F$49)+'Lw KSH'!T$168*LOG('Grunddaten KSH'!$M$50) -> 16.1608923 | U202: =U$165+U$166*LOG('Grunddaten KSH'!$H$50)+U$167*LOG('Grunddaten KSH'!$F$49)+'Lw KSH'!U$168*LOG('Grunddaten KSH'!$M$50) -> 16.60414608 | V202: =V$165+V$166*LOG('Grunddaten KSH'!$H$50)+V$167*LOG('Grunddaten KSH'!$F$49)+'Lw KSH'!V$168*LOG('Grunddaten KSH'!$M$50) -> 17.64603952 | W202: 33.37733652
B204: Oktav-Frequenz fOkt [Hz] | I204: SLWA
B205: 125 | C205: 250 | D205: 500 | E205: 1000 | F205: 2000 | G205: 4000 | H205: 8000 | I205: Summe
A206: KSHZUL5002 | B206: =10*LOG(10^(0.1*B173)+10^(0.1*C173)+10^(0.1*D173)) -> 46.59475052 | C206: =10*LOG(10^(0.1*E173)+10^(0.1*F173)+10^(0.1*G173)) -> 35.97697266 | D206: =10*LOG(10^(0.1*H173)+10^(0.1*I173)+10^(0.1*J173)) -> 38.49299828 | E206: =10*LOG(10^(0.1*K173)+10^(0.1*L173)+10^(0.1*M173)) -> 45.15987143 | F206: =10*LOG(10^(0.1*N173)+10^(0.1*O173)+10^(0.1*P173)) -> 51.311393 | G206: =10*LOG(10^(0.1*Q173)+10^(0.1*R173)+10^(0.1*S173)) -> 46.11169688 | H206: =10*LOG(10^(0.1*T173)+10^(0.1*U173)+10^(0.1*V173)) -> 33.89270935 | I206: =ROUND(10*LOG(10^(0.1*B206)+10^(0.1*C206)+10^(0.1*D206)+10^(0.1*E206)+10^(0.1*F206)+10^(0.1*G206)+10^(0.1*H206)),0) -> 54
A207: KSHZUL6002 | B207: =10*LOG(10^(0.1*B174)+10^(0.1*C174)+10^(0.1*D174)) -> 46.59475052 | C207: =10*LOG(10^(0.1*E174)+10^(0.1*F174)+10^(0.1*G174)) -> 35.97697266 | D207: =10*LOG(10^(0.1*H174)+10^(0.1*I174)+10^(0.1*J174)) -> 38.49299828 | E207: =10*LOG(10^(0.1*K174)+10^(0.1*L174)+10^(0.1*M174)) -> 45.15987143 | F207: =10*LOG(10^(0.1*N174)+10^(0.1*O174)+10^(0.1*P174)) -> 51.311393 | G207: =10*LOG(10^(0.1*Q174)+10^(0.1*R174)+10^(0.1*S174)) -> 46.11169688 | H207: =10*LOG(10^(0.1*T174)+10^(0.1*U174)+10^(0.1*V174)) -> 33.89270935 | I207: =ROUND(10*LOG(10^(0.1*B207)+10^(0.1*C207)+10^(0.1*D207)+10^(0.1*E207)+10^(0.1*F207)+10^(0.1*G207)+10^(0.1*H207)),0) -> 54
A208: KSHZUL8002 | B208: 46.59475052 | C208: 35.97697266 | D208: 38.49299828 | E208: 45.15987143 | F208: 51.311393 | G208: 46.11169688 | H208: 33.89270935 | I208: 54
A209: KSHZUL10002 | B209: 46.59475052 | C209: 35.97697266 | D209: 38.49299828 | E209: 45.15987143 | F209: 51.311393 | G209: 46.11169688 | H209: 33.89270935 | I209: 54
A210: KSHZUL12002 | B210: 46.59475052 | C210: 35.97697266 | D210: 38.49299828 | E210: 45.15987143 | F210: 51.311393 | G210: 46.11169688 | H210: 33.89270935 | I210: 54
... 31 more rows

Sheet Dt KSH (hidden)
A1: Frequenzband | B1: fm_Okt | C1: [Hz] | D1: 63 | E1: 125 | F1: 250 | G1: 500 | H1: 1000 | I1: 2000 | J1: 4000 | K1: 8000
C2: ='Grunddaten KSH'!C4 -> KSHZUL5002 | D2: 23.30731882 | E2: 14.45590399 | F2: 12.33618238 | G2: 15.35789436 | H2: 13.88011471 | I2: 14.61372889 | J2: 16.2965371 | K2: 21.77256323
C3: ='Grunddaten KSH'!C5 -> KSHZUL6002 | D3: 23.87428217 | E3: 14.85895 | F3: 13.08916318 | G3: 12.30275179 | H3: 17.24639939 | I3: 15.05588946 | J3: 16.94965308 | K3: 22.50207753
C4: ='Grunddaten KSH'!C6 -> KSHZUL8002 | D4: 23.57773265 | E4: 15.64127485 | F4: 12.89061607 | G4: 13.99882833 | H4: 15.01221459 | I4: 14.70353305 | J4: 15.68316928 | K4: 21.12331636
C5: ='Grunddaten KSH'!C7 -> KSHZUL10002 | D5: 23.30731882 | E5: 14.45590399 | F5: 12.33618238 | G5: 15.35789436 | H5: 13.88011471 | I5: 14.61372889 | J5: 16.2965371 | K5: 21.77256323
C6: ='Grunddaten KSH'!C8 -> KSHZUL12002 | D6: 23.97896338 | E6: 14.99127372 | F6: 13.34376431 | G6: 14.96578912 | H6: 14.50433211 | I6: 14.70606091 | J6: 15.88396938 | K6: 21.44890602
C7: ='Grunddaten KSH'!C9 -> KSHZUL5003 | D7: 24.78807049 | E7: 17.99628163 | F7: 14.11833108 | G7: 16.05553514 | H7: 14.69796894 | I7: 15.11918897 | J7: 18.03549144 | K7: 24.08208846
C8: ='Grunddaten KSH'!C10 -> KSHZUL6003 | D8: 24.32037453 | E8: 17.18697264 | F8: 13.60439277 | G8: 13.00624108 | H8: 15.41958235 | I8: 14.12530416 | J8: 15.7703199 | K8: 21.4958675
C9: ='Grunddaten KSH'!C11 -> KSHZUL8003 | D9: 24.44524164 | E9: 18.07973974 | F9: 13.90459472 | G9: 13.88006542 | H9: 15.08713973 | I9: 15.19839823 | J9: 17.3399501 | K9: 23.41091378
C10: ='Grunddaten KSH'!C12 -> KSHZUL10003 | D10: 24.78807049 | E10: 17.99628163 | F10: 14.11833108 | G10: 16.05553514 | H10: 14.69796894 | I10: 15.11918897 | J10: 18.03549144 | K10: 24.08208846
C11: ='Grunddaten KSH'!C13 -> KSHZUL12003 | D11: 25.03962776 | E11: 17.43814229 | F11: 14.29143657 | G11: 15.60734229 | H11: 14.46949008 | I11: 14.72199848 | J11: 16.26806287 | K11: 21.93267915
C12: ='Grunddaten KSH'!C14 -> KSHABLD5002 | D12: 23.24246633 | E12: 13.86146579 | F12: 12.7791218 | G12: 15.82194396 | H12: 12.92727648 | I12: 13.57196297 | J12: 16.17886702 | K12: 21.73103278
C13: ='Grunddaten KSH'!C15 -> KSHABLD6002 | D13: 23.60478722 | E13: 14.29716419 | F13: 14.27841918 | G13: 12.92997061 | H13: 15.9472492 | I13: 13.86706034 | J13: 16.41042469 | K13: 23.35054702
C14: ='Grunddaten KSH'!C16 -> KSHABLD8002 | D14: 23.42128011 | E14: 15.50117798 | F14: 13.15592203 | G14: 14.22747558 | H14: 14.40602644 | I14: 13.79129096 | J14: 16.53602578 | K14: 21.76849775
C15: ='Grunddaten KSH'!C17 -> KSHABLD10002 | D15: 23.24246633 | E15: 13.86146579 | F15: 12.7791218 | G15: 15.82194396 | H15: 12.92727648 | I15: 13.57196297 | J15: 16.17886702 | K15: 21.73103278
C16: ='Grunddaten KSH'!C18 -> KSHABLD12002 | D16: 23.02078743 | E16: 14.74929817 | F16: 13.3876314 | G16: 15.88949244 | H16: 13.53273872 | I16: 13.67051567 | J16: 16.26394955 | K16: 21.6357681
C17: ='Grunddaten KSH'!C19 -> KSHABLD5003 | D17: 24.54880064 | E17: 17.7694623 | F17: 13.66569776 | G17: 16.12390032 | H17: 13.31441655 | I17: 13.49498339 | J17: 17.35931422 | K17: 23.74179962
C18: ='Grunddaten KSH'!C20 -> KSHABLD6003 | D18: 24.45754195 | E18: 17.36523651 | F18: 14.41507177 | G18: 12.55808599 | H18: 14.64994563 | I18: 13.17382959 | J18: 17.36185217 | K18: 22.4717398
C19: ='Grunddaten KSH'!C21 -> KSHABLD8003 | D19: 24.85019572 | E19: 17.59402955 | F19: 13.80571868 | G19: 14.30447513 | H19: 13.70933633 | I19: 13.35699869 | J19: 15.5176615 | K19: 21.12606981
C20: ='Grunddaten KSH'!C22 -> KSHABLD10003 | D20: 24.54880064 | E20: 17.7694623 | F20: 13.66569776 | G20: 16.12390032 | H20: 13.31441655 | I20: 13.49498339 | J20: 17.35931422 | K20: 23.74179962
C21: ='Grunddaten KSH'!C23 -> KSHABLD12003 | D21: 24.9179379 | E21: 17.55706776 | F21: 14.56419188 | G21: 14.98754528 | H21: 12.683424 | I21: 13.08756411 | J21: 16.97329702 | K21: 21.74530167
C22: ='Grunddaten KSH'!C24 -> KSHABLE5002 | D22: 23.30731882 | E22: 14.45590399 | F22: 12.33618238 | G22: 15.35789436 | H22: 13.88011471 | I22: 14.61372889 | J22: 16.2965371 | K22: 21.77256323
C23: ='Grunddaten KSH'!C25 -> KSHABLE6002 | D23: 23.87428217 | E23: 14.85895 | F23: 13.08916318 | G23: 12.30275179 | H23: 17.24639939 | I23: 15.05588946 | J23: 16.94965308 | K23: 22.50207753
C24: ='Grunddaten KSH'!C26 -> KSHABLE8002 | D24: 23.57773265 | E24: 15.64127485 | F24: 12.89061607 | G24: 13.99882833 | H24: 15.01221459 | I24: 14.70353305 | J24: 15.68316928 | K24: 21.12331636
C25: ='Grunddaten KSH'!C27 -> KSHABLE10002 | D25: 23.30731882 | E25: 14.45590399 | F25: 12.33618238 | G25: 15.35789436 | H25: 13.88011471 | I25: 14.61372889 | J25: 16.2965371 | K25: 21.77256323
C26: ='Grunddaten KSH'!C28 -> KSHABLE12002 | D26: 23.97896338 | E26: 14.99127372 | F26: 13.34376431 | G26: 14.96578912 | H26: 14.50433211 | I26: 14.70606091 | J26: 15.88396938 | K26: 21.44890602
C27: ='Grunddaten KSH'!C29 -> KSHABLE5003 | D27: 24.78807049 | E27: 17.99628163 | F27: 14.11833108 | G27: 16.05553514 | H27: 14.69796894 | I27: 15.11918897 | J27: 18.03549144 | K27: 24.08208846
C28: ='Grunddaten KSH'!C30 -> KSHABLE6003 | D28: 24.32037453 | E28: 17.18697264 | F28: 13.60439277 | G28: 13.00624108 | H28: 15.41958235 | I28: 14.12530416 | J28: 15.7703199 | K28: 21.4958675
C29: ='Grunddaten KSH'!C31 -> KSHABLE8003 | D29: 24.44524164 | E29: 18.07973974 | F29: 13.90459472 | G29: 13.88006542 | H29: 15.08713973 | I29: 15.19839823 | J29: 17.3399501 | K29: 23.41091378
C30: ='Grunddaten KSH'!C32 -> KSHABLE10003 | D30: 24.78807049 | E30: 17.99628163 | F30: 14.11833108 | G30: 16.05553514 | H30: 14.69796894 | I30: 15.11918897 | J30: 18.03549144 | K30: 24.08208846
C31: ='Grunddaten KSH'!C33 -> KSHABLE12003 | D31: 25.03962776 | E31: 17.43814229 | F31: 14.29143657 | G31: 15.60734229 | H31: 14.46949008 | I31: 14.72199848 | J31: 16.26806287 | K31: 21.93267915
D34: 2 | E34: 3 | F34: 4 | G34: 5 | H34: 6 | I34: 7 | J34: 8 | K34: 9
C36: ='Grunddaten KSH'!$C$49 -> KSHZUL6003 | D36: =VLOOKUP($C$36,$C$2:$K$31,D34,FALSE) -> 24.32037453 | E36: =VLOOKUP($C$36,$C$2:$K$31,E34,FALSE) -> 17.18697264 | F36: 13.60439277 | G36: 13.00624108 | H36: 15.41958235 | I36: 14.12530416 | J36: 15.7703199 | K36: 21.4958675
C37: ='Grunddaten KSH'!$C$50 -> KSHABLE6003 | D37: =VLOOKUP($C$37,$C$2:$K$31,D34,FALSE) -> 24.32037453 | E37: =VLOOKUP($C$37,$C$2:$K$31,E34,FALSE) -> 17.18697264 | F37: 13.60439277 | G37: 13.00624108 | H37: 15.41958235 | I37: 14.12530416 | J37: 15.7703199 | K37: 21.4958675

Sheet Auslegung KSH
A1: =Übersetzung!F5 -> Auslegung Kampmann Kombiluftdurchlässe
A3: =Übersetzung!F6 -> Eingabefelder sind gelb gekennzeichnet
A4: =Übersetzung!F7 -> Ergebnisfelder sind blau gekennzeichnet
A6: =Übersetzung!F8 -> Vorgaben
A7: =Übersetzung!F9 -> Lüftungstechnik | B7: =Übersetzung!F10 -> Symbol | C7: =Übersetzung!F11 -> Einheit | D7: =Übersetzung!F12 -> Wert
A8: =Übersetzung!F13 -> Durchlass Typ | D8: KSH
A9: =Übersetzung!F15 -> Baulänge | B9: L | C9: =Einheiten!$L$10 -> mm | D9: 600
D10: 500
D11: 600
D12: 800
D13: 1000
D14: 1200
A15: =Übersetzung!F142 -> Schlitzanzahl | B15: n | C15: [-] | D15: 3
D16: 2
D17: 3
A18: Ausführung Durchlass | D18: leer
D19: =Übersetzung!F162 -> Zuluft
D20: =Übersetzung!F163 -> Abluft
A21: =Übersetzung!$F$42 -> Durchmesser Anschlussstutzen | B21: DN | C21: =Einheiten!$L$10 -> mm | D21: 100
D22: 100
D23: =IF(D15=3,125,100) -> 125
A24: =Übersetzung!F143 -> BVR in Zuluft | D24: nein
D25: =Übersetzung!F175 -> ja | E25: =Übersetzung!F175 -> ja
D26: =Übersetzung!F176 -> nein
A27: =Übersetzung!F144 -> Luftvolumenstrom Zuluft | B27: V·SUP | C27: =Einheiten!$L$7 -> m³/h | D27: 120
A28: =Übersetzung!F214 -> Nennvolumenstrom Konstantvolumenstromregler | B28: V°BVR_SUP | C28: =Einheiten!$L$7 -> m³/h | D28: 120
D29: =V°BVR_KSH!S11 -> 50
D30: =V°BVR_KSH!S12 -> 55
D31: =V°BVR_KSH!S13 -> 70
D32: =V°BVR_KSH!S14 -> 75
D33: =V°BVR_KSH!S15 -> 80
D34: =V°BVR_KSH!S16 -> 90
D35: =V°BVR_KSH!S17 -> 
D36: =V°BVR_KSH!S18 -> 
D37: =V°BVR_KSH!S19 -> 
D38: =V°BVR_KSH!S20 -> 
D39: =V°BVR_KSH!S21 -> 
D40: =V°BVR_KSH!S22 -> 
D41: =V°BVR_KSH!S23 -> 
D42: =V°BVR_KSH!S24 -> 
A43: =Übersetzung!F145 -> BVR in Abluft | D43: nein
D44: =Übersetzung!F175 -> ja | E44: =Übersetzung!F175 -> ja
D45: nein
A46: =Übersetzung!F146 -> Luftvolumenstrom Abluft | B46: V·ETA | C46: =Einheiten!$L$7 -> m³/h | D46: 110
A47: =Übersetzung!F214 -> Nennvolumenstrom Konstantvolumenstromregler | B47: V·BVR_ETA | C47: m³/h | D47: 50
D48: =V°BVR_KSH!AH31 -> 50
D49: =V°BVR_KSH!AH32 -> 55
D50: =V°BVR_KSH!AH33 -> 70
D51: =V°BVR_KSH!AH34 -> 75
D52: =V°BVR_KSH!AH35 -> 80
D53: =V°BVR_KSH!AH36 -> 90
D54: =V°BVR_KSH!AH37 -> 
D55: =V°BVR_KSH!AH38 -> 
D56: =V°BVR_KSH!AH39 -> 
D57: =V°BVR_KSH!AH40 -> 
D58: =V°BVR_KSH!AH41 -> 
D59: =V°BVR_KSH!AH42 -> 
D60: =V°BVR_KSH!AH43 -> 
D61: =V°BVR_KSH!AH44 -> 
D62: =V°BVR_KSH!AH45 -> 
D63: =V°BVR_KSH!AH46 -> 
D64: =V°BVR_KSH!AH47 -> 
D65: =V°BVR_KSH!AH48 -> 
D66: =V°BVR_KSH!AH49 -> 
D67: =V°BVR_KSH!AH50 -> 
D68: =V°BVR_KSH!AH51 -> 
A70: =Übersetzung!F236 -> Ausführung Abluft | D70: Exzenterwalze
D71: =Übersetzung!F237 -> Exzenterwalze | E71: =IF(OR($D$70="Düsenwalze",$D$70="Nozzle cylinder"),"D","E") -> E
D72: =Übersetzung!F238 -> Düsenwalze
A73: =Übersetzung!F18 -> Temperatur Zuluft | B73: tSUP | C73: =Einheiten!$L$9 -> °C | D73: 18 | H73: 1 | I73: =Übersetzung!F171 -> Breite Frontblende | J73: ='Grunddaten KSH'!$R$49 -> 630 | K73: =Einheiten!$L$10 -> mm
A74: =Übersetzung!F19 -> Temperatur Raum | B74: tRaum | C74: =Einheiten!$L$9 -> °C | D74: 26 | H74: 2 | I74: =Übersetzung!F172 -> Höhe Frontblende | J74: ='Grunddaten KSH'!S49 -> 126 | K74: =Einheiten!$L$10 -> mm
H75: 3 | I75: =Übersetzung!F232 -> Länge Anschlusskasten | J75: ='Grunddaten KSH'!Q49 -> 618 | K75: =Einheiten!$L$10 -> mm
A76: =Übersetzung!F20 -> Raumdaten | H76: 4 | I76: =Übersetzung!F72 -> Höhe Anschlusskasten | J76: ='Grunddaten KSH'!P49 -> 165 | K76: =Einheiten!$L$10 -> mm
A77: =Übersetzung!F25 -> Raumhöhe | B77: H1 | C77: =Einheiten!$L$5 -> m | D77: 3 | H77: 5 | I77: =Übersetzung!F173 -> Tiefe Anschlusskasten | J77: ='Grunddaten KSH'!X49 -> 225 | K77: =Einheiten!$L$10 -> mm
A78: =Übersetzung!F22 -> Obergrenze Aufenthaltsbereich | B78: H2 | C78: =Einheiten!$L$5 -> m | D78: 1.8 | H78: 6 | I78: =Übersetzung!F233 -> Tiefe Hals | J78: ='Grunddaten KSH'!$V$49 -> 100 | K78: =Einheiten!$L$10 -> mm
A79: =Übersetzung!F23 -> Raumlänge | B79: LR | C79: =Einheiten!$L$5 -> m | D79: 6 | H79: 7 | I79: =Übersetzung!$F$234 -> Höhe Hals | J79: ='Grunddaten KSH'!$W$49 -> 114 | K79: =Einheiten!$L$10 -> mm
A80: =Übersetzung!F24 -> Raumbreite | B80: BR | C80: =Einheiten!$L$5 -> m | D80: 3 | H80: 8 | I80: =Übersetzung!$F$210 -> Abstand Anschlussstutzen | J80: ='Grunddaten KSH'!$U$49 -> 308 | K80: =Einheiten!$L$10 -> mm
A81: =Übersetzung!F148 -> Raumart nach VDI 2081 | D81: Einzelbüro | H81: 9 | I81: =Übersetzung!$F$42 -> Durchmesser Anschlussstutzen | J81: ='Grunddaten KSH'!$I$49 -> 123 | K81: =Einheiten!$L$10 -> mm
C82: =Übersetzung!F177 -> Einzelbüro | K82: =Einheiten!$L$10 -> mm
C83: =Übersetzung!F178 -> Großraumbüro | K83: =Einheiten!$L$10 -> mm
C84: =Übersetzung!F179 -> Werkstätten | K84: =Einheiten!$L$10 -> mm
C85: =Übersetzung!F180 -> Ruheraum, Pausenraum | K85: =Einheiten!$L$10 -> mm
C86: =Übersetzung!F181 -> Untersuchungsraum Krankenhaus | K86: =Einheiten!$L$10 -> mm
C87: =Übersetzung!F182 -> Rundfunk-, Fernsehstudio | K87: =Einheiten!$L$10 -> mm
C88: =Übersetzung!F183 -> Chemielabor | K88: =Einheiten!$L$10 -> mm
C89: =Übersetzung!F184 -> Wasch- und WC-Raum, Umkleide | K89: =Einheiten!$L$10 -> mm
C90: =Übersetzung!F185 -> Schwimmbad | K90: =Einheiten!$L$10 -> mm
C91: =Übersetzung!F186 -> EDV-Raum | K91: =Einheiten!$L$10 -> mm
C92: =Übersetzung!F187 -> Konzertsaal | K92: =Einheiten!$L$10 -> mm
C93: =Übersetzung!F188 -> Lesesaal | K93: =Einheiten!$L$10 -> mm
C94: =Übersetzung!F189 -> Museum | K94: =Einheiten!$L$10 -> mm
C95: =Übersetzung!F190 -> Küche | K95: =Einheiten!$L$10 -> mm
C96: =Übersetzung!F191 -> Theater, Kino | K96: =Einheiten!$L$10 -> mm
C97: =Übersetzung!F192 -> Klassen- Seminarraum | K97: =Einheiten!$L$10 -> mm
C98: =Übersetzung!F193 -> Gaststätte | K98: =Einheiten!$L$10 -> mm
C99: =Übersetzung!F194 -> kein Typ | K99: =Einheiten!$L$10 -> mm
C100: =Übersetzung!F195 -> Konferenzraum | K100: =Einheiten!$L$10 -> mm
C101: =Übersetzung!F196 -> Hotelzimmer | K101: =Einheiten!$L$10 -> mm
C102: =Übersetzung!F197 -> Hörsaal | K102: =Einheiten!$L$10 -> mm
C103: =Übersetzung!F198 -> Bettenzimmer Krankenhaus | K103: =Einheiten!$L$10 -> mm
C104: =Übersetzung!F199 -> Verkaufsraum | K104: =Einheiten!$L$10 -> mm
C105: =Übersetzung!F200 -> Sporthalle | K105: =Einheiten!$L$10 -> mm
A106: =Übersetzung!F149 -> Abstand zur Schallquelle | B106: r | C106: =Einheiten!$L$5 -> m | D106: 3
A108: =Übersetzung!F150 -> Zusatzdaten
A109: =Übersetzung!F151 -> Walzenfarbe | B109: schwarz | F109: =VLOOKUP($B$109,'Schlüssel KS'!$A$38:$B$43,2,FALSE) -> S
B110: =Übersetzung!F154 -> schwarz
B111: =Übersetzung!F155 -> weiß
A112: =Übersetzung!F152 -> Lackierung Frontblende | B112: weiß (RAL 9010) bepulvert | F112: =VLOOKUP($B$112,'Schlüssel KS'!$A$38:$B$43,2,FALSE) -> 9010
B113: =Übersetzung!F156 -> naturfarbig eloxiert
B114: =Übersetzung!F157 -> weiß (RAL 9010) bepulvert
F115: =VLOOKUP(D9,'Schlüssel KS'!A38:B48,2,0) -> 
A116: =Übersetzung!F153 -> Ausführung | B116: ohne Drossel / ohne BVR | F116: =VLOOKUP(B116,'Schlüssel KS'!A38:B48,2,0) -> 0
B117: =Übersetzung!F158 -> ohne Drossel / ohne BVR
B118: =Übersetzung!F159 -> mit frontseitig bedienbarer Drossel*
B119: =Übersetzung!F160 -> mit BVR*
A120: Ident-Nr. | B120: ='Grunddaten KS'!$Y$23 -> 071-9605
A121: Brutto-Listenpreis | B121: =IF(B116="ohne Drossel / ohne BVR",'Grunddaten KS'!Z$23,"") -> 309
A122: Merkmalschlüssel | B122: =CONCATENATE(1,"K","S0",3,"K",$F$115,"A",$F$112,$F$109,"J","DE","A",F116,"V") -> 
A124: =Übersetzung!F26 -> Berechnung strömungstechnische und Akustische Daten | D124: =Übersetzung!F162 -> Zuluft | E124: =Übersetzung!F163 -> Abluft
A125: =Übersetzung!F27 -> Totaldruckverlust | B125: Dpt | C125: =Einheiten!$L$8 -> Pa | D125: =IF(OR(AND(D9=500,D18=Übersetzung!F163),D18="Auswahl"),"",'Grunddaten KSH'!N49) -> 38.67636138 | E125: =IF(OR(AND(D9=500,D18=Übersetzung!F163),E18="Auswahl"),"",'Grunddaten KSH'!O50) -> 28.88908115
A126: =Übersetzung!F91 -> Kritischer Strahlweg | B126: xkr. | C126: =Einheiten!$L$5 -> m | D126: =IF(OR(AND(D9=500,D18=Übersetzung!F163),D18="Auswahl"),"",VLOOKUP(CONCATENATE(D9,D15),'xkr._vx KSH'!$F$7:$M$20,2,FALSE)) -> 2.440261538
A127: =Übersetzung!F161 -> Strahllauflänge bis Aufenthaltsbereich | B127: x+y | C127: =Einheiten!$L$5 -> m | D127: =IF(OR(AND(D9=500,D18=Übersetzung!F163),D18="Auswahl"),"",VLOOKUP(CONCATENATE(D9,D15),'xkr._vx KSH'!$F$7:$M$20,7,FALSE)) -> 4.137317813
A128: =Übersetzung!F57 -> Geschwindigkeit nach Ablösen an Xkr. | B128: vx+y | C128: =Einheiten!$L$6 -> m/s | D128: =IF(OR(AND(D9=500,D18=Übersetzung!F163),D18="Auswahl"),"",VLOOKUP(CONCATENATE(D9,D15),'xkr._vx KSH'!$F$7:$M$20,6,FALSE)) -> 0.2558398708
A129: =Übersetzung!F56 -> Zugluftrisiko im Aufenthaltsbereich** | B129: DR | C129: % | D129: =IF(OR(AND(D9=500,D18=Übersetzung!F163),D18="Auswahl"),"",VLOOKUP(CONCATENATE(D9,D15),'xkr._vx KSH'!$F$7:$M$20,8,0)) -> 26.93133203
A131: =Übersetzung!F164 -> Schallleistungspegel | D131: =D124 -> Zuluft | E131: =Übersetzung!F163 -> Abluft
A132: =Übersetzung!F165 -> Druckdifferenz am BVR | B132: DpBVR | C132: =Einheiten!$L$8 -> Pa | D132: 50 | E132: 50
D133: 50 | E133: 50
D134: 75 | E134: 75
D135: 100 | E135: 100
D136: 125 | E136: 125
D137: 150 | E137: 150
D138: 175 | E138: 175
D139: 200 | E139: 200
A141: =Übersetzung!F166 -> Schallleistungspegel mit BVR Zuluft/Abluft | B141: LWA_SUP/ETA | C141: dB(A) | D141: =IF($D$24="ja",LWBVR_KSH!$K$5,"") ->  | E141: =IF($D$43="ja",LWBVR_KSH!$K$6,"") -> 
A142: =Übersetzung!F167 -> Schallleistungspegel ohne BVR Zuluft/Abluft | B142: LWA_SUP/ETA | C142: dB(A) | D142: =IF(OR(AND(D9=500,D18=Übersetzung!F163),D18="Auswahl"),"",IF(D24="ja","",'Lw KSH'!I239)) -> 36 | E142: =IF(OR(AND(D9=500,D18=Übersetzung!F162),D18="Auswahl"),"",IF($D$43="ja","",'Lw KSH'!$I$240)) -> 33
D143: =IF(OR(D141="",D141="<25"),-100,D141) -> -100 | E143: =IF(OR(E141="",E141="<25"),-100,E141) -> -100
D144: =IF(OR(D142="",D142="<25"),-100,D142) -> 36 | E144: =IF(OR(E142="",E142="<25"),-100,E142) -> 33
A146: =Übersetzung!F168 -> Summen-Schallleistungspegel Zuluft + Abluft | B146: LWA_gesamt | C146: dB(A) | D146: =IF(AND(D9=500,D18=Übersetzung!F163,D18="Auswahl"),"",IF(10*LOG(10^(0.1*D143)+10^(0.1*E143)+10^(0.1*D144)+10^(0.1*E144))>25,10*LOG(10^(0.1*D143)+10^(0.1*E143)+10^(0.1*D144)+10^(0.1*E144)),D145)) -> 37.76434862
A147: =Übersetzung!F169 -> Schalldruckpegel im Raum | B147: LPA | C147: dB(A) | D147: =IF(D146="","",IF('Auslegung KSH'!$D$146+10*LOG('Lw KS'!$G$117/(4*PI()*'Auslegung KSH'!$D$106^2)+4/'Lw KS'!I117)>=25,'Auslegung KSH'!$D$146+10*LOG('Lw KS'!$G$117/(4*PI()*'Auslegung KSH'!$D$106^2)+4/'Lw KS'!I117),"<25")) -> 32.65032205
A149: =Übersetzung!F34 -> Oktavspektrum Schallleistung | B149: LW_Okt | C149: dB(A) | D149: =Übersetzung!F162 -> Zuluft | E149: =Übersetzung!F163 -> Abluft
B150: LW_125 | C150: dB | D150: =IF(OR(AND(D9=500,D18=Übersetzung!F163),D18="Auswahl"),"",IF($D$142="<25","",IF($D$24="ja",LWBVR_KSH!$N$5,'Lw KSH'!$B$239))) -> 38.99778192 | E150: =IF(OR(AND(D9=500,D18=Übersetzung!F162),D18="Auswahl"),"",IF(E142="<25","",IF(D43="ja",LWBVR_KSH!$N$6,'Lw KSH'!$B$240))) -> 36.30238825
B151: LW_250 | C151: dB | D151: =IF(OR(AND(D9=500,D18=Übersetzung!F163),D18="Auswahl"),"",IF(D142="<25","",IF(D24="ja",LWBVR_KSH!$O$5,'Lw KSH'!$C$239))) -> 39.06817828 | E151: =IF(OR(AND(D9=500,D18=Übersetzung!F162),D18="Auswahl"),"",IF(E142="<25","",IF(D43="ja",LWBVR_KSH!$O$6,'Lw KSH'!$C$240))) -> 36.91087928
B152: LW_500 | C152: dB | D152: =IF(OR(AND(D9=500,D18=Übersetzung!F163),D18="Auswahl"),"",IF(D142="<25","",IF(D24="ja",LWBVR_KSH!$P$5,'Lw KSH'!$D$239))) -> 34.30897438 | E152: =IF(OR(AND(D9=500,D18=Übersetzung!F162),D18="Auswahl"),"",IF(E142="<25","",IF(D43="ja",LWBVR_KSH!$P$6,'Lw KSH'!$D$240))) -> 32.22656844
B153: LW_1000 | C153: dB | D153: =IF(OR(AND(D9=500,D18=Übersetzung!F163),D18="Auswahl"),"",IF(D142="<25","",IF(D24="ja",LWBVR_KSH!$Q$5,'Lw KSH'!$E$239))) -> 28.8628684 | E153: =IF(OR(AND(D9=500,D18=Übersetzung!F162),D18="Auswahl"),"",IF(E142="<25","",IF(D43="ja",LWBVR_KSH!$Q$6,'Lw KSH'!$E$240))) -> 23.92291142
B154: LW_2000 | C154: dB | D154: =IF(OR(AND(D9=500,D18=Übersetzung!F163),D18="Auswahl"),"",IF(D142="<25","",IF(D24="ja",LWBVR_KSH!$R$5,'Lw KSH'!$F$239))) -> 23.29518532 | E154: =IF(OR(AND(D9=500,D18=Übersetzung!F162),D18="Auswahl"),"",IF(E142="<25","",IF(D43="ja",LWBVR_KSH!$R$6,'Lw KSH'!$F$240))) -> 19.04561285
B155: LW_4000 | C155: dB | D155: =IF(OR(AND(D9=500,D18=Übersetzung!F163),D18="Auswahl"),"",IF(D142="<25","",IF(D24="ja",LWBVR_KSH!$S$5,'Lw KSH'!$G$239))) -> 20.87537435 | E155: =IF(OR(AND(D9=500,D18=Übersetzung!F162),D18="Auswahl"),"",IF(E142="<25","",IF(D43="ja",LWBVR_KSH!$S$6,'Lw KSH'!$G$240))) -> 18.85930164
B156: LW_8000 | C156: dB | D156: =IF(OR(AND(D9=500,D18=Übersetzung!F163),D18="Auswahl"),"",IF(D142="<25","",IF(D24="ja",LWBVR_KSH!$T$5,'Lw KSH'!$H$239))) -> 23.34300236 | E156: =IF(OR(AND(D9=500,D18=Übersetzung!F162),D18="Auswahl"),"",IF(E142="<25","",IF(D43="ja",LWBVR_KSH!$T$6,'Lw KSH'!$H$240))) -> 22.72035333
A158: =Übersetzung!F170 -> Durchgangsdämpfungsmaß (Kanal -> Raum) | B158: Dt | C158: dB
B159: Dt_63 | C159: dB | D159: =IF(OR(AND(D9=500,D18=Übersetzung!F163),D18="Auswahl"),"",'Dt KSH'!$D$36) -> 24.32037453 | E159: =IF(OR(AND(D9=500,D18=Übersetzung!F162),D18="Auswahl"),"",'Dt KSH'!$D$37) -> 24.32037453
B160: Dt_125 | C160: dB | D160: =IF(OR(AND(D9=500,D18=Übersetzung!F163),D18="Auswahl"),"",'Dt KSH'!$E$36) -> 17.18697264 | E160: =IF(OR(AND(D9=500,D18=Übersetzung!F162),D18="Auswahl"),"",'Dt KSH'!$E$37) -> 17.18697264
B161: Dt_250 | C161: dB | D161: =IF(OR(AND(D9=500,D18=Übersetzung!F163),D18="Auswahl"),"",'Dt KSH'!$F$36) -> 13.60439277 | E161: =IF(OR(AND(D9=500,D18=Übersetzung!F162),D18="Auswahl"),"",'Dt KSH'!$F$37) -> 13.60439277
B162: Dt_500 | C162: dB | D162: =IF(OR(AND(D9=500,D18=Übersetzung!F163),D18="Auswahl"),"",'Dt KSH'!$G$36) -> 13.00624108 | E162: =IF(OR(AND(D9=500,D18=Übersetzung!F162),D18="Auswahl"),"",'Dt KSH'!$G$37) -> 13.00624108
B163: Dt_1000 | C163: dB | D163: =IF(OR(AND(D9=500,D18="Abluft"),D18="Auswahl"),"",'Dt KSH'!$H$36) -> 15.41958235 | E163: =IF(OR(AND(D9=500,D18=Übersetzung!F162),D18="Auswahl"),"",'Dt KSH'!$H$37) -> 15.41958235
B164: Dt_2000 | C164: dB | D164: =IF(OR(AND(D9=500,D18=Übersetzung!F163),D18="Auswahl"),"",'Dt KSH'!$I$36) -> 14.12530416 | E164: =IF(OR(AND(D9=500,D18=Übersetzung!F162),D18="Auswahl"),"",'Dt KSH'!$I$37) -> 14.12530416
B165: Dt_4000 | C165: dB | D165: =IF(OR(AND(D9=500,D18=Übersetzung!F163),D18="Auswahl"),"",'Dt KSH'!$J$36) -> 15.7703199 | E165: =IF(OR(AND(D9=500,D18=Übersetzung!F162),D18="Auswahl"),"",'Dt KSH'!$J$37) -> 15.7703199
B166: Dt_8000 | C166: dB | D166: =IF(OR(AND(D9=500,D18=Übersetzung!F163),D18="Auswahl"),"",'Dt KSH'!$K$36) -> 21.4958675 | E166: =IF(OR(AND(D9=500,D18=Übersetzung!F162),D18="Auswahl"),"",'Dt KSH'!$K$37) -> 21.4958675
A167: =Übersetzung!F44 -> Änderungen vorbehalten
A168: =Übersetzung!F45 -> Stand:
A169: ='Grunddaten KSH'!$E$52 -> 2020-04-21

Sheet LWBVR_KSH (hidden)
B3: Berechnung des Schallleistungspegels KSH im BVR-Betrieb
N4: 125 | O4: 250 | P4: 500 | Q4: 1000 | R4: 2000 | S4: 4000 | T4: 8000
B5: Werteübergabe: | D5: Nennvolumenstrom ZUL | F5: ='Auslegung KSH'!D28 -> 120 | H5: Werterückgabe: | J5: LW,A Zuluft: | K5: =P34 -> 35.09198223 | M5: LW, Okt ZUL: | N5: =I36 -> 37.926392 | O5: =J36 -> 39.66323653 | P5: 33.41329994 | Q5: 24.99588141 | R5: 19.63408809 | S5: 20.14299811 | T5: 23.71857607
D6: Druckdifferenz ZUL | F6: ='Auslegung KSH'!$D$132 -> 50 | J6: LW,A Abluft: | K6: =IF(F10="D",P80,P57) -> 29.62635713 | M6: LW, Okt ABL: | N6: =IF(F10="D",I82,I59) -> 34.30106596 | O6: =IF(G10="D",J82,J59) -> 33.57237026 | P6: 26.62340079 | Q6: 19.67571161 | R6: 14.65639854 | S6: 15.66358435 | T6: 22.54862974
D7: Akt. Länge | F7: ='Grunddaten KSH'!F49 -> 900
D8: Spez. V° ZUL | F8: =F5/(F7/1000) -> 133.3333333
D9: Nennvolumenstrom ABL | F9: ='Auslegung KSH'!$D$47 -> 50
D10: Ausführung Abluft | F10: ='Auslegung KSH'!$E$71 -> E
D11: Druckdifferenz ABL | F11: ='Auslegung KSH'!$E$132 -> 50
D12: Akt. Länge | F12: ='Grunddaten KSH'!$F$50 -> 900
D13: Spez. V° ABL | F13: =F9/(F12/1000) -> 55.55555556
B17: Konstantensatz ZUL | G17: Terzfrequenzband fm [Hz]
D18: Frequenz | E18: f | G18: 100 | H18: 125 | I18: 160 | J18: 200 | K18: 250 | L18: 315 | M18: 400 | N18: 500 | O18: 630 | P18: 800 | Q18: 1000 | R18: 1250 | S18: 1600 | T18: 2000 | U18: 2500 | V18: 3150 | W18: 4000 | X18: 5000 | Y18: 6300 | Z18: =#REF! ->  | AA18: 10000
D19: Koeffizienten | F19: K1 | G19: -33.71674618 | H19: -31.94221687 | I19: -37.44552387 | J19: -32.53388886 | K19: -52.79012172 | L19: -48.41990089 | M19: -57.65638482 | N19: -67.7640116 | O19: -59.11236618 | P19: -59.78885656 | Q19: -69.84529273 | R19: -65.62450739 | S19: -64.34473683 | T19: -69.22405075 | U19: -65.338171 | V19: -58.90096789 | W19: -43.58408948 | X19: -32.54608712 | Y19: -13.11761321 | Z19: 0.1723631408 | AA19: 9.545171792
F20: K2 | G20: 14.45607382 | H20: 16.24604908 | I20: 25.43972426 | J20: 8.572044563 | K20: 2.78870232 | L20: -4.412604717 | M20: 0.2182157409 | N20: -3.621260365 | O20: -8.303502035 | P20: -18.58817856 | Q20: -11.29866793 | R20: -13.81707309 | S20: -15.60603979 | T20: -2.073831214 | U20: -2.257173004 | V20: 5.366752931 | W20: 4.457542069 | X20: 3.337588478 | Y20: 2.51330204 | Z20: 1.796211612 | AA20: 2.176099526
F21: K3 | G21: 14.53837974 | H21: 18.43277516 | I21: 20.26535907 | J21: 20.37490012 | K21: 22.61537598 | L21: 25.18181791 | M21: 28.20051961 | N21: 30.30366966 | O21: 29.86697457 | P21: 32.26874472 | Q21: 33.38757875 | R21: 34.89919862 | S21: 34.11468076 | T21: 32.59198558 | U21: 30.8604526 | V21: 25.0796285 | W21: 22.33050898 | X21: 16.63208984 | Y21: 10.9919575 | Z21: 6.622997866 | AA21: 3.162816884
F22: K4 | G22: -4.346734022 | H22: -8.499734927 | I22: -15.10676038 | J22: 1.537893979 | K22: 17.21458039 | L22: 20.24478241 | M22: 17.10320821 | N22: 23.90074583 | O22: 24.06527097 | P22: 32.07721306 | Q22: 27.59974026 | R22: 25.01086941 | S22: 26.74138544 | T22: 16.51096275 | U22: 16.24076018 | V22: 10.3509705 | W22: 5.585748544 | X22: 6.782400629 | Y22: 2.993195683 | Z22: 1.087188812 | AA22: -0.3823559625
A27: BL | B27: n | C27: V°nenn | D27: Dp | E27: V°spez | G27: 100 | H27: 125 | I27: 160 | J27: 200 | K27: 250 | L27: 315 | M27: 400 | N27: 500 | O27: 630 | P27: 800 | Q27: 1000 | R27: 1250 | S27: 1600 | T27: 2000 | U27: 2500 | V27: 3150 | W27: 4000 | X27: 5000 | Y27: 6300 | Z27: 8000 | AA27: 10000 | AB27: S
A28: ='Auslegung KSH'!$D$9 -> 600 | B28: ='Auslegung KSH'!$D$15 -> 3 | C28: =$F$5 -> 120 | D28: =$F$6 -> 50 | E28: =$F$8 -> 133.3333333 | G28: =G$19+G$20*LOG($E$28)+G$21*LOG($D$28)+G$22*LOG($C$28) -> 12.66414829 | H28: =H$19+H$20*LOG($E$28)+H$21*LOG($D$28)+H$22*LOG($C$28) -> 16.22388478 | I28: 19.63287598 | J28: 23.49508515 | K28: 27.350778 | L28: 27.07930961 | M28: 26.27981694 | N28: 25.72004023 | O28: 24.0223547 | P28: 22.23037195 | Q28: 20.25508729 | R28: 16.30988104 | S28: 16.05339112 | T28: 16.07127496 | U28: 16.06394192 | V28: 16.63413357 | W28: 15.44056289 | X28: 16.90534585 | Y28: 17.12140206 | Z28: 17.50194008 | AA28: 18.74779364 | AB28: =10*LOG(10^(0.1*G28)+10^(0.1*H28)+10^(0.1*I28)+10^(0.1*J28)+10^(0.1*K28)+10^(0.1*L28)+10^(0.1*M28)+10^(0.1*N28)+10^(0.1*O28)+10^(0.1*P28)+10^(0.1*Q28)+10^(0.1*R28)+10^(0.1*S28)+10^(0.1*T28)+10^(0.1*U28)+10^(0.1*V28)+10^(0.1*W28)+10^(0.1*X28)+10^(0.1*Y28)+10^(0.1*Z28)+10^(0.1*AA28)) -> 35.09198223
G31: Daten Berechnung
G32: V°nenn | H32: DP | I32: Frequenz f [Hz] | P32: SLWA
G33: m³/h | H33: Pa | I33: 125 | J33: 250 | K33: 500 | L33: 1000 | M33: 2000 | N33: 4000 | O33: 8000 | P33: [dB(A)]
G34: Bewerteter Pegel | I34: =10*LOG(10^(0.1*G28)+10^(0.1*H28)+10^(0.1*I28)) -> 21.826392 | J34: =10*LOG(10^(0.1*J28)+10^(0.1*K28)+10^(0.1*L28)) -> 31.06323653 | K34: =10*LOG(10^(0.1*M28)+10^(0.1*N28)+10^(0.1*O28)) -> 30.21329994 | L34: =10*LOG(10^(0.1*P28)+10^(0.1*Q28)+10^(0.1*R28)) -> 24.99588141 | M34: =10*LOG(10^(0.1*S28)+10^(0.1*T28)+10^(0.1*U28)) -> 20.83408809 | N34: =10*LOG(10^(0.1*V28)+10^(0.1*W28)+10^(0.1*X28)) -> 21.14299811 | O34: =10*LOG(10^(0.1*Y28)+10^(0.1*Z28)+10^(0.1*AA28)) -> 22.61857607 | P34: =10*LOG(10^(0.1*I34)+10^(0.1*J34)+10^(0.1*K34)+10^(0.1*L34)+10^(0.1*M34)+10^(0.1*N34)+10^(0.1*O34)) -> 35.09198223
G35: A-Bewertung | I35: -16.1 | J35: -8.6 | K35: -3.2 | L35: 0 | M35: 1.2 | N35: 1 | O35: -1.1 | P35: 6.985046148
G36: Unbewerteter Pegel | I36: =I34-I35 -> 37.926392 | J36: =J34-J35 -> 39.66323653 | K36: 33.41329994 | L36: 24.99588141 | M36: 19.63408809 | N36: 20.14299811 | O36: 23.71857607 | P36: 42.64782528
B40: Konstantensatz ABLE | G40: Terzfrequenzband fm [Hz]
D41: Frequenz | E41: f | G41: 100 | H41: 125 | I41: 160 | J41: 200 | K41: 250 | L41: 315 | M41: 400 | N41: 500 | O41: 630 | P41: 800 | Q41: 1000 | R41: 1250 | S41: 1600 | T41: 2000 | U41: 2500 | V41: 3150 | W41: 4000 | X41: 5000 | Y41: 6300 | Z41: =#REF! ->  | AA41: 10000
D42: Koeffizienten | F42: K1 | G42: -33.71674618 | H42: -31.94221687 | I42: -37.44552387 | J42: -32.53388886 | K42: -52.79012172 | L42: -48.41990089 | M42: -57.65638482 | N42: -67.7640116 | O42: -59.11236618 | P42: -59.78885656 | Q42: -69.84529273 | R42: -65.62450739 | S42: -64.34473683 | T42: -69.22405075 | U42: -65.338171 | V42: -58.90096789 | W42: -43.58408948 | X42: -32.54608712 | Y42: -13.11761321 | Z42: 0.1723631408 | AA42: 9.545171792
F43: K2 | G43: 14.45607382 | H43: 16.24604908 | I43: 25.43972426 | J43: 8.572044563 | K43: 2.78870232 | L43: -4.412604717 | M43: 0.2182157409 | N43: -3.621260365 | O43: -8.303502035 | P43: -18.58817856 | Q43: -11.29866793 | R43: -13.81707309 | S43: -15.60603979 | T43: -2.073831214 | U43: -2.257173004 | V43: 5.366752931 | W43: 4.457542069 | X43: 3.337588478 | Y43: 2.51330204 | Z43: 1.796211612 | AA43: 2.176099526
F44: K3 | G44: 14.53837974 | H44: 18.43277516 | I44: 20.26535907 | J44: 20.37490012 | K44: 22.61537598 | L44: 25.18181791 | M44: 28.20051961 | N44: 30.30366966 | O44: 29.86697457 | P44: 32.26874472 | Q44: 33.38757875 | R44: 34.89919862 | S44: 34.11468076 | T44: 32.59198558 | U44: 30.8604526 | V44: 25.0796285 | W44: 22.33050898 | X44: 16.63208984 | Y44: 10.9919575 | Z44: 6.622997866 | AA44: 3.162816884
F45: K4 | G45: -4.346734022 | H45: -8.499734927 | I45: -15.10676038 | J45: 1.537893979 | K45: 17.21458039 | L45: 20.24478241 | M45: 17.10320821 | N45: 23.90074583 | O45: 24.06527097 | P45: 32.07721306 | Q45: 27.59974026 | R45: 25.01086941 | S45: 26.74138544 | T45: 16.51096275 | U45: 16.24076018 | V45: 10.3509705 | W45: 5.585748544 | X45: 6.782400629 | Y45: 2.993195683 | Z45: 1.087188812 | AA45: -0.3823559625
A50: BL | B50: n | C50: V°nenn | D50: Dp | E50: V°spez | G50: 100 | H50: 125 | I50: 160 | J50: 200 | K50: 250 | L50: 315 | M50: 400 | N50: 500 | O50: 630 | P50: 800 | Q50: 1000 | R50: 1250 | S50: 1600 | T50: 2000 | U50: 2500 | V50: 3150 | W50: 4000 | X50: 5000 | Y50: 6300 | Z50: 8000 | AA50: 10000 | AB50: S
A51: ='Auslegung KSH'!$D$9 -> 600 | B51: ='Auslegung KSH'!$D$15 -> 3 | C51: =$F$9 -> 50 | D51: =$F$11 -> 50 | E51: =$F$13 -> 55.55555556 | G51: =G$19+G$20*LOG($E$51)+G$21*LOG($D$51)+G$22*LOG($C$51) -> 8.820463656 | H51: =H$19+H$20*LOG($E$51)+H$21*LOG($D$51)+H$22*LOG($C$51) -> 13.27864905 | I51: 15.70416695 | J51: 19.65117287 | K51: 19.74530504 | L51: 21.05973767 | M51: 19.69401683 | N51: 18.00955188 | O51: 18.02955296 | P51: 17.10168939 | Q51: 14.05723633 | R51: 12.05387384 | S51: 11.81960753 | T51: 10.58211525 | U51: 10.74722488 | V51: 10.65807843 | W51: 11.62199089 | X51: 13.05761223 | Y51: 15.02776973 | Z51: 16.40563882 | AA51: 18.06579217 | AB51: =10*LOG(10^(0.1*G51)+10^(0.1*H51)+10^(0.1*I51)+10^(0.1*J51)+10^(0.1*K51)+10^(0.1*L51)+10^(0.1*M51)+10^(0.1*N51)+10^(0.1*O51)+10^(0.1*P51)+10^(0.1*Q51)+10^(0.1*R51)+10^(0.1*S51)+10^(0.1*T51)+10^(0.1*U51)+10^(0.1*V51)+10^(0.1*W51)+10^(0.1*X51)+10^(0.1*Y51)+10^(0.1*Z51)+10^(0.1*AA51)) -> 29.62635713
G54: Daten Berechnung
G55: V°nenn | H55: DP | I55: Frequenz f [Hz] | P55: SLWA
G56: m³/h | H56: Pa | I56: 125 | J56: 250 | K56: 500 | L56: 1000 | M56: 2000 | N56: 4000 | O56: 8000 | P56: [dB(A)]
G57: Bewerteter Pegel | I57: =10*LOG(10^(0.1*G51)+10^(0.1*H51)+10^(0.1*I51)) -> 18.20106596 | J57: =10*LOG(10^(0.1*J51)+10^(0.1*K51)+10^(0.1*L51)) -> 24.97237026 | K57: =10*LOG(10^(0.1*M51)+10^(0.1*N51)+10^(0.1*O51)) -> 23.42340079 | L57: =10*LOG(10^(0.1*P51)+10^(0.1*Q51)+10^(0.1*R51)) -> 19.67571161 | M57: =10*LOG(10^(0.1*S51)+10^(0.1*T51)+10^(0.1*U51)) -> 15.85639854 | N57: =10*LOG(10^(0.1*V51)+10^(0.1*W51)+10^(0.1*X51)) -> 16.66358435 | O57: =10*LOG(10^(0.1*Y51)+10^(0.1*Z51)+10^(0.1*AA51)) -> 21.44862974 | P57: =10*LOG(10^(0.1*I57)+10^(0.1*J57)+10^(0.1*K57)+10^(0.1*L57)+10^(0.1*M57)+10^(0.1*N57)+10^(0.1*O57)) -> 29.62635713
G58: A-Bewertung | I58: -16.1 | J58: -8.6 | K58: -3.2 | L58: 0 | M58: 1.2 | N58: 1 | O58: -1.1 | P58: 6.985046148
G59: Unbewerteter Pegel | I59: =I57-I58 -> 34.30106596 | J59: =J57-J58 -> 33.57237026 | K59: =K57-K58 -> 26.62340079 | L59: =L57-L58 -> 19.67571161 | M59: =M57-M58 -> 14.65639854 | N59: =N57-N58 -> 15.66358435 | O59: =O57-O58 -> 22.54862974 | P59: 37.6093403
B63: Konstantensatz ABLD | G63: Terzfrequenzband fm [Hz]
D64: Frequenz | E64: f | G64: 100 | H64: 125 | I64: 160 | J64: 200 | K64: 250 | L64: 315 | M64: 400 | N64: 500 | O64: 630 | P64: 800 | Q64: 1000 | R64: 1250 | S64: 1600 | T64: 2000 | U64: 2500 | V64: 3150 | W64: 4000 | X64: 5000 | Y64: 6300 | Z64: =#REF! ->  | AA64: 10000
D65: Koeffizienten | F65: K1 | G65: -33.71674618 | H65: -31.94221687 | I65: -37.44552387 | J65: -32.53388886 | K65: -52.79012172 | L65: -48.41990089 | M65: -57.65638482 | N65: -67.7640116 | O65: -59.11236618 | P65: -59.78885656 | Q65: -69.84529273 | R65: -65.62450739 | S65: -64.34473683 | T65: -69.22405075 | U65: -65.338171 | V65: -58.90096789 | W65: -43.58408948 | X65: -32.54608712 | Y65: -13.11761321 | Z65: 0.1723631408 | AA65: 9.545171792
F66: K2 | G66: 14.45607382 | H66: 16.24604908 | I66: 25.43972426 | J66: 8.572044563 | K66: 2.78870232 | L66: -4.412604717 | M66: 0.2182157409 | N66: -3.621260365 | O66: -8.303502035 | P66: -18.58817856 | Q66: -11.29866793 | R66: -13.81707309 | S66: -15.60603979 | T66: -2.073831214 | U66: -2.257173004 | V66: 5.366752931 | W66: 4.457542069 | X66: 3.337588478 | Y66: 2.51330204 | Z66: 1.796211612 | AA66: 2.176099526
F67: K3 | G67: 14.53837974 | H67: 18.43277516 | I67: 20.26535907 | J67: 20.37490012 | K67: 22.61537598 | L67: 25.18181791 | M67: 28.20051961 | N67: 30.30366966 | O67: 29.86697457 | P67: 32.26874472 | Q67: 33.38757875 | R67: 34.89919862 | S67: 34.11468076 | T67: 32.59198558 | U67: 30.8604526 | V67: 25.0796285 | W67: 22.33050898 | X67: 16.63208984 | Y67: 10.9919575 | Z67: 6.622997866 | AA67: 3.162816884
F68: K4 | G68: -4.346734022 | H68: -8.499734927 | I68: -15.10676038 | J68: 1.537893979 | K68: 17.21458039 | L68: 20.24478241 | M68: 17.10320821 | N68: 23.90074583 | O68: 24.06527097 | P68: 32.07721306 | Q68: 27.59974026 | R68: 25.01086941 | S68: 26.74138544 | T68: 16.51096275 | U68: 16.24076018 | V68: 10.3509705 | W68: 5.585748544 | X68: 6.782400629 | Y68: 2.993195683 | Z68: 1.087188812 | AA68: -0.3823559625
A73: BL | B73: n | C73: V°nenn | D73: Dp | E73: V°spez | G73: 100 | H73: 125 | I73: 160 | J73: 200 | K73: 250 | L73: 315 | M73: 400 | N73: 500 | O73: 630 | P73: 800 | Q73: 1000 | R73: 1250 | S73: 1600 | T73: 2000 | U73: 2500 | V73: 3150 | W73: 4000 | X73: 5000 | Y73: 6300 | Z73: 8000 | AA73: 10000 | AB73: S
A74: ='Auslegung KSH'!$D$9 -> 600 | B74: ='Auslegung KSH'!$D$15 -> 3 | C74: =$F$9 -> 50 | D74: =$F$11 -> 50 | E74: =$F$13 -> 55.55555556 | G74: =G$19+G$20*LOG($E$74)+G$21*LOG($D$74)+G$22*LOG($C$74) -> 8.820463656 | H74: =H$19+H$20*LOG($E$74)+H$21*LOG($D$74)+H$22*LOG($C$74) -> 13.27864905 | I74: 15.70416695 | J74: 19.65117287 | K74: 19.74530504 | L74: 21.05973767 | M74: 19.69401683 | N74: 18.00955188 | O74: 18.02955296 | P74: 17.10168939 | Q74: 14.05723633 | R74: 12.05387384 | S74: 11.81960753 | T74: 10.58211525 | U74: 10.74722488 | V74: 10.65807843 | W74: 11.62199089 | X74: 13.05761223 | Y74: 15.02776973 | Z74: 16.40563882 | AA74: 18.06579217 | AB74: =10*LOG(10^(0.1*G74)+10^(0.1*H74)+10^(0.1*I74)+10^(0.1*J74)+10^(0.1*K74)+10^(0.1*L74)+10^(0.1*M74)+10^(0.1*N74)+10^(0.1*O74)+10^(0.1*P74)+10^(0.1*Q74)+10^(0.1*R74)+10^(0.1*S74)+10^(0.1*T74)+10^(0.1*U74)+10^(0.1*V74)+10^(0.1*W74)+10^(0.1*X74)+10^(0.1*Y74)+10^(0.1*Z74)+10^(0.1*AA74)) -> 29.62635713
G77: Daten Berechnung
G78: V°nenn | H78: DP | I78: Frequenz f [Hz] | P78: SLWA
G79: m³/h | H79: Pa | I79: 125 | J79: 250 | K79: 500 | L79: 1000 | M79: 2000 | N79: 4000 | O79: 8000 | P79: [dB(A)]
G80: Bewerteter Pegel | I80: =10*LOG(10^(0.1*G74)+10^(0.1*H74)+10^(0.1*I74)) -> 18.20106596 | J80: =10*LOG(10^(0.1*J74)+10^(0.1*K74)+10^(0.1*L74)) -> 24.97237026 | K80: =10*LOG(10^(0.1*M74)+10^(0.1*N74)+10^(0.1*O74)) -> 23.42340079 | L80: =10*LOG(10^(0.1*P74)+10^(0.1*Q74)+10^(0.1*R74)) -> 19.67571161 | M80: =10*LOG(10^(0.1*S74)+10^(0.1*T74)+10^(0.1*U74)) -> 15.85639854 | N80: =10*LOG(10^(0.1*V74)+10^(0.1*W74)+10^(0.1*X74)) -> 16.66358435 | O80: =10*LOG(10^(0.1*Y74)+10^(0.1*Z74)+10^(0.1*AA74)) -> 21.44862974 | P80: =10*LOG(10^(0.1*I80)+10^(0.1*J80)+10^(0.1*K80)+10^(0.1*L80)+10^(0.1*M80)+10^(0.1*N80)+10^(0.1*O80)) -> 29.62635713
G81: A-Bewertung | I81: -16.1 | J81: -8.6 | K81: -3.2 | L81: 0 | M81: 1.2 | N81: 1 | O81: -1.1 | P81: 6.985046148
G82: Unbewerteter Pegel | I82: =I80-I81 -> 34.30106596 | J82: =J80-J81 -> 33.57237026 | K82: =K80-K81 -> 26.62340079 | L82: =L80-L81 -> 19.67571161 | M82: =M80-M81 -> 14.65639854 | N82: =N80-N81 -> 15.66358435 | O82: =O80-O81 -> 22.54862974 | P82: 37.6093403

Sheet Grunddaten KSH (hidden)
A1: Typ | D1: Baulänge | E1: Schlitzanzahl | F1: Schlitzlänge | G1: spez.Volumenstrom Zuluft | H1: spez.Volumenstrom Abluft | I1: Durchmesser Anschluss | J1: Anströmgeschwindigkeit Zuluft | K1: Anströmgeschwindigkeit Abluft | L1: Widerstandsbeiwerte | N1: Druckverlust ZUL | O1: Druckverlust ABL | P1: Höhe Anschlusskasten | Q1: Länge Anschlusskasten | R1: sichtbare Breite Schlitzdurchlass | S1: sichtbare Höhe Schlitzdurchlass ZB | T1: sichtbare Höhe Schlitzdurchlass ZS | U1: Abstand Zuluft/Abluft | V1: Breite Hals | W1: Höhe Hals | X1: Kastentiefe | Y1: Norm-Schallpegeldifferenz | Z1: Schalldämm-Maß | AA1: Norm-Schallpegeldifferenz | AB1: Schalldämm-Maß | AC1: Norm-Schallpegeldifferenz | AD1: Schalldämm-Maß
D2: l | E2: n | F2: L | G2: V°spez | H2: V°spez | I2: d | J2: v | K2: v | L2: Zuluft | M2: Abluft | N2: Dp | O2: Dp | P2: h | Q2: b | R2: b1 | S2: h1 | T2: h1 | U2: x | V2: l | W2: h | X2: t | Y2: Dn,w | Z2: Rw | AA2: Dn,w | AB2: Rw | AC2: Dn,w | AD2: Rw
D3: mm | E3: 1 | F3: mm | G3: m³/(h·Walze) | H3: m³/(h·Walze) | I3: mm | J3: m/s | K3: m/s | N3: Pa | O3: Pa | P3: mm | Q3: mm | R3: mm | S3: mm | T3: mm | U3: mm | V3: mm | W3: mm | X3: mm | Y3: dB | Z3: dB | AA3: dB | AB3: dB | AC3: dB | AD3: dB
A4: KSH | B4: ZUL | C4: =CONCATENATE(A4,B4,D4,E4) -> KSHZUL5002 | D4: 500 | E4: 2 | F4: =D4*E4 -> 1000 | G4: ='xkr._vx KSH'!$O$7/(0.01*'Grunddaten KSH'!F4) -> 12 | H4: ='Auslegung KSH'!$D$46/(0.01*'Grunddaten KSH'!F4) -> 11 | I4: 98 | J4: ='Auslegung KSH'!$B$39/(PI()/4*('Grunddaten KSH'!I4/1000)^2*3600) -> 0 | K4: ='Auslegung KSH'!$D$27/(PI()/4*('Grunddaten KSH'!I4/1000)^2*3600) -> 4.419129338 | L4: 3.782338794 | N4: =(L4/2)*(1.2*K4^2) -> 44.31850508 | P4: 125 | Q4: 518 | R4: 530 | S4: 92 | T4: 69 | U4: - | V4: 100 | W4: 73 | X4: 200
A5: KSH | B5: ZUL | C5: KSHZUL6002 | D5: 600 | E5: 2 | F5: =D5/2*E5 -> 600 | G5: ='xkr._vx KSH'!$O$7/(0.01*'Grunddaten KSH'!F5) -> 20 | H5: ='Auslegung KSH'!$D$46/(0.01*'Grunddaten KSH'!F5) -> 18.33333333 | I5: 98 | J5: ='Auslegung KSH'!$B$39/(PI()/4*('Grunddaten KSH'!I5/1000)^2*3600) -> 0 | K5: ='Auslegung KSH'!$D$27/(PI()/4*('Grunddaten KSH'!I5/1000)^2*3600) -> 4.419129338 | L5: 6.265077202 | N5: =(L5/2)*(1.2*K5^2) -> 73.40930331 | P5: 125 | Q5: 618 | R5: 630 | S5: 92 | T5: 69 | U5: 308 | V5: 100 | W5: 73 | X5: 200
A6: KSH | B6: ZUL | C6: KSHZUL8002 | D6: 800 | E6: 2 | F6: =D6/2*E6 -> 800 | G6: ='xkr._vx KSH'!$O$7/(0.01*'Grunddaten KSH'!F6) -> 15 | H6: ='Auslegung KSH'!$D$46/(0.01*'Grunddaten KSH'!F6) -> 13.75 | I6: 98 | J6: ='Auslegung KSH'!$B$39/(PI()/4*('Grunddaten KSH'!I6/1000)^2*3600) -> 0 | K6: ='Auslegung KSH'!$D$27/(PI()/4*('Grunddaten KSH'!I6/1000)^2*3600) -> 4.419129338 | L6: 4.523693135 | N6: 53.0051188 | P6: 125 | Q6: 818 | R6: 830 | S6: 92 | T6: 69 | U6: 408 | V6: 100 | W6: 73 | X6: 200
A7: KSH | B7: ZUL | C7: KSHZUL10002 | D7: 1000 | E7: 2 | F7: =D7/2*E7 -> 1000 | G7: ='xkr._vx KSH'!$O$7/(0.01*'Grunddaten KSH'!F7) -> 12 | H7: ='Auslegung KSH'!$D$46/(0.01*'Grunddaten KSH'!F7) -> 11 | I7: 98 | J7: ='Auslegung KSH'!$B$39/(PI()/4*('Grunddaten KSH'!I7/1000)^2*3600) -> 0 | K7: ='Auslegung KSH'!$D$27/(PI()/4*('Grunddaten KSH'!I7/1000)^2*3600) -> 4.419129338 | L7: 3.718724939 | N7: 43.57312738 | P7: 125 | Q7: 1018 | R7: 1030 | S7: 92 | T7: 69 | U7: 508 | V7: 100 | W7: 73 | X7: 200
A8: KSH | B8: ZUL | C8: KSHZUL12002 | D8: 1200 | E8: 2 | F8: =D8/2*E8 -> 1200 | G8: ='xkr._vx KSH'!$O$7/(0.01*'Grunddaten KSH'!F8) -> 10 | H8: ='Auslegung KSH'!$D$46/(0.01*'Grunddaten KSH'!F8) -> 9.166666667 | I8: 98 | J8: ='Auslegung KSH'!$B$39/(PI()/4*('Grunddaten KSH'!I8/1000)^2*3600) -> 0 | K8: ='Auslegung KSH'!$D$27/(PI()/4*('Grunddaten KSH'!I8/1000)^2*3600) -> 4.419129338 | L8: 3.188453667 | N8: =(L8/2)*(1.2*K8^2) -> 37.35982093 | P8: 125 | Q8: 1218 | R8: 1230 | S8: 92 | T8: 69 | U8: 608 | V8: 100 | W8: 73 | X8: 200
A9: KSH | B9: ZUL | C9: KSHZUL5003 | D9: 500 | E9: 3 | F9: =D9*E9 -> 1500 | G9: ='xkr._vx KSH'!$O$7/(0.01*'Grunddaten KSH'!F9) -> 8 | H9: ='Auslegung KSH'!$D$46/(0.01*'Grunddaten KSH'!F9) -> 7.333333333 | I9: 123 | J9: ='Auslegung KSH'!$B$39/(PI()/4*('Grunddaten KSH'!I9/1000)^2*3600) -> 0 | K9: ='Auslegung KSH'!$D$27/(PI()/4*('Grunddaten KSH'!I9/1000)^2*3600) -> 2.805295668 | L9: 4.589100017 | N9: 21.66885959 | P9: 165 | Q9: 518 | R9: 530 | S9: 126 | T9: 101 | U9: - | V9: 100 | W9: 114 | X9: 225
A10: KSH | B10: ZUL | C10: KSHZUL6003 | D10: 600 | E10: 3 | F10: =D10/2*E10 -> 900 | G10: ='xkr._vx KSH'!$O$7/(0.01*'Grunddaten KSH'!F10) -> 13.33333333 | H10: ='Auslegung KSH'!$D$46/(0.01*'Grunddaten KSH'!F10) -> 12.22222222 | I10: 123 | J10: ='Auslegung KSH'!$B$39/(PI()/4*('Grunddaten KSH'!I10/1000)^2*3600) -> 0 | K10: ='Auslegung KSH'!$D$27/(PI()/4*('Grunddaten KSH'!I10/1000)^2*3600) -> 2.805295668 | L10: 8.19100285 | N10: 38.67636138 | P10: 165 | Q10: 618 | R10: 630 | S10: 126 | T10: 101 | U10: 308 | V10: 100 | W10: 114 | X10: 225
A11: KSH | B11: ZUL | C11: KSHZUL8003 | D11: 800 | E11: 3 | F11: =D11/2*E11 -> 1200 | G11: ='xkr._vx KSH'!$O$7/(0.01*'Grunddaten KSH'!F11) -> 10 | H11: ='Auslegung KSH'!$D$46/(0.01*'Grunddaten KSH'!F11) -> 9.166666667 | I11: 123 | J11: ='Auslegung KSH'!$B$39/(PI()/4*('Grunddaten KSH'!I11/1000)^2*3600) -> 0 | K11: ='Auslegung KSH'!$D$27/(PI()/4*('Grunddaten KSH'!I11/1000)^2*3600) -> 2.805295668 | L11: 5.865569058 | N11: 27.69610422 | P11: 165 | Q11: 818 | R11: 830 | S11: 126 | T11: 101 | U11: 408 | V11: 100 | W11: 114 | X11: 225
A12: KSH | B12: ZUL | C12: KSHZUL10003 | D12: 1000 | E12: 3 | F12: =D12/2*E12 -> 1500 | G12: ='xkr._vx KSH'!$O$7/(0.01*'Grunddaten KSH'!F12) -> 8 | H12: ='Auslegung KSH'!$D$46/(0.01*'Grunddaten KSH'!F12) -> 7.333333333 | I12: 123 | J12: ='Auslegung KSH'!$B$39/(PI()/4*('Grunddaten KSH'!I12/1000)^2*3600) -> 0 | K12: ='Auslegung KSH'!$D$27/(PI()/4*('Grunddaten KSH'!I12/1000)^2*3600) -> 2.805295668 | L12: 4.759137756 | N12: 22.47174553 | P12: 165 | Q12: 1018 | R12: 1030 | S12: 126 | T12: 101 | U12: 508 | V12: 100 | W12: 114 | X12: 225
A13: KSH | B13: ZUL | C13: KSHZUL12003 | D13: 1200 | E13: 3 | F13: =D13/2*E13 -> 1800 | G13: ='xkr._vx KSH'!$O$7/(0.01*'Grunddaten KSH'!F13) -> 6.666666667 | H13: ='Auslegung KSH'!$D$46/(0.01*'Grunddaten KSH'!F13) -> 6.111111111 | I13: 123 | J13: ='Auslegung KSH'!$B$39/(PI()/4*('Grunddaten KSH'!I13/1000)^2*3600) -> 0 | K13: ='Auslegung KSH'!$D$27/(PI()/4*('Grunddaten KSH'!I13/1000)^2*3600) -> 2.805295668 | L13: 4.058881588 | N13: =(L13/2)*(1.2*K13^2) -> 19.16526877 | P13: 165 | Q13: 1218 | R13: 1230 | S13: 126 | T13: 101 | U13: 608 | V13: 100 | W13: 114 | X13: 225
A14: KSH | B14: ABLD | C14: KSHABLD5002 | D14: 500 | E14: 2 | F14: =D14*E14 -> 1000 | G14: ='xkr._vx KSH'!$O$7/(0.01*'Grunddaten KSH'!F14) -> 12 | H14: ='Auslegung KSH'!$D$46/(0.01*'Grunddaten KSH'!F14) -> 11 | I14: 98 | J14: ='Auslegung KSH'!$B$39/(PI()/4*('Grunddaten KSH'!I14/1000)^2*3600) -> 0 | K14: ='Auslegung KSH'!$D$46/(PI()/4*('Grunddaten KSH'!I14/1000)^2*3600) -> 4.050868559 | M14: 2.177062234 | O14: =(M14/2)*(1.2*K14^2) -> 21.43474877 | P14: 125 | Q14: 518 | R14: 530 | S14: 92 | T14: 69 | U14: - | V14: 100 | W14: 73 | X14: 200
A15: KSH | B15: ABLD | C15: KSHABLD6002 | D15: 600 | E15: 2 | F15: =D15/2*E15 -> 600 | G15: ='xkr._vx KSH'!$O$7/(0.01*'Grunddaten KSH'!F15) -> 20 | H15: ='Auslegung KSH'!$D$46/(0.01*'Grunddaten KSH'!F15) -> 18.33333333 | I15: 98 | J15: ='Auslegung KSH'!$B$39/(PI()/4*('Grunddaten KSH'!I15/1000)^2*3600) -> 0 | K15: ='Auslegung KSH'!$D$46/(PI()/4*('Grunddaten KSH'!I15/1000)^2*3600) -> 4.050868559 | M15: 4.730910388 | O15: =(M15/2)*(1.2*K15^2) -> 46.57922684 | P15: 125 | Q15: 618 | R15: 630 | S15: 92 | T15: 69 | U15: 308 | V15: 100 | W15: 73 | X15: 200
A16: KSH | B16: ABLD | C16: KSHABLD8002 | D16: 800 | E16: 2 | F16: =D16/2*E16 -> 800 | G16: ='xkr._vx KSH'!$O$7/(0.01*'Grunddaten KSH'!F16) -> 15 | H16: ='Auslegung KSH'!$D$46/(0.01*'Grunddaten KSH'!F16) -> 13.75 | I16: 98 | J16: ='Auslegung KSH'!$B$39/(PI()/4*('Grunddaten KSH'!I16/1000)^2*3600) -> 0 | K16: ='Auslegung KSH'!$D$46/(PI()/4*('Grunddaten KSH'!I16/1000)^2*3600) -> 4.050868559 | M16: 3.068626775 | O16: 30.21284508 | P16: 125 | Q16: 818 | R16: 830 | S16: 92 | T16: 69 | U16: 408 | V16: 100 | W16: 73 | X16: 200
A17: KSH | B17: ABLD | C17: KSHABLD10002 | D17: 1000 | E17: 2 | F17: =D17/2*E17 -> 1000 | G17: ='xkr._vx KSH'!$O$7/(0.01*'Grunddaten KSH'!F17) -> 12 | H17: ='Auslegung KSH'!$D$46/(0.01*'Grunddaten KSH'!F17) -> 11 | I17: 98 | J17: ='Auslegung KSH'!$B$39/(PI()/4*('Grunddaten KSH'!I17/1000)^2*3600) -> 0 | K17: ='Auslegung KSH'!$D$46/(PI()/4*('Grunddaten KSH'!I17/1000)^2*3600) -> 4.050868559 | M17: 2.280837986 | O17: 22.45649594 | P17: 125 | Q17: 1018 | R17: 1030 | S17: 92 | T17: 69 | U17: 508 | V17: 100 | W17: 73 | X17: 200
A18: KSH | B18: ABLD | C18: KSHABLD12002 | D18: 1200 | E18: 2 | F18: =D18/2*E18 -> 1200 | G18: ='xkr._vx KSH'!$O$7/(0.01*'Grunddaten KSH'!F18) -> 10 | H18: ='Auslegung KSH'!$D$46/(0.01*'Grunddaten KSH'!F18) -> 9.166666667 | I18: 98 | J18: ='Auslegung KSH'!$B$39/(PI()/4*('Grunddaten KSH'!I18/1000)^2*3600) -> 0 | K18: ='Auslegung KSH'!$D$46/(PI()/4*('Grunddaten KSH'!I18/1000)^2*3600) -> 4.050868559 | M18: 2.10596298 | O18: 20.73472531 | P18: 125 | Q18: 1218 | R18: 1230 | S18: 92 | T18: 69 | U18: 608 | V18: 100 | W18: 73 | X18: 200
A19: KSH | B19: ABLD | C19: KSHABLD5003 | D19: 500 | E19: 3 | F19: =D19*E19 -> 1500 | G19: ='xkr._vx KSH'!$O$7/(0.01*'Grunddaten KSH'!F19) -> 8 | H19: ='Auslegung KSH'!$D$46/(0.01*'Grunddaten KSH'!F19) -> 7.333333333 | I19: 123 | J19: ='Auslegung KSH'!$B$39/(PI()/4*('Grunddaten KSH'!I19/1000)^2*3600) -> 0 | K19: ='Auslegung KSH'!$D$46/(PI()/4*('Grunddaten KSH'!I19/1000)^2*3600) -> 2.571521029 | M19: 2.068395689 | O19: 8.206633422 | P19: 165 | Q19: 518 | R19: 530 | S19: 126 | T19: 101 | U19: - | V19: 100 | W19: 114 | X19: 225
A20: KSH | B20: ABLD | C20: KSHABLD6003 | D20: 600 | E20: 3 | F20: =D20/2*E20 -> 900 | G20: ='xkr._vx KSH'!$O$7/(0.01*'Grunddaten KSH'!F20) -> 13.33333333 | H20: ='Auslegung KSH'!$D$46/(0.01*'Grunddaten KSH'!F20) -> 12.22222222 | I20: 123 | J20: ='Auslegung KSH'!$B$39/(PI()/4*('Grunddaten KSH'!I20/1000)^2*3600) -> 0 | K20: ='Auslegung KSH'!$D$46/(PI()/4*('Grunddaten KSH'!I20/1000)^2*3600) -> 2.571521029 | M20: 5.095916834 | O20: 20.21872393 | P20: 165 | Q20: 618 | R20: 630 | S20: 126 | T20: 101 | U20: 308 | V20: 100 | W20: 114 | X20: 225
A21: KSH | B21: ABLD | C21: KSHABLD8003 | D21: 800 | E21: 3 | F21: =D21/2*E21 -> 1200 | G21: ='xkr._vx KSH'!$O$7/(0.01*'Grunddaten KSH'!F21) -> 10 | H21: ='Auslegung KSH'!$D$46/(0.01*'Grunddaten KSH'!F21) -> 9.166666667 | I21: 123 | J21: ='Auslegung KSH'!$B$39/(PI()/4*('Grunddaten KSH'!I21/1000)^2*3600) -> 0 | K21: ='Auslegung KSH'!$D$46/(PI()/4*('Grunddaten KSH'!I21/1000)^2*3600) -> 2.571521029 | M21: 3.61210115 | O21: 14.33148898 | P21: 165 | Q21: 818 | R21: 830 | S21: 126 | T21: 101 | U21: 408 | V21: 100 | W21: 114 | X21: 225
A22: KSH | B22: ABLD | C22: KSHABLD10003 | D22: 1000 | E22: 3 | F22: =D22/2*E22 -> 1500 | G22: ='xkr._vx KSH'!$O$7/(0.01*'Grunddaten KSH'!F22) -> 8 | H22: ='Auslegung KSH'!$D$46/(0.01*'Grunddaten KSH'!F22) -> 7.333333333 | I22: 123 | J22: ='Auslegung KSH'!$B$39/(PI()/4*('Grunddaten KSH'!I22/1000)^2*3600) -> 0 | K22: ='Auslegung KSH'!$D$46/(PI()/4*('Grunddaten KSH'!I22/1000)^2*3600) -> 2.571521029 | M22: 3.026497708 | O22: 12.00802989 | P22: 165 | Q22: 1018 | R22: 1030 | S22: 126 | T22: 101 | U22: 508 | V22: 100 | W22: 114 | X22: 225
A23: KSH | B23: ABLD | C23: KSHABLD12003 | D23: 1200 | E23: 3 | F23: =D23/2*E23 -> 1800 | G23: ='xkr._vx KSH'!$O$7/(0.01*'Grunddaten KSH'!F23) -> 6.666666667 | H23: ='Auslegung KSH'!$D$46/(0.01*'Grunddaten KSH'!F23) -> 6.111111111 | I23: 123 | J23: ='Auslegung KSH'!$B$39/(PI()/4*('Grunddaten KSH'!I23/1000)^2*3600) -> 0 | K23: ='Auslegung KSH'!$D$46/(PI()/4*('Grunddaten KSH'!I23/1000)^2*3600) -> 2.571521029 | M23: 2.099791104 | O23: =(M23/2)*(1.2*K23^2) -> 8.331198885 | P23: 165 | Q23: 1218 | R23: 1230 | S23: 126 | T23: 101 | U23: 608 | V23: 100 | W23: 114 | X23: 225
A24: KSH | B24: ABLE | C24: =CONCATENATE(A24,B24,D24,E24) -> KSHABLE5002 | D24: 500 | E24: 2 | F24: =D24*E24 -> 1000 | G24: ='xkr._vx KSH'!$O$7/(0.01*'Grunddaten KSH'!F24) -> 12 | H24: ='Auslegung KSH'!$D$46/(0.01*'Grunddaten KSH'!F24) -> 11 | I24: 98 | J24: ='Auslegung KSH'!$B$39/(PI()/4*('Grunddaten KSH'!I24/1000)^2*3600) -> 0 | K24: ='Auslegung KSH'!$D$46/(PI()/4*('Grunddaten KSH'!I24/1000)^2*3600) -> 4.050868559 | M24: 3.395046289 | O24: =(M24/2)*(1.2*K24^2) -> 33.42668076 | P24: 125 | Q24: 518 | R24: 530 | S24: 92 | T24: 69 | U24: - | V24: 100 | W24: 73 | X24: 200
A25: KSH | B25: ABLE | C25: KSHABLE6002 | D25: 600 | E25: 2 | F25: =D25/2*E25 -> 600 | G25: ='xkr._vx KSH'!$O$7/(0.01*'Grunddaten KSH'!F25) -> 20 | H25: ='Auslegung KSH'!$D$46/(0.01*'Grunddaten KSH'!F25) -> 18.33333333 | I25: 98 | J25: ='Auslegung KSH'!$B$39/(PI()/4*('Grunddaten KSH'!I25/1000)^2*3600) -> 0 | K25: ='Auslegung KSH'!$D$46/(PI()/4*('Grunddaten KSH'!I25/1000)^2*3600) -> 4.050868559 | M25: 6.378008136 | O25: 62.7960928 | P25: 125 | Q25: 618 | R25: 630 | S25: 92 | T25: 69 | U25: 308 | V25: 100 | W25: 73 | X25: 200
A26: KSH | B26: ABLE | C26: KSHABLE8002 | D26: 800 | E26: 2 | F26: =D26/2*E26 -> 800 | G26: ='xkr._vx KSH'!$O$7/(0.01*'Grunddaten KSH'!F26) -> 15 | H26: ='Auslegung KSH'!$D$46/(0.01*'Grunddaten KSH'!F26) -> 13.75 | I26: 98 | J26: ='Auslegung KSH'!$B$39/(PI()/4*('Grunddaten KSH'!I26/1000)^2*3600) -> 0 | K26: ='Auslegung KSH'!$D$46/(PI()/4*('Grunddaten KSH'!I26/1000)^2*3600) -> 4.050868559 | M26: 4.091160395 | O26: 40.28042648 | P26: 125 | Q26: 818 | R26: 830 | S26: 92 | T26: 69 | U26: 408 | V26: 100 | W26: 73 | X26: 200
A27: KSH | B27: ABLE | C27: KSHABLE10002 | D27: 1000 | E27: 2 | F27: =D27/2*E27 -> 1000 | G27: ='xkr._vx KSH'!$O$7/(0.01*'Grunddaten KSH'!F27) -> 12 | H27: ='Auslegung KSH'!$D$46/(0.01*'Grunddaten KSH'!F27) -> 11 | I27: 98 | J27: ='Auslegung KSH'!$B$39/(PI()/4*('Grunddaten KSH'!I27/1000)^2*3600) -> 0 | K27: ='Auslegung KSH'!$D$46/(PI()/4*('Grunddaten KSH'!I27/1000)^2*3600) -> 4.050868559 | M27: 3.22462481 | O27: 31.7487583 | P27: 125 | Q27: 1018 | R27: 1030 | S27: 92 | T27: 69 | U27: 508 | V27: 100 | W27: 73 | X27: 200
A28: KSH | B28: ABLE | C28: KSHABLE12002 | D28: 1200 | E28: 2 | F28: =D28/2*E28 -> 1200 | G28: ='xkr._vx KSH'!$O$7/(0.01*'Grunddaten KSH'!F28) -> 10 | H28: ='Auslegung KSH'!$D$46/(0.01*'Grunddaten KSH'!F28) -> 9.166666667 | I28: 98 | J28: ='Auslegung KSH'!$B$39/(PI()/4*('Grunddaten KSH'!I28/1000)^2*3600) -> 0 | K28: ='Auslegung KSH'!$D$46/(PI()/4*('Grunddaten KSH'!I28/1000)^2*3600) -> 4.050868559 | M28: 2.572426219 | O28: 25.32739252 | P28: 125 | Q28: 1218 | R28: 1230 | S28: 92 | T28: 69 | U28: 608 | V28: 100 | W28: 73 | X28: 200
A29: KSH | B29: ABLE | C29: KSHABLE5003 | D29: 500 | E29: 3 | F29: =D29*E29 -> 1500 | G29: ='xkr._vx KSH'!$O$7/(0.01*'Grunddaten KSH'!F29) -> 8 | H29: ='Auslegung KSH'!$D$46/(0.01*'Grunddaten KSH'!F29) -> 7.333333333 | I29: 123 | J29: ='Auslegung KSH'!$B$39/(PI()/4*('Grunddaten KSH'!I29/1000)^2*3600) -> 0 | K29: ='Auslegung KSH'!$D$46/(PI()/4*('Grunddaten KSH'!I29/1000)^2*3600) -> 2.571521029 | M29: 3.844235335 | O29: 15.25251206 | P29: 165 | Q29: 518 | R29: 530 | S29: 126 | T29: 101 | U29: - | V29: 100 | W29: 114 | X29: 225
A30: KSH | B30: ABLE | C30: KSHABLE6003 | D30: 600 | E30: 3 | F30: =D30/2*E30 -> 900 | G30: ='xkr._vx KSH'!$O$7/(0.01*'Grunddaten KSH'!F30) -> 13.33333333 | H30: ='Auslegung KSH'!$D$46/(0.01*'Grunddaten KSH'!F30) -> 12.22222222 | I30: 123 | J30: ='Auslegung KSH'!$B$39/(PI()/4*('Grunddaten KSH'!I30/1000)^2*3600) -> 0 | K30: ='Auslegung KSH'!$D$46/(PI()/4*('Grunddaten KSH'!I30/1000)^2*3600) -> 2.571521029 | M30: 7.281189232 | O30: 28.88908115 | P30: 165 | Q30: 618 | R30: 630 | S30: 126 | T30: 101 | U30: 308 | V30: 100 | W30: 114 | X30: 225
A31: KSH | B31: ABLE | C31: KSHABLE8003 | D31: 800 | E31: 3 | F31: =D31/2*E31 -> 1200 | G31: ='xkr._vx KSH'!$O$7/(0.01*'Grunddaten KSH'!F31) -> 10 | H31: ='Auslegung KSH'!$D$46/(0.01*'Grunddaten KSH'!F31) -> 9.166666667 | I31: 123 | J31: ='Auslegung KSH'!$B$39/(PI()/4*('Grunddaten KSH'!I31/1000)^2*3600) -> 0 | K31: ='Auslegung KSH'!$D$46/(PI()/4*('Grunddaten KSH'!I31/1000)^2*3600) -> 2.571521029 | M31: 4.995356088 | O31: 19.81973587 | P31: 165 | Q31: 818 | R31: 830 | S31: 126 | T31: 101 | U31: 408 | V31: 100 | W31: 114 | X31: 225
A32: KSH | B32: ABLE | C32: KSHABLE10003 | D32: 1000 | E32: 3 | F32: =D32/2*E32 -> 1500 | G32: ='xkr._vx KSH'!$O$7/(0.01*'Grunddaten KSH'!F32) -> 8 | H32: ='Auslegung KSH'!$D$46/(0.01*'Grunddaten KSH'!F32) -> 7.333333333 | I32: 123 | J32: ='Auslegung KSH'!$B$39/(PI()/4*('Grunddaten KSH'!I32/1000)^2*3600) -> 0 | K32: ='Auslegung KSH'!$D$46/(PI()/4*('Grunddaten KSH'!I32/1000)^2*3600) -> 2.571521029 | M32: 4.000287482 | O32: 15.87166959 | P32: 165 | Q32: 1018 | R32: 1030 | S32: 126 | T32: 101 | U32: 508 | V32: 100 | W32: 114 | X32: 225
A33: KSH | B33: ABLE | C33: KSHABLE12003 | D33: 1200 | E33: 3 | F33: =D33/2*E33 -> 1800 | G33: ='xkr._vx KSH'!$O$7/(0.01*'Grunddaten KSH'!F33) -> 6.666666667 | H33: ='Auslegung KSH'!$D$46/(0.01*'Grunddaten KSH'!F33) -> 6.111111111 | I33: 123 | J33: ='Auslegung KSH'!$B$39/(PI()/4*('Grunddaten KSH'!I33/1000)^2*3600) -> 0 | K33: ='Auslegung KSH'!$D$46/(PI()/4*('Grunddaten KSH'!I33/1000)^2*3600) -> 2.571521029 | M33: 3.248704248 | O33: 12.88966372 | P33: 165 | Q33: 1218 | R33: 1230 | S33: 126 | T33: 101 | U33: 608 | V33: 100 | W33: 114 | X33: 225
D38: 2 | E38: 3 | F38: 4 | G38: 5 | H38: 6 | I38: 7 | J38: 8 | K38: 9 | L38: 10 | M38: 11 | N38: 12 | O38: 13 | P38: 14 | Q38: 15 | R38: 16 | S38: 17 | T38: 18 | U38: 19 | V38: 20 | W38: 21 | X38: 22 | Y38: 23 | Z38: 24 | AA38: 25 | AB38: 26 | AC38: 27 | AD38: 28
A49: Auswahl: | B49: Zuluft | C49: =CONCATENATE("KSHZUL",'Auslegung KSH'!$D$9,'Auslegung KSH'!$D$15) -> KSHZUL6003 | D49: =VLOOKUP($C$49,$C$4:$P$31,D38,FALSE) -> 600 | E49: =VLOOKUP($C$49,$C$4:$P$31,E38,FALSE) -> 3 | F49: 900 | G49: =VLOOKUP($C$49,$C$4:$P$33,G38,FALSE) -> 13.33333333 | H49: 12.22222222 | I49: 123 | J49: 0 | K49: 2.805295668 | L49: =VLOOKUP($C$49,$C$4:$P$31,L38,FALSE) -> 8.19100285 | M49: 0 | N49: =VLOOKUP($C$49,$C$4:$P$31,N38,FALSE) -> 38.67636138 | O49: 0 | P49: 165 | Q49: =VLOOKUP($C$49,$C$4:$AD$31,Q38,FALSE) -> 618 | R49: =VLOOKUP($C$49,$C$4:$AD$31,R38,FALSE) -> 630 | S49: =VLOOKUP($C$49,$C$4:$AD$31,S38,FALSE) -> 126 | T49: 101 | U49: =VLOOKUP($C$49,$C$4:$AD$31,U38,FALSE) -> 308 | V49: 100 | W49: 114 | X49: 225 | Y49: =VLOOKUP($C$49,$C$4:$AD$31,Y38,FALSE) -> 0 | Z49: 0 | AA49: 0 | AB49: 0 | AC49: 0 | AD49: 0
B50: Abluft | C50: =CONCATENATE("KSHABL",'Auslegung KSH'!$E$71,'Auslegung KSH'!$D$9,'Auslegung KSH'!$D$15) -> KSHABLE6003 | D50: =VLOOKUP($C$50,$C$4:$P$33,D38,FALSE) -> 600 | E50: =VLOOKUP($C$50,$C$4:$P$33,E38,FALSE) -> 3 | F50: 900 | G50: 13.33333333 | H50: =VLOOKUP($C$50,$C$4:$P$33,H38,FALSE) -> 12.22222222 | I50: =VLOOKUP($C$50,$C$4:$P$33,I38,FALSE) -> 123 | J50: 0 | K50: 2.571521029 | L50: 0 | M50: 7.281189232 | N50: 0 | O50: =VLOOKUP($C$50,$C$4:$P$33,O38,FALSE) -> 28.88908115 | P50: 165 | Q50: =VLOOKUP($C$50,$C$4:$AD$31,Q38,FALSE) -> 618 | R50: =VLOOKUP($C$50,$C$4:$AD$31,R38,FALSE) -> 630 | S50: =VLOOKUP($C$50,$C$4:$AD$31,S38,FALSE) -> 126 | T50: 101 | U50: 308 | V50: 100 | W50: 114 | X50: 225 | Y50: 0 | Z50: 0 | AA50: 0 | AB50: 0 | AC50: 0 | AD50: 0
Y51: offen | AA51: geschlossen | AC51: ZUL geschlossen, ABL offen
D52: Stand: | E52: 2020-04-21

Sheet Vorauswahl
A4: =Übersetzung!F5 -> Auslegung Kampmann Kombiluftdurchlässe
A6: =Übersetzung!F106 -> Bitte wählen Sie einen Durchlasstypen
A8: =Übersetzung!F107 -> Durch Klick auf einen Durchlass glangen sie direkt zur technischen Auslegung
H24: 5 | I24: min. Abmessung Frontblende rund | K24: mm
F49: =IF(#REF!<1000,CONCATENATE(0,#REF!),#REF!) -> 
F50: =IF(J19=78,"080",100) -> 100
N127: 2
N128: =N127 -> 2
A135: =Übersetzung!F44 -> Änderungen vorbehalten
A136: =Übersetzung!F45 -> Stand: | B136: ='Grunddaten KSW'!E52 -> 2020-10-30

Sheet V°BVR_KSH (hidden)
C7: Betriebswerte Volumenstromregler für KSH
C8: DN100 | H8: DN100 | M8: DN125
A9: 1 | C9: KSH500-2-100 | D9: KSH600-2-100 | E9: KSH800-2-100 | F9: KSH1000-2-100 | G9: KSH1200-2-100 | H9: KSH500-3-100 | I9: KSH600-3-100 | J9: KSH800-3-100 | K9: KSH1000-3-100 | L9: KSH1200-3-100 | M9: KSH500-3-125 | N9: KSH600-3-125 | O9: KSH800-3-125 | P9: KSH1000-3-125 | Q9: KSH1200-3-125 | S9: =CONCATENATE('Auslegung KSH'!$D$8,'Auslegung KSH'!$D$9,"-",'Auslegung KSH'!$D$15,"-",'Auslegung KSH'!D21,"-ZUL") -> KSH600-3-100-ZUL
A10: 2 | C10: =CONCATENATE(C9,"-ZUL") -> KSH500-2-100-ZUL | D10: =CONCATENATE(D9,"-ZUL") -> KSH600-2-100-ZUL | E10: =CONCATENATE(E9,"-ZUL") -> KSH800-2-100-ZUL | F10: =CONCATENATE(F9,"-ZUL") -> KSH1000-2-100-ZUL | G10: =CONCATENATE(G9,"-ZUL") -> KSH1200-2-100-ZUL | H10: =CONCATENATE(H9,"-ZUL") -> KSH500-3-100-ZUL | I10: KSH600-3-100-ZUL | J10: KSH800-3-100-ZUL | K10: KSH1000-3-100-ZUL | L10: KSH1200-3-100-ZUL | M10: =CONCATENATE(M9,"-ZUL") -> KSH500-3-125-ZUL | N10: =CONCATENATE(N9,"-ZUL") -> KSH600-3-125-ZUL | O10: =CONCATENATE(O9,"-ZUL") -> KSH800-3-125-ZUL | P10: =CONCATENATE(P9,"-ZUL") -> KSH1000-3-125-ZUL | Q10: =CONCATENATE(Q9,"-ZUL") -> KSH1200-3-125-ZUL
A11: 3 | C11: 50 | D11: 50 | E11: 50 | F11: 50 | G11: 70 | H11: 70 | I11: 50 | J11: 55 | K11: 70 | L11: 80 | M11: 70 | N11: 50 | O11: 60 | P11: 70 | Q11: 80 | S11: =IF(HLOOKUP($S$9,$C$10:$Q$25,A10,FALSE)=0,"",HLOOKUP($S$9,$C$10:$Q$25,A10,FALSE)) -> 50
A12: 4 | C12: 55 | D12: 55 | E12: 55 | F12: 55 | G12: 75 | H12: 75 | I12: 55 | J12: 70 | K12: 75 | L12: 90 | M12: 75 | N12: 60 | O12: 65 | P12: 75 | Q12: 85 | S12: =IF(HLOOKUP($S$9,$C$10:$Q$25,A11,FALSE)=0,"",HLOOKUP($S$9,$C$10:$Q$25,A11,FALSE)) -> 55
A13: 5 | C13: 70 | D13: 70 | E13: 70 | F13: 70 | G13: 80 | H13: 80 | I13: 70 | J13: 75 | K13: 80 | M13: 80 | N13: 65 | O13: 70 | P13: 80 | Q13: 100 | S13: 70
A14: 6 | C14: 75 | D14: 75 | E14: 75 | F14: 75 | G14: 85 | H14: 90 | I14: 75 | J14: 80 | K14: 90 | M14: 85 | N14: 70 | O14: 75 | P14: 85 | Q14: 110 | S14: 75
A15: 7 | C15: 80 | D15: 80 | E15: 80 | F15: 80 | G15: 90 | I15: 80 | J15: 90 | M15: 100 | N15: 75 | O15: 80 | P15: 100 | Q15: 120 | S15: 80
A16: 8 | C16: 90 | D16: 90 | E16: 90 | F16: 90 | I16: 90 | M16: 110 | N16: 80 | O16: 85 | P16: 110 | Q16: 130 | S16: 90
A17: 9 | M17: 120 | N17: 85 | O17: 100 | P17: 120 | Q17: 140
A18: 10 | M18: 130 | N18: 100 | O18: 110 | P18: 130 | Q18: 150
A19: 11 | M19: 140 | N19: 110 | O19: 120 | P19: 140 | Q19: 160
A20: 12 | M20: 150 | N20: 120 | P20: 150 | Q20: 190
A21: 13 | P21: 160
A22: 14
A23: 15
A24: 16
A25: 17
A26: 18
C27: Düsenwalze | H27: Düsenwalze | M27: Düsenwalze | R27: Exzenterwalze | W27: Exzenterwalze | AB27: Exzenterwalze
C28: DN100 | H28: DN100 | M28: DN125 | R28: DN100 | W28: DN100 | AB28: DN125
A29: 1 | C29: KSH500-2-100 | D29: KSH600-2-100 | E29: KSH800-2-100 | F29: KSH1000-2-100 | G29: KSH1200-2-100 | H29: KSH500-3-100 | I29: KSH600-3-100 | J29: KSH800-3-100 | K29: KSH1000-3-100 | L29: KSH1200-3-100 | M29: KSH500-3-125 | N29: KSH600-3-125 | O29: KSH800-3-125 | P29: KSH1000-3-125 | Q29: KSH1200-3-125 | R29: KSH500-2-100 | S29: KSH600-2-100 | T29: KSH800-2-100 | U29: KSH1000-2-100 | V29: KSH1200-2-100 | W29: KSH500-3-100 | X29: KSH600-3-100 | Y29: KSH800-3-100 | Z29: KSH1000-3-100 | AA29: KSH1200-3-100 | AB29: KSH500-3-125 | AC29: KSH600-3-125 | AD29: KSH800-3-125 | AE29: KSH1000-3-125 | AF29: KSH1200-3-125 | AH29: =CONCATENATE('Auslegung KSH'!$D$8,'Auslegung KSH'!$D$9,"-",'Auslegung KSH'!$D$15,,"-",'Auslegung KSH'!D21,"ABL",'Auslegung KSH'!$E$71) -> KSH600-3-100ABLE
A30: 2 | C30: =CONCATENATE(C29,"-ABL","D") -> KSH500-2-100-ABLD | D30: =CONCATENATE(D29,"-ABL","D") -> KSH600-2-100-ABLD | E30: KSH800-2-100-ABLD | F30: KSH1000-2-100-ABLD | G30: KSH1200-2-100-ABLD | H30: =CONCATENATE(H29,"-ABL","D") -> KSH500-3-100-ABLD | I30: =CONCATENATE(I29,"-ABL","D") -> KSH600-3-100-ABLD | J30: =CONCATENATE(J29,"-ABL","D") -> KSH800-3-100-ABLD | K30: =CONCATENATE(K29,"-ABL","D") -> KSH1000-3-100-ABLD | L30: =CONCATENATE(L29,"-ABL","D") -> KSH1200-3-100-ABLD | M30: =CONCATENATE(M29,"-ABL","D") -> KSH500-3-125-ABLD | N30: =CONCATENATE(N29,"-ABL","D") -> KSH600-3-125-ABLD | O30: =CONCATENATE(O29,"-ABL","D") -> KSH800-3-125-ABLD | P30: =CONCATENATE(P29,"-ABL","D") -> KSH1000-3-125-ABLD | Q30: =CONCATENATE(Q29,"-ABL","D") -> KSH1200-3-125-ABLD | R30: =CONCATENATE(C29,"ABL","E") -> KSH500-2-100ABLE | S30: =CONCATENATE(D29,"ABL","E") -> KSH600-2-100ABLE | T30: KSH800-2-100ABLE | U30: KSH1000-2-100ABLE | V30: KSH1200-2-100ABLE | W30: KSH500-3-100ABLE | X30: KSH600-3-100ABLE | Y30: KSH800-3-100ABLE | Z30: KSH1000-3-100ABLE | AA30: KSH1200-3-100ABLE | AB30: KSH500-3-125ABLE | AC30: KSH600-3-125ABLE | AD30: KSH800-3-125ABLE | AE30: KSH1000-3-125ABLE | AF30: KSH1200-3-125ABLE
A31: 3 | C31: 50 | D31: 50 | E31: 50 | F31: 50 | G31: 50 | H31: 50 | I31: 50 | J31: 50 | K31: 50 | L31: 50 | M31: 50 | N31: 50 | O31: 50 | P31: 50 | Q31: 50 | R31: 50 | S31: 50 | T31: 50 | U31: 50 | V31: 50 | W31: 50 | X31: 50 | Y31: 50 | Z31: 50 | AA31: 50 | AB31: 50 | AC31: 50 | AD31: 50 | AE31: 50 | AF31: 50 | AH31: =IF(HLOOKUP($AH$29,$C$30:$AF$52,A30,FALSE)=0,"",HLOOKUP($AH$29,$C$30:$AF$52,A30,FALSE)) -> 50
A32: 4 | C32: 55 | D32: 55 | E32: 55 | F32: 55 | G32: 55 | H32: 55 | I32: 55 | J32: 55 | K32: 55 | L32: 55 | M32: 60 | N32: 60 | O32: 60 | P32: 60 | Q32: 60 | R32: 55 | S32: 55 | T32: 55 | U32: 55 | V32: 55 | W32: 55 | X32: 55 | Y32: 55 | Z32: 55 | AA32: 55 | AB32: 60 | AC32: 60 | AD32: 60 | AE32: 60 | AF32: 60 | AH32: 55
A33: 5 | C33: 70 | D33: 70 | E33: 70 | F33: 70 | G33: 70 | H33: 70 | I33: 70 | J33: 70 | K33: 70 | L33: 70 | M33: 65 | N33: 65 | O33: 65 | P33: 65 | Q33: 65 | R33: 70 | S33: 70 | T33: 70 | U33: 70 | V33: 70 | W33: 70 | X33: 70 | Y33: 70 | Z33: 70 | AA33: 70 | AB33: 65 | AC33: 65 | AD33: 65 | AE33: 65 | AF33: 65 | AH33: 70
A34: 6 | C34: 75 | D34: 75 | E34: 75 | F34: 75 | G34: 75 | H34: 75 | I34: 75 | J34: 75 | K34: 75 | L34: 75 | M34: 70 | N34: 70 | O34: 70 | P34: 70 | Q34: 70 | R34: 75 | S34: 75 | T34: 75 | U34: 75 | V34: 75 | W34: 75 | X34: 75 | Y34: 75 | Z34: 75 | AA34: 75 | AB34: 70 | AC34: 70 | AD34: 70 | AE34: 70 | AF34: 70 | AH34: 75
A35: 7 | C35: 80 | D35: 80 | E35: 80 | F35: 80 | G35: 80 | H35: 80 | I35: 80 | J35: 80 | K35: 80 | L35: 80 | M35: 75 | N35: 75 | O35: 75 | P35: 75 | Q35: 75 | R35: 80 | S35: 80 | T35: 80 | U35: 80 | V35: 80 | W35: 80 | X35: 80 | Y35: 80 | Z35: 80 | AA35: 80 | AB35: 75 | AC35: 75 | AD35: 75 | AE35: 75 | AF35: 75 | AH35: 80
A36: 8 | C36: 90 | D36: 90 | E36: 90 | F36: 90 | G36: 90 | H36: 90 | I36: 90 | J36: 90 | K36: 90 | L36: 90 | M36: 80 | N36: 80 | O36: 80 | P36: 80 | Q36: 80 | R36: 90 | S36: 90 | T36: 90 | U36: 90 | V36: 90 | W36: 90 | X36: 90 | Y36: 90 | Z36: 90 | AA36: 90 | AB36: 80 | AC36: 80 | AD36: 80 | AE36: 80 | AF36: 80 | AH36: 90
A37: 9 | M37: 85 | N37: 85 | O37: 85 | P37: 85 | Q37: 85 | AB37: 85 | AC37: 85 | AD37: 85 | AE37: 85 | AF37: 85
A38: 10 | M38: 100 | N38: 100 | O38: 100 | P38: 100 | Q38: 100 | AB38: 100 | AC38: 100 | AD38: 100 | AE38: 100 | AF38: 100
A39: 11 | M39: 110 | N39: 110 | O39: 110 | P39: 110 | Q39: 110 | AB39: 110 | AC39: 110 | AD39: 110 | AE39: 110 | AF39: 110
A40: 12 | M40: 120 | N40: 120 | O40: 120 | P40: 120 | Q40: 120 | AB40: 120 | AC40: 120 | AD40: 120 | AE40: 120 | AF40: 120
A41: 13 | M41: 130 | P41: 130 | Q41: 130 | AB41: 130 | AE41: 130 | AF41: 130
A42: 14 | M42: 140 | P42: 140 | Q42: 140 | AB42: 140 | AE42: 140 | AF42: 140
A43: 15 | M43: 150 | P43: 150 | Q43: 150 | AB43: 150 | AE43: 150 | AF43: 150
A44: 16 | M44: 160 | P44: 160 | Q44: 160 | AB44: 160 | AE44: 160 | AF44: 160
A45: 17 | Q45: 190 | AF45: 190
A46: 18
A47: 19
A48: 20
A49: 21
A50: 22
A51: 23
A52: 24
A53: 25
A54: 26
A55: 27
A58: 2
A59: 3
A60: 4
A61: 5
A62: 6
A63: 7
A64: 8
A65: 9
A66: 10
A67: 11
A68: 12
A69: 13
A70: 14
A71: 15
A72: 16
A73: 17
A74: 18
A75: 19
A76: 20
A77: 21
A78: 22
A79: 23
A80: 24
A81: 25
A82: 26
A83: 27

Sheet Hinweise zum Programm (hidden)
A1: Hinweise zur Bedienung
A3: Allgemeine Hinweise:
A4: Das Auslegungstool Industrie dient als Hilfsmittel zur Technischen Planung von Industrieluftdurchlässen der Marke emcoair.
A6: Auslegung:
A7: Im Tabellenblatt "Auslegung" erfolgt die Festlegung des gewünschten Auslasstyps. Bei Eingabe der Vorgabedaten, wie z.B. dem benötigten Luftvolumenstrom werden die technischen Daten des gewählten Luftdurchlasses berechnet.
A9: Bedienung:
A10: Die im Tabellenblatt "Auslegung" ermittelten Strömungsgeschwindigkeiten gelten für einen deckenbündig montierten Luftdurchlass mit horizontaler Ausblascharakteristik.
A12: Funktion:
A13: Im Tabellenblatt "Funktion" finden Sie eine kurze Funktionsbeschreibung des jeweiligen Luftdurchlasses.
A16: Hinweise zur Funktion:
A17: Für eine ordnungsgemäße Funktion des Auslegungstools muss die Ausführung von Makros und MS Excel aktiviert sein. Die Aktivierung von Makros erfolgt im Menü Makrosicherheit.
A18: Einstellung unter MS Excel 97-2003: Extras → Makro → Sicherheit
A19: Einstellung unter MS Excel 2007 und 2010: Entwicklertools* → Makrosicherheit
A20: *Das Menü Entwicklertools muss unter Umständen eingefügt werden unter Excel-Optionen

Sheet Einheiten (hidden)
B2: Einheitenumrechnung, falls Optionsfeld in der Vorauswahl den Wert 3 annimt. | E2: Wert: | F2: =Übersetzung!$B$2 -> 1
C4: SI - Einheit | D4: angloamerikanisch | H4: 1 | I4: 2 | J4: 3 | K4: 1
B5: Längenangaben | C5: m | D5: ft | E5: 1 ft = | F5: =IF($F$2=3,0.3048,1) -> 1 | G5: m | H5: m | I5: =H5 -> m | J5: ft | K5: 2 | L5: =HLOOKUP($F$2,$H$4:$J$10,K5,FALSE) -> m
B6: Rauminhalt | C6: m³ | D6: ft³ | E6: 1 ft³ = | F6: =IF($F$2=3,28.317,1000) -> 1000 | G6: dm³ | H6: m/s | I6: =H6 -> m/s | J6: ft/min | K6: 3 | L6: m/s
F7: =IF($F$2=3,F6/1000,1) -> 1 | G7: m³ | H7: m³/h | I7: m³/h | J7: ft³/min | K7: 4 | L7: m³/h
B8: Geschwindigkeit | C8: m/s | D8: ft/min | E8: 1 ft/min = | F8: =IF($F$2=3,0.508,100) -> 100 | G8: cm/s | H8: Pa | I8: Pa | J8: in w.g. | K8: 5 | L8: Pa
F9: =IF($F$2=3,F8/100,1) -> 1 | G9: m/s | H9: °C | I9: °C | J9: °F | K9: 6 | L9: °C
B10: Volumenstrom | C10: m³/h | D10: ft³/min | E10: 1 ft³/min = | F10: =IF($F$2=3,28.317,1) -> 1 | G10: l/min | H10: mm | I10: mm | J10: in | K10: 7 | L10: =HLOOKUP($F$2,$H$4:$J$11,K10,FALSE) -> mm
F11: =IF($F$2=3,F10*6/100,1) -> 1 | G11: m³/h | H11: St. | I11: St. | J11: pcs | K11: 8 | L11: =HLOOKUP($F$2,$H$4:$J$11,K11,FALSE) -> St.
B12: Leistung | C12: W | D12: BTU/h | E12: 1 BTU/h = | F12: =IF($F$2=3,0.2931,1) -> 1 | G12: W | H12: m² | I12: m² | J12: ft² | K12: 9 | L12: =HLOOKUP($F$2,$H$4:$J$12,K12,FALSE) -> m²
F13: =IF($F$2=3,F12/1000,0.001) -> 0.001 | G13: kW
C14: Pa | D14: in. Wg | E14: 1 in w.g. = | F14: =IF($F$2=3,254,1) -> 1 | G14: Pa
C15: mm | D15: in | E15: 1 in = | F15: =IF($F$2=3,25.4,1) -> 1 | G15: mm
A17: Auslegung LDI | B17: Größen aus Vorgabe/Auslegung (Zahlenwerte imperial) | E17: Größen zur Weiterberechnung (SI - Einheit)
B18: Luftvolumenstrom | C18: 1000 | D18: ft³/min | E18: =C18*$F$11 -> 1000 | F18: m³/h | G18: Einzelvolumenstrom!
B19: Klappenwinkel Kühlfall | C19: 50 | D19: ° | E19: =C19 -> 50 | F19: °
B20: Klappenwinkel Heizfall | C20: 25 | D20: ° | E20: =C20 -> 25 | F20: °
B21: Temperatur Zuluft Kühlfall | C21: 16 | D21: °F | E21: =IF($F$2=3,(5/9)*C21-17.77,C21) -> 16 | F21: °C
B22: Temperatur Raum Kühlfall | C22: 24 | D22: °F | E22: =IF($F$2=3,(5/9)*C22-17.77,C22) -> 24 | F22: °C
B23: Temperatur Zuluft Heizfall | C23: 30 | D23: °F | E23: 30 | F23: °C
B24: Temperatur Raum Heizfall | C24: 20 | D24: °F | E24: 20 | F24: °C
B25: Montagehöhe | C25: 8 | D25: ft | E25: =C25*$F$5 -> 8 | F25: m
B26: Obergrenze Aufenthaltsbereich | C26: 1.8 | D26: ft | E26: =C26*$F$5 -> 1.8 | F26: m
B27: Raumlänge | C27: 21 | D27: ft | E27: 21 | F27: m
B28: Raumbreite | C28: 12.7 | D28: ft | E28: 12.7 | F28: m
B29: Raumhöhe | C29: 14 | D29: ft | E29: =C29*$F$5 -> 14 | F29: m
B30: Größen von Weiterberechnung (SI - Einheit) | E30: Größen zur Vorgabe/Auslegung (imperial)
B31: Totaldruckverlust Kühlen | C31: 44.44412734 | D31: Pa | E31: =C31/$F$14 -> 44.44412734 | F31: in w.g.
B32: Totaldruckverlust heizen | C32: 17.64081549 | D32: Pa | E32: =C32/$F$14 -> 17.64081549 | F32: in w.g.
B33: kleinster Abstand zwischen 2 Durchlässen | C33: 3.551516399 | D33: m | E33: =C33/F5 -> 3.551516399 | F33: ft
B34: Mittlere Geschwindigkeit im Aufenthaltsbereich | C34: 0.04279603837 | D34: m/s | E34: =C34/$F$9 -> 0.04279603837 | F34: ft/min
B35: Vertikale Eindringtiefe | C35: 4.89915231 | D35: m | E35: =C35/$F$5 -> 4.89915231 | F35: ft
A36: Auslegung VLV, VLD, WKD | B36: Größen aus Vorgabe/Auslegung (Zahlenwerte imperial) | E36: Größen zur Weiterberechnung (SI - Einheit)
B37: Luftvolumenstrom | C37: 320 | D37: ft³/min | E37: =C37*$F$11 -> 320 | F37: m³/h
B38: Temperatur Zuluft | C38: 30 | D38: °F | E38: =IF($F$2=3,(5/9)*C38-17.77,C38) -> 30 | F38: °C
B39: Temperatur Raum | C39: 20 | D39: °F | E39: =IF($F$2=3,(5/9)*C39-17.77,C39) -> 20 | F39: °C
B40: Montagehöhe | C40: 15 | D40: ft | E40: =C40*$F$5 -> 15 | F40: m
B41: Obergrenze Aufenthaltsbereich | C41: 1.8 | D41: ft | E41: =C41*$F$5 -> 1.8 | F41: m
B42: Raumlänge | C42: 100 | D42: ft | E42: 100 | F42: m
B43: Raumbreite | C43: 100 | D43: ft | E43: 100 | F43: m
B44: Raumhöhe | C44: 30 | D44: ft | E44: 30 | F44: m
B45: Abstand Durchlass zur nächstgelegenen Wand | C45: 3 | D45: ft | E45: 3 | F45: m
B46: kleinster Abstand zwischen 2 Durchlässen | C46: 3 | D46: ft | E46: 3 | F46: m
B47: Größen von Weiterberechnung (SI - Einheit) | E47: Größen zur Vorgabe/Auslegung (imperial)
B48: Totaldruckverlust | C48: 29.696 | D48: Pa | E48: =C48/$F$14 -> 29.696 | F48: in w.g.
B49: Kritischer Strahlweg deckenbündig | C49: 0 | D49: m | E49: =C49/$F$5 -> 0 | F49: ft
B50: Geschwindigkeit am Fußboden | C50: 0 | D50: m | E50: =C50/$F$9 -> 0 | F50: ft/min
B51: Zugluftrisiko am Fußboden** | C51: 0 | D51: % | E51: =C51 -> 0 | F51: %
B52: Geschwindigkeit im Aufenthaltsbereich nach Stoß* | C52: 0 | D52: m/s | E52: =C52/$F$9 -> 0 | F52: ft/min
B53: Zugluftrisiko im Aufenthaltsbereich** | C53: 0 | D53: % | E53: =C53 -> 0 | F53: %
B54: Geschwindigkeit nach Ablösen an Xkr. | C54: 0 | D54: m/s | E54: =C54/$F$9 -> 0 | F54: ft/min
B55: Zugluftrisiko nach Ablösepunkt** | C55: 0 | D55: % | E55: =C55 -> 0 | F55: %
B56: Eindringtiefe | C56: 2.934593669 | D56: m | E56: =IFERROR(C56/$F$5,">Montagehöhe") -> 2.934593669 | F56: ft
A57: Auslegung IVA | B57: Größen aus Vorgabe/Auslegung (Zahlenwerte imperial) | E57: Größen zur Weiterberechnung (SI - Einheit)
B58: Luftvolumenstrom | C58: 1350 | D58: ft³/min | E58: =C58*$F$11 -> 1350 | F58: m³/h
B59: Temperatur Zuluft Kühlfall | C59: 16 | D59: °F | E59: =IF($F$2=3,(5/9)*C59-17.77,C59) -> 16 | F59: °C
B60: Temperatur Raum Kühlfall | C60: 26 | D60: °F | E60: =IF($F$2=3,(5/9)*C60-17.77,C60) -> 26 | F60: °C
B61: Temperatur Zuluft Heizfall | C61: 30 | D61: °F | E61: =IF($F$2=3,(5/9)*C61-17.77,C61) -> 30 | F61: °C
B62: Temperatur Raum Heizfall | C62: 20 | D62: °F | E62: 20 | F62: °C
B63: Montagehöhe | C63: 10 | D63: ft | E63: =C63*$F$5 -> 10 | F63: m
B64: Obergrenze Aufenthaltsbereich | C64: 1.8 | D64: ft | E64: 1.8 | F64: m
B65: Raumlänge | C65: 100 | D65: ft | E65: 100 | F65: m
B66: Raumbreite | C66: 100 | D66: ft | E66: 100 | F66: m
B67: Raumhöhe | C67: 12 | D67: ft | E67: 12 | F67: m
B68: Größen von Weiterberechnung (SI - Einheit) | E68: Größen zur Vorgabe/Auslegung (imperial)
B69: Totaldruckverlust | C69: 9.111862749 | D69: Pa | E69: =C69/$F$14 -> 9.111862749 | F69: in w.g.
B70: Horizontale Wurfweite | C70: 1.421220857 | D70: m | E70: =C70/$F$5 -> 1.421220857 | F70: ft
B71: Vertikale Eindringtiefe | C71: 6.167458436 | D71: m | E71: =C71/$F$5 -> 6.167458436 | F71: ft
A72: Auslegung IVA-T | B72: Größen aus Vorgabe/Auslegung (Zahlenwerte imperial) | E72: Größen zur Weiterberechnung (SI - Einheit)
B73: Luftvolumenstrom | C73: 1800 | D73: ft³/min | E73: =C73*$F$11 -> 1800 | F73: m³/h
B74: Temperatur Zuluft | C74: 18 | D74: °F | E74: =IF($F$2=3,(5/9)*C74-17.77,C74) -> 18 | F74: °C
B75: Temperatur Raum | C75: 26 | D75: °F | E75: =IF($F$2=3,(5/9)*C75-17.77,C75) -> 26 | F75: °C
B76: Montagehöhe | C76: 5 | D76: ft | E76: =C76*$F$5 -> 5 | F76: m
B77: Obergrenze Aufenthaltsbereich | C77: 1.8 | D77: ft | E77: 1.8 | F77: m
B78: Raumlänge | C78: 100 | D78: ft | E78: 100 | F78: m
B79: Raumbreite | C79: 100 | D79: ft | E79: 100 | F79: m
B80: Raumhöhe | C80: 8 | D80: ft | E80: 8 | F80: m
B81: Abstand Durchlass zur nächstgelegenen Wand | C81: 3 | D81: ft | E81: 3 | F81: m
B82: kleinster Abstand zwischen 2 Durchlässen | C82: 5 | D82: ft | E82: 5 | F82: m
B83: Größen von Weiterberechnung (SI - Einheit) | E83: Größen zur Vorgabe/Auslegung (imperial)
B84: Totaldruckverlust | C84: 14.69959447 | D84: Pa | E84: =C84/$F$14 -> 14.69959447 | F84: in w.g.
B85: Geschwindigkeit im Stutzen | C85: 3.422631744 | D85: m/s | E85: =C85/$F$9 -> 3.422631744 | F85: ft/min
B86: Strahlbreite an Oberkante Aufenthaltsbereich | C86: 3.184408025 | D86: m | E86: =C86/$F$5 -> 3.184408025 | F86: ft
B87: Mittlere Geschwindigkeit im Aufenthaltsbereich | C87: 0.5298498303 | D87: m | E87: =C87/$F$5 -> 0.5298498303 | F87: ft
B88: Vertikale Eindringtiefe | C88: 3.4 | D88: m | E88: =C88/$F$5 -> 3.4 | F88: ft
A89: Auslegung IVA-TH | B89: Größen aus Vorgabe/Auslegung (Zahlenwerte imperial) | E89: Größen zur Weiterberechnung (SI - Einheit)
B90: Luftvolumenstrom | C90: 700 | D90: ft³/min | E90: =C90*$F$11 -> 700 | F90: m³/h
B91: Temperatur Zuluft | C91: 18 | D91: °F | E91: =IF($F$2=3,(5/9)*C91-17.77,C91) -> 18 | F91: °C
B92: Temperatur Raum | C92: 26 | D92: °F | E92: =IF($F$2=3,(5/9)*C92-17.77,C92) -> 26 | F92: °C
B93: Montagehöhe | C93: 2.5 | D93: ft | E93: =C93*$F$5 -> 2.5 | F93: m
B94: Obergrenze Aufenthaltsbereich | C94: 1.8 | D94: ft | E94: 1.8 | F94: m
B95: Raumlänge | C95: 100 | D95: ft | E95: 100 | F95: m
B96: Raumbreite | C96: 5 | D96: ft | E96: 5 | F96: m
B97: Raumhöhe | C97: 8 | D97: ft | E97: 8 | F97: m
B98: Größen von Weiterberechnung (SI - Einheit) | E98: Größen zur Vorgabe/Auslegung (imperial)
B99: Totaldruckverlust | C99: 11.6111884 | D99: Pa | E99: =C99/$F$14 -> 11.6111884 | F99: in w.g.
B100: Geschwindigkeit im Stutzen | C100: 2.511711265 | D100: m/s | E100: =C100/$F$9 -> 2.511711265 | F100: ft/min
B101: Austrittsgeschwindigkeit | C101: 0.9485094851 | D101: m/s | E101: =C101/$F$9 -> 0.9485094851 | F101: ft/min
B102: Wurfweite an Oberkante Aufenthaltsbereich | C102: 2.049322445 | D102: m | E102: =C102/$F$5 -> 2.049322445 | F102: ft
B103: Nicht durchströmte Weite unterhalb des Durchlasses | C103: 0.2685301615 | D103: m | E103: =C103/$F$5 -> 0.2685301615 | F103: ft
B104: Mittlere Geschwindigkeit an Oberkante Aufenthaltsbereich | C104: 0.5328676882 | D104: m/s | E104: =C104/$F$9 -> 0.5328676882 | F104: ft/min
A105: Auslegung IQA | B105: Größen aus Vorgabe/Auslegung (Zahlenwerte imperial) | E105: Größen zur Weiterberechnung (SI - Einheit)
B106: Luftvolumenstrom | C106: 1270 | D106: ft³/min | E106: =C106*$F$11 -> 1270 | F106: m³/h
B107: Montagehöhe | C107: 0 | D107: ft | E107: =C107*$F$5 -> 0 | F107: m
B108: Temperatur Zuluft Kühlfall | C108: 18 | D108: °F | E108: =IF($F$2=3,(5/9)*C108-17.77,C108) -> 18 | F108: °C
B109: Temperatur Raum Kühlfall | C109: 26 | D109: °F | E109: =IF($F$2=3,(5/9)*C109-17.77,C109) -> 26 | F109: °C
B110: Temperatur Zuluft Heizfall | C110: 30 | D110: °F | E110: =IF($F$2=3,(5/9)*C110-17.77,C110) -> 30 | F110: °C
B111: Temperatur Raum Heizfall | C111: 20 | D111: °F | E111: 20 | F111: °C
B112: Raumlänge | C112: 100 | D112: ft | E112: =C112*$F$5 -> 100 | F112: m
B113: Raumbreite | C113: 100 | D113: ft | E113: 100 | F113: m
B114: Raumhöhe | C114: 12 | D114: ft | E114: 12 | F114: m
B115: Montagehöhe | C115: 0 | D115: ft | E115: 0 | F115: m
B116: Maximalgeschwindigkeit | C116: 0.2 | D116: ft | E116: 0.2 | F116: m
B117: Größen von Weiterberechnung (SI - Einheit) | E117: Größen zur Vorgabe/Auslegung (imperial)
B118: Totaldruckverlust Kühlfall | C118: 9.281917973 | D118: Pa | E118: =C118/$F$14 -> 9.281917973 | F118: in w.g.
B119: Totaldruckverlust Heizfall | C119: 4.728615078 | D119: Pa | E119: =C119/$F$14 -> 4.728615078 | F119: in w.g.
B120: Geschwindigkeit im Stutzen | C120: 2.807316357 | D120: m/s | E120: =C120/$F$9 -> 2.807316357 | F120: ft/min
B121: Austrittsgeschwindigkeit Kühlfall | C121: 0.3976368778 | D121: m/s | E121: =C121/$F$9 -> 0.3976368778 | F121: ft/min
B122: Austrittsgeschwindigkeit Heizfall | C122: 1.264556918 | D122: m/s | E122: 1.264556918 | F122: ft/min
B123: Nahzone Kühlfall | C123: 3.634864149 | D123: m | E123: =C123/$F$5 -> 3.634864149 | F123: ft
B124: Horizontale Lauflänge Heizfall | C124: 2.647948136 | D124: m | E124: =C124/$F$5 -> 2.647948136 | F124: ft

Sheet Übersetzung (hidden)
A2: Sprachauswahl: | B2: 1
A3: Deutsch | B3: Englisch SI | C3: Englisch Imperial
A4: 1 | B4: 2 | C4: 3 | E4: Index | F4: Auswahl
A5: Auslegung Kampmann Kombiluftdurchlässe | B5: Calculation Kampmann combinated diffusers | C5: =B5 -> Calculation Kampmann combinated diffusers | E5: 2 | F5: =HLOOKUP($B$2,Übersetzung!$A$4:$D$137,E5,FALSE) -> Auslegung Kampmann Kombiluftdurchlässe
A6: Eingabefelder sind gelb gekennzeichnet | B6: Input cells are marked yellow | C6: =B6 -> Input cells are marked yellow | E6: 3 | F6: =HLOOKUP($B$2,Übersetzung!$A$4:$D$137,E6,FALSE) -> Eingabefelder sind gelb gekennzeichnet
A7: Ergebnisfelder sind blau gekennzeichnet | B7: Output cells are marked blue | C7: Output cells are marked blue | E7: 4 | F7: =HLOOKUP($B$2,Übersetzung!$A$4:$D$137,E7,FALSE) -> Ergebnisfelder sind blau gekennzeichnet
A8: Vorgaben | B8: Settings | C8: Settings | E8: 5 | F8: =HLOOKUP($B$2,Übersetzung!$A$4:$D$137,E8,FALSE) -> Vorgaben
A9: Lüftungstechnik | B9: Ventilation technology | C9: Ventilation technology | E9: 6 | F9: =HLOOKUP($B$2,Übersetzung!$A$4:$D$137,E9,FALSE) -> Lüftungstechnik
A10: Symbol | B10: Symbol | C10: Symbol | E10: 7 | F10: =HLOOKUP($B$2,Übersetzung!$A$4:$D$137,E10,FALSE) -> Symbol
A11: Einheit | B11: Unit | C11: Unit | E11: 8 | F11: =HLOOKUP($B$2,Übersetzung!$A$4:$D$137,E11,FALSE) -> Einheit
A12: Wert | B12: Value | C12: Value | E12: 9 | F12: =HLOOKUP($B$2,Übersetzung!$A$4:$D$137,E12,FALSE) -> Wert
A13: Durchlass Typ | B13: Diffuser type | C13: Diffuser type | E13: 10 | F13: =HLOOKUP($B$2,Übersetzung!$A$4:$D$137,E13,FALSE) -> Durchlass Typ
A14: Baubreite | B14: Diffuser width | C14: Diffuser width | E14: 11 | F14: =HLOOKUP($B$2,Übersetzung!$A$4:$D$137,E14,FALSE) -> Baubreite
A15: Baulänge | B15: Diffuser length | C15: Diffuser length | E15: 12 | F15: =HLOOKUP($B$2,Übersetzung!$A$4:$D$137,E15,FALSE) -> Baulänge
A16: Luftvolumenstrom | B16: Volume-flow rate | C16: Volume-flow rate | E16: 13 | F16: =HLOOKUP($B$2,Übersetzung!$A$4:$D$137,E16,FALSE) -> Luftvolumenstrom
A17: max. Luftgeschwindigkeit im Aufenthaltsbereich | B17: Max. air speeed, habitation area | C17: Max. air speeed, habitation area | E17: 14 | F17: =HLOOKUP($B$2,Übersetzung!$A$4:$D$137,E17,FALSE) -> max. Luftgeschwindigkeit im Aufenthaltsbereich
A18: Temperatur Zuluft | B18: Supply air temperature | C18: Supply air temperature | E18: 15 | F18: =HLOOKUP($B$2,Übersetzung!$A$4:$D$137,E18,FALSE) -> Temperatur Zuluft
A19: Temperatur Raum | B19: Room temperature | C19: Room temperature | E19: 16 | F19: =HLOOKUP($B$2,Übersetzung!$A$4:$D$137,E19,FALSE) -> Temperatur Raum
A20: Raumdaten | B20: Room parameters | C20: Room parameters | E20: 17 | F20: =HLOOKUP($B$2,Übersetzung!$A$4:$D$137,E20,FALSE) -> Raumdaten
A21: Montagehöhe | B21: Installation height | C21: Installation height | E21: 18 | F21: =HLOOKUP($B$2,Übersetzung!$A$4:$D$137,E21,FALSE) -> Montagehöhe
A22: Obergrenze Aufenthaltsbereich | B22: Upper limit, habitation area | C22: Upper limit, habitation area | E22: 19 | F22: =HLOOKUP($B$2,Übersetzung!$A$4:$D$137,E22,FALSE) -> Obergrenze Aufenthaltsbereich
A23: Raumlänge | B23: Room length | C23: Room length | E23: 20 | F23: =HLOOKUP($B$2,Übersetzung!$A$4:$D$137,E23,FALSE) -> Raumlänge
A24: Raumbreite | B24: Room width | C24: Room width | E24: 21 | F24: =HLOOKUP($B$2,Übersetzung!$A$4:$D$137,E24,FALSE) -> Raumbreite
A25: Raumhöhe | B25: Room height | C25: Room height | E25: 22 | F25: =HLOOKUP($B$2,Übersetzung!$A$4:$D$137,E25,FALSE) -> Raumhöhe
A26: Berechnung strömungstechnische und Akustische Daten | B26: Calculation, fluidic and acoustical parameters | C26: Calculation, fluidic and acoustical parameters | E26: 23 | F26: =HLOOKUP($B$2,Übersetzung!$A$4:$D$137,E26,FALSE) -> Berechnung strömungstechnische und Akustische Daten
A27: Totaldruckverlust | B27: Total pressure drop | C27: Total pressure drop | E27: 24 | F27: =HLOOKUP($B$2,Übersetzung!$A$4:$D$137,E27,FALSE) -> Totaldruckverlust
A28: Geschwindigkeit im Stutzen | B28: Velocity, duct connector | C28: Velocity, duct connector | E28: 25 | F28: =HLOOKUP($B$2,Übersetzung!$A$4:$D$137,E28,FALSE) -> Geschwindigkeit im Stutzen
A29: Austrittsgeschwindigkeit | B29: Outlet velocity | C29: Outlet velocity | E29: 26 | F29: =HLOOKUP($B$2,Übersetzung!$A$4:$D$137,E29,FALSE) -> Austrittsgeschwindigkeit
A30: Wurfweite an Oberkante Aufenthaltsbereich | B30: Throw distance at upper limit, habitation area | C30: Throw distance at upper limit, habitation area | E30: 27 | F30: =HLOOKUP($B$2,Übersetzung!$A$4:$D$137,E30,FALSE) -> Wurfweite an Oberkante Aufenthaltsbereich
A31: Nicht durchströmte Weite unterhalb des Durchlasses | B31: Not perfused width below the diffuser | C31: Not perfused width below the diffuser | E31: 28 | F31: =HLOOKUP($B$2,Übersetzung!$A$4:$D$137,E31,FALSE) -> Nicht durchströmte Weite unterhalb des Durchlasses
A32: Mittlere Geschwindigkeit an Oberkante Aufenthaltsbereich | B32: Mediate air velocity at upper limit, habitation area | C32: Mediate air velocity at upper limit, habitation area | E32: 29 | F32: =HLOOKUP($B$2,Übersetzung!$A$4:$D$137,E32,FALSE) -> Mittlere Geschwindigkeit an Oberkante Aufenthaltsbereich
A33: Schallleistungspegel, Einzeldurchlass | B33: Sound Power Level, single diffuser | C33: Sound Power Level, single diffuser | E33: 30 | F33: =HLOOKUP($B$2,Übersetzung!$A$4:$D$137,E33,FALSE) -> Schallleistungspegel, Einzeldurchlass
A34: Oktavspektrum Schallleistung | B34: Sound Power Level, octave bandwidth | C34: Sound Power Level, octave bandwidth | E34: 31 | F34: =HLOOKUP($B$2,Übersetzung!$A$4:$D$137,E34,FALSE) -> Oktavspektrum Schallleistung
A35: Länge, Durchlass | B35: Diffuser length | C35: Diffuser length | E35: 32 | F35: =HLOOKUP($B$2,Übersetzung!$A$4:$D$137,E35,FALSE) -> Länge, Durchlass
A36: Breite, Durchlass | B36: Diffuser width | C36: Diffuser width | E36: 33 | F36: =HLOOKUP($B$2,Übersetzung!$A$4:$D$137,E36,FALSE) -> Breite, Durchlass
A37: Gesamthöhe | B37: Total height | C37: Total height | E37: 34 | F37: =HLOOKUP($B$2,Übersetzung!$A$4:$D$137,E37,FALSE) -> Gesamthöhe
A38: Aktive Höhe | B38: Active height | C38: Active height | E38: 35 | F38: =HLOOKUP($B$2,Übersetzung!$A$4:$D$137,E38,FALSE) -> Aktive Höhe
A39: Minimaler Volumenstrom | B39: Minimum air volume flow | C39: Minimum air volume flow | E39: 36 | F39: =HLOOKUP($B$2,Übersetzung!$A$4:$D$137,E39,FALSE) -> Minimaler Volumenstrom
A40: Maximaler Volumenstrom | B40: Maximum air volume flow | C40: Maximum air volume flow | E40: 37 | F40: =HLOOKUP($B$2,Übersetzung!$A$4:$D$137,E40,FALSE) -> Maximaler Volumenstrom
A41: Empfohlene maximale Einbauhöhe | B41: Recommended max. installation height | C41: Recommended max. installation height | E41: 38 | F41: =HLOOKUP($B$2,Übersetzung!$A$4:$D$137,E41,FALSE) -> Empfohlene maximale Einbauhöhe
A42: Durchmesser Anschlussstutzen | B42: Branch diameter | C42: Branch diameter | E42: 39 | F42: =HLOOKUP($B$2,Übersetzung!$A$4:$D$137,E42,FALSE) -> Durchmesser Anschlussstutzen
A43: Stutzenanzahl | B43: No. Of branches | C43: No. Of branches | E43: 40 | F43: =HLOOKUP($B$2,Übersetzung!$A$4:$D$137,E43,FALSE) -> Stutzenanzahl
A44: Änderungen vorbehalten | B44: Subject to modifications | C44: Subject to modifications | E44: 41 | F44: =HLOOKUP($B$2,Übersetzung!$A$4:$D$137,E44,FALSE) -> Änderungen vorbehalten
A45: Stand: | B45: Date issued: | C45: Date issued: | E45: 42 | F45: =HLOOKUP($B$2,Übersetzung!$A$4:$D$137,E45,FALSE) -> Stand:
A46: Nenndurchmesser | B46: Nominal diameter | C46: Nominal diameter | E46: 43 | F46: =HLOOKUP($B$2,Übersetzung!$A$4:$D$137,E46,FALSE) -> Nenndurchmesser
A47: Montageart | B47: Type of installation | C47: Type of installation | E47: 44 | F47: =HLOOKUP($B$2,Übersetzung!$A$4:$D$137,E47,FALSE) -> Montageart
A48: Abstand Durchlass zur nächstgelegenen Wand | B48: Distance between diffuser and next wall | C48: Distance between diffuser and next wall | E48: 45 | F48: =HLOOKUP($B$2,Übersetzung!$A$4:$D$137,E48,FALSE) -> Abstand Durchlass zur nächstgelegenen Wand
A49: kleinster Abstand zwischen 2 Durchlässen | B49: Minimum distance between 2 diffusers | C49: Minimum distance between 2 diffusers | E49: 46 | F49: =HLOOKUP($B$2,Übersetzung!$A$4:$D$137,E49,FALSE) -> kleinster Abstand zwischen 2 Durchlässen
A50: deckenbündig | B50: flush installed | C50: flush installed | E50: 47 | F50: =HLOOKUP($B$2,Übersetzung!$A$4:$D$137,E50,FALSE) -> deckenbündig
A51: freihängend | B51: hanging installed | C51: hanging installed | E51: 48 | F51: =HLOOKUP($B$2,Übersetzung!$A$4:$D$137,E51,FALSE) -> freihängend
A52: Geschwindigkeit im Fußbodenbereich in Wandnähe | B52: Velocity at the floor next to the wall | C52: Velocity at the floor next to the wall | E52: 49 | F52: =HLOOKUP($B$2,Übersetzung!$A$4:$D$137,E52,FALSE) -> Geschwindigkeit im Fußbodenbereich in Wandnähe
A53: Zugluftrisiko am Fußboden** | B53: Draught rating at the floor ** | C53: Draught rating at the floor ** | E53: 50 | F53: =HLOOKUP($B$2,Übersetzung!$A$4:$D$137,E53,FALSE) -> Zugluftrisiko am Fußboden**
A54: Vertikale Eindringtiefe | B54: Vertical penetration depth | C54: Vertical penetration depth | E54: 51 | F54: =HLOOKUP($B$2,Übersetzung!$A$4:$D$137,E54,FALSE) -> Vertikale Eindringtiefe
A55: Geschwindigkeit im Aufenthaltsbereich nach Stoß* | B55: Velocity after stream impact * | C55: Velocity after stream impact * | E55: 52 | F55: =HLOOKUP($B$2,Übersetzung!$A$4:$D$137,E55,FALSE) -> Geschwindigkeit im Aufenthaltsbereich nach Stoß*
A56: Zugluftrisiko im Aufenthaltsbereich** | B56: Draught rating, habitation area ** | C56: Draught rating, habitation area ** | E56: 53 | F56: =HLOOKUP($B$2,Übersetzung!$A$4:$D$137,E56,FALSE) -> Zugluftrisiko im Aufenthaltsbereich**
A57: Geschwindigkeit nach Ablösen an Xkr. | B57: Velocity after stream release at Xkr. | C57: Velocity after stream release at Xkr. | E57: 54 | F57: =HLOOKUP($B$2,Übersetzung!$A$4:$D$137,E57,FALSE) -> Geschwindigkeit nach Ablösen an Xkr.
A58: Zugluftrisiko nach Ablösepunkt** | B58: Draught rating after releasing point ** | C58: Draught rating after releasing point ** | E58: 55 | F58: =HLOOKUP($B$2,Übersetzung!$A$4:$D$137,E58,FALSE) -> Zugluftrisiko nach Ablösepunkt**
A59: Resultierende Raumkategorie | B59: Resulting room category | C59: Resulting room category | E59: 56 | F59: =HLOOKUP($B$2,Übersetzung!$A$4:$D$137,E59,FALSE) -> Resultierende Raumkategorie
A60: *Gilt für Eintritt der Luftströmung in den Aufenthaltbereich nach dem Stoßpunkt | B60: * Valid for an air stream entering the habitation area after the collision point. | C60: * Valid for an air stream entering the habitation area after the collision point. | E60: 57 | F60: =HLOOKUP($B$2,Übersetzung!$A$4:$D$137,E60,FALSE) -> *Gilt für Eintritt der Luftströmung in den Aufenthaltbereich nach dem Stoßpunkt
A61: ** Berechnung gemäß DIN EN ISO 7730 | B61: ** Calculation according to DIN EN ISO 7730 | C61: ** Calculation according to DIN EN ISO 7730 | E61: 58 | F61: =HLOOKUP($B$2,Übersetzung!$A$4:$D$137,E61,FALSE) -> ** Berechnung gemäß DIN EN ISO 7730
A62: Strahlbreite an Oberkante Aufenthaltsbereich | B62: Width of the air stream, upper limit habitation area | C62: Width of the air stream, upper limit habitation area | E62: 59 | F62: =HLOOKUP($B$2,Übersetzung!$A$4:$D$137,E62,FALSE) -> Strahlbreite an Oberkante Aufenthaltsbereich
A63: Mittlere Geschwindigkeit im Aufenthaltsbereich | B63: Mediate air velocity in the habitation area | C63: Mediate air velocity in the habitation area | E63: 60 | F63: =HLOOKUP($B$2,Übersetzung!$A$4:$D$137,E63,FALSE) -> Mittlere Geschwindigkeit im Aufenthaltsbereich
A64: Strahlgeschwindigkeit bei Eintritt in den Aufenthaltsbereich | B64: Air velocity at the upper limit of the habitation area | C64: Air velocity at the upper limit of the habitation area | E64: 61 | F64: =HLOOKUP($B$2,Übersetzung!$A$4:$D$137,E64,FALSE) -> Strahlgeschwindigkeit bei Eintritt in den Aufenthaltsbereich
A65: Werksseitig voreingestellte Walzenstellung | B65: Factory presetted drum setting | C65: Factory presetted drum setting | E65: 62 | F65: =HLOOKUP($B$2,Übersetzung!$A$4:$D$137,E65,FALSE) -> Werksseitig voreingestellte Walzenstellung
A66: bodenstehend | B66: floor standing | C66: floor standing | E66: 63 | F66: =HLOOKUP($B$2,Übersetzung!$A$4:$D$137,E66,FALSE) -> bodenstehend
A67: Leitschaufelwinkel | B67: Guide vane angle | C67: Guide vane angle | E67: 64 | F67: =HLOOKUP($B$2,Übersetzung!$A$4:$D$137,E67,FALSE) -> Leitschaufelwinkel
A68: Höhe Durchlass | B68: Diffuser height | C68: Diffuser height | E68: 65 | F68: =HLOOKUP($B$2,Übersetzung!$A$4:$D$137,E68,FALSE) -> Höhe Durchlass
A69: Klappenwinkel Kühlfall / Heizfall | B69: Guide vane angle Cooling-/Heating mode | C69: Guide vane angle Cooling-/Heating mode | E69: 66 | F69: =HLOOKUP($B$2,Übersetzung!$A$4:$D$137,E69,FALSE) -> Klappenwinkel Kühlfall / Heizfall
A70: Abmessungen | B70: Dimensions | C70: =B70 -> Dimensions | E70: 67 | F70: =HLOOKUP($B$2,Übersetzung!$A$4:$D$137,E70,FALSE) -> Abmessungen
A71: Anschlussdurchmesser LDI | B71: Branch diameter LDI | C71: Branch diameter LDI | E71: 68 | F71: =HLOOKUP($B$2,Übersetzung!$A$4:$D$137,E71,FALSE) -> Anschlussdurchmesser LDI
A72: Höhe Anschlusskasten | B72: Height plenum box | C72: Height plenum box | E72: 69 | F72: =HLOOKUP($B$2,Übersetzung!$A$4:$D$137,E72,FALSE) -> Höhe Anschlusskasten
A73: Außendurchmesser, einfache Düsenkontur | B73: Outer diameter standard nozzle contour | C73: Outer diameter standard nozzle contour | E73: 70 | F73: =HLOOKUP($B$2,Übersetzung!$A$4:$D$137,E73,FALSE) -> Außendurchmesser, einfache Düsenkontur
A74: Außendurchmesser, verlängerte Düsenkontur | B74: Outer diameter long nozzle contour | C74: Outer diameter long nozzle contour | E74: 71 | F74: =HLOOKUP($B$2,Übersetzung!$A$4:$D$137,E74,FALSE) -> Außendurchmesser, verlängerte Düsenkontur
A75: Höhe LDI | B75: Height LDI | C75: Height LDI | E75: 72 | F75: =HLOOKUP($B$2,Übersetzung!$A$4:$D$137,E75,FALSE) -> Höhe LDI
A76: Anschlussdurchmesser opt. RAK | B76: Branch diameter, opt. plenum box | C76: Branch diameter, opt. plenum box | E76: 73 | F76: =HLOOKUP($B$2,Übersetzung!$A$4:$D$137,E76,FALSE) -> Anschlussdurchmesser opt. RAK
A77: Außendurchmesser opt. RAK | B77: Outer diameter, opt. plenum box | C77: Outer diameter, opt. plenum box | E77: 74 | F77: =HLOOKUP($B$2,Übersetzung!$A$4:$D$137,E77,FALSE) -> Außendurchmesser opt. RAK
A78: Höhe opt. RAK | B78: Height, opt. plenum box | C78: Height, opt. plenum box | E78: 75 | F78: =HLOOKUP($B$2,Übersetzung!$A$4:$D$137,E78,FALSE) -> Höhe opt. RAK
A79: minimale Einbauhöhe | B79: Minimum installation height | C79: Minimum installation height | E79: 76 | F79: =HLOOKUP($B$2,Übersetzung!$A$4:$D$137,E79,FALSE) -> minimale Einbauhöhe
A80: maximale Einbauhöhe | B80: Maximum installation height | C80: Maximum installation height | E80: 77 | F80: =HLOOKUP($B$2,Übersetzung!$A$4:$D$137,E80,FALSE) -> maximale Einbauhöhe
A81: Einsatzbereich | B81: Range of application | C81: Range of application | E81: 78 | F81: =HLOOKUP($B$2,Übersetzung!$A$4:$D$137,E81,FALSE) -> Einsatzbereich
A82: Temperaturvorgabe Kühlfall / Heizfall | B82: Specified temperature | C82: Specified temperature | E82: 79 | F82: =HLOOKUP($B$2,Übersetzung!$A$4:$D$137,E82,FALSE) -> Temperaturvorgabe Kühlfall / Heizfall
A83: Horizontale Wurfweite | B83: Horizontal throw distance | C83: Horizontal throw distance | E83: 80 | F83: =HLOOKUP($B$2,Übersetzung!$A$4:$D$137,E83,FALSE) -> Horizontale Wurfweite
A84: Abmessungen und Einsatzbereich | B84: Dimensions and range of application | C84: Dimensions and range of application | E84: 81 | F84: =HLOOKUP($B$2,Übersetzung!$A$4:$D$137,E84,FALSE) -> Abmessungen und Einsatzbereich
A85: Empfohlene minimale Einbauhöhe | B85: Recommended min. installation height | C85: Recommended min. installation height | E85: 82 | F85: =HLOOKUP($B$2,Übersetzung!$A$4:$D$137,E85,FALSE) -> Empfohlene minimale Einbauhöhe
A86: Typ | B86: Type | C86: Type | E86: 83 | F86: =HLOOKUP($B$2,Übersetzung!$A$4:$D$137,E86,FALSE) -> Typ
A87: Projekt | B87: Project | C87: Project | E87: 84 | F87: =HLOOKUP($B$2,Übersetzung!$A$4:$D$137,E87,FALSE) -> Projekt
A88: Definition: | B88: Definition: | C88: Definition: | E88: 85 | F88: =HLOOKUP($B$2,Übersetzung!$A$4:$D$137,E88,FALSE) -> Definition:
A89: bitte Projektnummer angeben | B89: Please enter project-No. | C89: Please enter project-No. | E89: 86 | F89: =HLOOKUP($B$2,Übersetzung!$A$4:$D$137,E89,FALSE) -> bitte Projektnummer angeben
A90: technische Vorgaben | B90: Technical parameters | C90: Technical parameters | E90: 87 | F90: =HLOOKUP($B$2,Übersetzung!$A$4:$D$137,E90,FALSE) -> technische Vorgaben
A91: Kritischer Strahlweg | B91: Critical airflow distance | C91: Critical airflow distance | E91: 88 | F91: =HLOOKUP($B$2,Übersetzung!$A$4:$D$137,E91,FALSE) -> Kritischer Strahlweg
A92: ** Raumkategorie nach DIN EN ISO 7730: DR<10 % = A; DR<20 % = B; DR<30 % = C | B92: ** Room category according to DIN EN ISO 7730: DR<10 % = A; DR<20 % = B; DR<30 % = C | C92: ** Room category according to DIN EN ISO 7730: DR<10 % = A; DR<20 % = B; DR<30 % = C | E92: 89 | F92: =HLOOKUP($B$2,Übersetzung!$A$4:$D$137,E92,FALSE) -> ** Raumkategorie nach DIN EN ISO 7730: DR<10 % = A; DR<20 % = B; DR<30 % = C
A93: Durchmesser Anschlusskasten | B93: Diameter plenum box | C93: Diameter plenum box | E93: 90 | F93: =HLOOKUP($B$2,Übersetzung!$A$4:$D$137,E93,FALSE) -> Durchmesser Anschlusskasten
A94: Beschreibung: Luftdurchlass für die Belüftung industrieller Bereiche. In Abhängigkeit des ausgewählten Durchlasses erfolgt eine Umschaltung zwischen Kühl- und Heizbetrieb manuell oder elektrisch. | B94: Description: Diffuser for the ventilation of industrial areas. Depending on the Type of diffuser, a change in airflow characteristics between heating- and cooling mode is executed manually or electrically. | C94: Description: Diffuser for the ventilation of industrial areas. Depending on the Type of diffuser, a change in airflow characteristics between heating- and cooling mode is executed manually or electrically. | E94: 91 | F94: =HLOOKUP($B$2,Übersetzung!$A$4:$D$137,E94,FALSE) -> Beschreibung: Luftdurchlass für die Belüftung industrieller Bereiche. In Abhängigkeit des ausgewählten Durchlasses erfolgt eine Umschaltung zwischen Kühl- und Heizbetrieb manuell oder elektrisch.
A95: Zulufttemperatur Kühlfall | B95: Supply air temperature cooling mode | C95: Supply air temperature cooling mode | E95: 92 | F95: =HLOOKUP($B$2,Übersetzung!$A$4:$D$137,E95,FALSE) -> Zulufttemperatur Kühlfall
A96: Raumtemperatur Kühlfall | B96: Room temperature cooling mode | C96: Room temperature cooling mode | E96: 93 | F96: =HLOOKUP($B$2,Übersetzung!$A$4:$D$137,E96,FALSE) -> Raumtemperatur Kühlfall
A97: Zulufttemperatur Heizfall | B97: Supply air temperature heating mode | C97: Supply air temperature heating mode | E97: 94 | F97: =HLOOKUP($B$2,Übersetzung!$A$4:$D$137,E97,FALSE) -> Zulufttemperatur Heizfall
A98: Raumtemperatur Heizfall | B98: Room temperature heating mode | C98: Room temperature heating mode | E98: 95 | F98: =HLOOKUP($B$2,Übersetzung!$A$4:$D$137,E98,FALSE) -> Raumtemperatur Heizfall
A99: Klappenwinkel Kühlfall | B99: Guide vane angle cooling mode | C99: Guide vane angle cooling mode | E99: 96 | F99: =HLOOKUP($B$2,Übersetzung!$A$4:$D$137,E99,FALSE) -> Klappenwinkel Kühlfall
A100: Klappenwinkel Heizfall | B100: Guide vane angle heating mode | C100: Guide vane angle heating mode | E100: 97 | F100: =HLOOKUP($B$2,Übersetzung!$A$4:$D$137,E100,FALSE) -> Klappenwinkel Heizfall
A101: Kühlfall | B101: Cooling mode | C101: Cooling mode | E101: 98 | F101: =HLOOKUP($B$2,Übersetzung!$A$4:$D$137,E101,FALSE) -> Kühlfall
A102: Heizfall | B102: Heating mode | C102: Heating mode | E102: 99 | F102: =HLOOKUP($B$2,Übersetzung!$A$4:$D$137,E102,FALSE) -> Heizfall
A103: Beschreibung: Quellluftdurchlass für die Belüftung industrieller Bereiche. In Abhängigkeit des vorgegebenen Klappenwinkels sind erfolgt eine Änderung des Resultierenden Strömunnggsprofils von horizontaler bis vertikaler Luftströmung. | B103: Description: Displacement air diffuser for the ventilation of industrial areas. Depending on the given guide vane angle a change in the resulting air flow characterists between horizontal and vertical airflows is implemented. | C103: Description: Displacement air diffuser for the ventilation of industrial areas. Depending on the given guide vane angle a change in the resulting air flow characterists between horizontal and vertical airflows is implemented. | E103: 100 | F103: =HLOOKUP($B$2,Übersetzung!$A$4:$D$137,E103,FALSE) -> Beschreibung: Quellluftdurchlass für die Belüftung industrieller Bereiche. In Abhängigkeit des vorgegebenen Klappenwinkels sind erfolgt eine Änderung des Resultierenden Strömunnggsprofils von horizontaler bis vertikaler Luftströmung.
A104: Breite / Länge: | B104: Width / Length: | C104: Width / Length: | E104: 101 | F104: =HLOOKUP($B$2,Übersetzung!$A$4:$D$137,E104,FALSE) -> Breite / Länge:
A105: Beschreibung: Quellluftdurchlass für die Belüftung industrieller Bereiche. In Abhängigkeit des Haupt-Einsatzbereiches findet eine werksseitige Voreinstellung auf den Kühlfall (Walzenstellung DE) oder den Heizfall statt (Walzenstellung A1). Die Einstellung der Walzen kann jederzeit durch den Kunden nachjustiert werden. | B105: Description: Displacement air diffuser for the ventilation of industrial areas. Depending on the main application area a factory drum setting for heating (drum setting DE) or cooling mode (drum setting CD) is presetted. The drum setting can be adjusted by the custumer at any time. | C105: Description: Displacement air diffuser for the ventilation of industrial areas. Depending on the main application area a factory drum setting for heating (drum setting DE) or cooling mode (drum setting CD) is presetted. The drum setting can be adjusted by the custumer at any time. | E105: 102 | F105: =HLOOKUP($B$2,Übersetzung!$A$4:$D$137,E105,FALSE) -> Beschreibung: Quellluftdurchlass für die Belüftung industrieller Bereiche. In Abhängigkeit des Haupt-Einsatzbereiches findet eine werksseitige Voreinstellung auf den Kühlfall (Walzenstellung DE) oder den Heizfall statt (Walzenstellung A1). Die Einstellung der Walzen kann jederzeit durch den Kunden nachjustiert werden.
A106: Bitte wählen Sie einen Durchlasstypen | B106: Please choose a diffuser type | C106: Please choose a diffuser type | E106: 103 | F106: =HLOOKUP($B$2,Übersetzung!$A$4:$D$137,E106,FALSE) -> Bitte wählen Sie einen Durchlasstypen
A107: Durch Klick auf einen Durchlass glangen sie direkt zur technischen Auslegung | B107: By clicking the shape of a diffuser You get to the technical calculation directly | C107: By clicking the shape of a diffuser You get to the technical calculation directly | E107: 104 | F107: =HLOOKUP($B$2,Übersetzung!$A$4:$D$137,E107,FALSE) -> Durch Klick auf einen Durchlass glangen sie direkt zur technischen Auslegung
A108: Akustische Projektauslegung emcoair Industrieluftdurchlässe | B108: Acoustical project design emcoair industrial diffusers | C108: Acoustical project design emcoair industrial diffusers | E108: 105 | F108: =HLOOKUP($B$2,Übersetzung!$A$4:$D$137,E108,FALSE) -> Akustische Projektauslegung emcoair Industrieluftdurchlässe
A109: Grunddaten Luftdurchlass | B109: Basic data, choosen diffuser | C109: Basic data, choosen diffuser | E109: 106 | F109: =HLOOKUP($B$2,Übersetzung!$A$4:$D$137,E109,FALSE) -> Grunddaten Luftdurchlass
A110: Bezugshöhe zur Schalldruckpegelberechnung | B110: Refefrence height for Sound Pressure calculations | C110: Refefrence height for Sound Pressure calculations | E110: 107 | F110: =HLOOKUP($B$2,Übersetzung!$A$4:$D$137,E110,FALSE) -> Bezugshöhe zur Schalldruckpegelberechnung
A111: Angaben Montageraster | B111: Details about the installation pattern | C111: Details about the installation pattern | E111: 108 | F111: =HLOOKUP($B$2,Übersetzung!$A$4:$D$137,E111,FALSE) -> Angaben Montageraster
A112: Durchlassabstand in Längsrichtung der Halle | B112: Distance between 2 diffusers in longitudinal direction | C112: Distance between 2 diffusers in longitudinal direction | E112: 109 | F112: =HLOOKUP($B$2,Übersetzung!$A$4:$D$137,E112,FALSE) -> Durchlassabstand in Längsrichtung der Halle
A113: Anzahl Durchlässe in Längsrichtung der Halle | B113: Number of diffusers in longitudinal direction | C113: Number of diffusers in longitudinal direction | E113: 110 | F113: =HLOOKUP($B$2,Übersetzung!$A$4:$D$137,E113,FALSE) -> Anzahl Durchlässe in Längsrichtung der Halle
A114: Durchlassabstand in Querrichtung der Halle | B114: Distance between 2 diffusers in transversal direction | C114: Distance between 2 diffusers in transversal direction | E114: 111 | F114: =HLOOKUP($B$2,Übersetzung!$A$4:$D$137,E114,FALSE) -> Durchlassabstand in Querrichtung der Halle
A115: Anzahl Durchlässe in Querrichtung der Halle | B115: Number of diffusers in transversal direction | C115: Number of diffusers in transversal direction | E115: 112 | F115: =HLOOKUP($B$2,Übersetzung!$A$4:$D$137,E115,FALSE) -> Anzahl Durchlässe in Querrichtung der Halle
A116: Zwischenergebnisse | B116: Intermediate results | C116: Intermediate results | E116: 113 | F116: =HLOOKUP($B$2,Übersetzung!$A$4:$D$137,E116,FALSE) -> Zwischenergebnisse
A117: Anzahl Durchlässe, gesamt | B117: Total number of diffusers | C117: Total number of diffusers | E117: 114 | F117: =HLOOKUP($B$2,Übersetzung!$A$4:$D$137,E117,FALSE) -> Anzahl Durchlässe, gesamt
A118: Gesamtvolumenstrom | B118: Total air volume flow | C118: Total air volume flow | E118: 115 | F118: =HLOOKUP($B$2,Übersetzung!$A$4:$D$137,E118,FALSE) -> Gesamtvolumenstrom
A119: Thermische Leistung | B119: Total thermal capacity | C119: Total thermal capacity | E119: 116 | F119: =HLOOKUP($B$2,Übersetzung!$A$4:$D$137,E119,FALSE) -> Thermische Leistung
A120: Heizleistung | B120: Heating capacity | C120: Heating capacity | E120: 117 | F120: =HLOOKUP($B$2,Übersetzung!$A$4:$D$137,E120,FALSE) -> Heizleistung
A121: Grundfläche | B121: Floor space | C121: Floor space | E121: 118 | F121: =HLOOKUP($B$2,Übersetzung!$A$4:$D$137,E121,FALSE) -> Grundfläche
A122: Raumvolumen | B122: Room volume | C122: Room volume | E122: 119 | F122: =HLOOKUP($B$2,Übersetzung!$A$4:$D$137,E122,FALSE) -> Raumvolumen
A123: Raumoberfläche | B123: Room surface | C123: Room surface | E123: 120 | F123: =HLOOKUP($B$2,Übersetzung!$A$4:$D$137,E123,FALSE) -> Raumoberfläche
A124: Oktavband, Mittenfrequenz f [Hz] | B124: Octave bandwith Medium frequency [Hz] | C124: Octave bandwith Medium frequency [Hz] | E124: 121 | F124: =HLOOKUP($B$2,Übersetzung!$A$4:$D$137,E124,FALSE) -> Oktavband, Mittenfrequenz f [Hz]
A125: Schallleistungspegel im Kühlfall [dB] | B125: Sound Power Level, Cooling mode [dB(A)] | C125: Sound Power Level, Cooling mode [dB(A)] | E125: 122 | F125: =HLOOKUP($B$2,Übersetzung!$A$4:$D$137,E125,FALSE) -> Schallleistungspegel im Kühlfall [dB]
A126: Schallleistungspegel im Heizfall [dB] | B126: Sound Power Level, Heating mode [dB(A)] | C126: Sound Power Level, Heating mode [dB(A)] | E126: 123 | F126: =HLOOKUP($B$2,Übersetzung!$A$4:$D$137,E126,FALSE) -> Schallleistungspegel im Heizfall [dB]
A127: Mit der Anzahl der gewälten Durchlässe berechneter Schalldruckpegel in einer Höhe von | B127: With the given number of diffusers calculated Sound Pressure level in a height of | C127: With the given number of diffusers calculated Sound Pressure level in a height of | E127: 124 | F127: =HLOOKUP($B$2,Übersetzung!$A$4:$D$137,E127,FALSE) -> Mit der Anzahl der gewälten Durchlässe berechneter Schalldruckpegel in einer Höhe von
A128: im Kühlfall | B128: in cooling mode | C128: in cooling mode | E128: 125 | F128: =HLOOKUP($B$2,Übersetzung!$A$4:$D$137,E128,FALSE) -> im Kühlfall
A129: im Heizfall | B129: in heating mode | C129: in heating mode | E129: 126 | F129: =HLOOKUP($B$2,Übersetzung!$A$4:$D$137,E129,FALSE) -> im Heizfall
A130: Abmessungen (Breite / Länge) | B130: Dimensions (width/length) | C130: Dimensions (width/length) | E130: 127 | F130: =HLOOKUP($B$2,Übersetzung!$A$4:$D$137,E130,FALSE) -> Abmessungen (Breite / Länge)
A131: Näherungsrechnung des Schalldruckpegels nach VDI 2081 | B131: Approximate calculation of the resulting Sound Pressure level according to VDI 2081 | C131: Approximate calculation of the resulting Sound Pressure level according to VDI 2081 | E131: 128 | F131: =HLOOKUP($B$2,Übersetzung!$A$4:$D$137,E131,FALSE) -> Näherungsrechnung des Schalldruckpegels nach VDI 2081
A132: Hinweis: Die in diesem Arbeitsblatt durchgeführten Berechnungen erfolgen anhand von VDI2081. Als Grundannahmen werden ein kubischer Raum sowie eine symmetrische Verteilung der Luftdurchlässe vorausgesetzt. Als Ergebnis liefert das Arbeitsblatt einen angenäherten Schalldruckpegel unterhalb eines zentral gelegenen Durchlasses in Höhe einer vorzugebenden Bezugshöhe. Es werden ausschließlich die durch die Durchlässe emittierten Geräuschemissionen berücksichtigt. | B132: Information: The calculation on the Sound Pressure level proceeded in this worksheet take place according to VDI 2081. A cubic room as welll as a symmetric arrangement of industrial diffusers are required. The worksheet results in an approximated Sound Pressure level below a centrally located diffuser in a specified reference height. Only the noise emissions caused by the diffusers are taken into account. | C132: Information: The calculation on the Sound Pressure level proceeded in this worksheet take place according to VDI 2081. A cubic room as welll as a symmetric arrangement of industrial diffusers are required. The worksheet results in an approximated Sound Pressure level below a centrally located diffuser in a specified reference height. Only the noise emissions caused by the diffusers are taken into account. | E132: 129 | F132: =HLOOKUP($B$2,Übersetzung!$A$4:$D$137,E132,FALSE) -> Hinweis: Die in diesem Arbeitsblatt durchgeführten Berechnungen erfolgen anhand von VDI2081. Als Grundannahmen werden ein kubischer Raum sowie eine symmetrische Verteilung der Luftdurchlässe vorausgesetzt. Als Ergebnis liefert das Arbeitsblatt einen angenäherten Schalldruckpegel unterhalb eines zentral gelegenen Durchlasses in Höhe einer vorzugebenden Bezugshöhe. Es werden ausschließlich die durch die Durchlässe emittierten Geräuschemissionen berücksichtigt.
A133: Oktavspektrum | B133: 1/1-octave spectrum | C133: 1/1-octave spectrum | E133: 130 | F133: =HLOOKUP($B$2,Übersetzung!$A$4:$D$137,E133,FALSE) -> Oktavspektrum
A134: Akustische Vorgaben | B134: Acoustical parameters | C134: =B134 -> Acoustical parameters | E134: 131 | F134: =HLOOKUP($B$2,Übersetzung!$A$4:$D$137,E134,FALSE) -> Akustische Vorgaben
A135: Schallabsorptionsgrad | B135: Sound absorption coefficient | C135: Sound absorption coefficient | E135: 132 | F135: =HLOOKUP($B$2,Übersetzung!$A$4:$D$137,E135,FALSE) -> Schallabsorptionsgrad
A136: Akustische Ergebnisse | B136: Acoustical results | C136: Acoustical results | E136: 133 | F136: =HLOOKUP($B$2,Übersetzung!$A$4:$D$137,E136,FALSE) -> Akustische Ergebnisse
A137: Akustische Auslegung eines gewählten Luftdurchlasses in einer definierten Einbausituation | B137: Acoustical calculation of a choosen diffuser in a predefined installing situation | C137: Acoustical calculation of a choosen diffuser in a predefined installing situation | E137: 134 | F137: =HLOOKUP($B$2,Übersetzung!$A$4:$D$138,E137,FALSE) -> Akustische Auslegung eines gewählten Luftdurchlasses in einer definierten Einbausituation
A138: bodennah | B138: near the floor | C138: near the floor | E138: 135 | F138: =HLOOKUP($B$2,Übersetzung!$A$4:$D$156,E138,FALSE) -> bodennah
A139: Nahzone im Kühlbetrieb | B139: Close-up zone in cooling mode | C139: Close-up zone in cooling mode | E139: 136 | F139: =HLOOKUP($B$2,Übersetzung!$A$4:$D$156,E139,FALSE) -> Nahzone im Kühlbetrieb
A140: Horizontale Lauflänge im Heizfall | B140: Horizontal run length in heating mode | C140: Horizontal run length in heating mode | E140: 137 | F140: =HLOOKUP($B$2,Übersetzung!$A$4:$D$156,E140,FALSE) -> Horizontale Lauflänge im Heizfall
A141: Maximalgeschwindigkeit in 0,1m Höhe, Kühlfall | B141: Maximum air-velocity in 0.1m height, cooling mode | C141: Maximum air-velocity in 0.1m height, cooling mode | E141: 138 | F141: =HLOOKUP($B$2,Übersetzung!$A$4:$D$156,E141,FALSE) -> Maximalgeschwindigkeit in 0,1m Höhe, Kühlfall
A142: Schlitzanzahl | B142: Number of slots | C142: Number of slots | E142: 139 | F142: =HLOOKUP($B$2,Übersetzung!$A$4:$D$156,E142,FALSE) -> Schlitzanzahl
A143: BVR in Zuluft | B143: Volume flow regulator supply air | C143: Volume flow regulator supply air | E143: 140 | F143: =HLOOKUP($B$2,Übersetzung!$A$4:$D$156,E143,FALSE) -> BVR in Zuluft
A144: Luftvolumenstrom Zuluft | B144: Volume flow, supply air | C144: Volume flow, supply air | E144: 141 | F144: =HLOOKUP($B$2,Übersetzung!$A$4:$D$156,E144,FALSE) -> Luftvolumenstrom Zuluft
A145: BVR in Abluft | B145: Volume flow regulator extract air | C145: Volume flow regulator extract air | E145: 142 | F145: =HLOOKUP($B$2,Übersetzung!$A$4:$D$156,E145,FALSE) -> BVR in Abluft
A146: Luftvolumenstrom Abluft | B146: Volume flow, extract air | C146: Volume flow, extract air | E146: 143 | F146: =HLOOKUP($B$2,Übersetzung!$A$4:$D$156,E146,FALSE) -> Luftvolumenstrom Abluft
A147: Temperatur Zuluft | B147: Temperature supply air | C147: Temperature supply air | E147: 144 | F147: =HLOOKUP($B$2,Übersetzung!$A$4:$D$156,E147,FALSE) -> Temperatur Zuluft
A148: Raumart nach VDI 2081 | B148: Room type according to VDI 2081 | C148: Room type according to VDI 2081 | E148: 145 | F148: =HLOOKUP($B$2,Übersetzung!$A$4:$D$156,E148,FALSE) -> Raumart nach VDI 2081
A149: Abstand zur Schallquelle | B149: Distance to sound source | C149: Distance to sound source | E149: 146 | F149: =HLOOKUP($B$2,Übersetzung!$A$4:$D$156,E149,FALSE) -> Abstand zur Schallquelle
A150: Zusatzdaten | B150: Supplementary data | C150: Supplementary data | E150: 147 | F150: =HLOOKUP($B$2,Übersetzung!$A$4:$D$156,E150,FALSE) -> Zusatzdaten
A151: Walzenfarbe | B151: Colour of drums | C151: Colour of drums | E151: 148 | F151: =HLOOKUP($B$2,Übersetzung!$A$4:$D$156,E151,FALSE) -> Walzenfarbe
A152: Lackierung Frontblende | B152: Front panel varnish | C152: Front panel varnish | E152: 149 | F152: =HLOOKUP($B$2,Übersetzung!$A$4:$D$156,E152,FALSE) -> Lackierung Frontblende
A153: Ausführung | B153: Implementation | C153: Implementation | E153: 150 | F153: =HLOOKUP($B$2,Übersetzung!$A$4:$D$156,E153,FALSE) -> Ausführung
A154: schwarz | B154: black | C154: black | E154: 151 | F154: =HLOOKUP($B$2,Übersetzung!$A$4:$D$156,E154,FALSE) -> schwarz
A155: weiß | B155: white | C155: white | E155: 152 | F155: =HLOOKUP($B$2,Übersetzung!$A$4:$D$156,E155,FALSE) -> weiß
A156: naturfarbig eloxiert | B156: Natural colour anodised | C156: Natural colour anodised | E156: 153 | F156: =HLOOKUP($B$2,Übersetzung!$A$4:$D$216,E156,FALSE) -> naturfarbig eloxiert
A157: weiß (RAL 9010) bepulvert | B157: white (RAL 9010) powder-coated | C157: white (RAL 9010) powder-coated | E157: 154 | F157: =HLOOKUP($B$2,Übersetzung!$A$4:$D$216,E157,FALSE) -> weiß (RAL 9010) bepulvert
A158: ohne Drossel / ohne BVR | B158: no damper / no regulator | C158: no damper / no regulator | E158: 155 | F158: =HLOOKUP($B$2,Übersetzung!$A$4:$D$216,E158,FALSE) -> ohne Drossel / ohne BVR
A159: mit frontseitig bedienbarer Drossel* | B159: with damper, accessible via front panel | C159: with damper, accessible via front panel | E159: 156 | F159: =HLOOKUP($B$2,Übersetzung!$A$4:$D$216,E159,FALSE) -> mit frontseitig bedienbarer Drossel*
A160: mit BVR* | B160: with volume flor regulator | C160: with volume flor regulator | E160: 157 | F160: =HLOOKUP($B$2,Übersetzung!$A$4:$D$216,E160,FALSE) -> mit BVR*
A161: Strahllauflänge bis Aufenthaltsbereich | B161: Air path length to habitation area | C161: Air path length to habitation area | E161: 158 | F161: =HLOOKUP($B$2,Übersetzung!$A$4:$D$216,E161,FALSE) -> Strahllauflänge bis Aufenthaltsbereich
A162: Zuluft | B162: Supply air | C162: Supply air | E162: 159 | F162: =HLOOKUP($B$2,Übersetzung!$A$4:$D$216,E162,FALSE) -> Zuluft
A163: Abluft | B163: Extract air | C163: Extract air | E163: 160 | F163: =HLOOKUP($B$2,Übersetzung!$A$4:$D$216,E163,FALSE) -> Abluft
A164: Schallleistungspegel | B164: Sound Power Level | C164: Sound Power Level | E164: 161 | F164: =HLOOKUP($B$2,Übersetzung!$A$4:$D$216,E164,FALSE) -> Schallleistungspegel
A165: Druckdifferenz am BVR | B165: Pressure difference regulator | C165: Pressure difference regulator | E165: 162 | F165: =HLOOKUP($B$2,Übersetzung!$A$4:$D$216,E165,FALSE) -> Druckdifferenz am BVR
A166: Schallleistungspegel mit BVR Zuluft/Abluft | B166: Sound Power Level with regulator | C166: Sound Power Level with regulator | E166: 163 | F166: =HLOOKUP($B$2,Übersetzung!$A$4:$D$216,E166,FALSE) -> Schallleistungspegel mit BVR Zuluft/Abluft
A167: Schallleistungspegel ohne BVR Zuluft/Abluft | B167: Sound Power Level without regulator | C167: Sound Power Level without regulator | E167: 164 | F167: =HLOOKUP($B$2,Übersetzung!$A$4:$D$216,E167,FALSE) -> Schallleistungspegel ohne BVR Zuluft/Abluft
A168: Summen-Schallleistungspegel Zuluft + Abluft | B168: Resulting Sound Power Level | C168: Resulting Sound Power Level | E168: 165 | F168: =HLOOKUP($B$2,Übersetzung!$A$4:$D$216,E168,FALSE) -> Summen-Schallleistungspegel Zuluft + Abluft
A169: Schalldruckpegel im Raum | B169: Sound Pressure Level in given distance | C169: Sound Pressure Level in given distance | E169: 166 | F169: =HLOOKUP($B$2,Übersetzung!$A$4:$D$216,E169,FALSE) -> Schalldruckpegel im Raum
A170: Durchgangsdämpfungsmaß (Kanal -> Raum) | B170: Transmission loss (duct -> room) | C170: Transmission loss (duct -> room) | E170: 167 | F170: =HLOOKUP($B$2,Übersetzung!$A$4:$D$216,E170,FALSE) -> Durchgangsdämpfungsmaß (Kanal -> Raum)
A171: Breite Frontblende | B171: Front panel width | C171: Front panel width | E171: 168 | F171: =HLOOKUP($B$2,Übersetzung!$A$4:$D$216,E171,FALSE) -> Breite Frontblende
A172: Höhe Frontblende | B172: Front panel height | C172: Front panel height | E172: 169 | F172: =HLOOKUP($B$2,Übersetzung!$A$4:$D$216,E172,FALSE) -> Höhe Frontblende
A173: Tiefe Anschlusskasten | B173: Depth plenum box | C173: Depth plenum box | E173: 170 | F173: =HLOOKUP($B$2,Übersetzung!$A$4:$D$216,E173,FALSE) -> Tiefe Anschlusskasten
A174: Breite Anschlusskasten | B174: Width plenum box | C174: Width plenum box | E174: 171 | F174: =HLOOKUP($B$2,Übersetzung!$A$4:$D$216,E174,FALSE) -> Breite Anschlusskasten
A175: ja | B175: yes | C175: yes | E175: 172 | F175: =HLOOKUP($B$2,Übersetzung!$A$4:$D$216,E175,FALSE) -> ja
A176: nein | B176: no | C176: no | E176: 173 | F176: =HLOOKUP($B$2,Übersetzung!$A$4:$D$216,E176,FALSE) -> nein
A177: Einzelbüro | B177: single office room | C177: single office room | E177: 174 | F177: =HLOOKUP($B$2,Übersetzung!$A$4:$D$216,E177,FALSE) -> Einzelbüro
A178: Großraumbüro | B178: open plan office | C178: open plan office | E178: 175 | F178: =HLOOKUP($B$2,Übersetzung!$A$4:$D$216,E178,FALSE) -> Großraumbüro
A179: Werkstätten | B179: Workshops | C179: Workshops | E179: 176 | F179: =HLOOKUP($B$2,Übersetzung!$A$4:$D$216,E179,FALSE) -> Werkstätten
A180: Ruheraum, Pausenraum | B180: Break rooms | C180: Break rooms | E180: 177 | F180: =HLOOKUP($B$2,Übersetzung!$A$4:$D$216,E180,FALSE) -> Ruheraum, Pausenraum
A181: Untersuchungsraum Krankenhaus | B181: Operating theatre (room) | C181: Operating theatre (room) | E181: 178 | F181: =HLOOKUP($B$2,Übersetzung!$A$4:$D$216,E181,FALSE) -> Untersuchungsraum Krankenhaus
A182: Rundfunk-, Fernsehstudio | B182: Radio and TV Studios | C182: Radio and TV Studios | E182: 179 | F182: =HLOOKUP($B$2,Übersetzung!$A$4:$D$216,E182,FALSE) -> Rundfunk-, Fernsehstudio
A183: Chemielabor | B183: Chemical-Laboratory | C183: Chemical-Laboratory | E183: 180 | F183: =HLOOKUP($B$2,Übersetzung!$A$4:$D$216,E183,FALSE) -> Chemielabor
A184: Wasch- und WC-Raum, Umkleide | B184: Washroom , Toilets | C184: Washroom , Toilets | E184: 181 | F184: =HLOOKUP($B$2,Übersetzung!$A$4:$D$216,E184,FALSE) -> Wasch- und WC-Raum, Umkleide
A185: Schwimmbad | B185: Swimming pools | C185: Swimming pools | E185: 182 | F185: =HLOOKUP($B$2,Übersetzung!$A$4:$D$216,E185,FALSE) -> Schwimmbad
A186: EDV-Raum | B186: Computer rooms | C186: Computer rooms | E186: 183 | F186: =HLOOKUP($B$2,Übersetzung!$A$4:$D$216,E186,FALSE) -> EDV-Raum
A187: Konzertsaal | B187: Concert halls. | C187: Concert halls. | E187: 184 | F187: =HLOOKUP($B$2,Übersetzung!$A$4:$D$216,E187,FALSE) -> Konzertsaal
A188: Lesesaal | B188: Lecture halls | C188: Lecture halls | E188: 185 | F188: =HLOOKUP($B$2,Übersetzung!$A$4:$D$216,E188,FALSE) -> Lesesaal
A189: Museum | B189: Museum | C189: Museum | E189: 186 | F189: =HLOOKUP($B$2,Übersetzung!$A$4:$D$216,E189,FALSE) -> Museum
A190: Küche | B190: Kitchen | C190: Kitchen | E190: 187 | F190: =HLOOKUP($B$2,Übersetzung!$A$4:$D$216,E190,FALSE) -> Küche
A191: Theater, Kino | B191: Theaters. Cinemas. | C191: Theaters. Cinemas. | E191: 188 | F191: =HLOOKUP($B$2,Übersetzung!$A$4:$D$216,E191,FALSE) -> Theater, Kino
A192: Klassen- Seminarraum | B192: Classrooms / seminar rooms | C192: Classrooms / seminar rooms | E192: 189 | F192: =HLOOKUP($B$2,Übersetzung!$A$4:$D$216,E192,FALSE) -> Klassen- Seminarraum
A193: Gaststätte | B193: Restaurants | C193: Restaurants | E193: 190 | F193: =HLOOKUP($B$2,Übersetzung!$A$4:$D$216,E193,FALSE) -> Gaststätte
A194: kein Typ | B194: no type | C194: no type | E194: 191 | F194: =HLOOKUP($B$2,Übersetzung!$A$4:$D$216,E194,FALSE) -> kein Typ
A195: Konferenzraum | B195: Conference rooms | C195: Conference rooms | E195: 192 | F195: =HLOOKUP($B$2,Übersetzung!$A$4:$D$216,E195,FALSE) -> Konferenzraum
A196: Hotelzimmer | B196: Hotel rooms | C196: Hotel rooms | E196: 193 | F196: =HLOOKUP($B$2,Übersetzung!$A$4:$D$216,E196,FALSE) -> Hotelzimmer
A197: Hörsaal | B197: Auditorium | C197: Auditorium | E197: 194 | F197: =HLOOKUP($B$2,Übersetzung!$A$4:$D$216,E197,FALSE) -> Hörsaal
A198: Bettenzimmer Krankenhaus | B198: Patient rooms | C198: =B198 -> Patient rooms | E198: 195 | F198: =HLOOKUP($B$2,Übersetzung!$A$4:$D$216,E198,FALSE) -> Bettenzimmer Krankenhaus
A199: Verkaufsraum | B199: Showrooms | C199: Showrooms | E199: 196 | F199: =HLOOKUP($B$2,Übersetzung!$A$4:$D$216,E199,FALSE) -> Verkaufsraum
A200: Sporthalle | B200: Gymnasiums | C200: Gymnasiums | E200: 197 | F200: =HLOOKUP($B$2,Übersetzung!$A$4:$D$216,E200,FALSE) -> Sporthalle
A201: Beschreibung: Verstellbarer Luftdurchlass für Wandeinbau. Zuluft- und Abluftfunktion in einer gemeinsamen Frontblende. Ausgestattet mit im Anschlusskasten integrierten schwenkbaren Schalldämmkulisssen nach VDI6022, zur Minderung der Telefonieschallübertragung. Variable Luftlenkung durch integrierte Luftleitelemente (Exzenterwalze). Optional: Konstantvolumenstromregler für Zu- bzw. Abluft. | B201: Description: Adjustable air diffuser for wall installation. Supply- and extract air function combined in one front panel. In the plenum, swivel-mounted sound traps according to VDI 6022 are installed for increasing cross talk. Variable air deflection caused by internal guiding elements (eccentric drums). Optional: Volume flow regulators in the supply- and/or extract air. | C201: Description: Adjustable air diffuser for wall installation. Supply- and extract air function combined in one front panel. In the plenum, swivel-mounted sound traps according to VDI 6022 are installed for increasing cross talk. Variable air deflection caused by internal guiding elements (eccentric drums). Optional: Volume flow regulators in the supply- and/or extract air. | E201: 198 | F201: =HLOOKUP($B$2,Übersetzung!$A$4:$D$216,E201,FALSE) -> Beschreibung: Verstellbarer Luftdurchlass für Wandeinbau. Zuluft- und Abluftfunktion in einer gemeinsamen Frontblende. Ausgestattet mit im Anschlusskasten integrierten schwenkbaren Schalldämmkulisssen nach VDI6022, zur Minderung der Telefonieschallübertragung. Variable Luftlenkung durch integrierte Luftleitelemente (Exzenterwalze). Optional: Konstantvolumenstromregler für Zu- bzw. Abluft.
... 46 more rows

Sheet Bauakustik (hidden)
A1: =Übersetzung!F215 -> Bauakustik - resultierendes Schalldämm-Maß
A3: =Übersetzung!F216 -> Erläuterung:
A4: =Übersetzung!F217 -> Aus den Einzahlangaben der bewerteten Schalldämm-Maße nach DIN EN ISO 717-1 und den Flächenanteilen der Einzelelemente wird das resultierende Schalldämm-Maß R´W,R,res nach DIN 4109 berechnet.
A6: =Übersetzung!F6 -> Eingabefelder sind gelb gekennzeichnet
A7: =Übersetzung!F7 -> Ergebnisfelder sind blau gekennzeichnet
A9: =Übersetzung!F8 -> Vorgaben
A10: =Übersetzung!F218 -> Luftdurchlass | B10: =Übersetzung!F10 -> Symbol | C10: =Übersetzung!F11 -> Einheit | D10: =Übersetzung!F12 -> Wert
A11: gewählter Luftdurchlass | D11: ='Auslegung KSW'!B78 -> 
A12: =Übersetzung!F13 -> Durchlass Typ | D12: ='Übergabedaten Bauakustik'!$B$43 -> KS
A13: =Übersetzung!F15 -> Baulänge | B13: L | C13: =Einheiten!$L$10 -> mm | D13: ='Übergabedaten Bauakustik'!$F$43 -> 750
A14: =Übersetzung!F142 -> Schlitzanzahl | B14: n | C14: [-] | D14: ='Übergabedaten Bauakustik'!$G$43 -> 3
A15: =Übersetzung!F174 -> Breite Anschlusskasten | B15: bAK | C15: =Einheiten!$L$5 -> m | D15: ='Übergabedaten Bauakustik'!$H$43/1000 -> 0.717
A16: =Übersetzung!F72 -> Höhe Anschlusskasten | B16: hAK | C16: =Einheiten!$L$5 -> m | D16: ='Übergabedaten Bauakustik'!$I$43/1000 -> 0.15
A17: =Übersetzung!F220 -> Bezugsfläche für die Berechnung | B17: SAK | C17: =Einheiten!$L$12 -> m² | D17: =D15*D16 -> 0.10755
A18: Abluft an Kanal angeschlossen? | D18: nein
D19: ja
D20: nein
A21: =Übersetzung!F219 -> Schalldämm-Maß | B21: RW_AK | C21: dB | D21: =IF(D18="ja",'Übergabedaten Bauakustik'!$M$43,'Übergabedaten Bauakustik'!$O$43) -> 20.31610415
A23: =Übersetzung!F221 -> Vorgaben Trennwand
B24: =B10 -> Symbol | C24: =C10 -> Einheit | D24: Wert
A25: =Übersetzung!F223 -> Breite Trennwand | B25: bE1 | C25: =Einheiten!$L$5 -> m | D25: 5
A26: =Übersetzung!F224 -> Höhe Trennwand | B26: hE1 | C26: =Einheiten!$L$5 -> m | D26: 3
A27: =Übersetzung!F225 -> Fläche Trennwand exklusive Einbauten | B27: SE1 | C27: =Einheiten!$L$12 -> m² | D27: =D25*D26-D34-D17 -> 12.89245
A28: =Übersetzung!F226 -> Schalldämm-Maß der Trennwand | B28: RW_E1 | C28: dB | D28: 40
A30: =Übersetzung!F222 -> Vorgaben weitere Bauteile im System (Tür, Fenster, …)
B31: =B10 -> Symbol | C31: =C10 -> Einheit | D31: Wert
A32: =Übersetzung!F227 -> Breite Element | B32: bE2 | C32: =Einheiten!$L$5 -> m | D32: 1
A33: =Übersetzung!F228 -> Höhe Element | B33: hE2 | C33: =Einheiten!$L$5 -> m | D33: 2
A34: =Übersetzung!F229 -> Fläche Element | B34: SE2 | C34: =Einheiten!$L$12 -> m² | D34: =D32*D33 -> 2
A35: =Übersetzung!F230 -> Schalldämm-Maß Element | B35: RW_E2 | C35: dB | D35: 35
A37: =Übersetzung!F231 -> resultierendes Schalldämmmaß des Gesamtsystems | B37: R´W,R,res | C37: dB | D37: =-10*LOG(1/(D34+D27+D17)*($D$17*10^(-0.1*$D$21)+$D$27*10^(-0.1*$D$28)+$D$34*10^(-0.1*$D$35))) -> 37.10455559
E53: =Übersetzung!F44 -> Änderungen vorbehalten
D54: =Übersetzung!F45 -> Stand: | E54: ='Grunddaten KSW'!$E$52 -> 2020-10-30

Sheet Auslegung KSW (hidden)
A1: =Übersetzung!F5 -> Auslegung Kampmann Kombiluftdurchlässe
A3: =Übersetzung!F6 -> Eingabefelder sind gelb gekennzeichnet
A4: =Übersetzung!F7 -> Ergebnisfelder sind blau gekennzeichnet
A6: =Übersetzung!F8 -> Vorgaben
A7: =Übersetzung!F9 -> Lüftungstechnik | B7: =Übersetzung!F10 -> Symbol | C7: =Übersetzung!F11 -> Einheit | D7: =Übersetzung!F12 -> Wert
A8: =Übersetzung!F13 -> Durchlass Typ | D8: KSW
A9: =Übersetzung!F15 -> Baulänge | B9: L | C9: =Einheiten!$L$10 -> mm | D9: 1200
D10: 500
D11: 800
D12: 1000
D13: 1200
A15: =Übersetzung!F142 -> Schlitzanzahl | B15: n | C15: [-] | D15: 2
D16: 1
D17: 2
A19: =Übersetzung!F207 -> Funktion | D19: Zuluft
B20: =Übersetzung!F162 -> Zuluft
B21: =Übersetzung!F163 -> Abluft
B22: =IF(D9>500,Übersetzung!F208,"") -> Zuluft/Abluft-Kombination
A24: =Übersetzung!F144 -> Luftvolumenstrom Zuluft | B24: V·SUP | C24: =Einheiten!$L$7 -> m³/h | D24: 150
A25: =Übersetzung!F146 -> Luftvolumenstrom Abluft | B25: V·ETA | C25: =Einheiten!$L$7 -> m³/h | D25: 80
A26: =Übersetzung!F147 -> Temperatur Zuluft | B26: tSUP | C26: =Einheiten!$L$9 -> °C | D26: 16
A27: =Übersetzung!F19 -> Temperatur Raum | B27: tRaum | C27: =Einheiten!$L$9 -> °C | D27: 20
A28: =Übersetzung!F20 -> Raumdaten
A29: =Übersetzung!F25 -> Raumhöhe | B29: H1 | C29: =Einheiten!$L$5 -> m | D29: 3
A30: =Übersetzung!F22 -> Obergrenze Aufenthaltsbereich | B30: H2 | C30: =Einheiten!$L$5 -> m | D30: 1.8
A31: =Übersetzung!F23 -> Raumlänge | B31: LR | C31: =Einheiten!$L$5 -> m | D31: 6
A32: =Übersetzung!F24 -> Raumbreite | B32: BR | C32: =Einheiten!$L$5 -> m | D32: 3
A33: =Übersetzung!F148 -> Raumart nach VDI 2081 | D33: Einzelbüro | I33: 1 | J33: =Übersetzung!F174 -> Breite Anschlusskasten | K33: ='Grunddaten KSW'!M49 -> 1218 | L33: =Einheiten!$L$10 -> mm
C34: =Übersetzung!F177 -> Einzelbüro
C35: =Übersetzung!F178 -> Großraumbüro
C36: =Übersetzung!F179 -> Werkstätten
C37: =Übersetzung!F180 -> Ruheraum, Pausenraum
C38: =Übersetzung!F181 -> Untersuchungsraum Krankenhaus
C39: =Übersetzung!F182 -> Rundfunk-, Fernsehstudio
C40: =Übersetzung!F183 -> Chemielabor
C41: =Übersetzung!F184 -> Wasch- und WC-Raum, Umkleide
C42: =Übersetzung!F185 -> Schwimmbad
C43: =Übersetzung!F186 -> EDV-Raum
C44: =Übersetzung!F187 -> Konzertsaal
C45: =Übersetzung!F188 -> Lesesaal
C46: =Übersetzung!F189 -> Museum
C47: =Übersetzung!F190 -> Küche
C48: =Übersetzung!F191 -> Theater, Kino
C49: =Übersetzung!F192 -> Klassen- Seminarraum
C50: =Übersetzung!F193 -> Gaststätte
C51: =Übersetzung!F194 -> kein Typ
C52: =Übersetzung!F195 -> Konferenzraum
C53: =Übersetzung!F196 -> Hotelzimmer
C54: =Übersetzung!F197 -> Hörsaal
C55: =Übersetzung!F198 -> Bettenzimmer Krankenhaus
C56: =Übersetzung!F199 -> Verkaufsraum
C57: =Übersetzung!F200 -> Sporthalle
A58: =Übersetzung!F149 -> Abstand zur Schallquelle | B58: r | C58: =Einheiten!$L$5 -> m | D58: 3 | I58: 2 | J58: =Übersetzung!F209 -> sichtbare Breite Schlitzdurchlass | K58: ='Grunddaten KSW'!N49 -> 1230 | L58: =Einheiten!$L$10 -> mm
A59: =Übersetzung!F150 -> Zusatzdaten
A60: Farbe Abdeckprofil und Endwinkel | B60: 9010 | F60: =VLOOKUP(B60,'Eingabe KSW'!A45:B48,2,FALSE) ->  | G60: =$B$60 -> 9010
A61: Farbe Luftlenkelement | B61: schwarz | G61: =VLOOKUP(B61,B62:G64,6,FALSE) -> S
B62: schwarz | G62: S
B63: weiß | G63: W
B64: grau | G64: G
A65: Einstellung Luftlenkelement | B65: Deckenstrahl D / E | G65: =VLOOKUP(B65,B66:G69,6,FALSE) -> D
B66: Deckenstrahl D / E | G66: D
B67: Sondereinstellung | G67: S
A69: Werkstoff Anschlusskasten | B69: Stahl verzinkt | G69: V
B70: Stahl verzinkt
A71: frontseitig bedienbare Drossel | B71: ohne | F71: =VLOOKUP(B71,'Eingabe KSW'!$A$45:$B$51,2,FALSE) ->  | G71: =VLOOKUP(B71,B72:G74,6,FALSE) -> 0
B72: mit | G72: 1
B73: ohne | G73: 0
A74: Innenauskleidung | B74: Baustoffklasse B1 (Standard) | G74: =VLOOKUP(B74,B75:G78,6,FALSE) -> B1
B75: Baustoffklasse B1 (Standard) | G75: B1
B76: Baustoffklasse A2 (optional) | G76: A2
A78: Merkmalschlüssel | B78: =CONCATENATE(1,"KSW","0",D15,G78,#REF!,"A",G60,G61,G65,G69,G71,G74,1,G79) ->  | G78: =IF(D9<1000,CONCATENATE(0,D9),D9) -> 1200
G79: =IF(K80=78,"080",100) -> 100 | I79: 3 | J79: =Übersetzung!F72 -> Höhe Anschlusskasten | K79: ='Grunddaten KSW'!L49 -> 280 | L79: =Einheiten!$L$10 -> mm
A80: =Übersetzung!F26 -> Berechnung strömungstechnische und Akustische Daten | D80: =Übersetzung!F162 -> Zuluft | E80: =Übersetzung!F163 -> Abluft | I80: 4 | J80: =Übersetzung!F42 -> Durchmesser Anschlussstutzen | K80: ='Grunddaten KSW'!P49 -> 98 | L80: =Einheiten!$L$10 -> mm
A81: =Übersetzung!F27 -> Totaldruckverlust | B81: Dpt | C81: =Einheiten!$L$8 -> Pa | D81: =IF(OR(D19=Übersetzung!F162,D19=Übersetzung!F208),'Grunddaten KSW'!$K$49,"") -> 31.01563535 | E81: =IF(OR(D19=Übersetzung!F163,D19=Übersetzung!F208),'Grunddaten KSW'!$K$50,"") ->  | I81: 5 | J81: =Übersetzung!F210 -> Abstand Anschlussstutzen | K81: ='Grunddaten KSW'!O49 -> 608 | L81: =Einheiten!$L$10 -> mm
A82: =Übersetzung!F91 -> Kritischer Strahlweg | B82: xkr. | C82: =Einheiten!$L$5 -> m | D82: =IF(OR(D19=Übersetzung!F162,D19=Übersetzung!F208),IF($D$15=2,'xkr._vx KSW'!$F$11,'xkr._vx KSW'!$F$10),"") -> 2.663241627
A83: =Übersetzung!F161 -> Strahllauflänge bis Aufenthaltsbereich | B83: x+y | C83: =Einheiten!$L$5 -> m | D83: =IF(OR(D19=Übersetzung!F162,D19=Übersetzung!F208),IF($D$15=2,'xkr._vx KSW'!$J$11,'xkr._vx KSW'!$J$10),"") -> 4.360297902
A84: =Übersetzung!F57 -> Geschwindigkeit nach Ablösen an Xkr. | B84: vx+y | C84: =Einheiten!$L$6 -> m/s | D84: =IF(OR(D19=Übersetzung!F162,D19=Übersetzung!F208),IF('xkr._vx KSW'!$K$13<0.1,"<0,1",'xkr._vx KSW'!$K$13),"") -> <0,1
A85: =Übersetzung!F58 -> Zugluftrisiko nach Ablösepunkt** | B85: DR | C85: % | D85: =IF(OR(D19=Übersetzung!F162,D19=Übersetzung!F208),IF(D15=1,'xkr._vx KSW'!M10,'xkr._vx KSW'!M11),"") -> 10.29049598
A86: =CONCATENATE(Übersetzung!F164," ",Übersetzung!F162,"/",Übersetzung!F163) -> Schallleistungspegel Zuluft/Abluft | B86: LWA_SUP/ETA | C86: dB(A) | D86: =IF(OR(D19=Übersetzung!F162,D19=Übersetzung!F208),'Lw KSW'!I102,"") -> 29.05023794 | E86: =IF(OR(D19=Übersetzung!F163,D19=Übersetzung!F208),'Lw KSW'!I103,"") -> 
D87: =IF(OR(D86="<25",D86=""),0,D86) -> 29.05023794 | E87: =IF(OR(E86="<25",E86=""),0,E86) -> 0
A88: =Übersetzung!F168 -> Summen-Schallleistungspegel Zuluft + Abluft | B88: LWA_gesamt | C88: dB(A) | D88: =IF(D87+E87=0,"25",10*LOG(10^(0.1*D87)+10^(0.1*E87))) -> 29.05563914
A89: =Übersetzung!F169 -> Schalldruckpegel im Raum | B89: LPA | C89: dB(A) | D89: =IF(D88+10*LOG('Lw KSW'!$F$110/(4*PI()*'Auslegung KSW'!D58^2)+4/('Lw KSW'!$H$110))>=25,D88+10*LOG('Lw KSW'!$F$110/(4*PI()*'Auslegung KSW'!D58^2)+4/('Lw KSW'!$H$110)),"<25") -> <25
A90: =Übersetzung!F206 -> * Daten gelten für Walzenstellung D/E
A92: =Übersetzung!F34 -> Oktavspektrum Schallleistung | B92: LW_Okt | C92: dB | D92: =D80 -> Zuluft | E92: =E80 -> Abluft
B93: LW_125 | C93: dB | D93: =IF(OR($D$19=Übersetzung!$F$162,$D$19=Übersetzung!$F$208),'Lw KSW'!B$104,"") -> 32.80500315 | E93: =IF(OR($D$19=Übersetzung!$F$163,$D$19="Zuluft/Abluft-Kombination"),'Lw KSW'!B$105,"") -> 
B94: LW_250 | C94: dB | D94: =IF(OR($D$19=Übersetzung!$F$162,$D$19=Übersetzung!$F$208),'Lw KSW'!C$104,"") -> 33.62399437 | E94: =IF(OR($D$19=Übersetzung!$F$163,$D$19="Zuluft/Abluft-Kombination"),'Lw KSW'!C$105,"") -> 
B95: LW_500 | C95: dB | D95: =IF(OR($D$19=Übersetzung!$F$162,$D$19=Übersetzung!$F$208),'Lw KSW'!D$104,"") -> 24.92369411 | E95: =IF(OR($D$19=Übersetzung!$F$163,$D$19="Zuluft/Abluft-Kombination"),'Lw KSW'!D$105,"") -> 
B96: LW_1000 | C96: dB | D96: =IF(OR($D$19=Übersetzung!$F$162,$D$19=Übersetzung!$F$208),'Lw KSW'!E$104,"") -> 18.74317157 | E96: =IF(OR($D$19=Übersetzung!$F$163,$D$19="Zuluft/Abluft-Kombination"),'Lw KSW'!E$105,"") -> 
B97: LW_2000 | C97: dB | D97: =IF(OR($D$19=Übersetzung!$F$162,$D$19=Übersetzung!$F$208),'Lw KSW'!F$104,"") -> 12.07030844 | E97: =IF(OR($D$19=Übersetzung!$F$163,$D$19="Zuluft/Abluft-Kombination"),'Lw KSW'!F$105,"") -> 
B98: LW_4000 | C98: dB | D98: =IF(OR($D$19=Übersetzung!$F$162,$D$19=Übersetzung!$F$208),'Lw KSW'!G$104,"") -> 14.31910758 | E98: =IF(OR($D$19=Übersetzung!$F$163,$D$19="Zuluft/Abluft-Kombination"),'Lw KSW'!G$105,"") -> 
B99: LW_8000 | C99: dB | D99: =IF(OR($D$19=Übersetzung!$F$162,$D$19=Übersetzung!$F$208),'Lw KSW'!H$104,"") -> 23.13858215 | E99: =IF(OR($D$19=Übersetzung!$F$163,$D$19="Zuluft/Abluft-Kombination"),'Lw KSW'!H$105,"") -> 
A101: =Übersetzung!F170 -> Durchgangsdämpfungsmaß (Kanal -> Raum) | B101: Dt | C101: dB
B102: Dt_63 | C102: dB | D102: ='Dt KSW'!D$25 -> 26.5869313
B103: Dt_125 | C103: dB | D103: ='Dt KSW'!E$25 -> 17.55893876
B104: Dt_250 | C104: dB | D104: ='Dt KSW'!F$25 -> 17.47416586
B105: Dt_500 | C105: dB | D105: ='Dt KSW'!G$25 -> 15.40671738
B106: Dt_1000 | C106: dB | D106: ='Dt KSW'!H$25 -> 21.05749399
B107: Dt_2000 | C107: dB | D107: ='Dt KSW'!I$25 -> 25.10207726
B108: Dt_4000 | C108: dB | D108: ='Dt KSW'!J$25 -> 25.11013475
B109: Dt_8000 | C109: dB | D109: ='Dt KSW'!K$25 -> 25.02713779
A110: =Übersetzung!F44 -> Änderungen vorbehalten
A111: =Übersetzung!F45 -> Stand: | E111: =IF(D9=500,KSW(),"") -> 
A112: ='Grunddaten KSW'!E52 -> 2020-10-30

Sheet Datenblatt KSW (hidden)
A2: =Übersetzung!F86 -> Typ | B2: Kampmann KSW | I2: =TODAY() -> 2022-01-19
A3: =Übersetzung!F87 -> Projekt | B3: =Übersetzung!F89 -> bitte Projektnummer angeben
A5: =Übersetzung!F88 -> Definition:
A6: =Übersetzung!F15 -> Baulänge | B6: ='Auslegung KSW'!D9 -> 1200 | C6: =Übersetzung!F151 -> Walzenfarbe | E6: ='Auslegung KSW'!B61 -> schwarz | F6: =Übersetzung!F207 -> Funktion | G6: ='Auslegung KSW'!D19 -> Zuluft
A7: =Übersetzung!F142 -> Schlitzanzahl | B7: ='Auslegung KSW'!D15 -> 2 | C7: =Übersetzung!F211 -> Farbe Abdeckprofil | E7: ='Auslegung KSW'!B60 -> 9010
A8: Innenauskleidung: | B8: ='Auslegung KSW'!G74 -> B1 | C8: Drossel fb: | E8: ='Auslegung KSW'!B71 -> ohne
A10: =Übersetzung!F212 -> Beschreibung: Verstellbarer Luftdurchlass für den Einbau in Leichtbauwänden (z.B. Trockenbau). Zuluft- und Abluftfunktion in einer Frontblende (außer KSW500). ,Ausgestattet mit im Anschlusskasten integriertem Absorptionsmaterial nach VDI6022, zur Minderung der Telefonieschallübertragung. Variable Luftlenkung durch integrierte Luftleitelemente (Exzenterwalze).
A13: =Übersetzung!F90 -> technische Vorgaben | F13: =Übersetzung!F20 -> Raumdaten
A14: =Übersetzung!F144 -> Luftvolumenstrom Zuluft | B14: V·SUP | C14: ='Auslegung KSW'!D24 -> 150 | D14: =Einheiten!$L$7 -> m³/h | F14: =Übersetzung!F25 -> Raumhöhe | G14: ='Auslegung KSW'!D29 -> 3 | H14: =Einheiten!$L$5 -> m
A15: =Übersetzung!F146 -> Luftvolumenstrom Abluft | B15: V·ETA | C15: =IF(B6=500,"",'Auslegung KSW'!D25) -> 80 | D15: =Einheiten!$L$7 -> m³/h | F15: =Übersetzung!F24 -> Raumbreite | G15: ='Auslegung KSW'!D32 -> 3 | H15: =Einheiten!$L$5 -> m
A16: =Übersetzung!F18 -> Temperatur Zuluft | B16: tZUL | C16: ='Auslegung KSW'!D26 -> 16 | D16: =Einheiten!$L$9 -> °C | F16: =Übersetzung!F23 -> Raumlänge | G16: ='Auslegung KSW'!D31 -> 6 | H16: =Einheiten!$L$5 -> m
A17: =Übersetzung!F19 -> Temperatur Raum | B17: tRAUM | C17: ='Auslegung KSW'!D27 -> 20 | D17: =Einheiten!$L$9 -> °C | F17: =Übersetzung!F148 -> Raumart nach VDI 2081 | G17: ='Auslegung KSW'!D33 -> Einzelbüro
A20: =Übersetzung!F204 -> Technische Daten | C20: =IF(B6=500,Übersetzung!F208,Übersetzung!F162) -> Zuluft | D20: =IF(B6=500," ",Übersetzung!F163) -> Abluft
A21: =Übersetzung!F27 -> Totaldruckverlust | B21: Dp | C21: ='Auslegung KSW'!D81 -> 31.01563535 | D21: ='Auslegung KSW'!E81 ->  | E21: =Einheiten!$L$8 -> Pa
A22: =Übersetzung!F91 -> Kritischer Strahlweg | B22: xkr. | C22: ='Auslegung KSW'!D82 -> 2.663241627 | E22: =Einheiten!$L$5 -> m
A23: =Übersetzung!F161 -> Strahllauflänge bis Aufenthaltsbereich | B23: x+y | C23: ='Auslegung KSW'!D83 -> 4.360297902 | E23: =Einheiten!$L$5 -> m
A24: =Übersetzung!F57 -> Geschwindigkeit nach Ablösen an Xkr. | B24: vx+y | C24: ='Auslegung KSW'!D84 -> <0,1 | E24: =Einheiten!$L$6 -> m/s | F24: =Übersetzung!F213 -> Maße
A25: =Übersetzung!F58 -> Zugluftrisiko nach Ablösepunkt** | B25: DR | C25: ='Auslegung KSW'!D85 -> 10.29049598 | E25: % | F25: ='Auslegung KSW'!J33 -> Breite Anschlusskasten | H25: ='Auslegung KSW'!K33 -> 1218 | I25: =Einheiten!$L$10 -> mm
A26: =Übersetzung!F164 -> Schallleistungspegel | B26: LWA_SUP/ETA | C26: ='Auslegung KSW'!D86 -> 29.05023794 | D26: ='Auslegung KSW'!E86 ->  | E26: dB(A) | F26: ='Auslegung KSW'!J58 -> sichtbare Breite Schlitzdurchlass | H26: ='Auslegung KSW'!K58 -> 1230 | I26: =Einheiten!$L$10 -> mm
A27: =Übersetzung!F168 -> Summen-Schallleistungspegel Zuluft + Abluft | B27: LWA_gesamt | C27: ='Auslegung KSW'!D88 -> 29.05563914 | E27: dB(A) | F27: ='Auslegung KSW'!J79 -> Höhe Anschlusskasten | H27: ='Auslegung KSW'!K79 -> 280 | I27: =Einheiten!$L$10 -> mm
A28: =CONCATENATE(Übersetzung!$F$169," in ",'Auslegung KS'!$D$88," ",Einheiten!$L$5," ",Übersetzung!$F$205) -> Schalldruckpegel im Raum in 3 m Abstand | B28: LPA | C28: ='Auslegung KSW'!D89 -> <25 | E28: dB(A) | F28: ='Auslegung KSW'!J80 -> Durchmesser Anschlussstutzen | H28: ='Auslegung KSW'!K80 -> 98 | I28: =Einheiten!$L$10 -> mm
A29: =Übersetzung!$F$206 -> * Daten gelten für Walzenstellung D/E
A30: =Übersetzung!$F$92 -> ** Raumkategorie nach DIN EN ISO 7730: DR<10 % = A; DR<20 % = B; DR<30 % = C
A33: =Übersetzung!F133 -> Oktavspektrum | B33: f [Hz] | C33: 125 | D33: 250 | E33: 500 | F33: 1000 | G33: 2000 | H33: 4000 | I33: 8000
A34: =IF(B6=500,Übersetzung!F208,Übersetzung!F162) -> Zuluft | B34: LWA_Okt | C34: ='Auslegung KSW'!D93 -> 32.80500315 | D34: ='Auslegung KSW'!D94 -> 33.62399437 | E34: ='Auslegung KSW'!D95 -> 24.92369411 | F34: ='Auslegung KSW'!D96 -> 18.74317157 | G34: ='Auslegung KSW'!D97 -> 12.07030844 | H34: ='Auslegung KSW'!D98 -> 14.31910758 | I34: ='Auslegung KSW'!D99 -> 23.13858215
A35: =Übersetzung!F163 -> Abluft | B35: LWA_Okt | C35: ='Auslegung KSW'!E93 ->  | D35: ='Auslegung KSW'!E94 ->  | E35: ='Auslegung KSW'!E95 ->  | F35: ='Auslegung KSW'!E96 ->  | G35: ='Auslegung KSW'!E97 ->  | H35: ='Auslegung KSW'!E98 ->  | I35: ='Auslegung KSW'!E99 -> 
A37: =Übersetzung!F170 -> Durchgangsdämpfungsmaß (Kanal -> Raum) | B37: f [Hz] | C37: 125 | D37: 250 | E37: 500 | F37: 1000 | G37: 2000 | H37: 4000 | I37: 8000
A38: =Übersetzung!F208 -> Zuluft/Abluft-Kombination | B38: Dt | C38: ='Auslegung KSW'!D102 -> 26.5869313 | D38: ='Auslegung KSW'!D104 -> 17.47416586 | E38: ='Auslegung KSW'!D105 -> 15.40671738 | F38: ='Auslegung KSW'!D106 -> 21.05749399 | G38: ='Auslegung KSW'!D107 -> 25.10207726 | H38: ='Auslegung KSW'!D108 -> 25.11013475 | I38: ='Auslegung KSW'!D109 -> 25.02713779
I39: =Übersetzung!$F$44 -> Änderungen vorbehalten
H40: =Übersetzung!$F$45 -> Stand: | I40: ='Grunddaten KSW'!E52 -> 2020-10-30

Sheet Datenblatt KS (hidden)
